Workbook

Sheet About JEDI
B3: JEDI - WIND
B5: Jobs and Economic Development Impact (JEDI) Model
B9: Release Number: W9.14.18
B11: The Jobs and Economic Development Impact (JEDI) Model was developed in 2002 to demonstrate the economic benefits associated with developing land-
B12: based wind power plants in the United States. The primary goal in developing the initial state level model was to provide a tool for wind developers, renewable
B13: eneergy advocates, government officials, decision makers and other potential users, to easily identify the local economic impacts associated with constructing and
B14: operating wind power plants. The second goal was to facilitate broad access and usage of the model by making it adaptable to a web based application that can be
B15: put on a web site.
B16: Consistent with these goals, a strong emphasis was placed on designing the model in a user-friendly format that could be easily modified - reflecting different
B17: levels of project specific information and user skill. This insures the greatest flexibility for inexperienced spreadsheet users, those unfamiliar with economic impact
B18: analysis, and more experienced and knowledgeable users who have a need for this specific type of analysis.
B19: Persons wishing more information on how and/or where the model is being used or the role of the National Renewable Energy Laboratory in analyzing
B20: wind and other renewable technologies should contact NREL support at:
B22: National Renewable Energy Laboratory
B23: 15013 Denver West Parkway
B24: Golden, Colorado, 80401
B25: Tel.: 303.384.6939
B26: Email: jedisupport@nrel.gov.
B28: The model was developed by Marshall Goldberg of MRG & Associates, under contract with the National Renewable Energy Laboratory. Persons wishing
B29: more information on the methodology or data in the model should contact him at:
B31: MRG & Associates
B32: 17935 Starduster Dr.
B33: Nevada City, California, 95959
B34: Tel.: 530.432.9373
B35: Email: MRGAssociates@earthlink.net
B37: The JEDI model utilizes multipliers derived from IMPLAN data using the IMPLAN Version 3.1 Social Accounting & Impact Analysis Software.
B38: Persons wishing more information on the IMPLAN data or the software should contact the IMPLAN Group.
B40: IMPLAN Group, LLC
B41: 16740 Birkdale Commons Parkway Suite 206
B42: Huntersville, North Carolina 28078
B43: Tel: 651.439.4421
B44: www.implan.com

Sheet FAQ
B2: JEDI - WIND
B4: Jobs and Economic Development Impact (JEDI) Model
B6: Frequently Asked Questions (FAQ)
B9: How do I know if I have the most current version of the JEDI model?
B10: The most current version of the JEDI model is available on the Department of Energy web site at www.windpoweringamerica.gov. Click on "Economic Development"
B11: on the left side of the page (in Program Areas). Once there, scroll down and click on "Jobs and Economic Development Impact (JEDI) Model." Scroll down and click on
B12: "Download the JEDI Model." (See also, getting on the JEDI mailing list, in FAQ.)
B14: How can I determine which version of the JEDI model I have?
B15: The version (release number) of the model you are currently using is listed in the "About JEDI" worksheet contained in this model.
B17: Is there a mailing list I can get on to be notified by email when new versions of JEDI are released?
B18: Yes, to get on the JEDI mailing list go to the Department of Energy web site at www.windpoweringamerica.gov. Click on "Economic Development" on the left side of the
B19: page (in Program Areas). Once there, scroll down and click on "Jobs and Economic Development Impact (JEDI) Model." Scroll down and click on "Updates." Enter
B20: your contact information, submit, and you will be placed on the JEDI mailing list.
B22: When I open up the model I receive a security alert message stating "the macros in the file have been disabled," how do I change the security setting so I
B23: can run the model with the macros enabled?
B24: The message you are receiving is related to the level of security you have chosen in your Excel™ set up. To change the setting for opening files, open Excel™, on the
B25: top toolbar, click on "tools," then "macros" then "security." Reset the security level to "medium," this will enable you to choose to enable or disable macros each
B26: time you open a file. Alternately, the model can be successfully run with the macros disabled.
B28: Where can I get more information on input-output modeling and using the JEDI model?
B29: To view and/or download JEDI related publications go to the Department of Energy's web site at www.windpoweringamerica.gov. Click on "Economic Development" on the
B30: left side of the page (under Program Areas). Additional information on these topics and access to publications is available by then clicking on "Jobs and Economic
B31: Impact (JEDI) Model. Once there, scroll down to "Publications" and click on any of the links. (See also, Is additional technical support available, in FAQ.)
B33: How do I run a county or regional level analysis?
B34: Running a county or regional level analysis is similar to running a state level analysis, although there are two key differences users must keep in mind. First, the model
B35: does not contain county or regional level multipliers, thus users must obtain these and add them into the model. (See FAQ on obtaining county or regional level
B36: multipliers and how to add in the data) Second, to run a county or regional level analysis users must enter the county or regional population in the Project Description
B37: area. The population provides a reference for the model to automatically insert 'local share" defaults for the analysis.
B39: Where can I get county or regional level data to add-in to the model to run a county or region specific analysis?
B40: County level multipliers and personal consumption expenditure patterns are available from a number of sources. Users familiar with IMPLAN or input-output modeling can
B41: purchase the raw county level data and derive the multipliers themselves, purchase them from someone familiar with input-output modeling, purchase them directly from
B42: IMPLAN (www.implan.com), or contact MRG & Associates (mrgassociates@earthlink.net), the model developer.
B44: How do I add in county or regional level multipliers and the personal consumption expenditure data?
B45: Adding-in county or regional level multipliers and personal consumtption expenditure data involves going to the "User Add-in Location" worksheet in this model and
B46: cutting and pasting the data into their respective locations. With the data installed it is also necessary to insert the county or region name, the year of the data, and
B47: the name of the state.
B49: What does the "local share" refer to?
B50: The "local share" refers to the percentage of each expenditure that is actually spent locally (i.e., in the state, county or region being analyzed). For example, if $1 million
B51: is going to be spent on construction materials and half ($500,000) of this total will be purchased from local suppliers, we say the "local share" is 50 percent.
B53: What does the term "full-time equivalent for a period of one year" refer to in the jobs results?
B54: The term refers to a job that is held (and wages paid) for a period of one year. This is based on 2,080 hours (52 weeks times 40 hours per week). For example, if the
B55: analysis indicates there are 100 construction jobs, there will be the equivalent of 100 workers, working full-time, for the entire year. If the construction period is two
B56: years, the job impacts (100 jobs) are spread over the two year construction period. In this example, there will be an average of 50 full-time jobs (100 jobs divided by 2
B57: years) during each of the years. Similarly, if the construction period is less than one year, for example, 9 months (75 percent of a full year), then the number of persons
B58: actually employed and working full-time during that period will be greater since they will not be employed and working for an entire year. In this example, there will be
B59: an average of 133 full-time workers (100 jobs divided by .75 percent of the year) during the 9 month construction period.
B61: I want to make my analysis as accurate as possible, where can I get information to adjust the default "local share" values (in the ProjectData worksheet)
B62: for my state or county?
B63: Since the "local share" is directly related to the availability of local businesses and services and their ability to meet the construction and annual operating demands
B64: of the project, it is important to have an accurate picture of these local resources. This can be obtained in a number of ways: contacting experienced and knowlegeable
B65: persons in the area, contacting local business and contractor organizations and/or the local chamber of commerce, among others.
B67: I want to make changes to the default labor construction and/or O&M costs, wage rates or employer payroll overhead but when I do I receive a pop up
B68: instructing me to only make changes if I change other wage and/or salary related cells. Why is this?
B69: The model uses the total labor costs and the average wages per hour to calculate the number of construction workers and O&M workers. Therefore, if a User chooses
B70: to modify the default values, they override the default ratios programed into the model. Thus, if the User increases (or decreases) the total labor costs without changing
B71: the wage per hour, the results will show more workers. Similarly, if the average wage per hour is increased (or decreased), without a subsequent increase in the
B72: total labor costs, the results will show fewer workers.
B74: I have used previous versions of the JEDI Wind model and my earlier results are significantly different from results with the newer version. Why is this?
B75: There are a number of reasons why this may occur. First, with each new model release, updated "on-the-ground" information from project developers and survey
B76: research has been incorporated into the model. Similarly, changes in reporting format, such as revising direct impacts to include only "on-site" spending in the
B77: more recent versions, will change how some of the results appear. Newer versions may also include updated multipliers that directly affect the results. And finally, user
B78: modifications to default data and local shares, as well as running a state versus a county or regional analysis will yield significantly varied results.
B80: When I change the construction ($ per kW) or O&M ($ per kW) cost in the Project Description area, the labor costs remain the same but the other project costs
B81: change. Why don't all the project costs change?
B82: The model is designed to allocate labor costs based on default wage and overhead costs and employment (job) ratios, unless the costs are modified by the user.
B83: Therefore, any changes in the total construction or O&M costs in the Project Description area do not impact labor costs. See also FAQ related to User changes to labor
B84: costs.
B86: I am interested in viewing and possibly editting internal formulas within the model, how do I access them?
B87: The JEDI model contains several intermediate worksheets that are an integral part of the model analysis. These worksheets are not designed to be changed by users.
B88: Several of these worksheets, including default data, calculations, and deflators may be viewed by merely clicking on the respective worksheet and scrolling to the right.
B89: Although these sheets may be viewed by users they are protected and can not be edited. The model contains two additional worksheets: multipliers and household
B90: expenditures. These worksheets are hidden to protect proprietary data derived from IMPLAN (Minnesota Implan Group).
B92: Is additional technical support available?
B93: Yes, technical support is available by contacting Suzanne Tegen, technical monitor at the National Renewable Energy Laboratory. She can be reached at 303-384-6939
B94: or by email at Suzanne.Tegen@nrel.gov.

Sheet START
A3: JEDI - WIND
A4: Jobs and Economic Development Impact Model

Sheet ProjectData
A1: Wind Farm Project Data
A3: INSTRUCTIONS: Begin by entering Project Location (from pull-down list) and other Descriptive Data.
A4: After inserting required data press enter (or cursor to the next cell) to continue.
A5: Once Descriptive Data is complete, choose "Y" or "N" on Line 24 to continue.
A6: Choose "Y" to accept Project Cost and Local Share defaults or "N" to review/modify values.
A7: To utilize new values in analysis you must choose an "N" in "Utilize Model Default Values (below)?" - Line 24
A8: Additional information is available by pointing to the red triangles located in cell corners and in the FAQ tab.
A9: Only those cells with a white background can be changed (accept new values). | X9: 2000
X10: =X9+1 -> 2001
X11: =X10+1 -> 2002
A12: Project Descriptive Data | C12: =IF(B13="MYREGION",IF('User Add-in Location'!F23=0,"Error - No Regional multiplier data in User Add-in Location",""),IF(B13="MYCOUNTY",IF('User Add-in Location'!E23=0,"Error - No County multiplier data in User Add-in Location",""),"")) ->  | T12: =IF(B13="MYCOUNTY",IF(B14="",2,1),IF(B13="MYREGION",IF(B14="",2,1),0)) -> 0 | X12: 2003
A13: Project Location | B13: CONNECTICUT | C13: =IF(B13="MYREGION",IF('User Add-in Location'!F23=0,"",IF(B13="MYREGION"," Enter Region Population","")),IF(B13="MYCOUNTY",IF('User Add-in Location'!E23=0,"",IF(B13="MYCOUNTY"," Enter County Population","")),"")) ->  | D13: =IF(B106="NA","JEDI does not currently have default data for taxes per MW; impacts from these payments are not currently included in results","") -> JEDI does not currently have default data for taxes per MW; impacts from these payments are not currently included in results | X13: 2004
A14: Population (only required for County/Region analysis) | D14: =IF(C13="","",IF(B14<1,"**Error - Population Data Missing**","")) ->  | X14: 2005
A15: Year of Construction | B15: 2017 | C15: =IF(B15>2030," **Error - Year of Construction exceeds 2030 - please revise**","") ->  | X15: 2006
A16: Total Project Size - Nameplate Capacity (MW) | B16: 300 | C16: =IF(B$17>1," **Note: Modeling results are calculated based on 'Total Project Size'.","") ->  | T16: Y | X16: 2007
A17: Number of Projects (included in Total Project Size) | B17: 1 | C17: =IF(B$17>1," The 'Number of Projects' entered does not change the calculation.**","") ->  | T17: N | X17: 2008
A18: Turbine Size (kW) | B18: =DefaultData!H9 -> 2300 | C18: =IF(B$17>1," Due to economies of scale for projects above 20 MW, Users are ","") ->  | X18: 2009
A19: Number of Turbines | B19: =DefaultData!D5 -> 131 | C19: =IF(B$17>1," encouraged to analyze projects individually rather than as a group. ","") ->  | X19: 2010
A20: Installed Project Cost ($/kW) | B20: =DefaultData!F5 -> 1453 | D20: =IF(B$21<DefaultData!AT$56," Please review O&M Materials & Services parameters; ","") ->  | X20: 2011
A21: Operations and Maintenance Cost ($/kW) | B21: =DefaultData!G9 -> 38 | D21: =IF(B$21<DefaultData!AT$56," costs may be below industry standards.**","") ->  | X21: 2012
A22: Money Value (Dollar Year) | B22: 2017 | C22: =IF($B$22>2030," **Error - Money Value (Dollar Year) Exceeds 2030 - please revise**",IF(B22<1996," **Error - Money Value (Dollar Year) is Below 1996 - please revise**","")) ->  | X22: 2013
X23: 2014
A24: Utilize Project Cost Data default values in analysis? Choose "Y" to accept default values below or "N" to over-ride default values and utilize new user defined values as entered below. See FAQ for related topics. | B24: N | D24: =IF($B$24="y","Press 'Go To Summary Impacts' Button",IF($B$24="N","Modify Project Cost Data (change data below)","Error - Re-enter 'Y' or 'N'")) -> Modify Project Cost Data (change data below) | X24: 2015
X25: 2016
X26: 2017
A27: If desired, default values (in cells below - based on Project Descriptive Data entered above) may be restored by pressing the 'Restore Default Values' button. Note: it is not necessary to restore defaults to incorporate default Project Cost Data in system analysis - simply choose "Y" in cell B24 above. | X27: 2018
X28: 2019
A29: Project Cost Data | X29: 2020 | AE29: Project Cost Data - Default Values
C30: Cost | D30: Percent of | X30: 2021 | AE30: Construction Costs | AF30: Cost | AG30: Cost | AH30: Percent of
A31: Construction Costs | B31: Cost | C31: Per kW | D31: Total Cost | E31: Local Share | X31: 2022 | AE31: Materials | AG31: Per KW | AH31: Total Cost | AI31: Local Share
A32: Equipment Costs | X32: 2023 | AE32: Equipment Costs
A33: Turbines and other equipment (excluding blades and towers) | B33: =DefaultData!$D32 -> 193738619.3 | C33: =B33/(B$16*1000) -> 645.7953978 | D33: =B33/(B$64) -> 0.4223873553 | E33: =$T33 -> 0 | T33: =IF($T$12=0,DefaultData!$G32,IF($T$12=2,"Pop. Data Missing",IF($B$14<DefaultData!$H$13,DefaultData!$H32,IF($B$14<DefaultData!$I$13,DefaultData!$O32,IF($B$14<DefaultData!$J$13,DefaultData!$R32,DefaultData!$U32))))) -> 0 | X33: 2024 | AE33: Turbines (excluding blades and towers) | AF33: =DefaultData!$D32 -> 193738619.3 | AI33: =$T33 -> 0
A34: Blades | B34: =DefaultData!$D33 -> 45356867.4 | C34: =B34/(B$16*1000) -> 151.189558 | D34: =B34/(B$64) -> 0.09888667181 | E34: =$T34 -> 0 | T34: =IF($T$12=0,DefaultData!$G33,IF($T$12=2,"Pop. Data Missing",IF($B$14<DefaultData!$H$13,DefaultData!$H33,IF($B$14<DefaultData!$I$13,DefaultData!$O33,IF($B$14<DefaultData!$J$13,DefaultData!$R33,DefaultData!$U33))))) -> 0 | X34: =X33+1 -> 2025 | AE34: Blades | AF34: =DefaultData!$D33 -> 45356867.4 | AI34: =$T34 -> 0
A35: Towers | B35: =DefaultData!$D34 -> 50216531.77 | C35: =B35/(B$16*1000) -> 167.3884392 | D35: =B35/(B$64) -> 0.1094816724 | E35: =$T35 -> 0 | T35: =IF($T$12=0,DefaultData!$G34,IF($T$12=2,"Pop. Data Missing",IF($B$14<DefaultData!$H$13,DefaultData!$H34,IF($B$14<DefaultData!$I$13,DefaultData!$O34,IF($B$14<DefaultData!$J$13,DefaultData!$R34,DefaultData!$U34))))) -> 0 | X35: 2026 | AE35: Towers | AF35: =DefaultData!$D34 -> 50216531.77 | AI35: =$T35 -> 0
A36: Transportation | B36: =DefaultData!$D35 -> 34665605.8 | C36: =B36/(B$16*1000) -> 115.5520193 | D36: =B36/(B$64) -> 0.0755776706 | E36: =$T36 -> 0 | T36: =IF($T$12=0,DefaultData!$G35,IF($T$12=2,"Pop. Data Missing",IF($B$14<DefaultData!$H$13,DefaultData!$H35,IF($B$14<DefaultData!$I$13,DefaultData!$O35,IF($B$14<DefaultData!$J$13,DefaultData!$R35,DefaultData!$U35))))) -> 0 | X36: 2027 | AE36: Transportation | AF36: =DefaultData!$D35 -> 34665605.8 | AI36: =$T36 -> 0
A37: Equipment Total | B37: =SUM(B33:B36) -> 323977624.3 | C37: =SUM(C33:C36) -> 1079.925414 | D37: =SUM(D33:D36) -> 0.7063333701 | X37: 2028 | AE37: Equipment Subtotal | AF37: =SUM(AF33:AF36) -> 323977624.3
A38: Balance of Plant | X38: 2029 | AE38: Other Costs
A39: Materials | X39: 2030 | AE39: Materials
A40: Construction (concrete, rebar, equip, roads and site prep) | B40: =DefaultData!$D18 -> 46814767.34 | C40: =B40/(B$16*1000) -> 156.0492245 | D40: =B40/(B$64) -> 0.1020651733 | E40: =$T40 -> 0.9 | T40: =IF($T$12=0,DefaultData!$G18,IF($T$12=2,"Pop. Data Missing",IF($B$14<DefaultData!$H$13,DefaultData!$H18,IF($B$14<DefaultData!$I$13,DefaultData!$O18,IF($B$14<DefaultData!$J$13,DefaultData!$R18,DefaultData!$U18))))) -> 0.9 | AE40: Construction (concrete, rebar, equip, roads and site prep) | AF40: =DefaultData!$D18 -> 46814767.34 | AI40: =$T40 -> 0.9
A41: Transformer | B41: =DefaultData!$D19 -> 5295720.734 | C41: =B41/(B$16*1000) -> 17.65240245 | D41: =B41/(B$64) -> 0.01154568709 | E41: =$T41 -> 0 | T41: =IF($T$12=0,DefaultData!$G19,IF($T$12=2,"Pop. Data Missing",IF($B$14<DefaultData!$H$13,DefaultData!$H19,IF($B$14<DefaultData!$I$13,DefaultData!$O19,IF($B$14<DefaultData!$J$13,DefaultData!$R19,DefaultData!$U19))))) -> 0 | AE41: Transformer | AF41: =DefaultData!$D19 -> 5295720.734 | AI41: =$T41 -> 0
A42: Electrical (drop cable, wire, ) | B42: =DefaultData!$D20 -> 5582047.492 | C42: =B42/(B$16*1000) -> 18.60682497 | D42: =B42/(B$64) -> 0.01216993434 | E42: =$T42 -> 1 | T42: =IF($T$12=0,DefaultData!$G20,IF($T$12=2,"Pop. Data Missing",IF($B$14<DefaultData!$H$13,DefaultData!$H20,IF($B$14<DefaultData!$I$13,DefaultData!$O20,IF($B$14<DefaultData!$J$13,DefaultData!$R20,DefaultData!$U20))))) -> 1 | AE42: Electrical (drop cable, wire, ) | AF42: =DefaultData!$D20 -> 5582047.492 | AI42: =$T42 -> 1
A43: HV line extension | B43: =DefaultData!$D21 -> 10196538.5 | C43: =B43/(B$16*1000) -> 33.98846168 | D43: =B43/(B$64) -> 0.02223040995 | E43: =$T43 -> 0.7 | T43: =IF($T$12=0,DefaultData!$G21,IF($T$12=2,"Pop. Data Missing",IF($B$14<DefaultData!$H$13,DefaultData!$H21,IF($B$14<DefaultData!$I$13,DefaultData!$O21,IF($B$14<DefaultData!$J$13,DefaultData!$R21,DefaultData!$U21))))) -> 0.7 | AE43: HV line extension | AF43: =DefaultData!$D21 -> 10196538.5 | AI43: =$T43 -> 0.7
A44: Materials Subtotal | B44: =SUM(B40:B43) -> 67889074.07 | C44: =SUM(C40:C43) -> 226.2969136 | D44: =SUM(D40:D43) -> 0.1480112047 | AE44: Materials Subtotal | AF44: =SUM(AF40:AF43) -> 67889074.07
A45: Labor | B45: =IF($B$51=DefaultData!D29,"","Do not change 'Labor Costs' without changing Construction 'Wages per Hour' below." ) ->  | AE45: Labor
A46: Foundation | B46: =DefaultData!$D24 -> 3336085.772 | C46: =B46/(B$16*1000) -> 11.12028591 | D46: =B46/(B$64) -> 0.007273306948 | E46: =$T46 -> 0.95 | F46: =IF($B$51=DefaultData!D$29,""," See comment - point cursor to" ) ->  | T46: =IF($T$12=0,DefaultData!$G24,IF($T$12=2,"Pop. Data Missing",IF($B$14<DefaultData!$H$13,DefaultData!$H24,IF($B$14<DefaultData!$I$13,DefaultData!$O24,IF($B$14<DefaultData!$J$13,DefaultData!$R24,DefaultData!$U24))))) -> 0.95 | AE46: Foundation | AF46: =DefaultData!$D24 -> 3336085.772 | AI46: =$T46 -> 0.95
A47: Erection | B47: =DefaultData!$D25 -> 3778590.598 | C47: =B47/(B$16*1000) -> 12.59530199 | D47: =B47/(B$64) -> 0.008238052357 | E47: =$T47 -> 0.75 | F47: =IF($B$51=DefaultData!D$29,""," red triangle in cell corner." ) ->  | T47: =IF($T$12=0,DefaultData!$G25,IF($T$12=2,"Pop. Data Missing",IF($B$14<DefaultData!$H$13,DefaultData!$H25,IF($B$14<DefaultData!$I$13,DefaultData!$O25,IF($B$14<DefaultData!$J$13,DefaultData!$R25,DefaultData!$U25))))) -> 0.75 | AE47: Erection | AF47: =DefaultData!$D25 -> 3778590.598 | AI47: =$T47 -> 0.75
A48: Electrical | B48: =DefaultData!$D26 -> 5506544.631 | C48: =B48/(B$16*1000) -> 18.35514877 | D48: =B48/(B$64) -> 0.01200532362 | E48: =$T48 -> 0.7 | T48: =IF($T$12=0,DefaultData!$G26,IF($T$12=2,"Pop. Data Missing",IF($B$14<DefaultData!$H$13,DefaultData!$H26,IF($B$14<DefaultData!$I$13,DefaultData!$O26,IF($B$14<DefaultData!$J$13,DefaultData!$R26,DefaultData!$U26))))) -> 0.7 | AE48: Electrical | AF48: =DefaultData!$D26 -> 5506544.631 | AI48: =$T48 -> 0.7
A49: Management/Supervision | B49: =DefaultData!$D27 -> 2857356.194 | C49: =B49/(B$16*1000) -> 9.524520646 | D49: =B49/(B$64) -> 0.006229584633 | E49: =$T49 -> 0 | T49: =IF($T$12=0,DefaultData!$G27,IF($T$12=2,"Pop. Data Missing",IF($B$14<DefaultData!$H$13,DefaultData!$H27,IF($B$14<DefaultData!$I$13,DefaultData!$O27,IF($B$14<DefaultData!$J$13,DefaultData!$R27,DefaultData!$U27))))) -> 0 | AE49: Management/supervision | AF49: =DefaultData!$D27 -> 2857356.194 | AI49: =$T49 -> 0
A50: Misc. | B50: =DefaultData!$D28 -> 16564200 | C50: =B50/(B$16*1000) -> 55.214 | D50: =B50/(B$64) -> 0.03611313353 | E50: =$T50 -> 0.5 | T50: =IF($T$12=0,DefaultData!$G28,IF($T$12=2,"Pop. Data Missing",IF($B$14<DefaultData!$H$13,DefaultData!$H28,IF($B$14<DefaultData!$I$13,DefaultData!$O28,IF($B$14<DefaultData!$J$13,DefaultData!$R28,DefaultData!$U28))))) -> 0.5 | AE50: Misc. | AF50: =DefaultData!$D28 -> 16564200 | AI50: =$T50 -> 0.5
A51: Labor Subtotal | B51: =SUM(B46:B50) -> 32042777.19 | C51: =SUM(C46:C50) -> 106.8092573 | D51: =SUM(D46:D50) -> 0.0698594011 | AE51: Labor Subtotal | AF51: =SUM(AF46:AF50) -> 32042777.19
A52: Development/Other Costs
A53: HV Sub/Interconnection | T53: =IF($T$12=0,DefaultData!$G38,IF($T$12=2,"Pop. Data Missing",IF($B$14<DefaultData!$H$13,DefaultData!$H38,IF($B$14<DefaultData!$I$13,DefaultData!$O38,IF($B$14<DefaultData!$J$13,DefaultData!$R38,DefaultData!$U38))))) -> 0.9 | AE53: HV Sub/Interconnection
A54: Materials | B54: =DefaultData!$D39 -> 3217399.955 | C54: =B54/(B$16*1000) -> 10.72466652 | D54: =B54/(B$64) -> 0.007014549101 | E54: =$T54 -> 0.9 | T54: =IF($T$12=0,DefaultData!$G39,IF($T$12=2,"Pop. Data Missing",IF($B$14<DefaultData!$H$13,DefaultData!$H39,IF($B$14<DefaultData!$I$13,DefaultData!$O39,IF($B$14<DefaultData!$J$13,DefaultData!$R39,DefaultData!$U39))))) -> 0.9 | AE54: Materials | AF54: =DefaultData!$D39 -> 3217399.955 | AI54: =$T54 -> 0.9
A55: Labor | B55: =DefaultData!$D40 -> 985553.0085 | C55: 3.285176695 | D55: 0.002148694619 | E55: 0.1 | T55: =IF($T$12=0,DefaultData!$G40,IF($T$12=2,"Pop. Data Missing",IF($B$14<DefaultData!$H$13,DefaultData!$H40,IF($B$14<DefaultData!$I$13,DefaultData!$O40,IF($B$14<DefaultData!$J$13,DefaultData!$R40,DefaultData!$U40))))) -> 0.1 | AE55: Labor | AF55: =DefaultData!$D40 -> 985553.0085 | AI55: 0.1
A56: Engineering | B56: =DefaultData!$D41 -> 4378076.004 | C56: 14.59358668 | D56: 0.009545045541 | E56: 0 | T56: =IF($T$12=0,DefaultData!$G41,IF($T$12=2,"Pop. Data Missing",IF($B$14<DefaultData!$H$13,DefaultData!$H41,IF($B$14<DefaultData!$I$13,DefaultData!$O41,IF($B$14<DefaultData!$J$13,DefaultData!$R41,DefaultData!$U41))))) -> 0 | AE56: Engineering | AF56: =DefaultData!$D41 -> 4378076.004 | AI56: 0
A57: Legal Services | B57: =DefaultData!$D42 -> 2386051.422 | C57: 7.95350474 | D57: 0.00520204982 | E57: 1 | T57: =IF($T$12=0,DefaultData!$G42,IF($T$12=2,"Pop. Data Missing",IF($B$14<DefaultData!$H$13,DefaultData!$H42,IF($B$14<DefaultData!$I$13,DefaultData!$O42,IF($B$14<DefaultData!$J$13,DefaultData!$R42,DefaultData!$U42))))) -> 1 | AE57: Legal Services | AF57: =DefaultData!$D42 -> 2386051.422 | AI57: 1
A58: Land Easements | B58: =DefaultData!$D43 -> 0 | C58: 0 | D58: 0 | E58: 1 | T58: =IF($T$12=0,DefaultData!$G43,IF($T$12=2,"Pop. Data Missing",IF($B$14<DefaultData!$H$13,DefaultData!$H43,IF($B$14<DefaultData!$I$13,DefaultData!$O43,IF($B$14<DefaultData!$J$13,DefaultData!$R43,DefaultData!$U43))))) -> 1 | AE58: Land Easements | AF58: =DefaultData!$D43 -> 0 | AI58: 1
A59: Site Certificate/Permitting | B59: =DefaultData!$D44 -> 1116409.381 | C59: 3.721364603 | D59: 0.002433986613 | E59: 1 | T59: =IF($T$12=0,DefaultData!$G44,IF($T$12=2,"Pop. Data Missing",IF($B$14<DefaultData!$H$13,DefaultData!$H44,IF($B$14<DefaultData!$I$13,DefaultData!$O44,IF($B$14<DefaultData!$J$13,DefaultData!$R44,DefaultData!$U44))))) -> 1 | AE59: Site Certificate/Permitting | AF59: =DefaultData!$D44 -> 1116409.381 | AI59: 1
A60: Development/Other Subtotal | B60: =SUM(B53:B59) -> 12083489.77 | C60: =SUM(C53:C59) -> 40.27829924 | D60: =SUM(D53:D59) -> 0.02634432569 | AE60: Other Subtotal | AF60: =SUM(AF53:AF59) -> 12083489.77
A61: Balance of Plant Total | B61: =B60+B51+B44 -> 112015341 | C61: =C60+C51+C44 -> 373.3844701 | D61: =D60+D51+D44 -> 0.2442149315 | AE61: Balance of Plant Total | AF61: =AF60+AF51+AF44 -> 112015341
A62: Subtotal (all cost without taxes) | B62: =B61+B37 -> 435992965.3 | C62: =B62/(B$16*1000) -> 1453.309884 | D62: =D61+D37 -> 0.9505483016 | AE62: Subtotal (all cost without taxes) | AF62: =AF61+AF37 -> 435992965.3
A63: Sales Tax (Material and Equipment Purchases) | B63: =DefaultData!$D47 -> 22682269.38 | C63: =B63/(B$16*1000) -> 75.60756459 | D63: =B63/(B$64) -> 0.04945169842 | E63: =$E$108 -> 1 | T63: =IF($T$12=0,DefaultData!$G47,IF($T$12=2,"Pop. Data Missing",IF($B$14<DefaultData!$H$13,DefaultData!$H47,IF($B$14<DefaultData!$I$13,DefaultData!$O47,IF($B$14<DefaultData!$J$13,DefaultData!$R47,DefaultData!$U47))))) -> 1 | AE63: Sales Tax (Material and Equipment Purchases) | AF63: =DefaultData!$D47 -> 22682269.38 | AI63: =$E$108 -> 1
A64: Total | B64: =+B63+B62 -> 458675234.7 | C64: =+C63+C62 -> 1528.917449 | D64: =D63+D62 -> 1 | AE64: Total | AF64: =+AF63+AF62 -> 458675234.7
A66: Wind Farm Annual Operating and Maintenance Costs | AE66: Wind Farm Annual Operating and Maintenance Costs
A67: =D20 ->  | C67: Cost | D67: Percent of
A68: =D21 ->  | B68: Cost | C68: Per kW | D68: Total Cost | E68: Local Share or % of Time Onsite (for itinerate workers) | AF68: Cost | AI68: Local Share
A69: Labor | AE69: Labor
A70: Personnel | B70: =IF($B$71=DefaultData!D55,"","Do not change 'Labor Personnel Costs' without changing O&M 'Wages per Hour' below. " ) ->  | AE70: Personnel
A71: Field Salaries (i.e., onsite wind technicians, etc.) | B71: =DefaultData!$D55 -> 935474.927 | C71: =B71/(B$16*1000) -> 3.118249757 | D71: =B71/B$87 -> 0.07876424137 | E71: =$T71 -> 1 | F71: =IF($B$71=DefaultData!D$55,""," See comment - point cursor to" ) ->  | T71: =IF($T$12=0,DefaultData!$G55,IF($T$12=2,"Pop. Data Missing",IF($B$14<DefaultData!$H$13,DefaultData!$H55,IF($B$14<DefaultData!$I$13,DefaultData!$O55,IF($B$14<DefaultData!$J$13,DefaultData!$R55,DefaultData!$U55))))) -> 1 | AE71: Field Salaries | AF71: =DefaultData!$D55 -> 935474.927 | AI71: =$T71 -> 1
A72: Administrative | B72: =DefaultData!$D56 -> 88696.88197 | C72: =B72/(B$16*1000) -> 0.2956562732 | D72: =B72/B$87 -> 0.00746801696 | E72: =$T72 -> 1 | F72: =IF($B$71=DefaultData!D$55,""," red triangle in cell corner." ) ->  | T72: =IF($T$12=0,DefaultData!$G56,IF($T$12=2,"Pop. Data Missing",IF($B$14<DefaultData!$H$13,DefaultData!$H56,IF($B$14<DefaultData!$I$13,DefaultData!$O56,IF($B$14<DefaultData!$J$13,DefaultData!$R56,DefaultData!$U56))))) -> 1 | AE72: Administrative | AF72: =DefaultData!$D56 -> 88696.88197 | AI72: =$T72 -> 1
A73: Management | B73: =DefaultData!$D57 -> 166306.6537 | C73: =B73/(B$16*1000) -> 0.5543555123 | D73: =B73/B$87 -> 0.0140025318 | E73: =$T73 -> 1 | T73: =IF($T$12=0,DefaultData!$G57,IF($T$12=2,"Pop. Data Missing",IF($B$14<DefaultData!$H$13,DefaultData!$H57,IF($B$14<DefaultData!$I$13,DefaultData!$O57,IF($B$14<DefaultData!$J$13,DefaultData!$R57,DefaultData!$U57))))) -> 1 | AE73: Management | AF73: =DefaultData!$D57 -> 166306.6537 | AI73: =$T73 -> 1
A74: Labor/Personnel Subtotal | B74: =SUM(B71:B73) -> 1190478.463 | C74: =SUM(C71:C73) -> 3.968261542 | D74: =SUM(D71:D73) -> 0.1002347901 | AE74: Personnel Subtotal | AF74: =SUM(AF71:AF73) -> 1190478.463
A75: Materials and Services | AE75: Materials and Services
A76: Vehicles | B76: =DefaultData!$D63 -> 291658.9498 | C76: =B76/(B$16*1000) -> 0.9721964993 | D76: =B76/B$87 -> 0.02455682697 | E76: =$T76 -> 1 | T76: =IF($T$12=0,DefaultData!$G63,IF($T$12=2,"Pop. Data Missing",IF($B$14<DefaultData!$H$13,DefaultData!$H63,IF($B$14<DefaultData!$I$13,DefaultData!$O63,IF($B$14<DefaultData!$J$13,DefaultData!$R63,DefaultData!$U63))))) -> 1 | AE76: Vehicles | AF76: =DefaultData!$D63 -> 291658.9498 | AI76: =$T76 -> 1
A77: Site Maint/Misc. Services | B77: =DefaultData!$D64 -> 113746.9904 | C77: 0.3791566347 | D77: 0.009577162519 | E77: 0.8 | T77: =IF($T$12=0,DefaultData!$G64,IF($T$12=2,"Pop. Data Missing",IF($B$14<DefaultData!$H$13,DefaultData!$H64,IF($B$14<DefaultData!$I$13,DefaultData!$O64,IF($B$14<DefaultData!$J$13,DefaultData!$R64,DefaultData!$U64))))) -> 0.8 | AE77: Misc. Services | AF77: =DefaultData!$D64 -> 113746.9904 | AI77: 0.8
A78: Fees, Permits, Licenses | B78: =DefaultData!$D65 -> 56873.49521 | C78: 0.1895783174 | D78: 0.00478858126 | E78: 1 | T78: =IF($T$12=0,DefaultData!$G65,IF($T$12=2,"Pop. Data Missing",IF($B$14<DefaultData!$H$13,DefaultData!$H65,IF($B$14<DefaultData!$I$13,DefaultData!$O65,IF($B$14<DefaultData!$J$13,DefaultData!$R65,DefaultData!$U65))))) -> 1 | AE78: Fees, Permits, Licenses | AF78: =DefaultData!$D65 -> 56873.49521 | AI78: 1
A79: Utilities | B79: =DefaultData!$D66 -> 227493.9808 | C79: 0.7583132694 | D79: 0.01915432504 | E79: 1 | T79: =IF($T$12=0,DefaultData!$G66,IF($T$12=2,"Pop. Data Missing",IF($B$14<DefaultData!$H$13,DefaultData!$H66,IF($B$14<DefaultData!$I$13,DefaultData!$O66,IF($B$14<DefaultData!$J$13,DefaultData!$R66,DefaultData!$U66))))) -> 1 | AE79: Utilities | AF79: =DefaultData!$D66 -> 227493.9808 | AI79: 1
A80: Insurance | B80: =DefaultData!$D67 -> 2187442.123 | C80: 7.291473745 | D80: 0.1841762023 | E80: 0 | T80: =IF($T$12=0,DefaultData!$G67,IF($T$12=2,"Pop. Data Missing",IF($B$14<DefaultData!$H$13,DefaultData!$H67,IF($B$14<DefaultData!$I$13,DefaultData!$O67,IF($B$14<DefaultData!$J$13,DefaultData!$R67,DefaultData!$U67))))) -> 0 | AE80: Insurance | AF80: =DefaultData!$D67 -> 2187442.123 | AI80: 0
A81: Fuel (motor vehicle gasoline) | B81: =DefaultData!$D68 -> 113746.9904 | C81: 0.3791566347 | D81: 0.009577162519 | E81: 1 | T81: =IF($T$12=0,DefaultData!$G68,IF($T$12=2,"Pop. Data Missing",IF($B$14<DefaultData!$H$13,DefaultData!$H68,IF($B$14<DefaultData!$I$13,DefaultData!$O68,IF($B$14<DefaultData!$J$13,DefaultData!$R68,DefaultData!$U68))))) -> 1 | AE81: Fuel (motor vehicle gasoline) | AF81: =DefaultData!$D68 -> 113746.9904 | AI81: 1
A82: Consumables/Tools and Misc. Supplies | B82: =DefaultData!$D69 -> 739355.4377 | C82: 2.464518126 | D82: 0.06225155637 | E82: 1 | T82: =IF($T$12=0,DefaultData!$G69,IF($T$12=2,"Pop. Data Missing",IF($B$14<DefaultData!$H$13,DefaultData!$H69,IF($B$14<DefaultData!$I$13,DefaultData!$O69,IF($B$14<DefaultData!$J$13,DefaultData!$R69,DefaultData!$U69))))) -> 1 | AE82: Tools and Misc. Supplies | AF82: =DefaultData!$D69 -> 739355.4377 | AI82: 1
A83: Replacement Parts/Equipment/ Spare Parts Inventory | B83: =DefaultData!$D70 -> 6479203.57 | C83: 21.59734523 | D83: 0.5455299112 | E83: 0.02 | T83: =IF($T$12=0,DefaultData!$G70,IF($T$12=2,"Pop. Data Missing",IF($B$14<DefaultData!$H$13,DefaultData!$H70,IF($B$14<DefaultData!$I$13,DefaultData!$O70,IF($B$14<DefaultData!$J$13,DefaultData!$R70,DefaultData!$U70))))) -> 0.02 | AE83: Spare Parts Inventory | AF83: =DefaultData!$D70 -> 6479203.57 | AI83: 0.02
A84: Materials and Services Subtotal | B84: =SUM(B76:B83) -> 10209521.54 | C84: =SUM(C76:C83) -> 34.03173846 | D84: =SUM(D76:D83) -> 0.8596117282 | AE84: Materials and Services Subtotal | AF84: =SUM(AF76:AF83) -> 10209521.54
A85: Sales Tax (Materials & Equipment Purchases) | B85: =DefaultData!$D72 -> 476898.8403 | C85: 1.589662801 | D85: 0.0401534817 | E85: =$E$108 -> 1 | T85: =DefaultData!G72 -> 1 | AE85: Sales Tax (Materials & Equipment Purchases) | AF85: =DefaultData!$D72 -> 476898.8403 | AI85: =$E$108 -> 1
A86: Other Taxes/Payments | B86: =DefaultData!$D73 -> 0 | C86: 0 | D86: 0 | E86: =$T86 -> 1 | T86: =DefaultData!G73 -> 1 | AE86: Other Taxes/Payments | AF86: =DefaultData!$D73 -> 0 | AI86: =$T86 -> 1
A87: Total O&M Cost | B87: =B84+B85+B86+B74 -> 11876898.84 | C87: =C86+C85+C84+C74 -> 39.5896628 | D87: =D86+D85+D84+D74 -> 1 | AE87: Total | AF87: =AF84+AF85+AF86+AF74 -> 11876898.84
A89: Other Parameters | AE89: Other Parameters
A90: Financial Parameters | E90: Local Share | AE90: Financial Parameters | AI90: Local Share
A91: Debt Financing | AE91: Debt Financing
A92: Percentage financed | B92: =DefaultData!$D84 -> 0.8 | E92: =DefaultData!$F84 -> 0 | AE92: Percentage financed | AF92: =DefaultData!$D84 -> 0.8 | AI92: =DefaultData!$F84 -> 0
A93: Years financed (term) | B93: =DefaultData!$D85 -> 10 | AE93: Years financed (term) | AF93: =DefaultData!$D85 -> 10
A94: Interest rate | B94: =DefaultData!$D86 -> 0.063 | AE94: Interest rate | AF94: =DefaultData!$D86 -> 0.063
A95: Equity Financing/Repayment | AE95: Equity Financing/Repayment
A96: Percentage equity | B96: =1-B92 -> 0.2 | AE96: Percentage equity | AF96: =1-AF92 -> 0.2
A97: Individual Investors (percent of total equity) | B97: =DefaultData!$D90 -> 0 | E97: =DefaultData!$F90 -> 1 | AE97: Individual Investors (percent of total equity) | AF97: =DefaultData!$D90 -> 0 | AI97: =DefaultData!$F90 -> 1
A98: Corporate Investors (percent of total equity) | B98: =1-B97 -> 1 | E98: =DefaultData!$F91 -> 0 | AE98: Corporate Investors (percent of total equity) | AF98: =1-AF97 -> 1 | AI98: =DefaultData!$F91 -> 0
A99: Return on equity (annual interest rate) | B99: =DefaultData!$D92 -> 0.12 | AE99: Return on equity (annual interest rate) | AF99: =DefaultData!$D92 -> 0.12
A100: Repayment term (years) | B100: =DefaultData!$D93 -> 10 | AE100: Repayment term (years) | AF100: =DefaultData!$D93 -> 10
A101: Tax Parameters | AE101: Tax Parameters
A102: Local Property Tax Rate (avg millage rate - $/$1,000) | B102: =DefaultData!$D95 -> 19.44 | R102: =IF($B102="NA",1,0) -> 0 | AE102: Local PropertyTax Rate (avg mill rate - $/$1,000) | AF102: =DefaultData!$D95 -> 19.44
A103: Assessed value (percent of construction cost) | B103: =DefaultData!$D96 -> 1 | C103: =IF(R102=1,IF(R103=1,""," Please enter Local Property Tax Rate in cell B102 or set cell B103 to NA."),IF(R103<1,""," Please enter Assessed value percentage in cell B103 or set cell B102 to NA")) ->  | R103: =IF($B103="NA",1,0) -> 0 | AE103: Assessed value (percent of construction cost) | AF103: =DefaultData!$D96 -> 1
A105: Taxable Value | B105: =IF($B102="NA","NA",$B64*$B103) -> 458675234.7 | AE105: Taxable Value | AF105: =IF($B102="NA","NA",$B64*$B103) -> 458675234.7
A106: Taxes Per MW | B106: =DefaultData!$D99 -> NA | C106: =IF(B106<>DefaultData!D99,IF(B102<>"na"," 'na' (without quotes) must be entered in cell B102",""),"") ->  | AE106: Taxes Per MW | AF106: =DefaultData!$D99 -> NA | AG106: =IF(AF106<>DefaultData!AH99,IF(AF102<>"na"," 'na' (without quotes) must be entered in cell B102",""),"") -> 'na' (without quotes) must be entered in cell B102
A107: Local Taxes | B107: =IF($B102="NA",IF(B106="NA",0,$B106*$B16),($B105/1000)*$B102) -> 8916646.563 | E107: =DefaultData!$F100 -> 1 | AE107: Local Taxes | AF107: =IF($B102="NA",IF(AF106="NA",0,$B106*$B16),($B105/1000)*$B102) -> 8916646.563 | AI107: =DefaultData!$F100 -> 1
A108: Local Sales Tax Rate | B108: =DefaultData!$D101 -> 0.0635 | E108: =DefaultData!$F101 -> 1 | AE108: Sales Tax Rate | AF108: =DefaultData!$D101 -> 0.0635 | AI108: =DefaultData!$F101 -> 1
A109: Land Lease Parameters | AE109: Land Lease Parameters
A110: Land Lease Cost (per turbine) | B110: =DefaultData!$D103 -> 6900 | AE110: Land Lease Cost (per turbine) | AF110: =DefaultData!$D103 -> 6900
A111: Number of Turbines | B111: =B19 -> 131 | AE111: Number of Turbines | AF111: =AF19 -> 0
A112: Land Lease (total cost) | B112: =B111*B110 -> 903900 | AE112: Land Lease (total cost) | AF112: =AF111*AF110 -> 0
A113: Lease Payment recipient (F = farmer/household, O = Other) | B113: =DefaultData!$D105 -> F | E113: =DefaultData!$F105 -> 1 | AE113: Lease Payment recipient (F = farmer/household, O = Other) | AF113: =DefaultData!$D105 -> F | AI113: =DefaultData!$F105 -> 1
A114: Payroll Parameters | B114: =IF(DefaultData!O114=DefaultData!E114,"","Do not change Construction 'Wage per hour' without changing Construction 'Labor Costs' above." ) ->  | AE114: Payroll Parameters | AF114: =IF(DefaultData!AS114=DefaultData!AI114,"","Do not change Construction 'Wage per hour' without changing Construction 'Labor Costs' above." ) -> 
A115: Construction Labor | B115: Wage per hour | D115: Employer Payroll Overhead | AE115: Construction Labor | AF115: Wage per hour | AH115: Employer Payroll Overhead
A116: Foundation | B116: =DefaultData!$E110 -> 22.17648971 | D116: =DefaultData!$G110 -> 0.3760611025 | E116: =IF(DefaultData!Q114=DefaultData!G114,"","Please review comment - point to red triangle in cell corner." ) ->  | AE116: Foundation | AF116: =DefaultData!$E110 -> 22.17648971 | AH116: =DefaultData!$G110 -> 0.3760611025 | AI116: =IF(DefaultData!AU114=DefaultData!AK114,"","Please review comment - point to red triangle in cell corner." ) -> 
A117: Erection | B117: =DefaultData!$E111 -> 25.11802192 | D117: =DefaultData!$G111 -> 0.3760611025 | AE117: Erection | AF117: =DefaultData!$E111 -> 25.11802192 | AH117: =DefaultData!$G111 -> 0.3760611025
A118: Electrical | B118: =DefaultData!$E112 -> 33.27683964 | D118: =DefaultData!$G112 -> 0.3760611025 | AE118: Electrical | AF118: =DefaultData!$E112 -> 33.27683964 | AH118: =DefaultData!$G112 -> 0.3760611025
A119: Management/Supervision | B119: =DefaultData!$E113 -> 45.2366496 | D119: =DefaultData!$G113 -> 0.3760611025 | AE119: Management/Supervision | AF119: =DefaultData!$E113 -> 45.2366496 | AH119: =DefaultData!$G113 -> 0.3760611025
A120: O&M Labor | B120: Wage per hour | D120: Employer Payroll Overhead | AF120: Wage per hour | AH120: Employer Payroll Overhead
A121: Field Salaries (technicians, other) | B121: =DefaultData!$E115 -> 30.26267701 | D121: =DefaultData!$G115 -> 0.3760611025 | E121: =IF(DefaultData!Q118=DefaultData!G118,""," See comment - point to red triangle in cell corner." ) ->  | AE121: Field Salaries (technicians, other) | AF121: =DefaultData!$E115 -> 30.26267701 | AH121: =DefaultData!$G115 -> 0.3760611025 | AI121: =IF(DefaultData!AU118=DefaultData!AK118,""," See comment - point to red triangle in cell corner." ) -> 
A122: Administrative | B122: =DefaultData!$E116 -> 19.36811329 | D122: =DefaultData!$G116 -> 0.3760611025 | AE122: Administrative | AF122: =DefaultData!$E116 -> 19.36811329 | AH122: =DefaultData!$G116 -> 0.3760611025
A123: Management/Supervision | B123: =DefaultData!$E117 -> 48.42028322 | D123: =DefaultData!$G117 -> 0.3760611025 | AE123: Management | AF123: =DefaultData!$E117 -> 48.42028322 | AH123: =DefaultData!$G117 -> 0.3760611025
B124: =IF(DefaultData!$O118=DefaultData!E118,"","Do not change O&M 'Wage per hour' without changing O&M 'Labor Personnel Costs' above. " ) -> 
D125: =IF(DefaultData!O$118=DefaultData!E$118,""," See comment - point cursor to red triangle in cell corner" ) -> 
J212: 1
O685: =UPPER('User Add-in Location'!B8) -> MYCOUNTY
O686: =UPPER('User Add-in Location'!C8) -> MYREGION
O687: ALABAMA
O688: ALASKA
O689: ARIZONA
O690: ARKANSAS
O691: CALIFORNIA
O692: COLORADO
O693: CONNECTICUT
O694: DELAWARE
O695: DISTRICT OF COLUMBIA
O696: FLORIDA
O697: GEORGIA
O698: HAWAII
O699: IDAHO
O700: ILLINOIS
O701: INDIANA
O702: IOWA
O703: KANSAS
O704: KENTUCKY
O705: LOUISIANA
O706: MAINE
O707: MARYLAND
O708: MASSACHUSETTS
O709: MICHIGAN
O710: MINNESOTA
O711: MISSISSIPPI
O712: MISSOURI
O713: MONTANA
O714: NEBRASKA
O715: NEVADA
O716: NEW HAMPSHIRE
O717: NEW JERSEY
O718: NEW MEXICO
O719: NEW YORK
O720: NORTH CAROLINA
O721: NORTH DAKOTA
O722: OHIO
O723: OKLAHOMA
O724: OREGON
O725: PENNSYLVANIA
O726: RHODE ISLAND
O727: SOUTH CAROLINA
O728: SOUTH DAKOTA
O729: TENNESSEE
O730: TEXAS
O731: UNITED STATES
O732: UTAH
O733: VERMONT
O734: VIRGINIA
O735: WASHINGTON
O736: WEST VIRGINIA
O737: WISCONSIN
O738: WYOMING

Sheet SummaryResults
A1: =CONCATENATE("Wind Farm - Project Data Summary based on ",$AE$41, " values") -> Wind Farm - Project Data Summary based on User modifications to default values | BB1: =Summary_Results -> Wind Farm - Project Data Summary based on User modifications to default values
A2: Project Location | C2: =IF(ProjectData!B13="MyCounty",'User Add-in Location'!B3,IF(ProjectData!B13="MyRegion",'User Add-in Location'!B4,ProjectData!B13)) -> CONNECTICUT | D2: =ProjectData!D14 ->  | BB2: Project Location | BD2: =C2 -> CONNECTICUT | BE2: =D2 -> 
A3: Year of Construction | C3: =+ProjectData!B15 -> 2017 | BB3: Year of Construction | BD3: =C3 -> 2017
A4: Total Project Size - Nameplate Capacity (MW) | C4: =+ProjectData!B16 -> 300 | BB4: Total Project Size - Nameplate Capacity (MW) | BD4: =C4 -> 300
A5: Number of Projects (included in total) | C5: =+ProjectData!B17 -> 1 | BB5: Number of Projects (included in total) | BD5: 1
A6: Turbine Size (kW) | C6: =+ProjectData!B18 -> 2300 | BB6: Turbine Size (kW) | BD6: 2300
A7: Number of Turbines | C7: =+ProjectData!B19 -> 131 | BB7: Number of Turbines | BD7: 131
A8: Installed Project Cost ($/kW) | C8: =Calculations!D37/(C4*1000) -> 1528.917449 | D8: =AB8 -> 1453 | E8: without taxes | Z8: Installed Project Cost ($/kW without taxes) | AB8: =ROUND(ProjectData!C62,0) -> 1453 | BB8: Installed Project Cost ($/kW) | BD8: 1528.917449 | BE8: =D8 -> 1453 | BF8: =E8 -> without taxes
A9: Annual O&M Cost ($/kW) | C9: =Calculations!D93 -> 39.5896628 | D9: =AB9 -> 38 | E9: without taxes | Z9: Annual O&M Cost ($/kW without taxes) | AB9: =ROUND(ProjectData!C74+ProjectData!C84,2) -> 38 | BB9: Annual Direct O&M Cost ($/kW) | BD9: 39.5896628 | BE9: 38 | BF9: without taxes
A10: Money Value (Dollar Year) | C10: =ProjectData!B22 -> 2017 | BB10: Money Value (Dollar Year) | BD10: 2017
A11: Total Installed Project Cost | C11: =Calculations!D37 -> 458675234.7 | BB11: Installed Project Cost | BD11: 458675234.7
A12: Local Spending | C12: =+Calculations!F57 -> 102171766.2 | BB12: Local Spending | BD12: 102171766.2
A13: Total Annual Operational Expenses | C13: =C14+C16 -> 88499524.02 | BB13: Total Annual Operational Expenses | BD13: 88499524.02
A14: Direct Operating and Maintenance Costs | C14: =Calculations!D92 -> 11876898.84 | BB14: Direct Operating and Maintenance Costs | BD14: 11876898.84
A15: Local Spending | C15: =Calculations!G92 -> 2840188.98 | BB15: Local Spending | BD15: 2840188.98
A16: Other Annual Costs | C16: =Calculations!E92 -> 76622625.18 | BB16: Other Annual Costs | BD16: 76622625.18
A17: Local Spending | C17: =Calculations!H92 -> 10297445.4 | BB17: Local Spending | BD17: 10297445.4
A18: Debt and Equity Payments | C18: =SUM(Calculations!G86:G88) -> 0 | BB18: Debt and Equity Payments | BD18: 0
A19: Property Taxes | C19: =Calculations!G89 -> 8916646.563 | BB19: Property Taxes | BD19: 8916646.563
A20: Land Lease | C20: =Calculations!G90 -> 903900 | BB20: Land Lease | BD20: 903900
A21: =ProjectData!C15 -> 
A22: Local Economic Impacts - Summary Results | BB22: Local Economic Impacts - Summary Results
B23: Jobs | C23: Earnings | D23: Output | E23: Value Added | BC23: Jobs | BD23: Earnings | BE23: Output | BF23: Value Added
A24: During construction period | BB24: During construction period
A25: Project Development and Onsite Labor Impacts | BB25: Project Development and Onsite Labor Impacts
A26: Construction and Interconnection Labor | B26: =Calculations!AH42 -> 130.3306111 | C26: =Calculations!AI42 -> 9.946054838 | BB26: Construction and Interconnection Labor | BC26: =B26 -> 130.3306111 | BD26: 9.946054838
A27: Construction Related Services | B27: =Calculations!AH43 -> 12.91215095 | C27: =Calculations!AI43 -> 1.317795106 | BB27: Construction Related Services | BC27: =B27 -> 12.91215095 | BD27: =C27 -> 1.317795106
A28: Total | B28: =Calculations!AH41 -> 143.242762 | C28: =Calculations!AI41 -> 11.26384994 | D28: =Calculations!AJ41 -> 12.34252743 | E28: =Calculations!AK41 -> 11.49575602 | BB28: Total | BC28: =B28 -> 143.242762 | BD28: =C28 -> 11.26384994 | BE28: =D28 -> 12.34252743 | BF28: =E28 -> 11.49575602
A29: Turbine and Supply Chain Impacts | B29: =Calculations!AH44 -> 530.1346914 | C29: =Calculations!AI44 -> 38.20226186 | D29: =Calculations!AJ44 -> 94.18398196 | E29: =Calculations!AK44 -> 48.87003604 | BB29: Turbine and Supply Chain Impacts | BC29: 530.1346914 | BD29: 38.20226186 | BE29: 94.18398196 | BF29: 48.87003604
A30: Induced Impacts | B30: =Calculations!AH45 -> 241.2270413 | C30: =Calculations!AI45 -> 16.75501517 | D30: =Calculations!AJ45 -> 43.31886683 | E30: =Calculations!AK45 -> 27.59410649 | BB30: Induced Impacts | BC30: 241.2270413 | BD30: 16.75501517 | BE30: 43.31886683 | BF30: 27.59410649
A31: Total Impacts | B31: =Calculations!AH46 -> 914.6044947 | C31: =Calculations!AI46 -> 66.22112697 | D31: =Calculations!AJ46 -> 149.8453762 | E31: =Calculations!AK46 -> 87.95989855 | BB31: Total Impacts | BC31: 914.6044947 | BD31: 66.22112697 | BE31: 149.8453762 | BF31: 87.95989855
A33: During operating years (annual) | BB33: During operating years (annual)
A34: Onsite Labor Impacts | B34: =Calculations!AH50 -> 13.6 | C34: =Calculations!AI50 -> 1.105742243 | D34: =Calculations!AJ50 -> 1.105742243 | E34: =Calculations!AK50 -> 1.105742243 | BB34: Onsite Labor Impacts | BC34: =B34 -> 13.6 | BD34: 1.105742243 | BE34: 1.105742243 | BF34: 1.105742243
A35: Local Revenue and Supply Chain Impacts | B35: =Calculations!AH51 -> 27.20122558 | C35: =Calculations!AI51 -> 2.186726425 | D35: =Calculations!AJ51 -> 15.01134568 | E35: =Calculations!AK51 -> 11.81757729 | BB35: Local Revenue and Supply Chain Impacts | BC35: 27.20122558 | BD35: 2.186726425 | BE35: 15.01134568 | BF35: 11.81757729
A36: Induced Impacts | B36: =Calculations!AH52 -> 33.32017378 | C36: =Calculations!AI52 -> 2.539982478 | D36: =Calculations!AJ52 -> 6.563063921 | E36: =Calculations!AK52 -> 4.180577318 | BB36: Induced Impacts | BC36: 33.32017378 | BD36: 2.539982478 | BE36: 6.563063921 | BF36: 4.180577318
A37: Total Impacts | B37: =Calculations!AH53 -> 74.12139936 | C37: =Calculations!AI53 -> 5.832451146 | D37: =Calculations!AJ53 -> 22.68015184 | E37: =Calculations!AK53 -> 17.10389685 | BB37: Total Impacts | BC37: 74.12139936 | BD37: 5.832451146 | BE37: 22.68015184 | BF37: 17.10389685
A38: =CONCATENATE("Notes: Earnings and Output values are millions of dollars in year ",C10, " dollars. Construction and operating jobs are full-") -> Notes: Earnings and Output values are millions of dollars in year 2017 dollars. Construction and operating jobs are full- | BB38: =CONCATENATE("Notes: Earnings and Output values are millions of dollars in year ",BD10, " dollars. Construction and operating jobs are full-") -> Notes: Earnings and Output values are millions of dollars in year 2017 dollars. Construction and operating jobs are full-
A39: time equivalent for a period of one year (1 FTE = 2,080 hours). Wind farm workers includes field technicians, administration and | AE39: =C8+C9 -> 1568.507112 | BB39: time equivalent for a period of one year (1 FTE = 2,080 hours). Wind farm workers includes field technicians, administration and
A40: management. Economic impacts "During operating years" represent impacts that occur from wind farm operations/expenditures. | AE40: =DefaultData!E46+DefaultData!F80 -> 1491.309884 | BB40: management. Economic impacts "During operating years" represent impacts that occur from wind farm operations/expenditures.
A41: The analysis does not include impacts associated with spending of wind farm "profits" and assumes no tax abatement unless noted. | AE41: =IF(AE39=AE40,"model default","User modifications to default") -> User modifications to default | BB41: The analysis does not include impacts associated with spending of wind farm "profits" and assumes no tax abatement unless
A42: =CONCATENATE("Totals may not add up due to independent rounding. Results are based on ",$AE$41, " values.") -> Totals may not add up due to independent rounding. Results are based on User modifications to default values. | BB42: =CONCATENATE("noted. Totals may not add up due to independent rounding. Results are based on ",$AE$41, " values.") -> noted. Totals may not add up due to independent rounding. Results are based on User modifications to default values.
A45: Detailed Wind Farm Project Data Costs | C45: =Calculations!E1 -> CONNECTICUT | BB45: Detailed Wind Farm Project Data Costs | BD45: =C45 -> CONNECTICUT
A47: Construction Costs | C47: Cost | D47: Local Share | BB47: Construction Costs | BD47: Cost | BE47: Local Share
A48: Equipment | BB48: Equipment Costs
A49: Turbines | C49: =Calculations!AC21 -> 193738619.3 | D49: =Calculations!AD21 -> 0 | BB49: Turbines | BD49: =C49 -> 193738619.3 | BE49: 0
A50: Blades | C50: =Calculations!AC22 -> 45356867.4 | D50: =Calculations!AD22 -> 0 | BB50: Blades | BD50: 45356867.4 | BE50: 0
A51: Towers | C51: =Calculations!AC23 -> 50216531.77 | D51: =Calculations!AD23 -> 0 | BB51: Towers | BD51: 50216531.77 | BE51: 0
A52: Transportation | C52: =Calculations!AC24 -> 34665605.8 | D52: =Calculations!AD24 -> 0 | BB52: Transportation | BD52: =C52 -> 34665605.8 | BE52: =D52 -> 0
A53: Equipment Total | C53: =Calculations!AC25 -> 323977624.3 | BB53: Equipment Subtotal | BD53: =C53 -> 323977624.3
A54: Balance of Plant | BB54: Balance of Plant
A55: Materials | BB55: Materials
A56: Construction (concrete rebar, equip, roads and site prep) | C56: =Calculations!AC7 -> 46814767.34 | D56: =Calculations!AD7 -> 0.9 | BB56: Construction (concrete rebar, equip, roads and site prep) | BD56: =C56 -> 46814767.34 | BE56: 0.9
A57: Transformer | C57: =Calculations!AC8 -> 5295720.734 | D57: =Calculations!AD8 -> 0 | BB57: Transformer | BD57: 5295720.734 | BE57: 0
A58: Electrical (drop cable, wire, ) | C58: =Calculations!AC9 -> 5582047.492 | D58: =Calculations!AD9 -> 1 | BB58: Electrical (drop cable, wire, ) | BD58: 5582047.492 | BE58: 1
A59: HV line extension | C59: =Calculations!AC10 -> 10196538.5 | D59: =Calculations!AD10 -> 0.7 | BB59: HV line extension | BD59: 10196538.5 | BE59: 0.7
A60: Materials Subtotal | C60: =Calculations!AC11 -> 67889074.07 | BB60: Materials Subtotal | BD60: =C60 -> 67889074.07
A61: Labor | BB61: Labor
A62: Foundation | C62: =Calculations!AC13 -> 3336085.772 | D62: =Calculations!AD13 -> 0.95 | BB62: Foundation | BD62: =C62 -> 3336085.772 | BE62: 0.95
A63: Erection | C63: =Calculations!AC14 -> 3778590.598 | D63: =Calculations!AD14 -> 0.75 | BB63: Erection | BD63: 3778590.598 | BE63: 0.75
A64: Electrical | C64: =Calculations!AC15 -> 5506544.631 | D64: =Calculations!AD15 -> 0.7 | BB64: Electrical | BD64: 5506544.631 | BE64: 0.7
A65: Management/supervision | C65: =Calculations!AC16 -> 2857356.194 | D65: =Calculations!AD16 -> 0 | BB65: Management/supervision | BD65: 2857356.194 | BE65: 0
A66: Misc. | C66: =Calculations!AC17 -> 16564200 | D66: =Calculations!AD17 -> 0.5 | BB66: Misc. | BD66: =C66 -> 16564200 | BE66: =D66 -> 0.5
A67: Labor Subtotal | C67: =Calculations!AC18 -> 32042777.19 | BB67: Labor Subtotal | BD67: =C67 -> 32042777.19
A68: Development/Other Costs | BB68: Development/Other Costs
A69: HV Sub/Interconnection | BB69: HV Sub/Interconnection
A70: Materials | C70: =Calculations!AC28 -> 3217399.955 | D70: =Calculations!AD28 -> 0.9 | BB70: Materials | BD70: =C70 -> 3217399.955 | BE70: =D70 -> 0.9
A71: Labor | C71: =Calculations!AC29 -> 985553.0085 | D71: =Calculations!AD29 -> 0.1 | BB71: Labor | BD71: =C71 -> 985553.0085 | BE71: =D71 -> 0.1
A72: Engineering | C72: =Calculations!AC30 -> 4378076.004 | D72: =Calculations!AD30 -> 0 | BB72: Engineering | BD72: =C72 -> 4378076.004 | BE72: =D72 -> 0
A73: Legal Services | C73: =Calculations!AC31 -> 2386051.422 | D73: =Calculations!AD31 -> 1 | BB73: Legal Services | BD73: 2386051.422 | BE73: =D73 -> 1
A74: Land Easements | C74: =Calculations!AC32 -> 0 | D74: =Calculations!AD32 -> 1 | BB74: Land Easements | BD74: 0 | BE74: =D74 -> 1
A75: Site Certificate | C75: =Calculations!AC33 -> 1116409.381 | D75: =Calculations!AD33 -> 1 | BB75: Site Certificate | BD75: 1116409.381 | BE75: =D75 -> 1
A76: Development/Other Subtotal | C76: =Calculations!AC34 -> 12083489.77 | BB76: Other Subtotal | BD76: 12083489.77
A77: Balance of Plant Total | C77: =C76+C67+C60 -> 112015341 | BB77: Balance of Plant Total | BD77: 112015341
A78: Sales Tax (Materials & Equipment Purchases) | C78: =Calculations!AC36 -> 22682269.38 | D78: =Calculations!AD36 -> 1 | BB78: Sales Tax (Materials & Equipment Purchases) | BD78: 22682269.38 | BE78: =D78 -> 1
A79: Total Project Costs | C79: =Calculations!AC37 -> 458675234.7 | BB79: Total Project Costs | BD79: 458675234.7
A81: Wind Plant Annual Operating and Maintenance Costs | BB81: Wind Farm Annual Operating and Maintenance Costs
C82: Cost | D82: Local Share | BD82: Cost | BE82: Local Share
A83: Labor Costs | BB83: Labor
A84: Personnel | BB84: Personnel
A85: Field Salaries | C85: =Calculations!AC43 -> 935474.927 | D85: =Calculations!AD43 -> 1 | BB85: Field Salaries | BD85: =C85 -> 935474.927 | BE85: =D85 -> 1
A86: Administrative | C86: =Calculations!AC44 -> 88696.88197 | D86: =Calculations!AD44 -> 1 | BB86: Administrative | BD86: 88696.88197 | BE86: 1
A87: Management | C87: =Calculations!AC45 -> 166306.6537 | D87: =Calculations!AD45 -> 1 | BB87: Management | BD87: 166306.6537 | BE87: 1
A88: Labor/Personnel Subtotal | C88: =Calculations!AC46 -> 1190478.463 | BB88: Labor/Personnel Subtotal | BD88: 1190478.463
A89: Materials and Services | BB89: Materials and Services
A90: Vehicles | C90: =Calculations!AC51 -> 291658.9498 | D90: =Calculations!AD51 -> 1 | BB90: Vehicles | BD90: 291658.9498 | BE90: 1
A91: Misc. Services | C91: =Calculations!AC52 -> 113746.9904 | D91: =Calculations!AD52 -> 0.8 | BB91: Site Maint/Misc. Services | BD91: 113746.9904 | BE91: 0.8
A92: Fees, Permits, Licenses | C92: =Calculations!AC53 -> 56873.49521 | D92: =Calculations!AD53 -> 1 | BB92: Fees, Permits, Licenses | BD92: 56873.49521 | BE92: 1
A93: Misc. Materials | C93: =Calculations!AC54 -> 227493.9808 | D93: =Calculations!AD54 -> 1 | BB93: Utilities | BD93: 227493.9808 | BE93: 1
A94: Insurance | C94: =Calculations!AC55 -> 2187442.123 | D94: =Calculations!AD55 -> 0 | BB94: Insurance | BD94: 2187442.123 | BE94: 0
A95: Fuel (motor vehicle gasoline) | C95: =Calculations!AC56 -> 113746.9904 | D95: =Calculations!AD56 -> 1 | BB95: Fuel (motor vehicle gasoline) | BD95: 113746.9904 | BE95: 1
A96: Tools and Misc. Supplies | C96: =Calculations!AC57 -> 739355.4377 | D96: =Calculations!AD57 -> 1 | BB96: Consumables/Tools and Misc. Supplies | BD96: 739355.4377 | BE96: 1
A97: Spare Parts Inventory | C97: =Calculations!AC58 -> 6479203.57 | D97: =Calculations!AD58 -> 0.02 | BB97: Replacement Parts/Equipment/ Spare Parts Inventory | BD97: 6479203.57 | BE97: 0.02
A98: Materials and Services Subtotal | C98: =Calculations!AC59 -> 10209521.54 | BB98: Materials and Services Subtotal | BD98: 10209521.54
A99: Sales Tax (Materials & Equipment Purchases) | C99: =Calculations!AC60 -> 476898.8403 | D99: =Calculations!AD60 -> 1 | BB99: Sales Tax (Materials & Equipment Purchases) | BD99: 476898.8403 | BE99: 1
A100: Other Taxes/Payments | C100: =Calculations!AC61 -> 0 | D100: =Calculations!AD61 -> 1 | BB100: Other Taxes/Payments | BD100: 0 | BE100: 1
A101: Total (with Sales Tax and Other Taxes/Payments) | C101: =Calculations!AC62 -> 11876898.84 | BB101: Total (with Sales Tax and Other Taxes/Payments) | BD101: 11876898.84
A102: Debt Payment (average annual) | C102: =Calculations!AC63 -> 50566428.01 | D102: =Calculations!AD63 -> 0 | BB102: Debt Payment (average annual) | BD102: 50566428.01 | BE102: 0
A103: Equity Payment - Individuals | C103: =Calculations!AC64 -> 0 | D103: =Calculations!AD64 -> 1 | BB103: Equity Payment - Individuals | BD103: 0 | BE103: 1
A104: Equity Payment - Corporate | C104: =Calculations!AC65 -> 16235650.61 | D104: =Calculations!AD65 -> 0 | BB104: Equity Payment - Corporate | BD104: 16235650.61 | BE104: 0
A105: Property Taxes | C105: =Calculations!AC66 -> 8916646.563 | D105: =Calculations!AD66 -> 1 | BB105: Property Taxes | BD105: 8916646.563 | BE105: 1
A106: Land Lease | C106: =Calculations!AC67 -> 903900 | D106: =Calculations!AD67 -> 1 | BB106: Land Lease | BD106: 903900 | BE106: 1
A107: Total Annual Operating and Maintenance Costs | C107: =Calculations!AC68 -> 88499524.02 | BB107: Total Annual Operating and Maintenance Costs | BD107: 88499524.02
A109: Other Parameters | BB109: Other Parameters
D110: =Calculations!AD71 -> Local Share
A111: Financial Parameters | BB111: Financial Parameters
A112: Debt Financing | BB112: Debt Financing
A113: Percentage financed | C113: =Calculations!AC74 -> 0.8 | D113: =Calculations!AD74 -> 0 | BB113: Percentage financed | BD113: =C113 -> 0.8 | BE113: =D113 -> 0
A114: Years financed (term) | C114: =Calculations!AC75 -> 10 | BB114: Years financed (term) | BD114: =C114 -> 10
A115: Interest rate | C115: =Calculations!AC76 -> 0.063 | BB115: Interest rate | BD115: 0.063
A116: Equity Financing | BB116: Equity Financing
A117: Percentage equity | C117: =Calculations!AC78 -> 0.2 | BB117: Percentage equity | BD117: 0.2
A118: Individual Investors (percent of total equity) | C118: =Calculations!AC79 -> 0 | D118: =Calculations!AD79 -> 1 | BB118: Individual Investors (percent of total equity) | BD118: 0 | BE118: =D118 -> 1
A119: Corporate Investors (percent of total equity) | C119: =Calculations!AC80 -> 1 | D119: =Calculations!AD80 -> 0 | BB119: Corporate Investors (percent of total equity) | BD119: 1 | BE119: =D119 -> 0
A120: Return on equity (annual interest rate) | C120: =Calculations!AC81 -> 0.12 | BB120: Return on equity (annual interest rate) | BD120: 0.12
A121: Repayment term (years) | C121: =Calculations!AC82 -> 10 | BB121: Repayment term (years) | BD121: 10
A122: Tax Parameters | BB122: Tax Parameters
A123: Local Property Tax Rate (avg millage rate - $/$1,000) | C123: =Calculations!AC84 -> 19.44 | BB123: Local Property Tax Rate (avg millage rate - $/$1,000) | BD123: =C123 -> 19.44
A124: Assessed value (percent of construction cost) | C124: =Calculations!AC85 -> 1 | BB124: Assessed value (percent of construction cost) | BD124: =C124 -> 1
A126: Taxable Value | C126: =Calculations!AC87 -> 458675234.7 | BB126: Taxable Value | BD126: 458675234.7
A127: Taxes Per MW | C127: =Calculations!AC88 -> NA | BB127: Taxes per MW | BD127: NA
A128: Local Taxes | C128: =Calculations!AC89 -> 8916646.563 | D128: =Calculations!AD89 -> 1 | BB128: Local Taxes | BD128: 8916646.563 | BE128: =D128 -> 1
A129: Local Sales Tax Rate | C129: =Calculations!AC90 -> 0.0635 | D129: =Calculations!AD90 -> 1 | BB129: Local Sales Tax Rate | BD129: =C129 -> 0.0635 | BE129: =D129 -> 1
A130: Land Lease Parameters | BB130: Land Lease Parameters
A131: Land Lease Cost (per turbine) | C131: =Calculations!AC92 -> 6900 | BB131: Land Lease Cost (per turbine) | BD131: 6900
A132: Land Lease (total cost) | C132: =Calculations!AC93 -> 903900 | BB132: Land Lease (total cost) | BD132: 903900
A133: Lease Payment recipient (F = farmer/household, O = Other) | C133: =Calculations!AC94 -> F | D133: =Calculations!AD94 -> 1 | BB133: Lease Payment recipient (F = farmer/household, O = Other) | BD133: =C133 -> F | BE133: =D133 -> 1
A134: Payroll Parameters | BB134: Payroll Parameters
A135: Construction Labor | C135: Average Wage per hour | D135: Employer Payroll Costs | BB135: Construction Labor | BD135: Average Wage per hour | BE135: Employer Payroll Costs
A136: Foundation | C136: =Calculations!AC97 -> 22.17648971 | D136: =Calculations!AE97 -> 0.3760611025 | BB136: Foundation | BD136: =C136 -> 22.17648971 | BE136: 0.3760611025
A137: Erection | C137: =Calculations!AC98 -> 25.11802192 | D137: =Calculations!AE98 -> 0.3760611025 | BB137: Erection | BD137: 25.11802192 | BE137: 0.3760611025
A138: Electrical | C138: =Calculations!AC99 -> 33.27683964 | D138: =Calculations!AE99 -> 0.3760611025 | BB138: Electrical | BD138: 33.27683964 | BE138: 0.3760611025
A139: Management/Supervision | C139: =Calculations!AC100 -> 45.2366496 | D139: =Calculations!AE100 -> 0.3760611025 | BB139: Management/Supervision | BD139: 45.2366496 | BE139: 0.3760611025
A140: O&M Labor | C140: Average Wage per hour | D140: Employer Payroll Costs | BB140: O&M Labor | BD140: Average Wage per hour | BE140: Employer Payroll Costs
A141: Field Salaries (technicians, other) | C141: =Calculations!AC102 -> 30.26267701 | D141: =Calculations!AE102 -> 0.3760611025 | BB141: Field Salaries (technicians, other) | BD141: =C141 -> 30.26267701 | BE141: 0.3760611025
A142: Administrative | C142: =Calculations!AC103 -> 19.36811329 | D142: =Calculations!AE103 -> 0.3760611025 | BB142: Administrative | BD142: 19.36811329 | BE142: 0.3760611025
A143: Management | C143: =Calculations!AC104 -> 48.42028322 | D143: =Calculations!AE104 -> 0.3760611025 | BB143: Management | BD143: 48.42028322 | BE143: 0.3760611025

Sheet User Add-in Location
A1: Multipliers For Economic Input-Output Analysis
A3: MyCounty (name) | C3: Year of Data | E3: =IF(B3="","",IF(D3="","Enter Year of Data",IF(D3>2006,IF(D3<2021,"","ERROR - Deflators Data Not Current"),"ERROR - Deflators Data Not Current"))) -> 
A4: MyRegion (includes) | C4: Year of Data | E4: =IF(B4="","",IF(D4="","Enter Year of Data",IF(D4>2006,IF(D4<2021,"","ERROR - Deflators Data Not Current"),"ERROR - Deflators Data Not Current"))) -> 
A5: State (Name)
A7: Jobs Per Million Dollars Change in Final Demand | D7: Personal Consumption Expenditures (PCE)
A8: Jobs Direct Multipliers | B8: MyCounty | C8: MyRegion | E8: =B8 -> MyCounty | F8: =C8 -> MyRegion
A9: Agriculture | B9: 0 | C9: 0 | E9: 0 | F9: 0
A10: Mining | B10: 0 | C10: 0 | E10: 0 | F10: 0
A11: Construction | B11: 0 | C11: 0 | E11: 0 | F11: 0
A12: Manufacturing | B12: 0 | C12: 0 | E12: 0 | F12: 0
A13: Fabricated Metals | B13: 0 | C13: 0 | E13: 0 | F13: 0
A14: Machinery | B14: 0 | C14: 0 | E14: 0 | F14: 0
A15: Electrical Equipment | B15: 0 | C15: 0 | E15: 0 | F15: 0
A16: TCPU | B16: 0 | C16: 0 | E16: 0 | F16: 0
A17: Wholesale Trade | B17: 0 | C17: 0 | E17: 0 | F17: 0
A18: Retail Trade | B18: 0 | C18: 0 | E18: 0 | F18: 0
A19: FIRE | B19: 0 | C19: 0 | E19: 0 | F19: 0
A20: Misc. Services | B20: 0 | C20: 0 | E20: 0 | F20: 0
A21: Professional Services | B21: 0 | C21: 0 | E21: 0 | F21: 0
A22: Government | B22: 0 | C22: 0 | E22: 0 | F22: 0
D23: Total | E23: =SUM(E9:E22) -> 0 | F23: =SUM(F9:F22) -> 0
A24: Jobs Per Million Dollars Change in Final Demand
A25: Jobs Indirect Multipliers | B25: MyCounty | C25: MyRegion
A26: Agriculture | B26: 0 | C26: 0
A27: Mining | B27: 0 | C27: 0
A28: Construction | B28: 0 | C28: 0
A29: Manufacturing | B29: 0 | C29: 0
A30: Fabricated Metals | B30: 0 | C30: 0
A31: Machinery | B31: 0 | C31: 0
A32: Electrical Equipment | B32: 0 | C32: 0
A33: TCPU | B33: 0 | C33: 0
A34: Wholesale Trade | B34: 0 | C34: 0
A35: Retail Trade | B35: 0 | C35: 0
A36: FIRE | B36: 0 | C36: 0
A37: Misc. Services | B37: 0 | C37: 0
A38: Professional Services | B38: 0 | C38: 0
A39: Government | B39: 0 | C39: 0
A41: Jobs Per Million Dollars Change in Final Demand
A42: Jobs Induced Multipliers | B42: MyCounty | C42: MyRegion
A43: Agriculture | B43: 0 | C43: 0
A44: Mining | B44: 0 | C44: 0
A45: Construction | B45: 0 | C45: 0
A46: Manufacturing | B46: 0 | C46: 0
A47: Fabricated Metals | B47: 0 | C47: 0
A48: Machinery | B48: 0 | C48: 0
A49: Electrical Equipment | B49: 0 | C49: 0
A50: TCPU | B50: 0 | C50: 0
A51: Wholesale Trade | B51: 0 | C51: 0
A52: Retail Trade | B52: 0 | C52: 0
A53: FIRE | B53: 0 | C53: 0
A54: Misc. Services | B54: 0 | C54: 0
A55: Professional Services | B55: 0 | C55: 0
A56: Government | B56: 0 | C56: 0
A58: Earnings Per Million Dollars Change in Final Demand
A59: Earnings Direct Multipliers | B59: MyCounty | C59: MyRegion
A60: Agriculture | B60: 0 | C60: 0
A61: Mining | B61: 0 | C61: 0
A62: Construction | B62: 0 | C62: 0
A63: Manufacturing | B63: 0 | C63: 0
A64: Fabricated Metals | B64: 0 | C64: 0
A65: Machinery | B65: 0 | C65: 0
A66: Electrical Equipment | B66: 0 | C66: 0
A67: TCPU | B67: 0 | C67: 0
A68: Wholesale Trade | B68: 0 | C68: 0
A69: Retail Trade | B69: 0 | C69: 0
A70: FIRE | B70: 0 | C70: 0
A71: Misc. Services | B71: 0 | C71: 0
A72: Professional Services | B72: 0 | C72: 0
A73: Government | B73: 0 | C73: 0
A75: Earnings Per Million Dollars Change in Final Demand
A76: Earnings Indirect Multipliers | B76: MyCounty | C76: MyRegion
A77: Agriculture | B77: 0 | C77: 0
A78: Mining | B78: 0 | C78: 0
A79: Construction | B79: 0 | C79: 0
A80: Manufacturing | B80: 0 | C80: 0
A81: Fabricated Metals | B81: 0 | C81: 0
A82: Machinery | B82: 0 | C82: 0
A83: Electrical Equipment | B83: 0 | C83: 0
A84: TCPU | B84: 0 | C84: 0
A85: Wholesale Trade | B85: 0 | C85: 0
A86: Retail Trade | B86: 0 | C86: 0
A87: FIRE | B87: 0 | C87: 0
A88: Misc. Services | B88: 0 | C88: 0
A89: Professional Services | B89: 0 | C89: 0
A90: Government | B90: 0 | C90: 0
A92: Earnings Per Million Dollars Change in Final Demand
A93: Earnings Induced Multipliers | B93: MyCounty | C93: MyRegion
A94: Agriculture | B94: 0 | C94: 0
A95: Mining | B95: 0 | C95: 0
A96: Construction | B96: 0 | C96: 0
A97: Manufacturing | B97: 0 | C97: 0
A98: Fabricated Metals | B98: 0 | C98: 0
A99: Machinery | B99: 0 | C99: 0
A100: Electrical Equipment | B100: 0 | C100: 0
A101: TCPU | B101: 0 | C101: 0
A102: Wholesale Trade | B102: 0 | C102: 0
A103: Retail Trade | B103: 0 | C103: 0
A104: FIRE | B104: 0 | C104: 0
A105: Misc. Services | B105: 0 | C105: 0
A106: Professional Services | B106: 0 | C106: 0
A107: Government | B107: 0 | C107: 0
A109: Output Per Million Dollars Change in Final Demand
A110: Output Direct Multipliers | B110: MyCounty | C110: MyRegion
A111: Agriculture | B111: 0 | C111: 0
A112: Mining | B112: 0 | C112: 0
A113: Construction | B113: 0 | C113: 0
A114: Manufacturing | B114: 0 | C114: 0
A115: Fabricated Metals | B115: 0 | C115: 0
A116: Machinery | B116: 0 | C116: 0
A117: Electrical Equipment | B117: 0 | C117: 0
A118: TCPU | B118: 0 | C118: 0
A119: Wholesale Trade | B119: 0 | C119: 0
A120: Retail Trade | B120: 0 | C120: 0
A121: FIRE | B121: 0 | C121: 0
A122: Misc. Services | B122: 0 | C122: 0
A123: Professional Services | B123: 0 | C123: 0
A124: Government | B124: 0 | C124: 0
A126: Output Per Million Dollars Change in Final Demand
A127: Output Indirect Multipliers | B127: MyCounty | C127: MyRegion
A128: Agriculture | B128: 0 | C128: 0
A129: Mining | B129: 0 | C129: 0
A130: Construction | B130: 0 | C130: 0
A131: Manufacturing | B131: 0 | C131: 0
A132: Fabricated Metals | B132: 0 | C132: 0
A133: Machinery | B133: 0 | C133: 0
A134: Electrical Equipment | B134: 0 | C134: 0
A135: TCPU | B135: 0 | C135: 0
A136: Wholesale Trade | B136: 0 | C136: 0
A137: Retail Trade | B137: 0 | C137: 0
A138: FIRE | B138: 0 | C138: 0
A139: Misc. Services | B139: 0 | C139: 0
A140: Professional Services | B140: 0 | C140: 0
A141: Government | B141: 0 | C141: 0
A143: Output Per Million Dollars Change in Final Demand
A144: Output Induced Multipliers | B144: MyCounty | C144: MyRegion
A145: Agriculture | B145: 0 | C145: 0
A146: Mining | B146: 0 | C146: 0
A147: Construction | B147: 0 | C147: 0
A148: Manufacturing | B148: 0 | C148: 0
A149: Fabricated Metals | B149: 0 | C149: 0
A150: Machinery | B150: 0 | C150: 0
A151: Electrical Equipment | B151: 0 | C151: 0
A152: TCPU | B152: 0 | C152: 0
A153: Wholesale Trade | B153: 0 | C153: 0
A154: Retail Trade | B154: 0 | C154: 0
A155: FIRE | B155: 0 | C155: 0
A156: Misc. Services | B156: 0 | C156: 0
A157: Professional Services | B157: 0 | C157: 0
A158: Government | B158: 0 | C158: 0
A160: Value Added Per Million Dollars Change in Final Demand
A161: Value Added Direct Multipliers | B161: MyCounty | C161: MyRegion
A162: Agriculture | B162: 0 | C162: 0
A163: Mining | B163: 0 | C163: 0
A164: Construction | B164: 0 | C164: 0
A165: Manufacturing | B165: 0 | C165: 0
A166: Fabricated Metals | B166: 0 | C166: 0
A167: Machinery | B167: 0 | C167: 0
A168: Electrical Equipment | B168: 0 | C168: 0
A169: TCPU | B169: 0 | C169: 0
A170: Wholesale Trade | B170: 0 | C170: 0
A171: Retail Trade | B171: 0 | C171: 0
A172: FIRE | B172: 0 | C172: 0
A173: Misc. Services | B173: 0 | C173: 0
A174: Professional Services | B174: 0 | C174: 0
A175: Government | B175: 0 | C175: 0
A177: Value Added Per Million Dollars Change in Final Demand
A178: Value Added Indirect Multipliers | B178: MyCounty | C178: MyRegion
A179: Agriculture | B179: 0 | C179: 0
A180: Mining | B180: 0 | C180: 0
A181: Construction | B181: 0 | C181: 0
A182: Manufacturing | B182: 0 | C182: 0
A183: Fabricated Metals | B183: 0 | C183: 0
A184: Machinery | B184: 0 | C184: 0
A185: Electrical Equipment | B185: 0 | C185: 0
A186: TCPU | B186: 0 | C186: 0
A187: Wholesale Trade | B187: 0 | C187: 0
A188: Retail Trade | B188: 0 | C188: 0
A189: FIRE | B189: 0 | C189: 0
A190: Misc. Services | B190: 0 | C190: 0
A191: Professional Services | B191: 0 | C191: 0
A192: Government | B192: 0 | C192: 0
A194: Value Added Per Million Dollars Change in Final Demand
A195: Value Added Induced Multipliers | B195: MyCounty | C195: MyRegion
A196: Agriculture | B196: 0 | C196: 0
A197: Mining | B197: 0 | C197: 0
A198: Construction | B198: 0 | C198: 0
A199: Manufacturing | B199: 0 | C199: 0
A200: Fabricated Metals | B200: 0 | C200: 0
A201: Machinery | B201: 0 | C201: 0
A202: Electrical Equipment | B202: 0 | C202: 0
A203: TCPU | B203: 0 | C203: 0
A204: Wholesale Trade | B204: 0 | C204: 0
A205: Retail Trade | B205: 0 | C205: 0
A206: FIRE | B206: 0 | C206: 0
A207: Misc. Services | B207: 0 | C207: 0
A208: Professional Services | B208: 0 | C208: 0
A209: Government | B209: 0 | C209: 0
O682: ALABAMA
O683: ALASKA
O684: ARIZONA
... 48 more rows

Sheet DefaultData
S1: Ann Avg Increase
K2: Default | S2: 0 | U2: 2005-2008 | V2: 0.1745674718
H3: Const Jobs/ | I3: =E5 -> 300 | J3: 0&M Jobs/ | K3: =E5 -> 300 | O3: Average installed project cost per kW | R3: =IF(ProjectData!_xlnm.Print_Area<2000,O5,HLOOKUP(ProjectData!_xlnm.Print_Area,O4:AS5,N5)) -> 1940
D4: Number of Turbines | E4: MW | F4: Total Installed Cost | H4: Foundation | I4: =I$3*AM30 -> 52.55854705 | J4: Field Tech | K4: =K$3*AP56 -> 10.8 | O4: 2000 | P4: 2001 | Q4: 2002 | R4: 2003 | S4: 2004 | T4: 2005 | U4: 2006 | V4: 2007 | W4: 2008 | X4: 2009 | Y4: 2010 | Z4: 2011 | AA4: 2012 | AB4: 2013 | AC4: 2014 | AD4: 2015 | AE4: 2016 | AF4: 2017 | AG4: 2018 | AH4: 2019 | AI4: 2020 | AJ4: 2021 | AK4: 2022 | AL4: 2023 | AM4: 2024 | AN4: 2025 | AO4: =AN4+1 -> 2026 | AP4: 2027 | AQ4: 2028 | AR4: 2029 | AS4: 2030
A5: Warning | D5: =ROUNDUP(ProjectData!B16*1000/ProjectData!B18,0) -> 131 | E5: =ProjectData!B16 -> 300 | F5: 1453 | H5: Erection | I5: =I$3*AM31 -> 52.55854705 | J5: Admin | K5: =K$3*AP57 -> 1.6 | N5: 2 | O5: 1284.30372 | P5: 1031.244596 | Q5: 1225.104341 | R5: 1134.708272 | S5: 1075.400747 | T5: 1235.687818 | U5: 1495.557674 | V5: 1689.028549 | W5: 2042.970711 | X5: =W5*(1+$S2) -> 2042.970711 | Y5: 2042.970711 | Z5: 2042.970711 | AA5: 1940 | AB5: 1940 | AC5: 1940 | AD5: 1940 | AE5: 1940 | AF5: 1940 | AG5: 1940 | AH5: 1940 | AI5: 1940 | AJ5: 1940 | AK5: 1940 | AL5: 1940 | AM5: 1940 | AN5: 1940 | AO5: 1940 | AP5: 1940 | AQ5: 1940 | AR5: 1940 | AS5: 1940
H6: Electrical | I6: =I$3*AM32 -> 57.81440175 | J6: Management | K6: =K$3*AP58 -> 1.2
A7: This Worksheet contains Data and Formulas that are an integral part of the JEDI model. | D7: Construction | F7: User | H7: Management/supervision | I7: =I$3*AM33 -> 22.06850415 | J7: Total | K7: =SUM(K4:K6) -> 13.6 | P7: Construction Loc. Adj. | R7: =HLOOKUP(ProjectData!B13,Multipliers!D229:BE231,3) -> 1.21050708 | AN7: O&M Cost
D8: Cost Per KW | E8: Project Cost | F8: Selected Cost Per KW | G8: Default Cost Per KW | H8: MW Per Turbine | I8: =SUM(I4:I7) -> 185 | P8: Adj. Installed Cost (per KW) | R8: =Y46 -> 1993.425961 | AI8: Avg. Turbine Size (KW) | AL8: =IF(ProjectData!_xlnm.Print_Area<=2003,AK9,AK10) -> 1500 | AN8: <=20 MW | AO8: =25+Z119 -> 25.69008035 | AP8: per KW
A9: Although the data and formulas are available for review they must not be changed. | D9: =ProjectData!B20 -> 1453 | E9: =+D9*ProjectData!B16*1000 -> 435900000 | F9: =ProjectData!B21 -> 38 | G9: 38 | H9: 2300 | AI9: 2003 and earlier | AK9: 700 | AN9: 100 MW | AO9: =20+Z119 -> 20.69008035 | AP9: =AP8 -> per KW
AI10: After 2003 | AK10: 1500
A11: Any changes to the data or formulas will impact the analysis and may invalidate the model results. | C11: Project Data | D11: Default Values - Based on Cost Per KW from Project Data sheet
H12: Very Small | I12: Small | J12: Medium | K12: Large
H13: 30000 | I13: 100000 | J13: 300000 | K13: 400000 | M13: =ProjectData!B14 -> 0
C14: Construction Costs | D14: Cost | E14: Cost | F14: Percent | G14: State | H14: County | I14: County | J14: County | K14: County | O14: 30000
E15: Per KW | F15: of Cost | G15: Local Share | H15: Local Share | I15: Local Share | J15: Local Share | K15: Local Share | O15: 100000 | R15: 300000 | U15: 400000 | V15: 0.9997 | W15: =E46 -> 1453.309884
C16: Balance of Plant
C17: Materials | W17: Percent | X17: Avg | Y17: Loc Adj | Z17: Percent
C18: Construction (concrete rebar, equip, roads and site prep) | D18: =(E$9-(D$29-D$28))*V18 -> 46814767.34 | E18: =F18*D$9 -> 156.0492245 | F18: =D18/E$9 -> 0.1073979521 | G18: =IF(ProjectData!$B$13="UNITED STATES",1,0.9) -> 0.9 | H18: 0.03827768014 | I18: 0.1214762742 | J18: 0.9 | K18: 0.9 | M18: =(M$13-H$13)/(I$13-H$13) -> -0.4285714286 | N18: =+I18-H18 -> 0.08319859402 | O18: =H18+(N18*M18) -> 0.002621139844 | P18: =(M$13-I$13)/(J$13-I$13) -> -0.5 | Q18: =J18-I18 -> 0.7785237258 | R18: =I18+(P18*Q18) -> -0.2677855888 | S18: =IF((M$13-J$13)/(K$13-J$13)>1,1,(M$13-J$13)/(K$13-J$13)) -> -3 | T18: =K18-J18 -> 0 | U18: =J18+(S18*T18) -> 0.9 | V18: =AU18*V$15 -> 0.1113520025 | W18: 0.08806 | X18: =W18*R$3 -> 170.8364 | Y18: =X18 -> 170.8364 | Z18: =Y18/Y$46 -> 0.08569989725 | AU18: 0.1113854182 | AV18: =AU18/AU$47 -> 0.05794621307 | AW18: 8382313.826
C19: Transformer | D19: =(E$9-(D$29-D$28))*V19 -> 5295720.734 | E19: =F19*D$9 -> 17.65240245 | F19: =D19/E$9 -> 0.01214893493 | G19: =IF(ProjectData!$B$13="UNITED STATES",1,0) -> 0 | H19: 0 | I19: 0 | J19: 0 | K19: 0 | M19: =(M$13-H$13)/(I$13-H$13) -> -0.4285714286 | N19: =+I19-H19 -> 0 | O19: =H19+(N19*M19) -> 0 | P19: =(M$13-I$13)/(J$13-I$13) -> -0.5 | Q19: =J19-I19 -> 0 | R19: =I19+(P19*Q19) -> 0 | S19: =IF((M$13-J$13)/(K$13-J$13)>1,1,(M$13-J$13)/(K$13-J$13)) -> -3 | T19: =K19-J19 -> 0 | U19: =J19+(S19*T19) -> 0 | V19: =AU19*V$15 -> 0.01259622 | W19: 0.02226 | X19: =W19*R$3 -> 43.1844 | Y19: =X19 -> 43.1844 | Z19: =Y19/Y$46 -> 0.02166340805 | AE19: 3739000 | AU19: 0.0126 | AV19: =AU19/AU$47 -> 0.00655491802 | AW19: 948213.4731
A20: To view the data and formulas simply scroll over to the adjacent columns to the right. | C20: Electrical (drop cable, wire, ) | D20: =(E$9-(D$29-D$28))*V20 -> 5582047.492 | E20: =F20*D$9 -> 18.60682497 | F20: =D20/E$9 -> 0.01280579833 | G20: =IF(ProjectData!$B$13="UNITED STATES",1,1) -> 1 | H20: 0 | I20: 0 | J20: 0 | K20: 1 | M20: -0.4285714286 | N20: 0 | O20: 0 | P20: =(M$13-I$13)/(J$13-I$13) -> -0.5 | Q20: =J20-I20 -> 0 | R20: 0 | S20: =IF((M$13-J$13)/(K$13-J$13)>1,1,(M$13-J$13)/(K$13-J$13)) -> -3 | T20: =K20-J20 -> 1 | U20: =J20+(S20*T20) -> -3 | V20: 0.01327726702 | W20: 0.0105 | X20: =W20*R$3 -> 20.37 | Y20: =X20 -> 20.37 | Z20: =Y20/Y$46 -> 0.0102185887 | AU20: 0.0132812514 | AV20: 0.006909326516 | AW20: 999481.0725
C21: HV line extension | D21: =(E$9-(D$29-D$28))*V21 -> 10196538.5 | E21: =F21*D$9 -> 33.98846168 | F21: =D21/E$9 -> 0.02339192132 | G21: =IF(ProjectData!$B$13="UNITED STATES",1,0.7) -> 0.7 | H21: 0 | I21: 0 | J21: 0 | K21: 0.7 | M21: -0.4285714286 | N21: 0 | O21: 0 | P21: =(M$13-I$13)/(J$13-I$13) -> -0.5 | Q21: =J21-I21 -> 0 | R21: 0 | S21: =IF((M$13-J$13)/(K$13-J$13)>1,1,(M$13-J$13)/(K$13-J$13)) -> -3 | T21: =K21-J21 -> 0.7 | U21: =J21+(S21*T21) -> -2.1 | V21: 0.02425313733 | W21: 0.01918 | X21: =W21*R$3 -> 37.2092 | Y21: =X21 -> 37.2092 | Z21: =Y21/Y$46 -> 0.01866595536 | AM21: =IF(E5<20,20,E5) -> 300 | AU21: 0.02426041545 | AV21: 0.01262103448 | AW21: 1825718.476
C22: Subtotal | D22: =SUM(D18:D21) -> 67889074.07 | E22: =SUM(E18:E21) -> 226.2969136 | F22: =SUM(F18:F21) -> 0.1557446067 | V22: 0.1614786269 | W22: 0.14 | X22: =W22*R$3 -> 271.6 | Y22: =X22 -> 271.6 | Z22: =Y22/Y$46 -> 0.1362478494 | AB22: Const. Jobs/ | AC22: 20 | AD22: 30 | AE22: 60 | AF22: 75 | AG22: 100 | AH22: 150 | AI22: 200 | AJ22: 250 | AK22: 300 | AM22: 100 MW | AO22: Default | AP22: User Revised | AU22: =SUM(AU18:AU21) -> 0.161527085 | AV22: 0.08403149208 | AW22: 12155726.85
C23: Labor | AB23: Const. Jobs | AC23: 55 | AD23: 60 | AE23: 75 | AF23: 82 | AG23: 85 | AH23: 110 | AI23: 135 | AJ23: 155 | AK23: 185 | AN23: Total Jobs | AO23: Local Jobs | AP23: Local Jobs
C24: Foundation | D24: =AN30 -> 3336085.772 | E24: =D24/(E$5*1000) -> 11.12028591 | F24: =D24/E$9 -> 0.007653328221 | G24: =IF(ProjectData!$B$13="UNITED STATES",1,0.95) -> 0.95 | H24: 0.01720430108 | I24: 0.09462365591 | J24: 0.2867383513 | K24: =G24 -> 0.95 | M24: -0.4285714286 | N24: 0.07741935484 | O24: -0.01597542243 | P24: =(M$13-I$13)/(J$13-I$13) -> -0.5 | Q24: =J24-I24 -> 0.1921146953 | R24: -0.001433691756 | S24: =IF((M$13-J$13)/(K$13-J$13)>1,1,(M$13-J$13)/(K$13-J$13)) -> -3 | T24: =K24-J24 -> 0.6632616487 | U24: =J24+(S24*T24) -> -1.703046595 | W24: 0.03024 | X24: =W24*R$3 -> 58.6656 | Y24: =X24*R$7 -> 71.01512418 | Z24: =Y24/Y$46 -> 0.03562466105 | AA24: =Z24/(Z$29) -> 0.2702702703 | AB24: Foundation | AC24: =(AC$23-AC$27)*($AA24/($AA$24+$AA$25+$AA$26)) -> 15.62551399 | AD24: =(AD$23-AD$27)*($AA24/($AA$24+$AA$25+$AA$26)) -> 17.04601526 | AE24: 21.30751907 | AF24: 23.29622085 | AG24: 24.14852162 | AH24: 31.25102798 | AI24: 38.35353433 | AJ24: 44.03553942 | AK24: 52.55854705 | AN24: =D24/K110 -> 52.55854705 | AO24: =(D24*ProjectData!T46)/K110 -> 49.9306197 | AP24: =AO30/R110*ProjectData!E46 -> 49.9306197 | AQ24: =IF(ProjectData!B24="y",AO24,AP24) -> 49.9306197 | AW24: 1130442.702
C25: Erection | D25: =AN31 -> 3778590.598 | E25: =D25/(E$5*1000) -> 12.59530199 | F25: =D25/E$9 -> 0.008668480381 | G25: =IF(ProjectData!$B$13="UNITED STATES",1,0.75) -> 0.75 | H25: 0.006 | I25: 0.02025 | J25: 0.0675 | K25: =G25 -> 0.75 | M25: -0.4285714286 | N25: 0.01425 | O25: -0.0001071428571 | P25: =(M$13-I$13)/(J$13-I$13) -> -0.5 | Q25: =J25-I25 -> 0.04725 | R25: -0.003375 | S25: =IF((M$13-J$13)/(K$13-J$13)>1,1,(M$13-J$13)/(K$13-J$13)) -> -3 | T25: =K25-J25 -> 0.6825 | U25: =J25+(S25*T25) -> -1.98 | W25: 0.03024 | X25: 58.6656 | Y25: =X25*R$7 -> 71.01512418 | Z25: 0.03562466105 | AA25: =Z25/(Z$29) -> 0.2702702703 | AB25: Erection | AC25: =(AC$23-AC$27)*($AA25/($AA$24+$AA$25+$AA$26)) -> 15.62551399 | AD25: 17.04601526 | AE25: 21.30751907 | AF25: 23.29622085 | AG25: 24.14852162 | AH25: 31.25102798 | AI25: 38.35353433 | AJ25: 44.03553942 | AK25: 52.55854705 | AN25: =D25/K111 -> 52.55854705 | AO25: =(D25*ProjectData!T47)/K111 -> 39.41891029 | AP25: =AO31/R111*ProjectData!E47 -> 39.41891029 | AQ25: =IF(ProjectData!B25="y",AO25,AP25) -> 39.41891029 | AW25: 1280386.793
C26: Electrical | D26: =AN32 -> 5506544.631 | E26: =D26/(E$5*1000) -> 18.35514877 | F26: =D26/E$9 -> 0.0126325869 | G26: =IF(ProjectData!$B$13="UNITED STATES",1,0.7) -> 0.7 | H26: 0.005019685039 | I26: 0.04517716535 | J26: 0.1373031496 | K26: =G26 -> 0.7 | M26: -0.4285714286 | N26: 0.04015748031 | O26: -0.01219066367 | P26: =(M$13-I$13)/(J$13-I$13) -> -0.5 | Q26: =J26-I26 -> 0.09212598425 | R26: -0.0008858267717 | S26: =IF((M$13-J$13)/(K$13-J$13)>1,1,(M$13-J$13)/(K$13-J$13)) -> -3 | T26: =K26-J26 -> 0.5626968504 | U26: =J26+(S26*T26) -> -1.550787402 | W26: 0.033264 | X26: 64.53216 | Y26: =X26*R$7 -> 78.11663659 | Z26: 0.03918712715 | AA26: =Z26/(Z$29) -> 0.2972972973 | AB26: Electrical | AC26: 17.18806539 | AD26: 18.75061679 | AE26: 23.43827098 | AF26: 25.62584294 | AG26: 26.56337378 | AH26: 34.37613077 | AI26: 42.18888777 | AJ26: 48.43909336 | AK26: 57.81440175 | AN26: =D26/K112 -> 57.81440175 | AO26: =(D26*ProjectData!T48)/K112 -> 40.47008123 | AP26: =AO32/R112*ProjectData!E48 -> 40.47008123 | AQ26: =IF(ProjectData!B26="y",AO26,AP26) -> 40.47008123 | AW26: 1865909.217
C27: Management/supervision | D27: =AN33 -> 2857356.194 | E27: =D27/(E$5*1000) -> 9.524520646 | F27: =D27/E$9 -> 0.006555072709 | G27: =IF(ProjectData!$B$13="UNITED STATES",1,0) -> 0 | H27: 0 | I27: 0 | J27: 0 | K27: =G27 -> 0 | M27: -0.4285714286 | N27: 0 | O27: 0 | P27: =(M$13-I$13)/(J$13-I$13) -> -0.5 | Q27: =J27-I27 -> 0 | R27: 0 | S27: =IF((M$13-J$13)/(K$13-J$13)>1,1,(M$13-J$13)/(K$13-J$13)) -> -3 | T27: =K27-J27 -> 0 | U27: =J27+(S27*T27) -> 0 | W27: 0.018144 | X27: 35.19936 | Y27: =X27*R$7 -> 42.60907451 | Z27: 0.02137479663 | AA27: =Z27/(Z$29) -> 0.1621621622 | AB27: Management/supervision | AC27: =(AC$23*$AA27)/($D113/$D112) -> 6.560906639 | AD27: =(AD$23*$AA27)/($D113/$D112) -> 7.157352697 | AE27: 8.946690871 | AF27: 9.781715352 | AG27: 10.13958299 | AH27: 13.12181328 | AI27: 16.10404357 | AJ27: 18.4898278 | AK27: 22.06850415 | AN27: =D27/K113 -> 22.06850415 | AO27: =(D27*ProjectData!T49)/K113 -> 0 | AP27: =AO33/R113*ProjectData!E49 -> 0 | AQ27: =IF(ProjectData!B27="y",AO27,AP27) -> 0 | AW27: 968223.7437
C28: Misc. | D28: =AN34 -> 16564200 | E28: =D28/(E$5*1000) -> 55.214 | F28: =D28/E$9 -> 0.038 | G28: =IF(ProjectData!$B$13="UNITED STATES",1,0.5) -> 0.5 | H28: 0 | I28: 0 | J28: 0 | K28: =G28 -> 0.5 | M28: =(M$13-H$13)/(I$13-H$13) -> -0.4285714286 | N28: =+I28-H28 -> 0 | O28: =H28+(N28*M28) -> 0 | P28: =(M$13-I$13)/(J$13-I$13) -> -0.5 | Q28: =J28-I28 -> 0 | R28: =I28+(P28*Q28) -> 0 | S28: =IF((M$13-J$13)/(K$13-J$13)>1,1,(M$13-J$13)/(K$13-J$13)) -> -3 | T28: =K28-J28 -> 0.5 | U28: =J28+(S28*T28) -> -1.5 | W28: 0 | X28: =W28*R$3 -> 0 | Y28: =X28*R$7 -> 0 | Z28: 0 | AA28: =Z28/(Z$29) -> 0 | AN28: =SUM(AN24:AN27) -> 185 | AO28: =SUM(AO24:AO27) -> 129.8196112 | AP28: =SUM(AP24:AP27) -> 129.8196112 | AQ28: =SUM(AQ24:AQ27) -> 129.8196112 | AW28: 3059000
C29: Subtotal | D29: =SUM(D24:D28) -> 32042777.19 | E29: =SUM(E24:E28) -> 106.8092573 | F29: =SUM(F24:F28) -> 0.07350946821 | W29: 0.111888 | X29: 217.06272 | Y29: =SUM(Y24:Y28) -> 262.7559595 | Z29: 0.1318112459 | AA29: =SUM(AA24:AA28) -> 1 | AM29: =HLOOKUP(AM$21,AC$22:AK$33,2) -> 185 | AN29: Default | AO29: User Revised wages | AW29: 8303962.455
C30: Subtotal | D30: =+D29+D22 -> 99931851.26 | E30: =+E29+E22 -> 333.1061709 | F30: =+F29+F22 -> 0.2292540749 | W30: 0.251888 | X30: 488.66272 | Y30: =Y29+Y22 -> 534.3559595 | Z30: 0.2680590952 | AB30: Foundation Jobs/MW | AC30: =AC24/AC$22 -> 0.7812756994 | AD30: 0.5682005086 | AE30: 0.3551253179 | AF30: 0.3106162781 | AG30: 0.2414852162 | AH30: 0.2083401865 | AI30: 0.1917676717 | AJ30: 0.1761421577 | AK30: 0.1751951568 | AM30: =HLOOKUP(AM$21,AC$22:AK$33,9)*(AM$36^(AM$21-AL$36)) -> 0.1751951568 | AN30: =(AM30*E$5)*K110 -> 3336085.772 | AO30: =ProjectData!B46 -> 3336085.772 | AW30: 20459689.3
C31: Equipment Costs | AB31: Erection Jobs/MW | AC31: =AC25/AC$22 -> 0.7812756994 | AD31: 0.5682005086 | AE31: 0.3551253179 | AF31: 0.3106162781 | AG31: 0.2414852162 | AH31: 0.2083401865 | AI31: 0.1917676717 | AJ31: 0.1761421577 | AK31: 0.1751951568 | AM31: =HLOOKUP(AM$21,AC$22:AK$33,10)*(AM$36^(AM$21-AL$36)) -> 0.1751951568 | AN31: =(AM31*E$5)*K111 -> 3778590.598 | AO31: =ProjectData!B47 -> 3778590.598
C32: Turbines (excluding blades and towers) | D32: =(E$9-(D$29-D$28))*V32 -> 193738619.3 | E32: =F32*D$9 -> 645.7953978 | F32: =D32/E$9 -> 0.4444565711 | G32: =IF(ProjectData!$B$13="UNITED STATES",0.2,0) -> 0 | H32: 0 | I32: 0 | J32: 0 | K32: 0 | M32: -0.4285714286 | N32: 0 | O32: 0 | P32: =(M$13-I$13)/(J$13-I$13) -> -0.5 | Q32: =J32-I32 -> 0 | R32: 0 | S32: =IF((M$13-J$13)/(K$13-J$13)>1,1,(M$13-J$13)/(K$13-J$13)) -> -3 | T32: =K32-J32 -> 0 | U32: =J32+(S32*T32) -> 0 | V32: =AU32*V$15 -> 0.4608200458 | W32: 0.43056 | X32: =W32*R$3 -> 835.2864 | Y32: =X32 -> 835.2864 | Z32: =Y32/Y$46 -> 0.4190205287 | AB32: Electrical/MW | AC32: =AC26/AC$22 -> 0.8594032693 | AD32: 0.6250205595 | AE32: 0.3906378497 | AF32: 0.3416779059 | AG32: 0.2656337378 | AH32: 0.2291742052 | AI32: 0.2109444388 | AJ32: 0.1937563734 | AK32: 0.1927146725 | AM32: =HLOOKUP(AM$21,AC$22:AK$33,11)*(AM$36^(AM$21-AL$36)) -> 0.1927146725 | AN32: =(AM32*E$5)*K112 -> 5506544.631 | AO32: =ProjectData!B48 -> 5506544.631 | AU32: 0.4609583333 | AV32: =AU32/AU$47 -> 0.2398050861 | AW32: 34689436.68
C33: Blades | D33: =(E$9-(D$29-D$28))*V33 -> 45356867.4 | E33: =F33*D$9 -> 151.189558 | F33: =D33/E$9 -> 0.1040533778 | G33: =IF(ProjectData!$B$13="UNITED STATES",0.6,0) -> 0 | H33: 0 | I33: 0 | J33: 0 | K33: 0 | M33: -0.4285714286 | N33: 0 | O33: 0 | P33: =(M$13-I$13)/(J$13-I$13) -> -0.5 | Q33: =J33-I33 -> 0 | R33: 0 | S33: =IF((M$13-J$13)/(K$13-J$13)>1,1,(M$13-J$13)/(K$13-J$13)) -> -3 | T33: =K33-J33 -> 0 | U33: =J33+(S33*T33) -> 0 | V33: 0.1078842917 | W33: 0.1008 | X33: =W33*R$3 -> 195.552 | Y33: =X33 -> 195.552 | Z33: =Y33/Y$46 -> 0.09809845154 | AB33: Management/supervision/MW | AC33: =AC27/AC$22 -> 0.3280453319 | AD33: 0.2385784232 | AE33: 0.1491115145 | AF33: 0.1304228714 | AG33: 0.1013958299 | AH33: 0.08747875518 | AI33: 0.08052021784 | AJ33: 0.0739593112 | AK33: 0.07356168049 | AM33: =HLOOKUP(AM$21,AC$22:AK$33,12)*(AM$36^(AM$21-AL$36)) -> 0.07356168049 | AN33: =(AM33*E$5)*K113 -> 2857356.194 | AO33: =ProjectData!B49 -> 2857356.194 | AU33: 0.1079166667 | AV33: 0.05614165896 | AW33: 8121272.802
C34: Towers | D34: =(E$9-(D$29-D$28))*V34 -> 50216531.77 | E34: =F34*D$9 -> 167.3884392 | F34: =D34/E$9 -> 0.115201954 | G34: =IF(ProjectData!$B$13="UNITED STATES",0.8,0) -> 0 | H34: 0 | I34: 0 | J34: 0 | K34: 0 | M34: -0.4285714286 | N34: 0 | O34: 0 | P34: =(M$13-I$13)/(J$13-I$13) -> -0.5 | Q34: =J34-I34 -> 0 | R34: 0 | S34: =IF((M$13-J$13)/(K$13-J$13)>1,1,(M$13-J$13)/(K$13-J$13)) -> -3 | T34: =K34-J34 -> 0 | U34: =J34+(S34*T34) -> 0 | V34: 0.1194433229 | W34: 0.1116 | X34: =W34*R$3 -> 216.504 | Y34: =X34 -> 216.504 | Z34: =Y34/Y$46 -> 0.1086089999 | AB34: Misc. | AC34: 0.038 | AD34: 0.038 | AE34: 0.038 | AF34: 0.038 | AG34: 0.038 | AH34: 0.038 | AI34: 0.038 | AJ34: 0.038 | AK34: 0.038 | AM34: =HLOOKUP(AM$21,AC$22:AK$34,13) -> 0.038 | AN34: =(AM34*E9) -> 16564200 | AO34: =SUM(AO30:AO33) -> 15478577.19 | AU34: 0.1194791667 | AV34: 0.06215683671 | AW34: 8991409.173
C35: Transportation | D35: =(E$9-(D$29-D$28))*V35 -> 34665605.8 | E35: =F35*D$9 -> 115.5520193 | F35: =D35/E$9 -> 0.07952651021 | G35: =IF(ProjectData!$B$13="UNITED STATES",1,0) -> 0 | H35: 0 | I35: 0 | J35: 0 | K35: 0 | M35: =(M$13-H$13)/(I$13-H$13) -> -0.4285714286 | N35: =+I35-H35 -> 0 | O35: =H35+(N35*M35) -> 0 | P35: =(M$13-I$13)/(J$13-I$13) -> -0.5 | Q35: =J35-I35 -> 0 | R35: =I35+(P35*Q35) -> 0 | S35: =IF((M$13-J$13)/(K$13-J$13)>1,1,(M$13-J$13)/(K$13-J$13)) -> -3 | T35: =K35-J35 -> 0 | U35: =J35+(S35*T35) -> 0 | V35: 0.08245442292 | W35: 0.07704 | X35: =W35*R$3 -> 149.4576 | Y35: =X35 -> 149.4576 | Z35: =Y35/Y$46 -> 0.0749752451 | AU35: 0.08247916667 | AV35: 0.04290826792 | AW35: 6206972.784
C36: Subtotal | D36: =SUM(D32:D35) -> 323977624.3 | E36: =SUM(E32:E35) -> 1079.925414 | F36: =SUM(F32:F35) -> 0.7432384131 | V36: 0.7706020833 | W36: 0.72 | X36: =W36*R$3 -> 1396.8 | Y36: =X36 -> 1396.8 | Z36: =Y36/Y$46 -> 0.7007032253 | AC36: =(AD30/AC30)^(1/(AD$22-AC$22)) -> 0.9686563508 | AD36: 0.9844552981 | AE36: 0.9911122373 | AF36: 0.9899805302 | AG36: 0.997051635 | AH36: 0.9983436201 | AI36: 0.9983015797 | AJ36: 0.9998921888 | AK36: 1 | AL36: =HLOOKUP(AM$21,AC$22:AK$33,1) -> 300 | AM36: =HLOOKUP(AM$21,AC$22:AK$36,15) -> 1 | AU36: =SUM(AU32:AU35) -> 0.7708333333 | AV36: 0.4010118497 | AW36: 58009091.44
C37: Development/Other Costs
C38: HV Sub/Interconnection | D38: =(E$9-(D$29-D$28))*V38 -> 4202952.964 | E38: =F38*D$9 -> 14.00984321 | F38: =D38/E$9 -> 0.009642011846 | G38: =IF(ProjectData!$B$13="UNITED STATES",1,0.9) -> 0.9 | H38: 0.006692913386 | I38: 0.06023622047 | J38: 0.1830708661 | K38: 0.9 | M38: -0.4285714286 | N38: 0.05354330709 | O38: -0.01625421822 | P38: =(M$13-I$13)/(J$13-I$13) -> -0.5 | Q38: =J38-I38 -> 0.1228346457 | R38: -0.001181102362 | S38: =IF((M$13-J$13)/(K$13-J$13)>1,1,(M$13-J$13)/(K$13-J$13)) -> -3 | T38: =K38-J38 -> 0.7169291339 | U38: =J38+(S38*T38) -> -1.967716535 | V38: =AU38*V$15 -> 0.009997 | W38: 0.0196 | X38: =W38*R$3 -> 38.024 | Y38: =X38*R$7 -> 46.02832123 | Z38: =Y38/Y$46 -> 0.02309005809 | AU38: 0.01 | AV38: =AU38/AU$47 -> 0.005202315889 | AW38: 752550.3754
C39: Materials | D39: =D38*(1-Calculations!K26) -> 3217399.955 | E39: 10.72466652 | F39: 0.007381050597 | G39: =IF(ProjectData!$B$13="UNITED STATES",1,0.9) -> 0.9 | H39: 0.006692913386 | I39: 0.06023622047 | J39: 0.1830708661 | K39: 0.9 | AW39: 576084.3781
C40: Labor | D40: =D38-D39 -> 985553.0085 | E40: 3.285176695 | F40: 0.002260961249 | G40: =IF(ProjectData!$B$13="UNITED STATES",1,0.1) -> 0.1 | H40: 0 | I40: 0 | J40: 0 | K40: 0.1 | AW40: 176465.9973
C41: Engineering | D41: =(E$9-(D$29-D$28))*V41 -> 4378076.004 | E41: 14.59358668 | F41: 0.01004376234 | G41: =IF(ProjectData!$B$13="UNITED STATES",1,0) -> 0 | H41: 0 | I41: 0 | J41: 0 | K41: 0 | M41: -0.4285714286 | N41: 0 | O41: 0 | P41: =(M$13-I$13)/(J$13-I$13) -> -0.5 | Q41: =J41-I41 -> 0 | R41: 0 | S41: =IF((M$13-J$13)/(K$13-J$13)>1,1,(M$13-J$13)/(K$13-J$13)) -> -3 | T41: =K41-J41 -> 0 | U41: =J41+(S41*T41) -> 0 | V41: =AU41*V$15 -> 0.01041354167 | W41: 0.00644 | X41: 12.4936 | Y41: =X41 -> 12.4936 | Z41: 0.006267401071 | AU41: 0.01041666667 | AV41: =AU41/AU$47 -> 0.005419079051 | AW41: 783906.6411
C42: Legal Services | D42: =(E$9-(D$29-D$28))*V42 -> 2386051.422 | E42: 7.95350474 | F42: 0.005473850475 | G42: =IF(ProjectData!$B$13="UNITED STATES",1,1) -> 1 | H42: 0 | I42: 0 | J42: 0 | K42: 1 | M42: -0.4285714286 | N42: 0 | O42: 0 | P42: =(M$13-I$13)/(J$13-I$13) -> -0.5 | Q42: =J42-I42 -> 0 | R42: 0 | S42: =IF((M$13-J$13)/(K$13-J$13)>1,1,(M$13-J$13)/(K$13-J$13)) -> -3 | T42: =K42-J42 -> 1 | U42: =J42+(S42*T42) -> -3 | V42: 0.005675380208 | W42: 0.000504 | X42: 0.97776 | Y42: =X42 -> 0.97776 | Z42: 0.0004904922577 | AU42: 0.005677083333 | AV42: 0.002953398083 | AW42: 427229.1194
C43: Land Easements | D43: =(E$9-(D$29-D$28))*V43 -> 0 | E43: 0 | F43: 0 | G43: =IF(ProjectData!$B$13="UNITED STATES",1,1) -> 1 | H43: 1 | I43: 1 | J43: 1 | K43: 1 | M43: -0.4285714286 | N43: 0 | O43: 1 | P43: =(M$13-I$13)/(J$13-I$13) -> -0.5 | Q43: =J43-I43 -> 0 | R43: 1 | S43: =IF((M$13-J$13)/(K$13-J$13)>1,1,(M$13-J$13)/(K$13-J$13)) -> -3 | T43: =K43-J43 -> 0 | U43: =J43+(S43*T43) -> 1 | V43: 0 | W43: 0 | X43: 0 | Y43: =X43 -> 0 | Z43: 0 | AU43: 0 | AV43: 0 | AW43: 0
C44: Site Certificate/Permitting | D44: =(E$9-(D$29-D$28))*V44 -> 1116409.381 | E44: 3.721364603 | F44: 0.002561159397 | G44: =IF(ProjectData!$B$13="UNITED STATES",1,1) -> 1 | H44: 1 | I44: 1 | J44: 1 | K44: 1 | M44: -0.4285714286 | N44: 0 | O44: 1 | P44: =(M$13-I$13)/(J$13-I$13) -> -0.5 | Q44: =J44-I44 -> 0 | R44: 1 | S44: =IF((M$13-J$13)/(K$13-J$13)>1,1,(M$13-J$13)/(K$13-J$13)) -> -3 | T44: =K44-J44 -> 0 | U44: =J44+(S44*T44) -> 1 | V44: 0.002655453125 | W44: 0.001428 | X44: 2.77032 | Y44: =X44 -> 2.77032 | Z44: 0.001389728063 | AU44: 0.00265625 | AV44: 0.001381865158 | AW44: 199896.1935
C45: Subtotal | D45: =SUM(D39:D44) -> 12083489.77 | E45: =SUM(E39:E44) -> 40.27829924 | F45: =SUM(F39:F44) -> 0.02772078406 | V45: 0.028741375 | W45: 0.027972 | X45: 54.26568 | Y45: =SUM(Y38:Y44) -> 62.27000123 | Z45: 0.03123767948 | AU45: =SUM(AU38:AU44) -> 0.02875 | AV45: 0.01495665818 | AW45: 2163582.329
C46: Subtotal All Costs (without sales tax) | D46: =D45+D36+D30 -> 435992965.3 | E46: =E45+E36+E30 -> 1453.309884 | F46: =F45+F36+F30+F22 -> 1.155957879 | X46: =X45+X36+X30 -> 1939.7284 | Y46: =Y45+Y36+Y30 -> 1993.425961 | AW46: 80632363.07
C47: Sales Tax (Materials & Equipment Purchases) | D47: =(D32+D33+D34+D22)*D101 -> 22682269.38 | E47: =D47/(E5*1000) -> 75.60756459 | G47: 1 | H47: 1 | I47: 1 | J47: 1 | K47: 1 | M47: =(M$13-H$13)/(I$13-H$13) -> -0.4285714286 | N47: =+I47-H47 -> 0 | O47: =H47+(N47*M47) -> 1 | P47: =(M$13-I$13)/(J$13-I$13) -> -0.5 | Q47: =J47-I47 -> 0 | R47: =I47+(P47*Q47) -> 1 | S47: =IF((M$13-J$13)/(K$13-J$13)>1,1,(M$13-J$13)/(K$13-J$13)) -> -3 | T47: =K47-J47 -> 0 | U47: =J47+(S47*T47) -> 1 | V47: 0.00265625 | W47: 0.001428 | X47: =W47*R$3 -> 2.77032 | Y47: =X47 -> 2.77032 | Z47: 0.001389728063 | AU47: =SUM(AU18:AU45) -> 1.922220837 | AV47: =SUM(AV18:AV45) -> 1
C48: Total Project Cost | D48: =+D47+D46 -> 458675234.7 | E48: =E47+E46 -> 1528.917449
H49: Very Small | I49: Small | J49: Medium | K49: Large
H50: 30000 | I50: 100000 | J50: 300000 | K50: 400000 | V50: =V46+AM34 -> 0.038 | W50: =W46-W29 -> -0.111888 | AB50: 0&M Jobs/ | AC50: 30 | AD50: 60 | AE50: 75 | AF50: 100 | AG50: 150 | AH50: 200 | AI50: 250 | AK50: 100
H51: County | I51: County | J51: County | K51: County | AB51: Field Tech | AC51: 2 | AD51: 2.4 | AE51: 3 | AF51: 4 | AG51: 6 | AH51: 8 | AI51: 9 | AK51: 7
C52: Wind Farm Annual Operating and Maintenance Costs | D52: Cost | E52: Cost | F52: Percent | G52: Local Share | H52: Local Share | I52: Local Share | J52: Local Share | K52: Local Share | AB52: Admin | AC52: 0.3 | AD52: 0.6 | AE52: 0.75 | AF52: 1 | AG52: =AF52 -> 1 | AH52: =AH50/$AG50*$AG52 -> 1.333333333 | AI52: =AH52 -> 1.333333333 | AK52: 1
E53: Per KW | F53: of Cost | AB53: Management | AC53: 0.5 | AD53: 1 | AE53: 1 | AF53: 1 | AG53: 1 | AH53: 1 | AI53: 1 | AK53: 1
C54: Personnel | AB54: Total | AC54: =SUM(AC51:AC53) -> 2.8 | AD54: 4 | AE54: 4.75 | AF54: 6 | AG54: 8 | AH54: 10.33333333 | AI54: 11.33333333
C55: Field Salaries | D55: =K4*K115 -> 935474.927 | E55: =D55/(E$5*1000) -> 3.118249757 | F55: =E55/F$80 -> 0.08205920412 | G55: 1 | H55: 1 | I55: 1 | J55: 1 | K55: 1 | M55: -0.4285714286 | N55: 0 | O55: 1 | P55: =(M$13-I$13)/(J$13-I$13) -> -0.5 | Q55: =J55-I55 -> 0 | R55: 1 | S55: =IF((M$13-J$13)/(K$13-J$13)>1,1,(M$13-J$13)/(K$13-J$13)) -> -3 | T55: =K55-J55 -> 0 | U55: =J55+(S55*T55) -> 1 | AJ55: =IF(E5<30,30,E5) -> 300 | AK55: MW
C56: Administrative | D56: =K5*K116 -> 88696.88197 | E56: =D56/(E$5*1000) -> 0.2956562732 | F56: =E56/F$80 -> 0.007780428243 | G56: 1 | H56: 1 | I56: 1 | J56: 1 | K56: 1 | M56: -0.4285714286 | N56: 0 | O56: 1 | P56: =(M$13-I$13)/(J$13-I$13) -> -0.5 | Q56: =J56-I56 -> 0 | R56: 1 | S56: =IF((M$13-J$13)/(K$13-J$13)>1,1,(M$13-J$13)/(K$13-J$13)) -> -3 | T56: =K56-J56 -> 0 | U56: =J56+(S56*T56) -> 1 | AB56: Tech/MW | AC56: =AC51/AC50 -> 0.06666666667 | AD56: 0.04 | AE56: 0.04 | AF56: 0.04 | AG56: 0.04 | AH56: 0.04 | AI56: 0.036 | AJ56: =HLOOKUP(AJ$55,AC$50:AI$58,7)*(AJ60^(AJ$55-AL$36)) -> 0.036 | AK56: =AK51/AK$50 -> 0.07 | AM56: Tech labor per MW | AP56: =IF(ProjectData!B18<1500,AK56,AJ56) -> 0.036 | AR56: O&M Cost per KW | AT56: =IF(ProjectData!B16<=20,DefaultData!AO8,IF(ProjectData!B16>=100,DefaultData!AO9,AO8*(AT57^(ProjectData!B16-20)))) -> 20.69008035
C57: Management | D57: =K6*K117 -> 166306.6537 | E57: =D57/(E$5*1000) -> 0.5543555123 | F57: =E57/F$80 -> 0.01458830296 | G57: 1 | H57: 1 | I57: 1 | J57: 1 | K57: 1 | M57: -0.4285714286 | N57: 0 | O57: 1 | P57: =(M$13-I$13)/(J$13-I$13) -> -0.5 | Q57: =J57-I57 -> 0 | R57: 1 | S57: =IF((M$13-J$13)/(K$13-J$13)>1,1,(M$13-J$13)/(K$13-J$13)) -> -3 | T57: =K57-J57 -> 0 | U57: =J57+(S57*T57) -> 1 | AB57: Admin/MW | AC57: =AC52/AC50 -> 0.01 | AD57: 0.01 | AE57: 0.01 | AF57: 0.01 | AG57: 0.006666666667 | AH57: 0.006666666667 | AI57: 0.005333333333 | AJ57: =HLOOKUP(AJ$55,AC$50:AI$58,8)*(AJ61^(AJ$55-AL$36)) -> 0.005333333333 | AK57: =AK52/AK$50 -> 0.01 | AM57: Admin labor per MW | AP57: =IF(ProjectData!B18<1500,AK57,AJ57) -> 0.005333333333 | AR57: O&M Cost Adj function | AT57: =(AO9/AO8)^((1/(100-20))) -> 0.9972980249
C58: Subtotal | D58: =SUM(D55:D57) -> 1190478.463 | E58: =SUM(E55:E57) -> 3.968261542 | F58: =SUM(F55:F57) -> 0.1044279353 | M58: =(M$13-H$13)/(I$13-H$13) -> -0.4285714286 | N58: =+I58-H58 -> 0 | O58: =H58+(N58*M58) -> 0 | P58: =(M$13-I$13)/(J$13-I$13) -> -0.5 | Q58: =J58-I58 -> 0 | R58: =I58+(P58*Q58) -> 0 | S58: =IF((M$13-J$13)/(K$13-J$13)>1,1,(M$13-J$13)/(K$13-J$13)) -> -3 | T58: =K58-J58 -> 0 | U58: =J58+(S58*T58) -> 0 | AB58: Mgmt/MW | AC58: =AC53/AC50 -> 0.01666666667 | AD58: =AD53/AD50 -> 0.01666666667 | AE58: 0.01333333333 | AF58: 0.01 | AG58: 0.006666666667 | AH58: 0.005 | AI58: 0.004 | AJ58: =HLOOKUP(AJ$55,AC$50:AI$58,9)*(AJ62^(AJ$55-AL$36)) -> 0.004 | AK58: =AK53/AK$50 -> 0.01 | AM58: Mgmt labor per MW | AP58: =IF(ProjectData!B18<1500,AK58,AJ58) -> 0.004
C59: Warranty/Maintenance Services | D59: 0 | E59: =D59/(E$5*1000) -> 0 | F59: =E59/F$80 -> 0 | G59: =IF(ProjectData!$B$13="UNITED STATES",1,0) -> 0 | H59: 0 | I59: 0 | J59: 0 | K59: 0 | AT59: =AO8 -> 25.69008035
C60: Total | D60: =D59+D58 -> 1190478.463 | E60: =E59+E58 -> 3.968261542 | F60: =F59+F58 -> 0.1044279353 | AC60: =(AD56/AC56)^(1/(AD$50-AC$50)) -> 0.9831166281 | AD60: 1 | AE60: 1 | AF60: 1 | AG60: 1 | AH60: 0.9978950083 | AI60: 1 | AJ60: =HLOOKUP(AJ$55,AC$50:AI$62,11) -> 1 | AT60: =AT59*(AT57^80) -> 20.69008035
AC61: =(AD57/AC57)^(1/(AD$50-AC$50)) -> 1 | AD61: 1 | AE61: 1 | AF61: 0.9919234895 | AG61: 1 | AH61: 0.9955470728 | AI61: 1 | AJ61: =HLOOKUP(AJ$55,AC$50:AI$62,12) -> 1
C62: Materials and Services | E62: Per KW | W62: 0.04221099484 | AC62: =(AD58/AC58)^(1/(AD$50-AC$50)) -> 1 | AD62: 0.9852338678 | AE62: 0.9885586726 | AF62: 0.9919234895 | AG62: 0.994262879 | AH62: 0.9955470728 | AI62: 1 | AJ62: =HLOOKUP(AJ$55,AC$50:AI$62,13) -> 1
C63: Vehicles | D63: =(((E$5*1000)*F$9)-D$60)*AA63 -> 291658.9498 | E63: =D63/(E$5*1000) -> 0.9721964993 | F63: =E63/F$80 -> 0.0255841184 | G63: =IF(ProjectData!$B$13="UNITED STATES",1,1) -> 1 | H63: 0 | I63: 0 | J63: 1 | K63: 1 | M63: -0.4285714286 | N63: 0 | O63: 0 | P63: =(M$13-I$13)/(J$13-I$13) -> -0.5 | Q63: =J63-I63 -> 1 | R63: -0.5 | S63: =IF((M$13-J$13)/(K$13-J$13)>1,1,(M$13-J$13)/(K$13-J$13)) -> -3 | T63: =K63-J63 -> 0 | U63: =J63+(S63*T63) -> 1 | W63: =X63/X$71 -> 0.04221099484 | X63: 0.03186894063 | Y63: 0.03186894063 | AA63: 0.02856734752 | AB63: 65574.59871 | AC63: =D63 -> 291658.9498
C64: Site Maint/Misc. Services | D64: =(((E$5*1000)*F$9)-D$60)*AA64 -> 113746.9904 | E64: =D64/(E$5*1000) -> 0.3791566347 | F64: =E64/F$80 -> 0.009977806177 | G64: =IF(ProjectData!$B$13="UNITED STATES",1,0.8) -> 0.8 | H64: 0.01084745763 | I64: 0.04788377724 | J64: 0.1274576271 | K64: 0.8 | M64: -0.4285714286 | N64: 0.03703631961 | O64: -0.005025250778 | P64: -0.5 | Q64: 0.07957384988 | R64: 0.0080968523 | S64: -3 | T64: 0.6725423729 | U64: -1.890169492 | W64: =X64/X$71 -> 0.0710374221 | X64: 0.05363264704 | Y64: 0.05363264704 | AA64: 0.01114126553 | AB64: 110356.3293 | AC64: =D64 -> 113746.9904
C65: Fees, Permits, Licenses | D65: 56873.49521 | E65: 0.1895783174 | F65: 0.004988903088 | G65: =IF(ProjectData!$B$13="UNITED STATES",1,1) -> 1 | H65: 1 | I65: 1 | J65: 1 | K65: 1 | M65: -0.4285714286 | N65: 0 | O65: 1 | P65: -0.5 | Q65: 0 | R65: 1 | S65: -3 | T65: 0 | U65: 1 | W65: 0.01425072048 | X65: 0.01075917227 | Y65: 0.01075917227 | AA65: 0.005570632767 | AB65: 22138.4329 | AC65: 56873.49521
C66: Utilities | D66: 227493.9808 | E66: 0.7583132694 | F66: 0.01995561235 | G66: =IF(ProjectData!$B$13="UNITED STATES",1,1) -> 1 | H66: 1 | I66: 1 | J66: 1 | K66: 1 | M66: -0.4285714286 | N66: 0 | O66: 1 | P66: -0.5 | Q66: 0 | R66: 1 | S66: -3 | T66: 0 | U66: 1 | W66: 0.05763424296 | X66: 0.04351336125 | Y66: 0.04351336125 | AA66: 0.02228253107 | AB66: 89534.54824 | AC66: 227493.9808
C67: Insurance | D67: 2187442.123 | E67: 7.291473745 | F67: 0.191880888 | G67: =IF(ProjectData!$B$13="UNITED STATES",1,0) -> 0 | H67: 0 | I67: 0 | J67: 0 | K67: 0 | M67: -0.4285714286 | N67: 0 | O67: 0 | P67: -0.5 | Q67: 0 | R67: 0 | S67: -3 | T67: 0 | U67: 0 | W67: 0.2013040113 | X67: 0.1519828095 | Y67: 0.1519828095 | AA67: 0.2142551064 | AB67: 312724.9147 | AC67: 2187442.123
C68: Fuel (motor vehicle gasoline) | D68: 113746.9904 | E68: 0.3791566347 | F68: 0.009977806177 | G68: =IF(ProjectData!$B$13="UNITED STATES",1,1) -> 1 | H68: 1 | I68: 1 | J68: 1 | K68: 1 | M68: -0.4285714286 | N68: 0 | O68: 1 | P68: -0.5 | Q68: 0 | R68: 1 | S68: -3 | T68: 0 | U68: 1 | W68: 0.03029530621 | X68: 0.02287269748 | Y68: 0.02287269748 | AA68: 0.01114126553 | AB68: 47063.62774 | AC68: 113746.9904
C69: Consumables/Tools and Misc. Supplies | D69: 739355.4377 | E69: 2.464518126 | F69: 0.06485574015 | G69: =IF(ProjectData!$B$13="UNITED STATES",1,1) -> 1 | H69: 0.0249244713 | I69: 0.09652567976 | J69: 0.2416918429 | K69: 1 | M69: -0.4285714286 | N69: 0.07160120846 | O69: -0.005761760898 | P69: -0.5 | Q69: 0.1451661631 | R69: 0.02394259819 | S69: -3 | T69: 0.7583081571 | U69: -2.033232628 | W69: 0.4241944015 | X69: 0.3202631506 | Y69: 0.3202631506 | AA69: 0.07241822597 | AB69: 658984.1759 | AC69: 739355.4377
C70: Replacement Parts/Equipment/ Spare Parts Inventory | D70: 6479203.57 | E70: 21.59734523 | F70: 0.5683511903 | G70: =IF(ProjectData!$B$13="UNITED STATES",1,0.02) -> 0.02 | H70: 0 | I70: 0 | J70: 0 | K70: 0.02 | M70: -0.4285714286 | N70: 0 | O70: 0 | P70: -0.5 | Q70: 0 | R70: 0 | S70: -3 | T70: 0.02 | U70: -0.06 | W70: 0.1590729006 | X70: 0.1200986815 | Y70: 0.1200986815 | AA70: 0.6346236252 | AB70: 247119.066 | AC70: 6479203.57
C71: Subtotal | D71: =SUM(D63:D70) -> 10209521.54 | E71: =SUM(E63:E70) -> 34.03173846 | F71: =SUM(F63:F70) -> 0.8955720647 | W71: =SUM(W63:W70) -> 1 | X71: =SUM(X63:X70) -> 0.7549914602 | AB71: 1553495.693 | AC71: 10209521.54
C72: Sales Tax (Materials & Equipment Purchases) | D72: =(D70+D69+D63)*D101 -> 476898.8403 | G72: =F101 -> 1 | AC72: 476898.8403
C73: Other Taxes/Payments | D73: 0 | G73: 1
C74: Total (with Sales Tax and Other Taxes/Payments | D74: =D73+D72+D71+D60 -> 11876898.84
C75: Financing (avg ann debt payment) | D75: =Calculations!F197 -> 50566428.01
C76: Equity Payment - Individuals (avg ann payment) | D76: 0
C77: Equity Payment - Corporations (avg ann payment) | D77: 0
C78: Land Lease | D78: =D103*D5 -> 903900
C79: Total | D79: =+D78+D75+D74 -> 63347226.85
D80: =D71+D60 -> 11400000 | F80: =D80/(E5*1000) -> 38
C81: Other Parameters
C82: Financial Parameters | F82: Local Share
C83: Debt Financing
C84: Percentage financed | D84: 0.8 | F84: =IF(ProjectData!$B$13="UNITED STATES",1,0) -> 0
C85: Years financed (term) | D85: 10
C86: Interest rate | D86: 0.063
C87: Average Annual Payment (Interest and Principal) | D87: =D75 -> 50566428.01
C88: Equity Financing/Repayment | F88: Local Share
C89: Percentage equity | D89: =1-D84 -> 0.2
C90: Individual Investors (percent of equity) | D90: 0 | F90: 1
C91: Corporate Investors (percent of equity) | D91: =1-D90 -> 1 | F91: =IF(ProjectData!$B$13="UNITED STATES",1,0) -> 0
C92: Return on equity | D92: 0.12
C93: Repayment term (years) | D93: 10
C94: Tax Parameters
C95: Local Property/Other Tax Rate (average millage rate - $/$1,000 assessed vallue) | D95: =D158 -> 19.44
C96: Assessed Value (percent of construction cost) | D96: =D157 -> 1
C98: Taxable Value | D98: =IF(D96="NA", "NA",D48*D96) -> 458675234.7
C99: Taxes Per MW | D99: =D141 -> NA
C100: Local Taxes | D100: =IF($D96="NA",IF(D99="NA","NA",$D99*$E5),(D98/1000)*D95) -> 8916646.563 | F100: 1
C101: Local Sales Tax Rate | D101: =D149 -> 0.0635 | F101: 1
C102: Land Lease Parameters
C103: Land Lease Cost (per turbine) | D103: =ProjectData!B18*(3000/1000) -> 6900 | E103: <- $3k/MW
C104: Land Lease (total cost) | D104: =D103*D5 -> 903900
C105: Lease Payment Recipient (F = farmer/household, O = Other) | D105: F | E105: 14.55834216 | F105: 1 | L105: Payroll expense
C106: Warranty/Maintenance Services | D106: not applicable | L106: Govt | M106: 0.07118694551
C107: Cost per Turbine | L107: Health/Ins/Misc | M107: 0.304874157 | N107: User Revised Data
C108: Payroll Parameters | D108: Payroll Cost | E108: wage/hour | F108: Payroll expense | G108: Payroll expense | H108: Default | I108: User Revised | L108: Total | M108: =M107+M106 -> 0.3760611025 | N108: Payroll Cost | O108: wage/hour | P108: Payroll expense | Q108: Payroll expense
C109: Construction Labor | K109: Default
C110: Foundation | D110: =(E110+F110) -> 30.51620488 | E110: =18.32*$R$7 -> 22.17648971 | F110: =+E110*G110 -> 8.339715171 | G110: =M$108 -> 0.3760611025 | H110: =(DefaultData!D24*G24)/(D110*(52*40)) -> 49.9306197 | I110: =(ProjectData!B46*ProjectData!E46)/(DefaultData!N110*(40*52)) -> 49.9306197 | K110: =D110*52*40 -> 63473.70616 | N110: =(O110+P110) -> 30.51620488 | O110: =ProjectData!B116 -> 22.17648971 | P110: =+O110*Q110 -> 8.339715171 | Q110: =ProjectData!D116 -> 0.3760611025 | R110: =N110*52*40 -> 63473.70616
C111: Erection | D111: =(E111+F111) -> 34.56393293 | E111: =20.75*$R$7 -> 25.11802192 | F111: =+E111*G111 -> 9.445911015 | G111: =M$108 -> 0.3760611025 | H111: =(DefaultData!D25*G25)/(D111*(52*40)) -> 39.41891029 | I111: =(ProjectData!B47*ProjectData!E47)/(DefaultData!N111*(40*52)) -> 39.41891029 | K111: =D111*52*40 -> 71892.9805 | N111: =(O111+P111) -> 34.56393293 | O111: =ProjectData!B117 -> 25.11802192 | P111: =+O111*Q111 -> 9.445911015 | Q111: =ProjectData!D117 -> 0.3760611025 | R111: =N111*52*40 -> 71892.9805
C112: Electrical | D112: =(E112+F112) -> 45.79096464 | E112: =27.49*$R$7 -> 33.27683964 | F112: =+E112*G112 -> 12.514125 | G112: =M$108 -> 0.3760611025 | H112: =(DefaultData!D26*G26)/(D112*(52*40)) -> 40.47008123 | I112: =(ProjectData!B48*ProjectData!E48)/(DefaultData!N112*(40*52)) -> 40.47008123 | K112: =D112*52*40 -> 95245.20646 | N112: =(O112+P112) -> 45.79096464 | O112: =ProjectData!B118 -> 33.27683964 | P112: =+O112*Q112 -> 12.514125 | Q112: =ProjectData!D118 -> 0.3760611025 | R112: =N112*52*40 -> 95245.20646
C113: Management/Supervision | D113: =(E113+F113) -> 62.24839391 | E113: =37.37*$R$7 -> 45.2366496 | F113: =+E113*G113 -> 17.01174432 | G113: =M$108 -> 0.3760611025 | H113: =(DefaultData!D27*G27)/(D113*(52*40)) -> 0 | I113: =(ProjectData!B49*ProjectData!E49)/(DefaultData!N113*(40*52)) -> 0 | K113: =D113*52*40 -> 129476.6593 | N113: =(O113+P113) -> 62.24839391 | O113: =ProjectData!B119 -> 45.2366496 | P113: =+O113*Q113 -> 17.01174432 | Q113: =ProjectData!D119 -> 0.3760611025 | R113: =N113*52*40 -> 129476.6593
C114: O&M Labor | E114: =SUM(E110:E113) -> 125.8080009 | G114: =SUM(G110:G113) -> 1.50424441 | H114: Direct Plant Employees | O114: =SUM(O110:O113) -> 125.8080009 | Q114: =SUM(Q110:Q113) -> 1.50424441 | Z114: per KW adjust
C115: Field Salaries (technicians, other) | D115: =(E115+F115) -> 41.64329269 | E115: =25*R7 -> 30.26267701 | F115: =+E115*G115 -> 11.38061568 | G115: =M108 -> 0.3760611025 | H115: =(DefaultData!D55*G55)/(D115*(52*40)) -> 10.8 | I115: =(Calculations!D66*Calculations!E66)/(DefaultData!N115*(40*52)) -> 10.8 | K115: =D115*52*40 -> 86618.0488 | N115: =(O115+P115) -> 41.64329269 | O115: =ProjectData!B121 -> 30.26267701 | P115: =+O115*Q115 -> 11.38061568 | Q115: =ProjectData!D121 -> 0.3760611025 | R115: =N115*52*40 -> 86618.0488 | S115: =R115*K4 -> 935474.927 | T115: =(U115+V115) -> 34.40152756 | U115: =25 -> 25 | V115: =+U115*W115 -> 9.401527562 | W115: =M108 -> 0.3760611025 | X115: =T115*52*40 -> 71555.17733 | Y115: =X115*K4 -> 772795.9152
C116: Administrative | D116: =(E116+F116) -> 26.65170732 | E116: =16*R7 -> 19.36811329 | F116: =+E116*G116 -> 7.283594036 | G116: =G115 -> 0.3760611025 | H116: =(DefaultData!D56*G56)/(D116*(52*40)) -> 1.6 | I116: =(Calculations!D67*Calculations!E67)/(DefaultData!N116*(40*52)) -> 1.6 | K116: =D116*52*40 -> 55435.55123 | N116: =(O116+P116) -> 26.65170732 | O116: =ProjectData!B122 -> 19.36811329 | P116: =+O116*Q116 -> 7.283594036 | Q116: =ProjectData!D122 -> 0.3760611025 | R116: =N116*52*40 -> 55435.55123 | S116: =R116*K5 -> 88696.88197 | T116: =(U116+V116) -> 22.01697764 | U116: =16 -> 16 | V116: =+U116*W116 -> 6.01697764 | W116: =W115 -> 0.3760611025 | X116: =T116*52*40 -> 45795.31349 | Y116: =X116*K5 -> 73272.50159
C117: Management | D117: =(E117+F117) -> 66.62926831 | E117: =40*R7 -> 48.42028322 | F117: =+E117*G117 -> 18.20898509 | G117: =G116 -> 0.3760611025 | H117: =(DefaultData!D57*G57)/(D117*(52*40)) -> 1.2 | I117: =(Calculations!D68*Calculations!E68)/(DefaultData!N117*(40*52)) -> 1.2 | K117: =D117*52*40 -> 138588.8781 | N117: =(O117+P117) -> 66.62926831 | O117: =ProjectData!B123 -> 48.42028322 | P117: =+O117*Q117 -> 18.20898509 | Q117: =ProjectData!D123 -> 0.3760611025 | R117: =N117*52*40 -> 138588.8781 | S117: =R117*K6 -> 166306.6537 | T117: =(U117+V117) -> 55.0424441 | U117: =40 -> 40 | V117: =+U117*W117 -> 15.0424441 | W117: =W116 -> 0.3760611025 | X117: =T117*52*40 -> 114488.2837 | Y117: =X117*K6 -> 137385.9405
E118: =SUM(E115:E117) -> 98.05107351 | G118: =SUM(G115:G117) -> 1.128183307 | H118: =SUM(H115:H117) -> 13.6 | I118: =SUM(I115:I117) -> 13.6 | O118: =SUM(O115:O117) -> 98.05107351 | Q118: =SUM(Q115:Q117) -> 1.128183307 | Y118: =SUM(Y115:Y117) -> 983454.3572
C119: Margins | Y119: =D58-Y118 -> 207024.1055 | Z119: =Y119/(E5*1000) -> 0.6900803515
D120: Agriculture | E120: Mining | F120: Construction | G120: Other Manufacturing | H120: Fabricated Metals | I120: Machinery | J120: Electrical Equipment | K120: TCPU | L120: Wholesale Trade | M120: Retail Trade | N120: FIRE | O120: Other Services | P120: Professional Services | Q120: Government | R120: Total
C121: Agriculture | D121: 0.583669 | E121: 0 | F121: 0 | G121: 0 | H121: 0 | I121: 0 | J121: 0 | K121: 0.051572 | L121: 0.07245 | M121: 0.292309 | N121: 0 | O121: 0 | P121: 0 | Q121: 0 | R121: =SUM(D121:Q121) -> 1
C122: Mining | D122: 0 | E122: 0.362051 | F122: 0 | G122: 0 | H122: 0 | I122: 0 | J122: 0 | K122: =0.284423+0.346126 -> 0.630549 | L122: 0.0074 | M122: 0 | N122: 0 | O122: 0 | P122: 0 | Q122: 0 | R122: =SUM(D122:Q122) -> 1
C123: Construction | D123: 0 | E123: 0 | F123: 1 | G123: 0 | H123: 0 | I123: 0 | J123: 0 | K123: 0 | L123: 0 | M123: 0 | N123: 0 | O123: 0 | P123: 0 | Q123: 0 | R123: 1
C124: Manufacturing | D124: 0 | E124: 0 | F124: 0 | G124: 0.558412 | H124: 0 | I124: 0 | J124: 0 | K124: 0.023014 | L124: =0.080398+0.338175 -> 0.418573 | M124: 0 | N124: 0 | O124: 0 | P124: 0 | Q124: 0 | R124: 0.999999
C125: Fabricated Metals | D125: 0 | E125: 0 | F125: 0 | G125: 0 | H125: 1 | I125: 0 | J125: 0 | K125: 0 | L125: 0 | M125: 0 | N125: 0 | O125: 0 | P125: 0 | Q125: 0 | R125: 1
C126: Machinery | D126: 0 | E126: 0 | F126: 0 | G126: 0 | H126: 0 | I126: 0.631251 | J126: 0 | K126: =0.000889 -> 0.000889 | L126: =0.1018+0.266059 -> 0.367859 | M126: 0 | N126: 0 | O126: 0 | P126: 0 | Q126: 0 | R126: 0.999999
C127: Electrical Equipment | D127: 0 | E127: 0 | F127: 0 | G127: 0 | H127: 0 | I127: 0 | J127: 0.512774 | K127: 0.012136 | L127: =0.075345+0.399745 -> 0.47509 | M127: 0 | N127: 0 | O127: 0 | P127: 0 | Q127: 0 | R127: 1
C128: TCPU | D128: 0 | E128: 0 | F128: 0 | G128: 0 | H128: 0 | I128: 0 | J128: 0 | K128: 1 | L128: 0 | M128: 0 | N128: 0 | O128: 0 | P128: 0 | Q128: 0 | R128: 1
C129: Wholesale Trade | D129: 0 | E129: 0 | F129: 0 | G129: 0 | H129: 0 | I129: 0 | J129: 0 | K129: 0 | L129: 1 | M129: 0 | N129: 0 | O129: 0 | P129: 0 | Q129: 0 | R129: 1
C130: Retail Trade | D130: 0 | E130: 0 | F130: 0 | G130: 0 | H130: 0 | I130: 0 | J130: 0 | K130: 0 | L130: =1-M130 -> 0.688714 | M130: 0.311286 | N130: 0 | O130: 0 | P130: 0 | Q130: 0 | R130: 1
C131: FIRE | D131: 0 | E131: 0 | F131: 0 | G131: 0 | H131: 0 | I131: 0 | J131: 0 | K131: 0 | L131: 0 | M131: 0 | N131: 1 | O131: 0 | P131: 0 | Q131: 0 | R131: 1
C132: Misc. Services | D132: 0 | E132: 0 | F132: 0 | G132: 0 | H132: 0 | I132: 0 | J132: 0 | K132: 0.042428 | L132: 0.092083 | M132: 0.361097 | N132: 0 | O132: 0.504392 | P132: 0 | Q132: 0 | R132: 1
C133: Professional Services | D133: 0 | E133: 0 | F133: 0 | G133: 0 | H133: 0 | I133: 0 | J133: 0 | K133: 0 | L133: 0 | M133: 0 | N133: 0 | O133: 0 | P133: 1 | Q133: 0 | R133: 1
C134: Government | D134: 0 | E134: 0 | F134: 0 | G134: 0 | H134: 0 | I134: 0 | J134: 0 | K134: 0 | L134: 0 | M134: 0 | N134: 0 | O134: 0 | P134: 0 | Q134: 1 | R134: 1
D137: Alabama | E137: Alaska | F137: Arizona | G137: Arkansas | H137: California | I137: Colorado | J137: Connecticut | K137: Delaware | L137: District of Columbia | M137: Florida | N137: Georgia | O137: Hawaii | P137: Idaho | Q137: Illinois | R137: Indiana | S137: Iowa | T137: Kansas | U137: Kentucky | V137: Louisiana | W137: Maine | X137: Maryland | Y137: Massachusetts | Z137: Michigan | AA137: Minnesota | AB137: Mississippi | AC137: Missouri | AD137: Montana | AE137: MyCounty | AF137: MyRegion | AG137: Nebraska | AH137: Nevada | AI137: New Hampshire | AJ137: New Jersey | AK137: New Mexico | AL137: New York | AM137: North Carolina | AN137: North Dakota | AO137: Ohio | AP137: Oklahoma | AQ137: Oregon | AR137: Pennsylvania | AS137: Rhode Island | AT137: South Carolina | AU137: South Dakota | AV137: Tennessee | AW137: Texas | AX137: United States | AY137: Utah | AZ137: Vermont | BA137: Virginia | BB137: Washington | BC137: West Virginia | BD137: Wisconsin | BE137: Wyoming
C138: Taxes per MW | E138: 15651 | F138: 6173 | G138: 9266 | I138: 5675.9 | P138: 3842 | Q138: 6900 | R138: 15798 | S138: 4500 | T138: 2900 | W138: 14542 | X138: 8727 | Y138: 16680 | Z138: 18586 | AA138: 2800 | AD138: 14857 | AG138: 3942 | AH138: 7279 | AK138: 10152 | AL138: 7575 | AM138: 10708 | AN138: 2813 | AO138: 21968 | AP138: 6435 | AR138: 1750 | AU138: 4878 | AV138: 6864 | AW138: 10986 | AY138: 11120 | BA138: 9900 | BC138: 1515 | BD138: 1939 | BE138: 7519
C140: State Taxes per MW | D140: =HLOOKUP(Calculations!$E$1,D137:BE138,2) -> 0
D141: =IF(D140=0,"NA",D140) -> NA
C143: US average cost per MW | D143: =AVERAGE(D138:BE138) -> 8570.028125
C144: US median cost per MW | D144: =MEDIAN(D138:BE138) -> 7399
C146: Sales Tax | D146: 0.04 | E146: 0 | F146: 0.056 | G146: 0.065 | H146: 0.0725 | I146: 0.029 | J146: 0.0635 | K146: 0 | L146: 0.0575 | M146: 0.06 | N146: 0.04 | O146: 0.04 | P146: 0.06 | Q146: 0.0625 | R146: 0.07 | S146: 0.06 | T146: 0.065 | U146: 0.06 | V146: 0.0445 | W146: 0.055 | X146: 0.06 | Y146: 0.0625 | Z146: 0.06 | AA146: 0.06875 | AB146: 0.07 | AC146: 0.04225 | AD146: 0 | AE146: =$D150 ->  | AF146: =$D150 ->  | AG146: 0.055 | AH146: 0.0685 | AI146: 0 | AJ146: 0.06625 | AK146: 0.05125 | AL146: 0.04 | AM146: 0.0475 | AN146: 0.05 | AO146: 0.0575 | AP146: 0.045 | AQ146: 0 | AR146: 0.06 | AS146: 0.07 | AT146: 0.06 | AU146: 0.045 | AV146: 0.07 | AW146: 0.0625 | AX146: 0.047 | AY146: 0.0595 | AZ146: 0.06 | BA146: 0.053 | BB146: 0.065 | BC146: 0.06 | BD146: 0.05 | BE146: 0.04 | BF146: =AVERAGE(D146:BE146) -> 
D149: =HLOOKUP(ProjectData!B13,DefaultData!$D$137:$BE$147,10) -> 0.0635
D150: =HLOOKUP('User Add-in Location'!B5,DefaultData!$D$137:$BE$147,10) -> 
C153: 2016 | D153: Alabama | E153: Alaska | F153: Arizona | G153: Arkansas | H153: California | I153: Colorado | J153: Connecticut | K153: Delaware | L153: District of Columbia | M153: Florida | N153: Georgia | O153: Hawaii | P153: Idaho | Q153: Illinois | R153: Indiana | S153: Iowa | T153: Kansas | U153: Kentucky | V153: Louisiana | W153: Maine | X153: Maryland | Y153: Massachusetts | Z153: Michigan | AA153: Minnesota | AB153: Mississippi | AC153: Missouri | AD153: Montana | AE153: MyCounty | AF153: MyRegion | AG153: Nebraska | AH153: Nevada | AI153: New Hampshire | AJ153: New Jersey | AK153: New Mexico | AL153: New York | AM153: North Carolina | AN153: North Dakota | AO153: Ohio | AP153: Oklahoma | AQ153: Oregon | AR153: Pennsylvania | AS153: Rhode Island | AT153: South Carolina | AU153: South Dakota | AV153: Tennessee | AW153: Texas | AX153: United States | AY153: Utah | AZ153: Vermont | BA153: Virginia | BB153: Washington | BC153: West Virginia | BD153: Wisconsin | BE153: Wyoming
C154: Property assessment ratio (%) | D154: 0.3 | E154: 0 | F154: NA | G154: 0.2 | H154: NA | I154: NA | J154: 1 | K154: 1 | L154: NA | M154: 1 | N154: 0.4 | O154: NA | P154: 0 | Q154: NA | R154: NA | S154: NA | T154: NA | U154: 1 | V154: 0.1 | W154: 1 | X154: NA | Y154: 0 | Z154: NA | AA154: 0 | AB154: 0.15 | AC154: NA | AD154: 0.03 | AE154: 0.03 | AF154: 0.03 | AG154: 0 | AH154: 0.35 | AI154: NA | AJ154: 1 | AK154: NA | AL154: NA | AM154: 1 | AN154: NA | AO154: 0 | AP154: NA | AQ154: NA | AR154: NA | AS154: 1 | AT154: 0.11 | AU154: 0 | AV154: 0.55 | AW154: NA | AX154: NA | AY154: 0 | AZ154: 1 | BA154: 0 | BB154: NA | BC154: 0 | BD154: 0 | BE154: NA
C155: Average millage rate ($/$1000 assessed value) | D155: 42.5 | E155: 0 | F155: NA | G155: 46.69 | H155: NA | I155: NA | J155: 19.44 | K155: 23.4 | L155: NA | M155: 17.33 | N155: 30 | O155: NA | P155: 0 | Q155: NA | R155: NA | S155: NA | T155: NA | U155: 11.4 | V155: 151 | W155: 14.72 | X155: NA | Y155: 0 | Z155: NA | AA155: 0 | AB155: 112.57 | AC155: NA | AD155: 435 | AE155: 435 | AF155: 435 | AG155: 0 | AH155: 31.6 | AI155: NA | AJ155: 23.51 | AK155: NA | AL155: NA | AM155: 6.52 | AN155: NA | AO155: 0 | AP155: NA | AQ155: NA | AR155: NA | AS155: 27.62 | AT155: 467 | AU155: 0 | AV155: 34 | AW155: NA | AX155: NA | AY155: 0 | AZ155: 6.68 | BA155: 0 | BB155: NA | BC155: 0 | BD155: 0 | BE155: NA
C157: Property assessment ratio (%) | D157: =HLOOKUP(Calculations!$E$1,D153:BE155,2) -> 1
C158: Average millage rate ($/$1000 assessed value) | D158: =HLOOKUP(Calculations!$E$1,D153:BE155,3) -> 19.44
C160: Source: NREL 11/2016

Sheet Deflators
C2: =CONCATENATE("Conversion to Year ",E4," dollars and back for consistency with multiplier data.") -> Conversion to Year 2016 dollars and back for consistency with multiplier data.
C4: Year of Multiplier Data | E4: =IF(ProjectData!B13="MYCOUNTY",'User Add-in Location'!D3,IF(ProjectData!B13="MYREGION",'User Add-in Location'!D4,Multipliers!D2)) -> 2016 | F4: =IF(E4=0,"ERROR","") ->  | G4: Region of Analysis | I4: =ProjectData!B13 -> CONNECTICUT
A5: Warning | C5: Year of Construction $s | E5: =ProjectData!B22 -> 2017
A7: This Worksheet contains Data and Formulas that are an integral part of the JEDI model. | D7: Deflator | F7: =HLOOKUP($E$5,$D$11:$AM$43,$D$53) -> 0.9831
D8: Inflator | F8: =HLOOKUP($E$5,$D$11:$AM$43,$D$54) -> 1.0172
A9: Although the data and formulas are available for review they must not be changed.
A11: Any changes to the data or formulas will impact the analysis and may invalidate the model results. | D11: 2005 | E11: 2006 | F11: 2007 | G11: 2008 | H11: 2009 | I11: 2010 | J11: 2011 | K11: 2012 | L11: 2013 | M11: 2014 | N11: 2015 | O11: 2016 | P11: 2017 | Q11: 2018 | R11: 2019 | S11: 2020 | T11: 2021 | U11: 2022 | V11: 2023 | W11: 2024 | X11: 2025 | Y11: 2026 | Z11: 2027 | AA11: 2028 | AB11: 2029 | AC11: 2030 | AD11: 2031 | AE11: 2032 | AF11: 2033 | AG11: 2034 | AH11: 2035 | AI11: 2036 | AJ11: 2037 | AK11: 2038 | AL11: 2039 | AM11: 2040
C12: 2005$ | D12: 1 | E12: 1.0325 | F12: 1.0606 | G12: 1.0826 | H12: 1.0952 | I12: 1.1048 | J12: 1.1273 | K12: 1.1478 | L12: 1.1672 | M12: 1.1885 | N12: 1.2028 | O12: 1.2167 | P12: 1.2377 | Q12: 1.257 | R12: 1.2781 | S12: 1.3017 | T12: 1.3275 | U12: 1.3541 | V12: 1.3813 | W12: 1.4069 | X12: 1.4329 | Y12: 1.4593 | Z12: 1.4863 | AA12: 1.5138 | AB12: 1.5417 | AC12: 1.5702 | AD12: 1.5992 | AE12: 1.6288 | AF12: 1.6589 | AG12: 1.6895 | AH12: 1.7207 | AI12: 1.7525 | AJ12: 1.7849 | AK12: 1.8179 | AL12: 1.8515 | AM12: 1.8857
D13: 1 | E13: 0.9685 | F13: 0.9429 | G13: 0.9237 | H13: 0.9131 | I13: 0.9051 | J13: 0.8871 | K13: 0.8712 | L13: 0.8567 | M13: 0.8414 | N13: 0.8314 | O13: 0.8219 | P13: 0.808 | Q13: 0.7955 | R13: 0.7824 | S13: 0.7682 | T13: 0.7533 | U13: 0.7385 | V13: 0.7239 | W13: 0.7108 | X13: 0.6979 | Y13: 0.6852 | Z13: 0.6728 | AA13: 0.6606 | AB13: 0.6486 | AC13: 0.6369 | AD13: 0.6253 | AE13: 0.614 | AF13: 0.6028 | AG13: 0.5919 | AH13: 0.5812 | AI13: 0.5706 | AJ13: 0.5603 | AK13: 0.5501 | AL13: 0.5401 | AM13: 0.5303
C14: 2006$ | D14: 0.9685 | E14: 1 | F14: 1.0272 | G14: 1.0485 | H14: 1.0607 | I14: 1.07 | J14: 1.0917 | K14: 1.1117 | L14: 1.1305 | M14: 1.151 | N14: 1.1649 | O14: 1.1784 | P14: 1.1987 | Q14: 1.2174 | R14: 1.2378 | S14: 1.2607 | T14: 1.2856 | U14: 1.3114 | V14: 1.3378 | W14: 1.3625 | X14: 1.3877 | Y14: 1.4134 | Z14: 1.4395 | AA14: 1.4661 | AB14: 1.4932 | AC14: 1.5207 | AD14: 1.5488 | AE14: 1.5775 | AF14: 1.6066 | AG14: 1.6363 | AH14: 1.6665 | AI14: 1.6973 | AJ14: 1.7287 | AK14: 1.7606 | AL14: 1.7931 | AM14: 1.8263
D15: 1.0325 | E15: 1 | F15: 0.9736 | G15: 0.9538 | H15: 0.9428 | I15: 0.9346 | J15: 0.916 | K15: 0.8995 | L15: 0.8846 | M15: 0.8688 | N15: 0.8584 | O15: 0.8486 | P15: 0.8343 | Q15: 0.8214 | R15: 0.8079 | S15: 0.8317 | T15: 0.7778 | U15: 0.7625 | V15: 0.7475 | W15: 0.7339 | X15: 0.7206 | Y15: 0.7075 | Z15: 0.6947 | AA15: 0.6821 | AB15: 0.6697 | AC15: 0.6576 | AD15: 0.6456 | AE15: 0.6339 | AF15: 0.6224 | AG15: 0.6111 | AH15: 0.6001 | AI15: 0.5892 | AJ15: 0.5785 | AK15: 0.568 | AL15: 0.5577 | AM15: 0.5476
C16: 2007$ | D16: 0.9429 | E16: 0.9736 | F16: 1 | G16: 1.0208 | H16: 1.0326 | I16: 1.0417 | J16: 1.0629 | K16: 1.0823 | L16: 1.1006 | M16: 1.1206 | N16: 1.1341 | O16: 1.1473 | P16: 1.167 | Q16: 1.1853 | R16: 1.2051 | S16: 1.2274 | T16: 1.2517 | U16: 1.2767 | V16: 1.3025 | W16: 1.3265 | X16: 1.351 | Y16: 1.376 | Z16: 1.4014 | AA16: 1.4273 | AB16: 1.4537 | AC16: 1.4805 | AD16: 1.5079 | AE16: 1.5358 | AF16: 1.5641 | AG16: 1.593 | AH16: 1.6225 | AI16: 1.6524 | AJ16: 1.683 | AK16: 1.7141 | AL16: 1.7457 | AM16: 1.778
D17: 1.0606 | E17: 1.0272 | F17: 1 | G17: 0.9797 | H17: 0.9684 | I17: 0.96 | J17: 0.9408 | K17: 0.924 | L17: 0.9086 | M17: 0.8924 | N17: 0.8817 | O17: 0.8716 | P17: 0.8569 | Q17: 0.8437 | R17: 0.8298 | S17: 0.8147 | T17: 0.7989 | U17: 0.7832 | V17: 0.7678 | W17: 0.7539 | X17: 0.7402 | Y17: 0.7267 | Z17: 0.7136 | AA17: 0.7006 | AB17: 0.6879 | AC17: 0.6754 | AD17: 0.6632 | AE17: 0.6511 | AF17: 0.6393 | AG17: 0.6277 | AH17: 0.6163 | AI17: 0.6052 | AJ17: 0.5942 | AK17: 0.5834 | AL17: 0.5728 | AM17: 0.5624
A18: To view the data and formulas simply scroll over to the adjacent columns to the right. | C18: 2008$ | D18: 0.9237 | E18: 0.9538 | F18: 0.9797 | G18: 1 | H18: 1.0116 | I18: 1.0205 | J18: 1.0413 | K18: 1.0603 | L18: 1.0782 | M18: 1.0978 | N18: 1.1111 | O18: 1.1239 | P18: 1.1432 | Q18: 1.1612 | R18: 1.1806 | S18: 1.2024 | T18: 1.2262 | U18: 1.2508 | V18: 1.276 | W18: 1.2995 | X18: 1.3236 | Y18: 1.348 | Z18: 1.3729 | AA18: 1.3983 | AB18: 1.4241 | AC18: 1.4504 | AD18: 1.4772 | AE18: 1.5045 | AF18: 1.5323 | AG18: 1.5606 | AH18: 1.5895 | AI18: 1.6188 | AJ18: 1.6487 | AK18: 1.6792 | AL18: 1.7102 | AM18: 1.7418
D19: 1.0826 | E19: 1.0485 | F19: 1.0208 | G19: 1 | H19: 0.9885 | I19: 0.9799 | J19: 0.9604 | K19: 0.9431 | L19: 0.9275 | M19: 0.9109 | N19: 0.9 | O19: 0.8897 | P19: 0.8747 | Q19: 0.8612 | R19: 0.847 | S19: 0.8317 | T19: 0.8155 | U19: 0.7995 | V19: 0.7837 | W19: 0.7695 | X19: 0.7555 | Y19: 0.7418 | Z19: 0.7284 | AA19: 0.7152 | AB19: 0.7022 | AC19: 0.6894 | AD19: 0.6769 | AE19: 0.6647 | AF19: 0.6526 | AG19: 0.6408 | AH19: 0.6291 | AI19: 0.6177 | AJ19: 0.6065 | AK19: 0.5955 | AL19: 0.5847 | AM19: 0.5741
C20: 2009$ | D20: 0.9131 | E20: 0.9428 | F20: 0.9684 | G20: 0.9885 | H20: 1 | I20: 1.0088 | J20: 1.0293 | K20: 1.0481 | L20: 1.0658 | M20: 1.0852 | N20: 1.0983 | O20: 1.111 | P20: 1.1301 | Q20: 1.1478 | R20: 1.167 | S20: 1.1886 | T20: 1.2121 | U20: 1.2364 | V20: 1.2613 | W20: 1.2846 | X20: 1.3083 | Y20: 1.3325 | Z20: 1.3571 | AA20: 1.3822 | AB20: 1.4077 | AC20: 1.4338 | AD20: 1.4602 | AE20: 1.4872 | AF20: 1.5147 | AG20: 1.5427 | AH20: 1.5712 | AI20: 1.6002 | AJ20: 1.6298 | AK20: 1.6599 | AL20: 1.6906 | AM20: 1.7218
D21: 1.0952 | E21: 1.0607 | F21: 1.0326 | G21: 1.0116 | H21: 1 | I21: 0.9913 | J21: 0.9715 | K21: 0.9541 | L21: 0.9383 | M21: 0.9215 | N21: 0.9105 | O21: 0.9001 | P21: 0.8849 | Q21: 0.8712 | R21: 0.8569 | S21: 0.8413 | T21: 0.825 | U21: 0.8088 | V21: 0.7928 | W21: 0.7785 | X21: 0.7643 | Y21: 0.7505 | Z21: 0.7368 | AA21: 0.7235 | AB21: 0.7104 | AC21: 0.6975 | AD21: 0.6848 | AE21: 0.6724 | AF21: 0.6602 | AG21: 0.6482 | AH21: 0.6365 | AI21: 0.6249 | AJ21: 0.6136 | AK21: 0.6024 | AL21: 0.5915 | AM21: 0.5808
C22: 2010$ | D22: 0.9051 | E22: 0.9346 | F22: 0.96 | G22: 0.9799 | H22: 0.9913 | I22: 1 | J22: 1.0203 | K22: 1.039 | L22: 1.0565 | M22: 1.0757 | N22: 1.0887 | O22: 1.1013 | P22: 1.1202 | Q22: 1.1378 | R22: 1.1568 | S22: 1.1782 | T22: 1.2015 | U22: 1.2256 | V22: 1.2503 | W22: 1.2734 | X22: 1.2969 | Y22: 1.3209 | Z22: 1.3453 | AA22: 1.3701 | AB22: 1.3955 | AC22: 1.4212 | AD22: 1.4475 | AE22: 1.4743 | AF22: 1.5015 | AG22: 1.5292 | AH22: 1.5575 | AI22: 1.5863 | AJ22: 1.6156 | AK22: 1.6454 | AL22: 1.6758 | AM22: 1.7068
D23: 1.1048 | E23: 1.07 | F23: 1.0417 | G23: 1.0205 | H23: 1.0088 | I23: 1 | J23: 0.9801 | K23: 0.9625 | L23: 0.9465 | M23: 0.9296 | N23: 0.9185 | O23: 0.908 | P23: 0.8927 | Q23: 0.8789 | R23: 0.8644 | S23: 0.8487 | T23: 0.8323 | U23: 0.8159 | V23: 0.7998 | W23: 0.7853 | X23: 0.7711 | Y23: 0.7571 | Z23: 0.7433 | AA23: 0.7298 | AB23: 0.7166 | AC23: 0.7036 | AD23: 0.6908 | AE23: 0.6783 | AF23: 0.666 | AG23: 0.6539 | AH23: 0.6421 | AI23: 0.6304 | AJ23: 0.619 | AK23: 0.6077 | AL23: 0.5967 | AM23: 0.5859
C24: 2011$ | D24: 0.8871 | E24: 0.916 | F24: 0.9408 | G24: 0.9604 | H24: 0.9715 | I24: 0.9801 | J24: 1 | K24: 1.0183 | L24: 1.0355 | M24: 1.0543 | N24: 1.067 | O24: 1.0794 | P24: 1.0979 | Q24: 1.1151 | R24: 1.1338 | S24: 1.1548 | T24: 1.1776 | U24: 1.2012 | V24: 1.2254 | W24: 1.248 | X24: 1.2711 | Y24: 1.2946 | Z24: 1.3185 | AA24: 1.3429 | AB24: 1.3677 | AC24: 1.3929 | AD24: 1.4187 | AE24: 1.4449 | AF24: 1.4716 | AG24: 1.4988 | AH24: 1.5265 | AI24: 1.5547 | AJ24: 1.5834 | AK24: 1.6126 | AL24: 1.6424 | AM24: 1.6728
D25: 1.1273 | E25: 1.0917 | F25: 1.0629 | G25: 1.0413 | H25: 1.0293 | I25: 1.0203 | J25: 1 | K25: 0.9821 | L25: 0.9658 | M25: 0.9485 | N25: 0.9372 | O25: 0.9265 | P25: 0.9108 | Q25: 0.8968 | R25: 0.882 | S25: 0.866 | T25: 0.8492 | U25: 0.8325 | V25: 0.8161 | W25: 0.8013 | X25: 0.7867 | Y25: 0.7725 | Z25: 0.7584 | AA25: 0.7447 | AB25: 0.7312 | AC25: 0.7179 | AD25: 0.7049 | AE25: 0.6921 | AF25: 0.6795 | AG25: 0.6672 | AH25: 0.6551 | AI25: 0.6432 | AJ25: 0.6316 | AK25: 0.6201 | AL25: 0.6088 | AM25: 0.5978
C26: 2012$ | D26: 0.8712 | E26: 0.8995 | F26: 0.924 | G26: 0.9431 | H26: 0.9541 | I26: 0.9625 | J26: 0.9821 | K26: 1 | L26: 1.0169 | M26: 1.0354 | N26: 1.0479 | O26: 1.06 | P26: 1.0782 | Q26: 1.0951 | R26: 1.1134 | S26: 1.1341 | T26: 1.1565 | U26: 1.1797 | V26: 1.2034 | W26: 1.2257 | X26: 1.2483 | Y26: 1.2714 | Z26: 1.2948 | AA26: 1.3188 | AB26: 1.3431 | AC26: 1.368 | AD26: 1.3932 | AE26: 1.419 | AF26: 1.4452 | AG26: 1.4719 | AH26: 1.4991 | AI26: 1.5268 | AJ26: 1.555 | AK26: 1.5837 | AL26: 1.613 | AM26: 1.6428
D27: 1.1478 | E27: 1.1117 | F27: 1.0823 | G27: 1.0603 | H27: 1.0481 | I27: 1.039 | J27: 1.0183 | K27: 1 | L27: 0.9834 | M27: 0.9658 | N27: 0.9543 | O27: 0.9434 | P27: 0.9274 | Q27: 0.9131 | R27: 0.8981 | S27: 0.8818 | T27: 0.8647 | U27: 0.8477 | V27: 0.831 | W27: 0.8159 | X27: 0.8011 | Y27: 0.7866 | Z27: 0.7723 | AA27: 0.7583 | AB27: 0.7445 | AC27: 0.731 | AD27: 0.7178 | AE27: 0.7047 | AF27: 0.692 | AG27: 0.6794 | AH27: 0.6671 | AI27: 0.655 | AJ27: 0.6431 | AK27: 0.6314 | AL27: 0.62 | AM27: 0.6087
C28: 2013$ | D28: 0.8567 | E28: 0.8846 | F28: 0.9086 | G28: 0.9275 | H28: 0.9383 | I28: 0.9465 | J28: 0.9658 | K28: 0.9834 | L28: 1 | M28: 1.0182 | N28: 1.0305 | O28: 1.0424 | P28: 1.0603 | Q28: 1.0769 | R28: 1.095 | S28: 1.1152 | T28: 1.1373 | U28: 1.1601 | V28: 1.1834 | W28: 1.2053 | X28: 1.2276 | Y28: 1.2502 | Z28: 1.2733 | AA28: 1.2969 | AB28: 1.3208 | AC28: 1.3452 | AD28: 1.3701 | AE28: 1.3954 | AF28: 1.4212 | AG28: 1.4474 | AH28: 1.4742 | AI28: 1.5014 | AJ28: 1.5292 | AK28: 1.5574 | AL28: 1.5862 | AM28: 1.6155
D29: 1.1672 | E29: 1.1305 | F29: 1.1006 | G29: 1.0782 | H29: 1.0658 | I29: 1.0565 | J29: 1.0355 | K29: 1.0169 | L29: 1 | M29: 0.9821 | N29: 0.9704 | O29: 0.9593 | P29: 0.9431 | Q29: 0.9286 | R29: 0.9133 | S29: 0.8967 | T29: 0.8793 | U29: 0.862 | V29: 0.845 | W29: 0.8297 | X29: 0.8146 | Y29: 0.7998 | Z29: 0.7853 | AA29: 0.7711 | AB29: 0.7571 | AC29: 0.7434 | AD29: 0.7299 | AE29: 0.7166 | AF29: 0.7036 | AG29: 0.6909 | AH29: 0.6783 | AI29: 0.666 | AJ29: 0.654 | AK29: 0.6421 | AL29: 0.6304 | AM29: 0.619
C30: 2014$ | D30: 0.8414 | E30: 0.8688 | F30: 0.8924 | G30: 0.9109 | H30: 0.9215 | I30: 0.9296 | J30: 0.9485 | K30: 0.9658 | L30: 0.9821 | M30: 1 | N30: 1.0121 | O30: 1.0238 | P30: 1.0414 | Q30: 1.0577 | R30: 1.0754 | S30: 1.0953 | T30: 1.1169 | U30: 1.1393 | V30: 1.1623 | W30: 1.1837 | X30: 1.2056 | Y30: 1.2279 | Z30: 1.2506 | AA30: 1.2737 | AB30: 1.2972 | AC30: 1.3212 | AD30: 1.3456 | AE30: 1.3705 | AF30: 1.3958 | AG30: 1.4216 | AH30: 1.4478 | AI30: 1.4746 | AJ30: 1.5018 | AK30: 1.5296 | AL30: 1.5578 | AM30: 1.5866
D31: 1.1885 | E31: 1.151 | F31: 1.1206 | G31: 1.0978 | H31: 1.0852 | I31: 1.0757 | J31: 1.0543 | K31: 1.0354 | L31: 1.0182 | M31: 1 | N31: 0.9881 | O31: 0.9768 | P31: 0.9603 | Q31: 0.9455 | R31: 0.9299 | S31: 0.913 | T31: 0.8953 | U31: 0.8777 | V31: 0.8604 | W31: 0.8448 | X31: 0.8294 | Y31: 0.8144 | Z31: 0.7996 | AA31: 0.7851 | AB31: 0.7709 | AC31: 0.7569 | AD31: 0.7432 | AE31: 0.7297 | AF31: 0.7164 | AG31: 0.7034 | AH31: 0.6907 | AI31: 0.6782 | AJ31: 0.6659 | AK31: 0.6538 | AL31: 0.6419 | AM31: 0.6303
C32: 2015$ | D32: 0.8314 | E32: 0.8584 | F32: 0.8817 | G32: 0.9 | H32: 0.9105 | I32: 0.9185 | J32: 0.9372 | K32: 0.9543 | L32: 0.9704 | M32: 0.9881 | N32: 1 | O32: 1.0116 | P32: 1.029 | Q32: 1.0451 | R32: 1.0626 | S32: 1.0822 | T32: 1.1036 | U32: 1.1257 | V32: 1.1484 | W32: 1.1696 | X32: 1.1912 | Y32: 1.2132 | Z32: 1.2357 | AA32: 1.2585 | AB32: 1.2817 | AC32: 1.3054 | AD32: 1.3295 | AE32: 1.3541 | AF32: 1.3791 | AG32: 1.4046 | AH32: 1.4306 | AI32: 1.457 | AJ32: 1.4839 | AK32: 1.5113 | AL32: 1.5393 | AM32: 1.5677
D33: 1.2028 | E33: 1.1649 | F33: 1.1341 | G33: 1.1111 | H33: 1.0983 | I33: 1.0887 | J33: 1.067 | K33: 1.0479 | L33: 1.0305 | M33: 1.0121 | N33: 1 | O33: 0.9886 | P33: 0.9719 | Q33: 0.9569 | R33: 0.9411 | S33: 0.924 | T33: 0.9061 | U33: 0.8883 | V33: 0.8708 | W33: 0.855 | X33: 0.8395 | Y33: 0.8242 | Z33: 0.8093 | AA33: 0.7946 | AB33: 0.7802 | AC33: 0.766 | AD33: 0.7521 | AE33: 0.7385 | AF33: 0.7251 | AG33: 0.7119 | AH33: 0.699 | AI33: 0.6863 | AJ33: 0.6739 | AK33: 0.6617 | AL33: 0.6497 | AM33: 0.6379
C34: 2016$ | D34: 0.8219 | E34: 0.8486 | F34: 0.8716 | G34: 0.8897 | H34: 0.9001 | I34: 0.908 | J34: 0.9265 | K34: 0.9434 | L34: 0.9593 | M34: 0.9768 | N34: 0.9886 | O34: 1 | P34: 1.0172 | Q34: 1.0331 | R34: 1.0504 | S34: 1.0698 | T34: 1.091 | U34: 1.1129 | V34: 1.1353 | W34: 1.1563 | X34: 1.1776 | Y34: 1.1994 | Z34: 1.2215 | AA34: 1.2441 | AB34: 1.2671 | AC34: 1.2905 | AD34: 1.3144 | AE34: 1.3386 | AF34: 1.3634 | AG34: 1.3886 | AH34: 1.4142 | AI34: 1.4403 | AJ34: 1.467 | AK34: 1.4941 | AL34: 1.5217 | AM34: 1.5498
D35: 1.2167 | E35: 1.1784 | F35: 1.1473 | G35: 1.1239 | H35: 1.111 | I35: 1.1013 | J35: 1.0794 | K35: 1.06 | L35: 1.0424 | M35: 1.0238 | N35: 1.0116 | O35: 1 | P35: 0.9831 | Q35: 0.9679 | R35: 0.952 | S35: 0.9347 | T35: 0.9166 | U35: 0.8986 | V35: 0.8808 | W35: 0.8649 | X35: 0.8492 | Y35: 0.8338 | Z35: 0.8186 | AA35: 0.8038 | AB35: 0.7892 | AC35: 0.7749 | AD35: 0.7608 | AE35: 0.747 | AF35: 0.7335 | AG35: 0.7202 | AH35: 0.7071 | AI35: 0.6943 | AJ35: 0.6817 | AK35: 0.6693 | AL35: 0.6572 | AM35: 0.6453
C36: 2017$ | D36: 0.808 | E36: 0.8343 | F36: 0.8569 | G36: 0.8747 | H36: 0.8849 | I36: 0.8927 | J36: 0.9108 | K36: 0.9274 | L36: 0.9431 | M36: 0.9603 | N36: 0.9719 | O36: 0.9831 | P36: 1 | Q36: 1.0157 | R36: 1.0327 | S36: 1.0518 | T36: 1.0726 | U36: 1.0941 | V36: 1.1161 | W36: 1.1367 | X36: 1.1577 | Y36: 1.1791 | Z36: 1.2009 | AA36: 1.2231 | AB36: 1.2457 | AC36: 1.2687 | AD36: 1.2921 | AE36: 1.316 | AF36: 1.3403 | AG36: 1.3651 | AH36: 1.3903 | AI36: 1.416 | AJ36: 1.4422 | AK36: 1.4688 | AL36: 1.4959 | AM36: 1.5236
D37: 1.2377 | E37: 1.1987 | F37: 1.167 | G37: 1.1432 | H37: 1.1301 | I37: 1.1202 | J37: 1.0979 | K37: 1.0782 | L37: 1.0603 | M37: 1.0414 | N37: 1.029 | O37: 1.0172 | P37: 1 | Q37: 0.9846 | R37: 0.9684 | S37: 0.9508 | T37: 0.9323 | U37: 0.914 | V37: 0.896 | W37: 0.8797 | X37: 0.8638 | Y37: 0.8481 | Z37: 0.8327 | AA37: 0.8176 | AB37: 0.8028 | AC37: 0.7882 | AD37: 0.7739 | AE37: 0.7599 | AF37: 0.7461 | AG37: 0.7326 | AH37: 0.7193 | AI37: 0.7062 | AJ37: 0.6934 | AK37: 0.6808 | AL37: 0.6685 | AM37: 0.6563
C38: 2018$ | D38: 0.7955 | E38: 0.8214 | F38: 0.8437 | G38: 0.8612 | H38: 0.8712 | I38: 0.8789 | J38: 0.8968 | K38: 0.9131 | L38: 0.9286 | M38: 0.9455 | N38: 0.9569 | O38: 0.9679 | P38: 0.9846 | Q38: 1 | R38: 1.0167 | S38: 1.0355 | T38: 1.056 | U38: 1.0772 | V38: 1.0989 | W38: 1.1192 | X38: 1.1399 | Y38: 1.1609 | Z38: 1.1824 | AA38: 1.2042 | AB38: 1.2265 | AC38: 1.2491 | AD38: 1.2722 | AE38: 1.2957 | AF38: 1.3197 | AG38: 1.344 | AH38: 1.3689 | AI38: 1.3942 | AJ38: 1.4199 | AK38: 1.4462 | AL38: 1.4729 | AM38: 1.5001
D39: 1.257 | E39: 1.2174 | F39: 1.1853 | G39: 1.1612 | H39: 1.1478 | I39: 1.1378 | J39: 1.1151 | K39: 1.0951 | L39: 1.0769 | M39: 1.0577 | N39: 1.0451 | O39: 1.0331 | P39: 1.0157 | Q39: 1 | R39: 0.9835 | S39: 0.9657 | T39: 0.947 | U39: 0.9283 | V39: 0.91 | W39: 0.8935 | X39: 0.8773 | Y39: 0.8614 | Z39: 0.8458 | AA39: 0.8304 | AB39: 0.8153 | AC39: 0.8006 | AD39: 0.786 | AE39: 0.7718 | AF39: 0.7578 | AG39: 0.744 | AH39: 0.7305 | AI39: 0.7173 | AJ39: 0.7043 | AK39: 0.6915 | AL39: 0.6789 | AM39: 0.6666
C40: 2019$ | D40: 0.7824 | E40: 0.8079 | F40: 0.8298 | G40: 0.847 | H40: 0.8569 | I40: 0.8644 | J40: 0.882 | K40: 0.8981 | L40: 0.9133 | M40: 0.9299 | N40: 0.9411 | O40: 0.952 | P40: 0.9684 | Q40: 0.9835 | R40: 1 | S40: 1.0185 | T40: 1.0386 | U40: 1.0595 | V40: 1.0808 | W40: 1.1008 | X40: 1.1211 | Y40: 1.1418 | Z40: 1.1629 | AA40: 1.1844 | AB40: 1.2063 | AC40: 1.2286 | AD40: 1.2513 | AE40: 1.2744 | AF40: 1.2979 | AG40: 1.3219 | AH40: 1.3464 | AI40: 1.3712 | AJ40: 1.3966 | AK40: 1.4224 | AL40: 1.4486 | AM40: 1.4754
D41: 1.2781 | E41: 1.2378 | F41: 1.2051 | G41: 1.1806 | H41: 1.167 | I41: 1.1568 | J41: 1.1338 | K41: 1.1134 | L41: 1.095 | M41: 1.0754 | N41: 1.0626 | O41: 1.0504 | P41: 1.0327 | Q41: 1.0167 | R41: 1 | S41: 0.9818 | T41: 0.9628 | U41: 0.9439 | V41: 0.9252 | W41: 0.9085 | X41: 0.892 | Y41: 0.8758 | Z41: 0.8599 | AA41: 0.8443 | AB41: 0.829 | AC41: 0.8139 | AD41: 0.7992 | AE41: 0.7847 | AF41: 0.7704 | AG41: 0.7565 | AH41: 0.7427 | AI41: 0.7293 | AJ41: 0.716 | AK41: 0.7031 | AL41: 0.6903 | AM41: 0.6778
C42: 2020$ | D42: 0.7682 | E42: 0.7932 | F42: 0.8147 | G42: 0.8317 | H42: 0.8413 | I42: 0.8487 | J42: 0.866 | K42: 0.8818 | L42: 0.8967 | M42: 0.913 | N42: 0.924 | O42: 0.9347 | P42: 0.9508 | Q42: 0.9657 | R42: 0.9818 | S42: 1 | T42: 1.0198 | U42: 1.0402 | V42: 1.0612 | W42: 1.0808 | X42: 1.1007 | Y42: 1.1211 | Z42: 1.1418 | AA42: 1.1629 | AB42: 1.1844 | AC42: 1.2063 | AD42: 1.2285 | AE42: 1.2512 | AF42: 1.2744 | AG42: 1.2979 | AH42: 1.3219 | AI42: 1.3463 | AJ42: 1.3712 | AK42: 1.3965 | AL42: 1.4223 | AM42: 1.4486
D43: 1.3017 | E43: 1.2607 | F43: 1.2274 | G43: 1.2024 | H43: 1.1886 | I43: 1.1782 | J43: 1.1548 | K43: 1.1341 | L43: 1.1152 | M43: 1.0953 | N43: 1.0822 | O43: 1.0698 | P43: 1.0518 | Q43: 1.0355 | R43: 1.0185 | S43: 1 | T43: 0.9806 | U43: 0.9613 | V43: 0.9424 | W43: 0.9253 | X43: 0.9085 | Y43: 0.892 | Z43: 0.8758 | AA43: 0.8599 | AB43: 0.8443 | AC43: 0.829 | AD43: 0.814 | AE43: 0.7992 | AF43: 0.7847 | AG43: 0.7705 | AH43: 0.7565 | AI43: 0.7428 | AJ43: 0.7293 | AK43: 0.7161 | AL43: 0.7031 | AM43: 0.6903
C45: Source: Deflators and Inflators derived from data contained in the Budget of the United States Government: Table 10.1 - Gross Domestic Product and Deflators Used in the Historical Tables 1940-2023.
C46: https://www.whitehouse.gov/omb/budget/Historicals
C47: Updated September 2018. Deflators for 2024-2040 assume average annual inflation rate derived from 2018-2023 GDP estimated values.
D53: =HLOOKUP($E$4,E$53:T$55,3) -> 25 | E53: 2005 | F53: 2006 | G53: 2007 | H53: 2008 | I53: 2009 | J53: 2010 | K53: 2011 | L53: 2012 | M53: 2013 | N53: 2014 | O53: 2015 | P53: 2016 | Q53: 2017 | R53: 2018 | S53: 2019 | T53: 2020
D54: =HLOOKUP($E$4,E$53:T$55,2) -> 24 | E54: 2 | F54: 4 | G54: 6 | H54: 8 | I54: 10 | J54: 12 | K54: 14 | L54: 16 | M54: 18 | N54: 20 | O54: 22 | P54: 24 | Q54: 26 | R54: 28 | S54: 30 | T54: 32
E55: 3 | F55: 5 | G55: 7 | H55: 9 | I55: 11 | J55: 13 | K55: 15 | L55: 17 | M55: 19 | N55: 21 | O55: 23 | P55: 25 | Q55: 27 | R55: 29 | S55: 31 | T55: 33

Sheet Household Exp (hidden)
B1: Personal Consumption Expenditures
B2: Year of Data | C2: 2016
C3: Alabama | D3: Alaska | E3: Arizona | F3: Arkansas | G3: California | H3: Colorado | I3: Connecticut | J3: Delaware | K3: District of Columbia | L3: Florida | M3: Georgia | N3: Hawaii | O3: Idaho | P3: Illinois | Q3: Indiana | R3: Iowa | S3: Kansas | T3: Kentucky | U3: Louisiana | V3: Maine | W3: Maryland | X3: Massachusetts | Y3: Michigan | Z3: Minnesota | AA3: Mississippi | AB3: Missouri | AC3: Montana | AD3: MyCounty | AE3: MyRegion | AF3: Nebraska | AG3: Nevada | AH3: New Hampshire | AI3: New Jersey | AJ3: New Mexico | AK3: New York | AL3: North Carolina | AM3: North Dakota | AN3: Ohio | AO3: Oklahoma | AP3: Oregon | AQ3: Pennsylvania | AR3: Rhode Island | AS3: South Carolina | AT3: South Dakota | AU3: Tennessee | AV3: Texas | AW3: United States | AX3: Utah | AY3: Vermont | AZ3: Virginia | BA3: Washington | BB3: West Virginia | BC3: Wisconsin | BD3: Wyoming
B4: Agriculture | C4: 0.004016373419 | D4: 0.006145071005 | E4: 0.004201693342 | F4: 0.00797228589 | G4: 0.003937624414 | H4: 0.006270555124 | I4: 0.0007906010476 | J4: 0.005324868457 | K4: 0.0006394034224 | L4: 0.00338440403 | M4: 0.004212652425 | N4: 0.004793687454 | O4: 0.009331671555 | P4: 0.003145530305 | Q4: 0.002713190736 | R4: 0.008696522394 | S4: 0.007610236963 | T4: 0.002738809626 | U4: 0.002105195278 | V4: 0.003838171904 | W4: 0.002057627055 | X4: 0.0008701834332 | Y4: 0.00232205947 | Z4: 0.005279718912 | AA4: 0.006346662642 | AB4: 0.003464108178 | AC4: 0.006956886864 | AD4: ='User Add-in Location'!E9 -> 0 | AE4: ='User Add-in Location'!F9 -> 0 | AF4: 0.00858654731 | AG4: 0.001587320296 | AH4: 0.001334332163 | AI4: 0.0007739951981 | AJ4: 0.005785325663 | AK4: 0.002431108396 | AL4: 0.004254510666 | AM4: 0.005527231996 | AN4: 0.002123423129 | AO4: 0.004227612488 | AP4: 0.00604285777 | AQ4: 0.002611082518 | AR4: 0.0005965407656 | AS4: 0.002311563558 | AT4: 0.008767187254 | AU4: 0.001765588172 | AV4: 0.003183541838 | AW4: 0.005257917143 | AX4: 0.002636806975 | AY4: 0.007386535078 | AZ4: 0.003273950441 | BA4: 0.004175643536 | BB4: 0.002754547487 | BC4: 0.006450227536 | BD4: 0.004085886668
A5: Warning | B5: Mining | C5: 4.534265389e-06 | D5: 2.751016746e-05 | E5: 6.546786789e-06 | F5: 7.089883991e-06 | G5: 5.802830326e-06 | H5: 1.372339822e-05 | I5: 1.771618378e-06 | J5: 5.091595683e-07 | K5: 1.71413314e-07 | L5: 4.520890013e-06 | M5: 2.173272355e-06 | N5: 2.342027183e-06 | O5: 6.092245752e-06 | P5: 2.585738667e-06 | Q5: 2.612413229e-06 | R5: 1.963526046e-06 | S5: 1.196146254e-05 | T5: 3.482686163e-06 | U5: 2.183595526e-05 | V5: 2.22469837e-06 | W5: 2.751590928e-06 | X5: 2.390688835e-06 | Y5: 3.062461284e-06 | Z5: 2.355135122e-06 | AA5: 8.679992728e-06 | AB5: 1.822113972e-06 | AC5: 1.685629137e-05 | AD5: ='User Add-in Location'!E10 -> 0 | AE5: ='User Add-in Location'!F10 -> 0 | AF5: 2.583051217e-06 | AG5: 1.061678519e-05 | AH5: 2.474295825e-06 | AI5: 1.662624944e-06 | AJ5: 2.632374873e-05 | AK5: 2.030207526e-06 | AL5: 1.997451731e-06 | AM5: 2.552135677e-05 | AN5: 6.258052259e-06 | AO5: 2.484252671e-05 | AP5: 3.010857929e-06 | AQ5: 9.304797224e-06 | AR5: 1.609150268e-06 | AS5: 2.070860615e-06 | AT5: 4.635432258e-06 | AU5: 2.220774824e-06 | AV5: 2.541621539e-05 | AW5: 1.379760568e-05 | AX5: 9.740334653e-06 | AY5: 3.329600461e-06 | AZ5: 3.282205875e-06 | BA5: 2.636862402e-06 | BB5: 1.765155139e-05 | BC5: 1.760460709e-06 | BD5: 2.787919122e-05
B6: Construction | C6: 0 | D6: 0 | E6: 0 | F6: 0 | G6: 0 | H6: 0 | I6: 0 | J6: 0 | K6: 0 | L6: 0 | M6: 0 | N6: 0 | O6: 0 | P6: 0 | Q6: 0 | R6: 0 | S6: 0 | T6: 0 | U6: 0 | V6: 0 | W6: 0 | X6: 0 | Y6: 0 | Z6: 0 | AA6: 0 | AB6: 0 | AC6: 0 | AD6: ='User Add-in Location'!E11 -> 0 | AE6: ='User Add-in Location'!F11 -> 0 | AF6: 0 | AG6: 0 | AH6: 0 | AI6: 0 | AJ6: 0 | AK6: 0 | AL6: 0 | AM6: 0 | AN6: 0 | AO6: 0 | AP6: 0 | AQ6: 0 | AR6: 0 | AS6: 0 | AT6: 0 | AU6: 0 | AV6: 0 | AW6: 0 | AX6: 0 | AY6: 0 | AZ6: 0 | BA6: 0 | BB6: 0 | BC6: 0 | BD6: 0
A7: This Worksheet contains Data and Formulas that are an integral part of the JEDI model. | B7: Manufacturing | C7: 0.0435491886 | D7: 0.03763807631 | E7: 0.02668081179 | F7: 0.04020485136 | G7: 0.08003158529 | H7: 0.04303382003 | I7: 0.02726356709 | J7: 0.02261691362 | K7: 0.001972631516 | L7: 0.03683807443 | M7: 0.04167281011 | N7: 0.04066245857 | O7: 0.03441510448 | P7: 0.04875865103 | Q7: 0.05272395252 | R7: 0.03652386864 | S7: 0.03930869665 | T7: 0.03898197473 | U7: 0.04585114 | V7: 0.02770713757 | W7: 0.02006192373 | X7: 0.03534812161 | Y7: 0.0568670253 | Z7: 0.05605891077 | AA7: 0.03802592115 | AB7: 0.03313477461 | AC7: 0.03249406024 | AD7: ='User Add-in Location'!E12 -> 0 | AE7: ='User Add-in Location'!F12 -> 0 | AF7: 0.02941077568 | AG7: 0.01077153807 | AH7: 0.01917903799 | AI7: 0.03484026432 | AJ7: 0.0270238301 | AK7: 0.03154104015 | AL7: 0.05148390016 | AM7: 0.02827075464 | AN7: 0.0570110513 | AO7: 0.03870503715 | AP7: 0.03825103301 | AQ7: 0.04944528505 | AR7: 0.01435234979 | AS7: 0.03491893799 | AT7: 0.02125691191 | AU7: 0.04038545937 | AV7: 0.07846256143 | AW7: 0.1421968388 | AX7: 0.05197391801 | AY7: 0.02339069691 | AZ7: 0.03028831218 | BA7: 0.05837910003 | BB7: 0.02075826929 | BC7: 0.04946464108 | BD7: 0.02837210909
B8: Fabricated Metals | C8: 1.861281382e-06 | D8: 5.479822512e-07 | E8: 1.532682345e-06 | F8: 1.120239275e-06 | G8: 3.041339152e-06 | H8: 1.851152102e-06 | I8: 1.068606639e-06 | J8: 2.594031057e-07 | K8: 4.005982919e-10 | L8: 1.716999087e-06 | M8: 1.273633908e-06 | N8: 3.707766638e-07 | O8: 8.970682149e-07 | P8: 1.667569245e-06 | Q8: 1.761987729e-06 | R8: 1.018439972e-06 | S8: 1.102280249e-06 | T8: 8.481253051e-07 | U8: 1.771998998e-06 | V8: 6.156191529e-07 | W8: 4.348501218e-07 | X8: 1.237816828e-06 | Y8: 2.160366581e-06 | Z8: 2.456454896e-06 | AA8: 7.029070272e-07 | AB8: 8.481716665e-07 | AC8: 5.799922336e-07 | AD8: ='User Add-in Location'!E13 -> 0 | AE8: ='User Add-in Location'!F13 -> 0 | AF8: 1.086363535e-06 | AG8: 4.351854006e-07 | AH8: 1.116612286e-06 | AI8: 9.162789551e-07 | AJ8: 4.955682269e-07 | AK8: 1.205273296e-06 | AL8: 1.857986019e-06 | AM8: 3.819541081e-07 | AN8: 1.91362538e-06 | AO8: 2.048268167e-06 | AP8: 2.145977045e-06 | AQ8: 2.157241857e-06 | AR8: 2.359130953e-07 | AS8: 1.945172151e-06 | AT8: 4.862705127e-07 | AU8: 1.257728195e-06 | AV8: 3.773180981e-06 | AW8: 5.48946489e-06 | AX8: 3.088752786e-06 | AY8: 2.817653702e-07 | AZ8: 1.567902563e-06 | BA8: 2.408752779e-06 | BB8: 2.860776735e-07 | BC8: 2.071657226e-06 | BD8: 1.086580456e-07
A9: Although the data and formulas are available for review they must not be changed. | B9: Machinery | C9: 1.280959144e-05 | D9: 3.827661314e-08 | E9: 5.248117603e-06 | F9: 1.537811591e-05 | G9: 1.387375797e-05 | H9: 9.455654038e-06 | I9: 1.821330581e-06 | J9: 8.05376624e-08 | K9: 1.899391855e-08 | L9: 4.098246974e-06 | M9: 1.108353588e-05 | N9: 1.916826065e-06 | O9: 1.757257182e-05 | P9: 1.592543824e-05 | Q9: 2.288579358e-05 | R9: 2.154067396e-05 | S9: 1.649330603e-05 | T9: 1.023096278e-05 | U9: 9.03799388e-06 | V9: 1.727515394e-06 | W9: 1.097949324e-06 | X9: 1.368850316e-06 | Y9: 1.211060992e-05 | Z9: 1.728676316e-05 | AA9: 1.100333969e-05 | AB9: 7.397294616e-06 | AC9: 4.765313144e-06 | AD9: ='User Add-in Location'!E14 -> 0 | AE9: ='User Add-in Location'!F14 -> 0 | AF9: 2.099889367e-05 | AG9: 4.376599619e-07 | AH9: 1.061360644e-06 | AI9: 1.756811482e-06 | AJ9: 3.135933931e-06 | AK9: 7.48679727e-06 | AL9: 1.017334365e-05 | AM9: 3.053355932e-05 | AN9: 1.317215223e-05 | AO9: 6.922630697e-06 | AP9: 1.600250427e-05 | AQ9: 9.208646535e-06 | AR9: 3.579279678e-07 | AS9: 5.424048186e-06 | AT9: 2.667109383e-05 | AU9: 6.80475631e-06 | AV9: 1.273584835e-05 | AW9: 5.155820037e-05 | AX9: 2.641698246e-06 | AY9: 8.814650738e-07 | AZ9: 3.804399222e-06 | BA9: 8.017779719e-06 | BB9: 3.673589529e-07 | BC9: 2.045240588e-05 | BD9: 5.205702993e-07
B10: Electrical Equipment | C10: 4.810804918e-07 | D10: 3.73785582e-10 | E10: 1.59206894e-05 | F10: 6.652196697e-07 | G10: 3.027971853e-05 | H10: 6.355446452e-06 | I10: 1.55794392e-06 | J10: 4.765676596e-08 | K10: 1.047348482e-07 | L10: 9.310894228e-06 | M10: 9.676660297e-07 | N10: 3.067489536e-07 | O10: 1.173047106e-05 | P10: 1.960521582e-06 | Q10: 6.479973225e-07 | R10: 3.372150404e-07 | S10: 3.197605543e-07 | T10: 2.247187447e-07 | U10: 4.428809871e-08 | V10: 2.074757119e-06 | W10: 7.997450536e-07 | X10: 1.66836953e-05 | Y10: 1.681692754e-06 | Z10: 7.983681198e-06 | AA10: 3.201261634e-07 | AB10: 2.864800406e-06 | AC10: 7.00929708e-08 | AD10: ='User Add-in Location'!E15 -> 0 | AE10: ='User Add-in Location'!F15 -> 0 | AF10: 4.215092501e-07 | AG10: 1.374201677e-07 | AH10: 5.498593089e-06 | AI10: 2.869950479e-06 | AJ10: 1.227084414e-05 | AK10: 6.628426013e-06 | AL10: 7.753525663e-06 | AM10: 3.84612915e-07 | AN10: 1.818900916e-06 | AO10: 3.053231784e-07 | AP10: 2.133586714e-05 | AQ10: 2.902977868e-06 | AR10: 6.194747542e-07 | AS10: 5.392498624e-07 | AT10: 5.497413183e-07 | AU10: 2.529565407e-07 | AV10: 1.882197948e-05 | AW10: 2.524242959e-05 | AX10: 4.166252742e-06 | AY10: 9.387644124e-06 | AZ10: 3.380296593e-06 | BA10: 3.819308193e-06 | BB10: 1.729178601e-08 | BC10: 1.479881576e-06 | BD10: 1.752812238e-10
A11: Any changes to the data or formulas will impact the analysis and may invalidate the model results. | B11: TCPU | C11: 0.05240768844 | D11: 0.05345141354 | E11: 0.04725451223 | F11: 0.05228577022 | G11: 0.03189649578 | H11: 0.04282914087 | I11: 0.03842427475 | J11: 0.03786997299 | K11: 0.02733389274 | L11: 0.04361928016 | M11: 0.04358965515 | N11: 0.03792205701 | O11: 0.04685975687 | P11: 0.04483259345 | Q11: 0.04502171246 | R11: 0.04985944753 | S11: 0.04264702088 | T11: 0.04650822254 | U11: 0.04672852362 | V11: 0.04485040299 | W11: 0.04074784992 | X11: 0.03496354969 | Y11: 0.04272324708 | Z11: 0.05038460416 | AA11: 0.05569695985 | AB11: 0.04700978906 | AC11: 0.05462464473 | AD11: ='User Add-in Location'!E16 -> 0 | AE11: ='User Add-in Location'!F16 -> 0 | AF11: 0.050486822 | AG11: 0.04724585932 | AH11: 0.03361861811 | AI11: 0.04307585515 | AJ11: 0.04592891593 | AK11: 0.04006118184 | AL11: 0.0404736216 | AM11: 0.05787438259 | AN11: 0.04333847326 | AO11: 0.05651385469 | AP11: 0.04704675371 | AQ11: 0.0462301288 | AR11: 0.03493879204 | AS11: 0.04085113203 | AT11: 0.04993139887 | AU11: 0.04275927096 | AV11: 0.04950898419 | AW11: 0.04357209583 | AX11: 0.04166920072 | AY11: 0.04206232677 | AZ11: 0.04453200415 | BA11: 0.04133377421 | BB11: 0.05212760067 | BC11: 0.04404794286 | BD11: 0.05966328916
B12: Wholesale Trade | C12: 0.04657490236 | D12: 0.03452497581 | E12: 0.05335572972 | F12: 0.05218480624 | G12: 0.0499898932 | H12: 0.05348578831 | I12: 0.05503361132 | J12: 0.04249174751 | K12: 0.02503180632 | L12: 0.05380526907 | M12: 0.05302991956 | N12: 0.04343002555 | O12: 0.05082239306 | P12: 0.05235830514 | Q12: 0.04476903275 | R12: 0.04477394711 | S12: 0.04330805785 | T12: 0.05032410432 | U12: 0.04293709563 | V12: 0.04880539066 | W12: 0.05040092312 | X12: 0.05479831085 | Y12: 0.05068166322 | Z12: 0.05503930975 | AA12: 0.04165892817 | AB12: 0.05123861227 | AC12: 0.05058966202 | AD12: ='User Add-in Location'!E17 -> 0 | AE12: ='User Add-in Location'!F17 -> 0 | AF12: 0.04928209423 | AG12: 0.05007620083 | AH12: 0.06010431221 | AI12: 0.05563879001 | AJ12: 0.04393375562 | AK12: 0.05181695529 | AL12: 0.05203261842 | AM12: 0.06589107018 | AN12: 0.04950633 | AO12: 0.05217032695 | AP12: 0.05076900718 | AQ12: 0.05150510489 | AR12: 0.05653996733 | AS12: 0.04852154191 | AT12: 0.05731539614 | AU12: 0.0522990826 | AV12: 0.05128631406 | AW12: 0.04424791004 | AX12: 0.04692440365 | AY12: 0.04701097236 | AZ12: 0.04680992278 | BA12: 0.0498288437 | BB12: 0.04777132636 | BC12: 0.05054139722 | BD12: 0.04628326242
B13: Retail Trade | C13: 0.1648721938 | D13: 0.1595547821 | E13: 0.1549813077 | F13: 0.1598339711 | G13: 0.1381167994 | H13: 0.1368128468 | I13: 0.1483112067 | J13: 0.1515356024 | K13: 0.1137270179 | L13: 0.1473428633 | M13: 0.1471284322 | N13: 0.1611476565 | O13: 0.1711634198 | P13: 0.1357079641 | Q13: 0.1638895476 | R13: 0.161984167 | S13: 0.1636348821 | T13: 0.1628719616 | U13: 0.1673954783 | V13: 0.1626862423 | W13: 0.1401938826 | X13: 0.1257354543 | Y13: 0.1518430113 | Z13: 0.1449533298 | AA13: 0.1728672363 | AB13: 0.153237379 | AC13: 0.1651812082 | AD13: ='User Add-in Location'!E18 -> 0 | AE13: ='User Add-in Location'!F18 -> 0 | AF13: 0.1605252045 | AG13: 0.1705627432 | AH13: 0.1585008756 | AI13: 0.1420180318 | AJ13: 0.1698118462 | AK13: 0.134997061 | AL13: 0.145548303 | AM13: 0.1716579052 | AN13: 0.1505213352 | AO13: 0.157922939 | AP13: 0.1428576663 | AQ13: 0.1387531599 | AR13: 0.1390421789 | AS13: 0.1655063345 | AT13: 0.1728929022 | AU13: 0.1604166367 | AV13: 0.1463705768 | AW13: 0.1249336385 | AX13: 0.1497709758 | AY13: 0.1602797656 | AZ13: 0.1470628919 | BA13: 0.1469177865 | BB13: 0.1762426722 | BC13: 0.1503024079 | BD13: 0.1755697891
B14: FIRE | C14: 0.1690091921 | D14: 0.1536296831 | E14: 0.1811678815 | F14: 0.1520798012 | G14: 0.1630976559 | H14: 0.1766842793 | I14: 0.1779707694 | J14: 0.2171457678 | K14: 0.2253591292 | L14: 0.1743515015 | M14: 0.1740380538 | N14: 0.1752007607 | O14: 0.1746510919 | P14: 0.184818745 | Q14: 0.1644574883 | R14: 0.187265561 | S14: 0.1687000066 | T14: 0.1650265848 | U14: 0.1543908493 | V14: 0.1710789363 | W14: 0.181852065 | X14: 0.1900809826 | Y14: 0.1645572472 | Z14: 0.1636525368 | AA14: 0.1511015998 | AB14: 0.1638924863 | AC14: 0.1711789564 | AD14: ='User Add-in Location'!E19 -> 0 | AE14: ='User Add-in Location'!F19 -> 0 | AF14: 0.1770443463 | AG14: 0.1887105252 | AH14: 0.1891411333 | AI14: 0.180479829 | AJ14: 0.1627774255 | AK14: 0.1886728083 | AL14: 0.1696033989 | AM14: 0.1761858742 | AN14: 0.1729155013 | AO14: 0.1506684251 | AP14: 0.1638734932 | AQ14: 0.1696197783 | AR14: 0.2061185056 | AS14: 0.16511557 | AT14: 0.1910199191 | AU14: 0.1593458946 | AV14: 0.1675549204 | AW14: 0.1534078385 | AX14: 0.1828733047 | AY14: 0.1742153012 | AZ14: 0.1792407141 | BA14: 0.159043513 | BB14: 0.1508714213 | BC14: 0.1751153409 | BD14: 0.1884808357
B15: Misc. Services | C15: 0.4963020671 | D15: 0.5355180308 | E15: 0.5126069716 | F15: 0.5154700481 | G15: 0.513319678 | H15: 0.5208796927 | I15: 0.53075135 | J15: 0.5018829209 | K15: 0.5824080086 | L15: 0.5210135357 | M15: 0.5174317914 | N15: 0.5192601333 | O15: 0.4915282868 | P15: 0.5105818891 | Q15: 0.5053041151 | R15: 0.4914041949 | S15: 0.5141646602 | T15: 0.5124081123 | U15: 0.5190601832 | V15: 0.5202582902 | W15: 0.5436796446 | X15: 0.5368926322 | Y15: 0.5098028124 | Z15: 0.5036433479 | AA15: 0.513230509 | AB15: 0.5270028496 | AC15: 0.4979480374 | AD15: ='User Add-in Location'!E27 -> 0 | AE15: ='User Add-in Location'!F27 -> 0 | AF15: 0.5055394432 | AG15: 0.5105993436 | AH15: 0.5165363796 | AI15: 0.5220128813 | AJ15: 0.5215220087 | AK15: 0.529380476 | AL15: 0.5161978903 | AM15: 0.4751034949 | AN15: 0.5048887669 | AO15: 0.5190219133 | AP15: 0.5302067199 | AQ15: 0.5206694091 | AR15: 0.5277253194 | AS15: 0.520757369 | AT15: 0.4790972115 | AU15: 0.522240796 | AV15: 0.4840570949 | AW15: 0.4687196386 | AX15: 0.5047486927 | AY15: 0.5232368198 | AZ15: 0.5273651657 | BA15: 0.5194038542 | BB15: 0.5247882021 | BC15: 0.5038871125 | BD15: 0.4764929676
B16: Professional Services | C16: 0.009937428148 | D16: 0.00707249112 | E16: 0.008655705135 | F16: 0.006880563547 | G16: 0.009870684918 | H16: 0.009787802879 | I16: 0.01033282431 | J16: 0.01007034157 | K16: 0.0104167069 | L16: 0.00928266622 | M16: 0.008912397882 | N16: 0.005884393058 | O16: 0.008656430622 | P16: 0.01029038226 | Q16: 0.009189560154 | R16: 0.007274325931 | S16: 0.008777329374 | T16: 0.007888173074 | U16: 0.008564299396 | V16: 0.008649985634 | W16: 0.01020944438 | X16: 0.01142198515 | Y16: 0.01025130131 | Z16: 0.01016874967 | AA16: 0.007241952373 | AB16: 0.009539067962 | AC16: 0.007900193953 | AD16: ='User Add-in Location'!E21 -> 0 | AE16: ='User Add-in Location'!F21 -> 0 | AF16: 0.007714083133 | AG16: 0.008286202341 | AH16: 0.01019938531 | AI16: 0.01063414574 | AJ16: 0.009421408506 | AK16: 0.01055009531 | AL16: 0.009636676247 | AM16: 0.006414301038 | AN16: 0.00893919706 | AO16: 0.008031503315 | AP16: 0.009452268743 | AQ16: 0.01028783527 | AR16: 0.009749364413 | AS16: 0.009208868325 | AT16: 0.006853584905 | AU16: 0.009120412889 | AV16: 0.008923001855 | AW16: 0.008929949682 | AX16: 0.009079274576 | AY16: 0.01021004215 | AZ16: 0.009625071936 | BA16: 0.009920447643 | BB16: 0.009605143677 | BC16: 0.008572379081 | BD16: 0.006510218108
B17: Government | C17: 0.01331127979 | D17: 0.01243737948 | E17: 0.01106613871 | F17: 0.01306364886 | G17: 0.009686585418 | H17: 0.0101846883 | I17: 0.01111557587 | J17: 0.01106096793 | K17: 0.01311110784 | L17: 0.01034275859 | M17: 0.009968789372 | N17: 0.01169389152 | O17: 0.01253555255 | P17: 0.009483800388 | Q17: 0.01190349216 | R17: 0.01219310561 | S17: 0.01181923256 | T17: 0.01323727056 | U17: 0.01293454503 | V17: 0.01211879985 | W17: 0.01079155543 | X17: 0.009867099137 | Y17: 0.01093261759 | Z17: 0.01078941019 | AA17: 0.01380952432 | AB17: 0.01146800057 | AC17: 0.01310407857 | AD17: ='User Add-in Location'!E22 -> 0 | AE17: ='User Add-in Location'!F22 -> 0 | AF17: 0.01138559378 | AG17: 0.01214864011 | AH17: 0.01137577484 | AI17: 0.01051900174 | AJ17: 0.01375325763 | AK17: 0.01053192307 | AL17: 0.01074729834 | AM17: 0.01301816371 | AN17: 0.0107327591 | AO17: 0.01270426931 | AP17: 0.01145770496 | AQ17: 0.0108546425 | AR17: 0.01093415925 | AS17: 0.01279870342 | AT17: 0.01283314558 | AU17: 0.01165632251 | AV17: 0.0105922573 | AW17: 0.008638085278 | AX17: 0.01030378577 | AY17: 0.01219365955 | AZ17: 0.01178993205 | BA17: 0.01098015444 | BB17: 0.01506249465 | BC17: 0.01159278658 | BD17: 0.0145131335
A18: To view the data and formulas simply scroll over to the adjacent columns to the right. | B18: Total | C18: =SUM(C4:C17) -> 1 | D18: =SUM(D4:D17) -> 1 | E18: 1 | F18: 1 | G18: 1 | H18: 1 | I18: 1 | J18: 1 | K18: 1 | L18: 1 | M18: 1 | N18: 1 | O18: 1 | P18: 1 | Q18: 1 | R18: 1 | S18: 1 | T18: 1 | U18: 1 | V18: 1 | W18: 1 | X18: 1 | Y18: 1 | Z18: 1 | AA18: 1 | AB18: 1 | AC18: 1 | AD18: 0 | AE18: 0 | AF18: 1 | AG18: 1 | AH18: 1 | AI18: 1 | AJ18: 1 | AK18: 1 | AL18: 1 | AM18: 1 | AN18: 1 | AO18: 1 | AP18: 1 | AQ18: 1 | AR18: 1 | AS18: 1 | AT18: 1 | AU18: 1 | AV18: 1 | AX18: 1 | AY18: 1 | AZ18: 1 | BA18: 1 | BB18: 1 | BC18: 1 | BD18: 1
B20: =CONCATENATE("Source: All values are averages for income classes between $25,000 and $100,000 and are derived from IMPLAN™ using ", C2," state data.") -> Source: All values are averages for income classes between $25,000 and $100,000 and are derived from IMPLAN™ using 2016 state data.

Sheet Calculations
C1: Economic Impact Analysis for | E1: =ProjectData!B13 -> CONNECTICUT | F1: Wind Power Plant
C3: Project Construction Costs
D4: Cost | E4: Purchased Local | G4: Local $ Spending | AB4: Construction Costs | AC4: Cost | AD4: Local Share
C5: Balance of Plant | AB5: Balance of Plant
A6: Warning | C6: Materials | AB6: Materials
C7: Construction (concrete rebar, equip, roads and site prep) | D7: =IF(ProjectData!$B$24="y",DefaultData!D18,ProjectData!B40) -> 46814767.34 | E7: =IF(ProjectData!$B$24="y",IF(ProjectData!T$12=0,DefaultData!G18,ProjectData!T40),ProjectData!E40) -> 0.9 | G7: =+E7*D7 -> 42133290.6 | AB7: Construction (concrete rebar, equip, roads and site prep) | AC7: =D7 -> 46814767.34 | AD7: =E7 -> 0.9
A8: This Worksheet contains Data and Formulas that are an integral part of the JEDI model. | C8: Transformer | D8: =IF(ProjectData!$B$24="y",DefaultData!D19,ProjectData!B41) -> 5295720.734 | E8: =IF(ProjectData!$B$24="y",IF(ProjectData!T$12=0,DefaultData!G19,ProjectData!T41),ProjectData!E41) -> 0 | G8: =+E8*D8 -> 0 | AB8: Transformer | AC8: =D8 -> 5295720.734 | AD8: 0
C9: Electrical (drop cable, wire, ) | D9: =IF(ProjectData!$B$24="y",DefaultData!D20,ProjectData!B42) -> 5582047.492 | E9: =IF(ProjectData!$B$24="y",IF(ProjectData!T$12=0,DefaultData!G20,ProjectData!T42),ProjectData!E42) -> 1 | G9: 5582047.492 | AB9: Electrical (drop cable, wire, ) | AC9: 5582047.492 | AD9: 1
A10: Although the data and formulas are available for review they must not be changed. | C10: HV line extension | D10: =IF(ProjectData!$B$24="y",DefaultData!D21,ProjectData!B43) -> 10196538.5 | E10: =IF(ProjectData!$B$24="y",IF(ProjectData!T$12=0,DefaultData!G21,ProjectData!T43),ProjectData!E43) -> 0.7 | G10: 7137576.952 | AB10: HV line extension | AC10: 10196538.5 | AD10: 0.7
C11: Subtotal | D11: =SUM(D7:D10) -> 67889074.07 | G11: =SUM(G7:G10) -> 54852915.05 | AB11: Materials Subtotal | AC11: 67889074.07
A12: Any changes to the data or formulas will impact the analysis and may invalidate the model results. | C12: Labor | AB12: Labor
C13: Foundation | D13: =IF(ProjectData!$B$24="y",DefaultData!D24,ProjectData!B46) -> 3336085.772 | E13: =IF(ProjectData!$B$24="y",IF(ProjectData!T$12=0,DefaultData!G24,ProjectData!T46),ProjectData!E46) -> 0.95 | G13: 3169281.483 | AB13: Foundation | AC13: 3336085.772 | AD13: 0.95
C14: Erection | D14: =IF(ProjectData!$B$24="y",DefaultData!D25,ProjectData!B47) -> 3778590.598 | E14: =IF(ProjectData!$B$24="y",IF(ProjectData!T$12=0,DefaultData!G25,ProjectData!T47),ProjectData!E47) -> 0.75 | G14: 2833942.949 | AB14: Erection | AC14: 3778590.598 | AD14: 0.75
C15: Electrical | D15: =IF(ProjectData!$B$24="y",DefaultData!D26,ProjectData!B48) -> 5506544.631 | E15: =IF(ProjectData!$B$24="y",IF(ProjectData!T$12=0,DefaultData!G26,ProjectData!T48),ProjectData!E48) -> 0.7 | G15: 3854581.242 | AB15: Electrical | AC15: 5506544.631 | AD15: 0.7
C16: Management/supervision | D16: =IF(ProjectData!$B$24="y",DefaultData!D27,ProjectData!B49) -> 2857356.194 | E16: =IF(ProjectData!$B$24="y",IF(ProjectData!T$12=0,DefaultData!G27,ProjectData!T49),ProjectData!E49) -> 0 | G16: 0 | AB16: Management/supervision | AC16: 2857356.194 | AD16: 0
C17: Misc. | D17: =IF(ProjectData!$B$24="y",DefaultData!D28,ProjectData!B50) -> 16564200 | E17: =IF(ProjectData!$B$24="y",IF(ProjectData!T$12=0,DefaultData!G28,ProjectData!T50),ProjectData!E50) -> 0.5 | G17: =+E17*D17 -> 8282100 | AB17: Misc. | AC17: =D17 -> 16564200 | AD17: =E17 -> 0.5
C18: Subtotal | D18: =SUM(D13:D17) -> 32042777.19 | E18: =IF(ProjectData!$B$24="y",IF(ProjectData!T$12=0,DefaultData!G29,ProjectData!T51),ProjectData!E51) -> 0 | G18: =+SUM(G13:G17) -> 18139905.67 | H18: =SUM(G13:G16) -> 9857805.674 | AB18: Labor Subtotal | AC18: 32042777.19
C19: Subtotal | D19: =+D18+D11 -> 99931851.26 | G19: =+G18+G11 -> 72992820.72 | AB19: Subtotal | AC19: 99931851.26
A20: To view the data and formulas simply scroll over to the adjacent columns to the right. | C20: Equipment Costs | AB20: Equipment Costs
C21: Turbines (excluding blades and towers) | D21: =IF(ProjectData!$B$24="y",DefaultData!D32,ProjectData!B33) -> 193738619.3 | E21: =IF(ProjectData!$B$24="y",IF(ProjectData!T$12=0,DefaultData!G32,ProjectData!T33),ProjectData!E33) -> 0 | G21: 0 | AB21: Turbines | AC21: 193738619.3 | AD21: 0
C22: Blades | D22: =IF(ProjectData!$B$24="y",DefaultData!D33,ProjectData!B34) -> 45356867.4 | E22: =IF(ProjectData!$B$24="y",IF(ProjectData!T$12=0,DefaultData!G33,ProjectData!T34),ProjectData!E34) -> 0 | G22: =+E22*D22 -> 0 | AB22: Blades | AC22: =D22 -> 45356867.4 | AD22: =E22 -> 0
C23: Towers | D23: =IF(ProjectData!$B$24="y",DefaultData!D34,ProjectData!B35) -> 50216531.77 | E23: =IF(ProjectData!$B$24="y",IF(ProjectData!T$12=0,DefaultData!G34,ProjectData!T35),ProjectData!E35) -> 0 | G23: 0 | AB23: Towers | AC23: 50216531.77 | AD23: 0
C24: Transportation | D24: =IF(ProjectData!$B$24="y",DefaultData!D35,ProjectData!B36) -> 34665605.8 | E24: =IF(ProjectData!$B$24="y",IF(ProjectData!T$12=0,DefaultData!G35,ProjectData!T36),ProjectData!E36) -> 0 | G24: 0 | AB24: Transportation | AC24: =D24 -> 34665605.8 | AD24: =E24 -> 0
C25: Subtotal | D25: =SUM(D21:D24) -> 323977624.3 | G25: =+G23+G22+G21 -> 0 | H25: 0.8944873318 | J25: 0.1055126682 | AB25: Equipment Subtotal | AC25: 323977624.3
C26: Development/Other Costs | H26: Labor | I26: Materials | J26: Design | K26: 0.234490611 | AB26: Development/Other Costs
C27: HV Sub/Interconnection | AB27: HV Sub/Interconnection | AC27: 0 | AD27: 0
C28: Materials | D28: =IF(ProjectData!$B$24="y",DefaultData!D39,ProjectData!B54) -> 3217399.955 | E28: =IF(ProjectData!$B$24="y",IF(ProjectData!T$12=0,DefaultData!G39,ProjectData!T54),ProjectData!E54) -> 0.9 | G28: =+E28*D28 -> 2895659.96 | I28: =G28 -> 2895659.96 | AB28: Materials | AC28: =D28 -> 3217399.955 | AD28: 0.9
C29: Labor | D29: =IF(ProjectData!$B$24="y",DefaultData!D40,ProjectData!B55) -> 985553.0085 | E29: =IF(ProjectData!$B$24="y",IF(ProjectData!T$12=0,DefaultData!G40,ProjectData!T55),ProjectData!E55) -> 0.1 | G29: =+E29*D29 -> 98555.30085 | H29: =G29*H25 -> 88156.46809 | J29: =G29*J25 -> 10398.83276 | AB29: Labor | AC29: 985553.0085 | AD29: 0.1
C30: Engineering | D30: =IF(ProjectData!$B$24="y",DefaultData!D41,ProjectData!B56) -> 4378076.004 | E30: =IF(ProjectData!$B$24="y",IF(ProjectData!T$12=0,DefaultData!G41,ProjectData!T56),ProjectData!E56) -> 0 | G30: 0 | AB30: Engineering | AC30: 4378076.004 | AD30: 0
C31: Legal Services | D31: =IF(ProjectData!$B$24="y",DefaultData!D42,ProjectData!B57) -> 2386051.422 | E31: =IF(ProjectData!$B$24="y",IF(ProjectData!T$12=0,DefaultData!G42,ProjectData!T57),ProjectData!E57) -> 1 | G31: 2386051.422 | I31: =I32-I33 -> -5.419177779 | AB31: Legal Services | AC31: 2386051.422 | AD31: 1
C32: Land Easements | D32: =IF(ProjectData!$B$24="y",DefaultData!D43,ProjectData!B58) -> 0 | E32: =IF(ProjectData!$B$24="y",IF(ProjectData!T$12=0,DefaultData!G43,ProjectData!T58),ProjectData!E58) -> 1 | G32: 0 | I32: 7.492973171 | AB32: Land Easements | AC32: 0 | AD32: 1
C33: Site Certificate | D33: =IF(ProjectData!$B$24="y",DefaultData!D44,ProjectData!B59) -> 1116409.381 | E33: =IF(ProjectData!$B$24="y",IF(ProjectData!T$12=0,DefaultData!G44,ProjectData!T59),ProjectData!E59) -> 1 | G33: 1116409.381 | H33: Eng. & Prof. Svcs.& Sub Interconnection | I33: =I55 -> 12.91215095 | J33: =I45-DefaultData!AQ28 -> 0.5109998493 | L33: Eng. & Prof. Svcs. | M33: =M55*G60 -> 1.317795106 | N33: =M45-H45 -> 0.08666662378 | P33: Eng. & Prof. Svcs. | Q33: =Q55*G60 -> 2.39647259 | R33: =(Q57-Q33-Q45)*G60 -> 16.71874432 | T33: Eng. & Prof. Svcs. | U33: =U55*G60 -> 1.549701187 | V33: =(U57-U33-U45)*K60 -> 0 | AB33: Site Certificate | AC33: 1116409.381 | AD33: 1
C34: Subtotal | D34: =SUM(D28:D33) -> 12083489.77 | G34: =+E34*D34+SUM(G28:G33) -> 6496676.064 | H34: Other Sectors (not Construction) | I34: =I57-I45-I37-I33 -> 68.91991405 | L34: Other Sectors (not Construction) | M34: =((M57-M45)*G60)-M37-M33 -> 3.827577431 | P34: Other Sectors (not Construction) | Q34: =((Q57-Q45)*G60)-Q37-Q33 -> 8.282177189 | T34: Other Sectors (not Construction) | U34: =((U57-U45)*G60)-U37-U33 -> 5.432486859 | AB34: Other Subtotal | AC34: 12083489.77
C35: Subtotal All Costs (without sales tax) | D35: =D34+D25+D19 -> 435992965.3 | G35: =G34+G25+G19 -> 79489496.79 | AB35: Subtotal All Costs (without sales tax) | AC35: 435992965.3
C36: Sales Tax (Materials & Equipment Purchases) | D36: =IF(ProjectData!$B$24="y",DefaultData!D47,ProjectData!B63) -> 22682269.38 | E36: =IF(ProjectData!$B$24="y",IF(ProjectData!T$12=0,DefaultData!G47,ProjectData!T63),ProjectData!E63) -> 1 | G36: =+E36*D36 -> 22682269.38 | AB36: Sales Tax (Materials & Equipment Purchases) | AC36: 22682269.38 | AD36: 1
C37: Total | D37: =D36+D35 -> 458675234.7 | G37: =+G34+G25+G19 -> 79489496.79 | H37: Manufacturing Jobs | I37: =I46+I47+I48+I49 -> 18.30969658 | J37: =J46+J47+J48+J49 -> 11.35259992 | L37: Mfg W&S Earnings | M37: =(M46+M47+M48+M49)*$G60 -> 2.25428996 | N37: =(N46+N47+N48+N49)*$G60 -> 0.8987369663 | P37: Mfg Output | Q37: =(Q46+Q47+Q48+Q49)*$G60 -> 8.477786464 | R37: =(R46+R47+R48+R49)*$G60 -> 2.330660247 | T37: Mfg Output | U37: =(U46+U47+U48+U49)*$G60 -> 3.120539693 | V37: =(V46+V47+V48+V49)*$G60 -> 1.402214414 | AB37: Total Project Costs | AC37: 458675234.7 | AD37: =AC37/(ProjectData!B16*1000) -> 1528.917449
D38: =D37/(DefaultData!E5*1000) -> 1528.917449 | I38: =I39/ProjectData!$B16 -> 0.06103232194 | J38: =J39/ProjectData!$B16 -> 0.03784199973 | K38: =K39/ProjectData!$B16 -> 0.04495792758 | L38: =L39/ProjectData!$B16 -> 0.1438322492 | P38: =+$G60*P39 -> 4.056746067 | T38: =+$G60*T39 -> 13.14437932 | X38: =+$G60*X39 -> 6.010729384 | AG38: Local Economic Impacts - Summary Results
C39: Year | D39: =+ProjectData!B22 -> 2017 | F39: =CONCATENATE("Convert to ",Deflators!E4, " dollars") -> Convert to 2016 dollars | G39: =Deflators!F7 -> 0.9831 | I39: =SUM(I46:I49) -> 18.30969658 | J39: =SUM(J46:J49) -> 11.35259992 | K39: 13.48737827 | L39: 43.14967477 | M39: 2.216171805 | N39: 0.883540077 | O39: 0.8884380074 | P39: 3.988149889 | Q39: 8.334434196 | R39: 2.291250734 | S39: 2.29643395 | T39: 12.92211888 | U39: =SUM(U46:U49) -> 3.06777398 | V39: 1.378504143 | W39: 1.462814861 | X39: 5.909092985 | AB39: Wind Plant Annual Operating and Maintenance Costs | AH39: Jobs | AI39: Earnings | AJ39: Output | AK39: Value Added
C40: Construction Costs Local Demand | F40: =SUM(F3:F39) -> 0 | I40: =(M45*10^6)/I45 -> 75023.62877 | M40: =Deflators!E4 -> 2016 | N40: Dollars | Q40: =M40 -> 2016 | R40: Dollars | U40: =Q40 -> 2016 | V40: Dollars | AC40: Cost | AD40: Local Share | AG40: During construction period
D41: Demand | F41: Total | G41: Adj Demand | I41: Jobs | J41: Jobs | K41: Jobs | L41: Jobs | M41: Earnings | Q41: Output | U41: Value Added | AB41: Variable Costs | AG41: Direct Impacts | AH41: =AH42+AH43 -> 143.242762 | AI41: =AI42+AI43 -> 11.26384994 | AJ41: =AJ42+AJ43 -> 12.34252743 | AK41: =AK42+AK43 -> 11.49575602
G42: =CONCATENATE("Millions of ",Deflators!E4, " dollars") -> Millions of 2016 dollars | H42: =H43/29 -> 2988.504268 | I42: Direct | J42: Indirect | K42: Induced | L42: Total | M42: Direct | N42: Indirect | O42: Induced | P42: Total | Q42: Direct | R42: Indirect | S42: Induced | T42: Total | U42: Direct | V42: Indirect | W42: Induced | X42: Total | AB42: Personnel | AG42: Onsite Construction Only (labor and interconnection) | AH42: =I45 -> 130.3306111 | AI42: =M45*G60 -> 9.946054838 | AJ42: =Q45*$G60 -> 9.946054838 | AK42: =U45*$G60 -> 9.946054838
C43: Agriculture | D43: =E141 -> 0 | F43: =D43 -> 0 | G43: =F43*G$39/10^6 -> 0 | H43: =H46*10^6 -> 86666.62378 | I43: =+G43*Multipliers!D213 -> 0 | J43: =+$G43*Multipliers!E213 -> 0 | K43: =+$G43*Multipliers!F213 -> 0 | L43: =+K43+J43+I43 -> 0 | M43: =+$G43*Multipliers!H213 -> 0 | N43: =+$G43*Multipliers!I213 -> 0 | O43: =+$G43*Multipliers!J213 -> 0 | P43: =+O43+N43+M43 -> 0 | Q43: =+$G43*Multipliers!L213 -> 0 | R43: =+$G43*Multipliers!M213 -> 0 | S43: =+$G43*Multipliers!N213 -> 0 | T43: =+S43+R43+Q43 -> 0 | U43: =+$G43*Multipliers!P213 -> 0 | V43: =+$G43*Multipliers!Q213 -> 0 | W43: =+$G43*Multipliers!R213 -> 0 | X43: =+W43+V43+U43 -> 0 | AB43: Field Salaries | AC43: =D66 -> 935474.927 | AD43: 1 | AG43: Other Onsite Construction Related Services (Engin. and Prof. Services) | AH43: =I33 -> 12.91215095 | AI43: =M33 -> 1.317795106 | AJ43: =Q33 -> 2.39647259 | AK43: =U33 -> 1.549701187
C44: Mining | D44: =E142 -> 0 | F44: =D44 -> 0 | G44: 0 | H44: Const | I44: =+G44*Multipliers!D214 -> 0 | J44: =+$G44*Multipliers!E214 -> 0 | K44: =+$G44*Multipliers!F214 -> 0 | L44: =+K44+J44+I44 -> 0 | M44: =+$G44*Multipliers!H214 -> 0 | N44: =+$G44*Multipliers!I214 -> 0 | O44: =+$G44*Multipliers!J214 -> 0 | P44: =+O44+N44+M44 -> 0 | Q44: =+$G44*Multipliers!L214 -> 0 | R44: =+$G44*Multipliers!M214 -> 0 | S44: =+$G44*Multipliers!N214 -> 0 | T44: =+S44+R44+Q44 -> 0 | U44: =+$G44*Multipliers!P214 -> 0 | V44: =+$G44*Multipliers!Q214 -> 0 | W44: =+$G44*Multipliers!R214 -> 0 | X44: =+W44+V44+U44 -> 0 | AB44: Adminstrative | AC44: 88696.88197 | AD44: 1 | AG44: Indirect Impacts | AH44: =I34+I37+J57 -> 530.1346914 | AI44: =M34+M37+N60 -> 38.20226186 | AJ44: =+Q34+Q37+R60 -> 94.18398196 | AK44: =+U34+U37+V60 -> 48.87003604
C45: Construction | D45: 59216829.7 | F45: 59216829.7 | G45: 58.21606528 | H45: =H18*G39/10^6 -> 9.691208758 | I45: =+(H46*Multipliers!D215)+DefaultData!AQ28 -> 130.3306111 | J45: =($G45*Multipliers!E215)+(H47*Multipliers!D215) -> 397.7160895 | K45: =+$G45*Multipliers!F215 -> 139.2412981 | L45: 667.2879987 | M45: =H45+H46 -> 9.777875381 | N45: =(G45*Multipliers!I215)+(H47*Multipliers!H215) -> 27.84153487 | O45: =+$G45*Multipliers!J215 -> 8.937661582 | P45: 46.55707183 | Q45: =($H46*Multipliers!L215)+(H45*Multipliers!L215) -> 9.777875381 | R45: =($G45*Multipliers!M215)+(H47*Multipliers!L215) -> 67.07897099 | S45: =+$G45*Multipliers!N215 -> 23.11791411 | T45: 99.97476048 | U45: =($H46)+(H45) -> 9.777875381 | V45: =($G45*Multipliers!Q215)+(H47*Multipliers!P215) -> 34.12027622 | W45: =+$G45*Multipliers!R215 -> 14.72634953 | X45: 58.62450114 | AB45: Manangement | AC45: 166306.6537 | AD45: 1 | AG45: Induced Impacts | AH45: =K57 -> 241.2270413 | AI45: =O60 -> 16.75501517 | AJ45: =S60 -> 43.31886683 | AK45: =W60 -> 27.59410649
C46: Manufacturing | D46: 8477707.452 | F46: 8477707.452 | G46: 8.334434196 | H46: =H29/10^6*G39 -> 0.08666662378 | I46: =+G46*Multipliers!D216 -> 18.30969658 | J46: =+$G46*Multipliers!E216 -> 11.35259992 | K46: =+$G46*Multipliers!F216 -> 13.48737827 | L46: 43.14967477 | M46: =+$G46*Multipliers!H216 -> 2.216171805 | N46: =+$G46*Multipliers!I216 -> 0.883540077 | O46: =+$G46*Multipliers!J216 -> 0.8884380074 | P46: 3.988149889 | Q46: =+$G46*Multipliers!L216 -> 8.334434196 | R46: =+$G46*Multipliers!M216 -> 2.291250734 | S46: =+$G46*Multipliers!N216 -> 2.29643395 | T46: 12.92211888 | U46: =+$G46*Multipliers!P216 -> 3.06777398 | V46: =+$G46*Multipliers!Q216 -> 1.378504143 | W46: =+$G46*Multipliers!R216 -> 1.462814861 | X46: 5.909092985 | AB46: Personnel Subtotal | AC46: =D69 -> 1190478.463 | AG46: Total Impacts (Direct, Indirect, Induced) | AH46: =AH45+AH44+AH41 -> 914.6044947 | AI46: =AI45+AI44+AI41 -> 66.22112697 | AJ46: =AJ45+AJ44+AJ41 -> 149.8453762 | AK46: =AK45+AK44+AK41 -> 87.95989855
C47: Fabricated Metals | D47: 0 | F47: 0 | G47: 0 | H47: =G45-(H45+H46) -> 48.4381899 | I47: =+G47*Multipliers!D217 -> 0 | J47: =+$G47*Multipliers!E217 -> 0 | K47: =+$G47*Multipliers!F217 -> 0 | L47: 0 | M47: =+$G47*Multipliers!H217 -> 0 | N47: =+$G47*Multipliers!I217 -> 0 | O47: =+$G47*Multipliers!J217 -> 0 | P47: 0 | Q47: =+$G47*Multipliers!L217 -> 0 | R47: =+$G47*Multipliers!M217 -> 0 | S47: =+$G47*Multipliers!N217 -> 0 | T47: 0 | U47: =+$G47*Multipliers!P217 -> 0 | V47: =+$G47*Multipliers!Q217 -> 0 | W47: =+$G47*Multipliers!R217 -> 0 | X47: 0 | AB47: Warranty/Maintenance Services | AC47: =D70 -> 0 | AD47: =E70 -> 0
C48: Machinery | D48: 0 | F48: 0 | G48: 0 | I48: =+G48*Multipliers!D218 -> 0 | J48: =+$G48*Multipliers!E218 -> 0 | K48: =+$G48*Multipliers!F218 -> 0 | L48: 0 | M48: =+$G48*Multipliers!H218 -> 0 | N48: =+$G48*Multipliers!I218 -> 0 | O48: =+$G48*Multipliers!J218 -> 0 | P48: 0 | Q48: =+$G48*Multipliers!L218 -> 0 | R48: =+$G48*Multipliers!M218 -> 0 | S48: =+$G48*Multipliers!N218 -> 0 | T48: 0 | U48: =+$G48*Multipliers!P218 -> 0 | V48: =+$G48*Multipliers!Q218 -> 0 | W48: =+$G48*Multipliers!R218 -> 0 | X48: 0 | AB48: Total | AC48: =D71 -> 1190478.463 | AG48: During operating years (annual)
C49: Electrical Equipment | D49: 0 | F49: 0 | G49: 0 | I49: =+G49*Multipliers!D219 -> 0 | J49: =+$G49*Multipliers!E219 -> 0 | K49: =+$G49*Multipliers!F219 -> 0 | L49: 0 | M49: =+$G49*Multipliers!H219 -> 0 | N49: =+$G49*Multipliers!I219 -> 0 | O49: =+$G49*Multipliers!J219 -> 0 | P49: 0 | Q49: =+$G49*Multipliers!L219 -> 0 | R49: =+$G49*Multipliers!M219 -> 0 | S49: =+$G49*Multipliers!N219 -> 0 | T49: 0 | U49: =+$G49*Multipliers!P219 -> 0 | V49: =+$G49*Multipliers!Q219 -> 0 | W49: =+$G49*Multipliers!R219 -> 0 | X49: 0 | AB49: Fixed Costs | AG49: Direct Impacts
C50: TCPU | D50: 0 | F50: 0 | G50: 0 | I50: =+G50*Multipliers!D220 -> 0 | J50: =+$G50*Multipliers!E220 -> 0 | K50: =+$G50*Multipliers!F220 -> 0 | L50: 0 | M50: =+$G50*Multipliers!H220 -> 0 | N50: =+$G50*Multipliers!I220 -> 0 | O50: =+$G50*Multipliers!J220 -> 0 | P50: 0 | Q50: =+$G50*Multipliers!L220 -> 0 | R50: =+$G50*Multipliers!M220 -> 0 | S50: =+$G50*Multipliers!N220 -> 0 | T50: 0 | U50: =+$G50*Multipliers!P220 -> 0 | V50: =+$G50*Multipliers!Q220 -> 0 | W50: =+$G50*Multipliers!R220 -> 0 | X50: 0 | AB50: Materials and Services | AG50: Onsite Wind Farm Labor Only (field techs, admin., mgmt.) | AH50: =L137 -> 13.6 | AI50: =P139 -> 1.105742243 | AJ50: =T139 -> 1.105742243 | AK50: =X139 -> 1.105742243
C51: Wholesale Trade | D51: 0 | F51: 0 | G51: 0 | I51: =+G51*Multipliers!D221 -> 0 | J51: =+$G51*Multipliers!E221 -> 0 | K51: =+$G51*Multipliers!F221 -> 0 | L51: 0 | M51: =+$G51*Multipliers!H221 -> 0 | N51: =+$G51*Multipliers!I221 -> 0 | O51: =+$G51*Multipliers!J221 -> 0 | P51: 0 | Q51: =+$G51*Multipliers!L221 -> 0 | R51: =+$G51*Multipliers!M221 -> 0 | S51: =+$G51*Multipliers!N221 -> 0 | T51: 0 | U51: =+$G51*Multipliers!P221 -> 0 | V51: =+$G51*Multipliers!Q221 -> 0 | W51: =+$G51*Multipliers!R221 -> 0 | X51: 0 | AB51: Vehicles | AC51: =D74 -> 291658.9498 | AD51: 1 | AG51: Indirect Impacts | AH51: =(L159-AH50)+M159 -> 27.20122558 | AI51: =P160-AI50+Q160 -> 2.186726425 | AJ51: =T160-AJ50+U160 -> 15.01134568 | AK51: =X160-AK50+Y160 -> 11.81757729
C52: Retail Trade | D52: 4141050 | F52: 4141050 | G52: 4.071066255 | I52: =+G52*Multipliers!D222 -> 38.06295908 | J52: =+$G52*Multipliers!E222 -> 7.157281411 | K52: =+$G52*Multipliers!F222 -> 9.437979807 | L52: 54.6582203 | M52: =+$G52*Multipliers!H222 -> 1.827070964 | N52: =+$G52*Multipliers!I222 -> 0.5973745522 | O52: =+$G52*Multipliers!J222 -> 0.69328911 | P52: 3.117734627 | Q52: =+$G52*Multipliers!L222 -> 4.071066255 | R52: =+$G52*Multipliers!M222 -> 1.434508543 | S52: =+$G52*Multipliers!N222 -> 1.792043275 | T52: 7.297618073 | U52: =+$G52*Multipliers!P222 -> 2.747591397 | V52: =+$G52*Multipliers!Q222 -> 0.9048674029 | W52: =+$G52*Multipliers!R222 -> 1.141521395 | X52: 4.793980195 | AB52: Misc. Services | AC52: 113746.9904 | AD52: 0.8 | AG52: Induced Impacts | AH52: =N159 -> 33.32017378 | AI52: =R160 -> 2.539982478 | AJ52: =V160 -> 6.563063921 | AK52: =Z160 -> 4.180577318
C53: FIRE | D53: 0 | F53: 0 | G53: 0 | I53: =+G53*Multipliers!D223 -> 0 | J53: =+$G53*Multipliers!E223 -> 0 | K53: =+$G53*Multipliers!F223 -> 0 | L53: 0 | M53: =+$G53*Multipliers!H223 -> 0 | N53: =+$G53*Multipliers!I223 -> 0 | O53: =+$G53*Multipliers!J223 -> 0 | P53: 0 | Q53: =+$G53*Multipliers!L223 -> 0 | R53: =+$G53*Multipliers!M223 -> 0 | S53: =+$G53*Multipliers!N223 -> 0 | T53: 0 | U53: =+$G53*Multipliers!P223 -> 0 | V53: =+$G53*Multipliers!Q223 -> 0 | W53: =+$G53*Multipliers!R223 -> 0 | X53: 0 | AB53: Fees, Permits, Licenses | AC53: 56873.49521 | AD53: 1 | AG53: Total Impacts (Direct, Indirect, Induced) | AH53: =SUM(AH50:AH52) -> 74.12139936 | AI53: =SUM(AI50:AI52) -> 5.832451146 | AJ53: =SUM(AJ50:AJ52) -> 22.68015184 | AK53: =SUM(AK50:AK52) -> 17.10389685
C54: Misc. Services | D54: 4141050 | F54: 4141050 | G54: 4.071066255 | I54: =+G54*Multipliers!D224 -> 30.85695497 | J54: =+$G54*Multipliers!E224 -> 8.137668412 | K54: =+$G54*Multipliers!F224 -> 10.95742402 | L54: 49.9520474 | M54: =+$G54*Multipliers!H224 -> 1.935785338 | N54: =+$G54*Multipliers!I224 -> 0.611478918 | O54: =+$G54*Multipliers!J224 -> 0.7320543278 | P54: 3.279318584 | Q54: =+$G54*Multipliers!L224 -> 4.071066255 | R54: =+$G54*Multipliers!M224 -> 1.437648701 | S54: =+$G54*Multipliers!N224 -> 1.891988272 | T54: 7.400703228 | U54: =+$G54*Multipliers!P224 -> 2.593036659 | V54: =+$G54*Multipliers!Q224 -> 0.9064817751 | W54: =+$G54*Multipliers!R224 -> 1.205179661 | X54: 4.704698095 | AB54: Misc. Materials | AC54: 227493.9808 | AD54: 1
C55: Professional Services | D55: 2396450.255 | F55: 2396450.255 | G55: 2.355950246 | I55: =+G55*Multipliers!D225 -> 12.91215095 | J55: =+$G55*Multipliers!E225 -> 5.10891451 | K55: =+$G55*Multipliers!F225 -> 7.292482506 | L55: 25.31354797 | M55: =+$G55*Multipliers!H225 -> 1.295512295 | N55: =+$G55*Multipliers!I225 -> 0.4113592816 | O55: =+$G55*Multipliers!J225 -> 0.486456173 | P55: 2.19332775 | Q55: =+$G55*Multipliers!L225 -> 2.355950246 | R55: =+$G55*Multipliers!M225 -> 0.9215207374 | S55: =+$G55*Multipliers!N225 -> 1.257538813 | T55: 4.535009796 | U55: =+$G55*Multipliers!P225 -> 1.523497038 | V55: =+$G55*Multipliers!Q225 -> 0.5838988543 | W55: =+$G55*Multipliers!R225 -> 0.8010481099 | X55: 2.908444002 | AB55: Insurance | AC55: 2187442.123 | AD55: 0
C56: Government | D56: 23798678.76 | F56: 23798678.76 | G56: 23.39648109 | I56: 0 | J56: =+$G56*Multipliers!E226 -> 13.43252696 | K56: =+$G56*Multipliers!F226 -> 60.81047856 | L56: 74.24300552 | M56: 0 | N56: =+$G56*Multipliers!I226 -> 1.231977805 | O56: =+$G56*Multipliers!J226 -> 4.733802692 | P56: 5.965780498 | Q56: 0 | R56: =+$G56*Multipliers!M226 -> 2.950943296 | S56: =+$G56*Multipliers!N226 -> 12.23046266 | T56: 15.18140595 | U56: 0 | V56: =+$G56*Multipliers!Q226 -> 1.741254227 | W56: =+$G56*Multipliers!R226 -> 7.790599698 | X56: 9.531853925 | AB56: Fuel (gals) | AC56: 113746.9904 | AD56: 1
C57: Total | D57: =SUM(D43:D56) -> 102171766.2 | F57: =SUM(F43:F56) -> 102171766.2 | G57: =SUM(G43:G56) -> 100.4450633 | I57: =SUM(I43:I56) -> 230.4723726 | J57: 442.9050807 | K57: 241.2270413 | L57: 914.6044947 | M57: 17.05241578 | N57: 31.5772655 | O57: 16.47170189 | P57: 65.10138318 | Q57: 28.61039233 | R57: 76.11484301 | S57: 42.58638107 | T57: 147.3116164 | U57: =SUM(U43:U56) -> 19.70977446 | V57: 39.63528263 | W57: 27.12751326 | X57: 86.47257034 | AB57: Tools and Misc. Supplies | AC57: 739355.4377 | AD57: 1
AB58: Spare Parts Inventory | AC58: 6479203.57 | AD58: 0.02
F59: Inflator to | G59: =D39 -> 2017 | H59: Dollars | AB59: Subtotal | AC59: =D82 -> 10209521.54
G60: =Deflators!F8 -> 1.0172 | M60: =M57*$G60 -> 17.34571734 | N60: =N57*$G60 -> 32.12039447 | O60: 16.75501517 | P60: 66.22112697 | Q60: 29.10249108 | R60: 77.42401831 | S60: 43.31886683 | T60: 149.8453762 | U60: =U57*$G60 -> 20.04878258 | V60: 40.31700949 | W60: 27.59410649 | X60: 87.95989855 | AB60: Sales Tax (Materials & Equipment Purchases) | AC60: =D83 -> 476898.8403 | AD60: 1
AB61: Other Taxes/Payments | AC61: =D84 -> 0 | AD61: 1
C62: Wind Farm Annual Operating and Maintenance Costs | H62: Gross incl benefits | AB62: Total (with Sales Tax and Other Taxes/Payments | AC62: =AC61+AC60+AC59+AC48 -> 11876898.84
D63: Cost | E63: Local Share | F63: Empl Earnings | G63: Local $ Spending | H63: Empl Earnings | I63: Govt Share | J63: Health Ben, etc. | AB63: Debt Payment (average annual) | AC63: =D86 -> 50566428.01 | AD63: 0
C64: Variable Costs | AB64: Equity Payment - Individuals | AC64: 0 | AD64: 1
C65: Personnel | AB65: Equity Payment - Corporate | AC65: 16235650.61 | AD65: 0
C66: Field Salaries | D66: =IF(ProjectData!$B$24="y",DefaultData!D55,ProjectData!B71) -> 935474.927 | E66: =IF(ProjectData!$B$24="y",IF(ProjectData!T$12=0,DefaultData!G55,ProjectData!T71),ProjectData!E71) -> 1 | F66: =D66*(1-DefaultData!M$108) -> 583679.1946 | G66: =F66*E66 -> 583679.1946 | H66: =D66*(1-DefaultData!M$106) -> 868881.3244 | I66: =D66*E66*DefaultData!M$106 -> 66593.60266 | J66: =E66*D66*DefaultData!M$107 -> 285202.1297 | AB66: Property Taxes | AC66: 8916646.563 | AD66: 1
C67: Adminstrative | D67: =IF(ProjectData!$B$24="y",DefaultData!D56,ProjectData!B72) -> 88696.88197 | E67: =IF(ProjectData!$B$24="y",IF(ProjectData!T$12=0,DefaultData!G56,ProjectData!T72),ProjectData!E72) -> 1 | F67: =D67*(1-DefaultData!M$108) -> 55341.43475 | G67: =F67*E67 -> 55341.43475 | H67: =D67*(1-DefaultData!M$106) -> 82382.82186 | I67: =D67*E67*DefaultData!M$106 -> 6314.060104 | J67: =E67*D67*DefaultData!M$107 -> 27041.38712 | AB67: Land Lease | AC67: 903900 | AD67: 1
C68: Manangement | D68: =IF(ProjectData!$B$24="y",DefaultData!D57,ProjectData!B73) -> 166306.6537 | E68: =IF(ProjectData!$B$24="y",IF(ProjectData!T$12=0,DefaultData!G57,ProjectData!T73),ProjectData!E73) -> 1 | F68: =D68*(1-DefaultData!M$108) -> 103765.1902 | G68: =F68*E68 -> 103765.1902 | H68: =D68*(1-DefaultData!M$106) -> 154467.791 | I68: =D68*E68*DefaultData!M$106 -> 11838.86269 | J68: =E68*D68*DefaultData!M$107 -> 50702.60084 | AB68: Total Annual Operating and Maintenance Costs | AC68: =D91 -> 88499524.02
C69: Subtotal | D69: =+D68+D67+D66 -> 1190478.463 | F69: =+F68+F67+F66 -> 742785.8195 | G69: =+G68+G67+G66 -> 742785.8195 | H69: =+H68+H67+H66 -> 1105731.937 | I69: =+I68+I67+I66 -> 84746.52546 | J69: =+J68+J67+J66 -> 362946.1177 | K69: =J69+I69+G69 -> 1190478.463
C70: Warranty/Maintenance Services | D70: =IF(ProjectData!$B$24="y",DefaultData!D59,ProjectData!B75) -> 0 | AB70: Other Parameters
C71: Total | D71: =D70+D69 -> 1190478.463 | AD71: Local Share
C72: Fixed Costs | AB72: Financial Parameters
C73: Materials and Services | AB73: Debt Financing
C74: Vehicles | D74: =IF(ProjectData!$B$24="y",DefaultData!D63,ProjectData!B76) -> 291658.9498 | E74: =IF(ProjectData!$B$24="y",IF(ProjectData!T$12=0,DefaultData!G63,ProjectData!T76),ProjectData!E76) -> 1 | G74: =D74*E74 -> 291658.9498 | AB74: Percentage financed | AC74: =IF(ProjectData!$B$24="y",DefaultData!D84,ProjectData!B92) -> 0.8 | AD74: =IF(ProjectData!$B$24="y",DefaultData!F84,ProjectData!E92) -> 0
C75: Misc. Services | D75: =IF(ProjectData!$B$24="y",DefaultData!D64,ProjectData!B77) -> 113746.9904 | E75: =IF(ProjectData!$B$24="y",IF(ProjectData!T$12=0,DefaultData!G64,ProjectData!T77),ProjectData!E77) -> 0.8 | G75: 90997.59233 | AB75: Years financed (term) | AC75: =IF(ProjectData!$B$24="y",DefaultData!D85,ProjectData!B93) -> 10
C76: Fees, Permits, Licenses | D76: =IF(ProjectData!$B$24="y",DefaultData!D65,ProjectData!B78) -> 56873.49521 | E76: =IF(ProjectData!$B$24="y",IF(ProjectData!T$12=0,DefaultData!G65,ProjectData!T78),ProjectData!E78) -> 1 | G76: 56873.49521 | AB76: Interest rate | AC76: =IF(ProjectData!$B$24="y",DefaultData!D86,ProjectData!B94) -> 0.063
C77: Utilities | D77: =IF(ProjectData!$B$24="y",DefaultData!D66,ProjectData!B79) -> 227493.9808 | E77: =IF(ProjectData!$B$24="y",IF(ProjectData!T$12=0,DefaultData!G66,ProjectData!T79),ProjectData!E79) -> 1 | G77: 227493.9808 | AB77: Equity Financing
C78: Insurance | D78: =IF(ProjectData!$B$24="y",DefaultData!D67,ProjectData!B80) -> 2187442.123 | E78: =IF(ProjectData!$B$24="y",IF(ProjectData!T$12=0,DefaultData!G67,ProjectData!T80),ProjectData!E80) -> 0 | G78: 0 | AB78: Percentage equity | AC78: =IF(ProjectData!$B$24="y",DefaultData!D89,ProjectData!B96) -> 0.2
C79: Fuel (gals) | D79: =IF(ProjectData!$B$24="y",DefaultData!D68,ProjectData!B81) -> 113746.9904 | E79: =IF(ProjectData!$B$24="y",IF(ProjectData!T$12=0,DefaultData!G68,ProjectData!T81),ProjectData!E81) -> 1 | G79: 113746.9904 | AB79: Individual Investors (percent of total equity) | AC79: =IF(ProjectData!$B$24="y",DefaultData!D90,ProjectData!B97) -> 0 | AD79: =IF(ProjectData!$B$24="y",DefaultData!F90,ProjectData!E97) -> 1
C80: Tools and Misc. Supplies | D80: =IF(ProjectData!$B$24="y",DefaultData!D69,ProjectData!B82) -> 739355.4377 | E80: =IF(ProjectData!$B$24="y",IF(ProjectData!T$12=0,DefaultData!G69,ProjectData!T82),ProjectData!E82) -> 1 | G80: 739355.4377 | AB80: Corporate Investors (percent of total equity) | AC80: =IF(ProjectData!$B$24="y",DefaultData!D91,ProjectData!B98) -> 1 | AD80: =IF(ProjectData!$B$24="y",DefaultData!F91,ProjectData!E98) -> 0
C81: Spare Parts Inventory | D81: =IF(ProjectData!$B$24="y",DefaultData!D70,ProjectData!B83) -> 6479203.57 | E81: =IF(ProjectData!$B$24="y",IF(ProjectData!T$12=0,DefaultData!G70,ProjectData!T83),ProjectData!E83) -> 0.02 | G81: 129584.0714 | AB81: Return on equity (annual interest rate) | AC81: =IF(ProjectData!$B$24="y",DefaultData!D92,ProjectData!B99) -> 0.12
C82: Subtotal | D82: =SUM(D74:D81) -> 10209521.54 | E82: =D82/(DefaultData!E5*1000) -> 34.03173846 | G82: =SUM(G74:G81) -> 1649710.518 | AB82: Repayment term (years) | AC82: =IF(ProjectData!$B$24="y",DefaultData!D93,ProjectData!B100) -> 10
C83: Sales Tax (Materials & Equipment Purchases) | D83: =IF(ProjectData!$B$24="y",DefaultData!D72,ProjectData!B85) -> 476898.8403 | E83: =IF(ProjectData!$B$24="y",IF(ProjectData!T$12=0,DefaultData!G72,ProjectData!T85),ProjectData!E85) -> 1 | G83: =D83*E83 -> 476898.8403 | AB83: Tax Parameters
C84: Other Taxes/Payments | D84: =IF(ProjectData!$B$24="y",DefaultData!D73,ProjectData!B86) -> 0 | E84: =IF(ProjectData!$B$24="y",IF(ProjectData!T$12=0,DefaultData!G73,ProjectData!T86),ProjectData!E86) -> 1 | G84: =D84*E84 -> 0 | AB84: Local Property/Other Tax Rate (percent of taxable value) | AC84: =IF(ProjectData!$B$24="y",DefaultData!D95,ProjectData!B102) -> 19.44
AB85: Assessed value (percent of construction cost) | AC85: =IF(ProjectData!$B$24="y",DefaultData!D96,ProjectData!B103) -> 1
C86: Financing (debt payment) | D86: =IF(ProjectData!$B$24="y",F197,Calculations!F233) -> 50566428.01 | E86: =IF(ProjectData!$B$24="y",DefaultData!F84,ProjectData!E92) -> 0 | G86: =D86*E86 -> 0 | H86: =IF(ProjectData!$B$24="y",Calculations!D197,D233)*E86 -> 0 | I86: Debt Pmt - Local share Avg Ann Interest | AB86: Taxable Value (percent of assessed value) | AC86: =IF(ProjectData!$B$24="y",DefaultData!D97,ProjectData!B104) -> 0
C87: Equity Payment - Individuals | D87: =IF(ProjectData!$B$24="y",K197,Calculations!K233) -> 0 | E87: =IF(ProjectData!$B$24="y",DefaultData!F90,ProjectData!E97) -> 1 | G87: =D87*E87 -> 0 | H87: =IF(ProjectData!$B$24="y",Calculations!I197,I233)*E87 -> 0 | I87: Equity Pmt - Individual Share Avg Ann Interest | AB87: Taxable Value | AC87: =IF(ProjectData!$B$24="y",DefaultData!D98,ProjectData!B105) -> 458675234.7
C88: Equity Payment - Corporate | D88: =IF(ProjectData!$B$24="y",P197,Calculations!P233) -> 16235650.61 | E88: =IF(ProjectData!$B$24="y",DefaultData!F91,ProjectData!E98) -> 0 | G88: =D88*E88 -> 0 | H88: =IF(ProjectData!$B$24="y",Calculations!N197,N233)*E88 -> 0 | I88: Equity Pmt - Corporate Share Avg Ann Interest | L88: Default Land Lease (below) | O88: User Land Lease (below) | AB88: Taxes Per MW | AC88: =IF(ProjectData!$B$24="y",DefaultData!D99,ProjectData!B106) -> NA
C89: Property Taxes | D89: =IF(ProjectData!$B$24="y",IF(DefaultData!D100="NA",0,DefaultData!D100),ProjectData!B107) -> 8916646.563 | E89: =IF(ProjectData!$B$24="y",DefaultData!F100,ProjectData!E107) -> 1 | G89: =D89*E89 -> 8916646.563 | I89: Y | K89: Y | L89: F | M89: 0 | O89: F | P89: O | AB89: Local Taxes | AC89: =IF(ProjectData!$B$24="y",DefaultData!D100,ProjectData!B107) -> 8916646.563 | AD89: =IF(ProjectData!$B$24="y",DefaultData!F100,ProjectData!E107) -> 1
C90: Land Lease | D90: =IF(ProjectData!$B$24="y",DefaultData!D78,ProjectData!B112) -> 903900 | E90: =IF(ProjectData!$B$24="y",DefaultData!F105,ProjectData!E113) -> 1 | G90: =D90*E90 -> 903900 | H90: =IF(ProjectData!B24="Y",Calculations!L90,O90) -> 903900 | I90: To House | J90: =IF(ProjectData!B24="Y",Calculations!M90,P90) -> 0 | K90: To FIRE | L90: =DefaultData!D104*DefaultData!F105 -> 903900 | M90: 0 | O90: =IF(ProjectData!B24="N",IF(ProjectData!B113="F",Calculations!G90,0),0) -> 903900 | P90: =IF(ProjectData!B24="N",IF(ProjectData!B113="O",Calculations!G90,0),0) -> 0 | AB90: Local Sales Tax Rate | AC90: =IF(ProjectData!$B$24="y",DefaultData!D101,ProjectData!B108) -> 0.0635 | AD90: =IF(ProjectData!$B$24="y",DefaultData!F101,ProjectData!E108) -> 1
C91: Total | D91: =D69+SUM(D82:D90) -> 88499524.02 | G91: =G69+SUM(G82:G90)+I69+J69 -> 13137634.38 | AB91: Land Lease Parameters
C92: Total (without debt, equity, property taxes, lease pmts) | D92: =D82+D83+D84+D71 -> 11876898.84 | E92: =D91-D92 -> 76622625.18 | G92: =G82+G69+I69+J69 -> 2840188.98 | H92: =G91-G92 -> 10297445.4 | AB92: Land Lease Cost (per turbine) | AC92: =IF(ProjectData!$B$24="y",DefaultData!D103,ProjectData!B110) -> 6900
C93: Total cost per KW | D93: =D92/(ProjectData!B16*1000) -> 39.5896628 | AB93: Land Lease (total cost) | AC93: =IF(ProjectData!$B$24="y",DefaultData!D104,ProjectData!B112) -> 903900
D94: Local Share | E94: 1 | F94: 0.5 | L94: Without Plant Employees | AB94: Lease Payment recipient (F = farmer/household, O = Other) | AC94: =IF(ProjectData!$B$24="y",DefaultData!D105,ProjectData!B113) -> F | AD94: =IF(ProjectData!$B$24="y",DefaultData!F105,ProjectData!E113) -> 1
C95: Annual Operations and Maintenance Costs Local Demand - margined | O95: =M40 -> 2016 | P95: =N40 -> Dollars | S95: 1999$ | AB95: Payroll Parameters | AC95: Base Wage per Hour | AD95: Annual Wage | AE95: Employer Payroll Costs
D96: Demand | E96: PCE-Land Lease | F96: PCE -Equity | G96: Total | H96: Adj Demand - Million | L96: Jobs | P96: Earnings | T96: Output | X96: Value Added | AB96: Construction Labor
E97: To Farm/House | F97: To Individuals | G97: w/o Plant Empl | H97: =M40 -> 2016 | I97: Dollars | L97: Direct | M97: Indirect | N97: Induced | O97: Total | P97: Direct | Q97: Indirect | R97: Induced | S97: Total | T97: Direct | U97: Indirect | V97: Induced | W97: Total | X97: Direct | Y97: Indirect | Z97: Induced | AA97: Total | AB97: Foundation | AC97: =IF(ProjectData!$B$24="y",DefaultData!E110,ProjectData!B116) -> 22.17648971 | AD97: =AC97*40*52 -> 46127.0986 | AE97: =IF(ProjectData!$B$24="y",DefaultData!G110,ProjectData!D116) -> 0.3760611025
C98: Agriculture | D98: =$D$141*DefaultData!D121+$D$142*DefaultData!D122+$D$143*DefaultData!D123+$D$144*DefaultData!D124+$D$145*DefaultData!D125+$D$146*DefaultData!D126+$D$147*DefaultData!D127+$D$148*DefaultData!D128+$D$149*DefaultData!D129+$D$150*DefaultData!D130+$D$151*DefaultData!D131+$D$152*DefaultData!D132+$D$153*DefaultData!D133+$D$154*DefaultData!D134 -> 0 | E98: =(H$90*Multipliers!U213)*E$94 -> 714.6242869 | F98: =H$87*Multipliers!U213*F$94 -> 0 | G98: =F98+E98+D98 -> 714.6242869 | H98: =G98*G$39/10^6 -> 0.0007025471365 | L98: =$H98*Multipliers!D213 -> 0.01134992599 | M98: =$H98*Multipliers!E213 -> 0.0008198519598 | N98: =$H98*Multipliers!F213 -> 0.001342438458 | O98: =+N98+M98+L98 -> 0.01351221641 | P98: =$H98*Multipliers!H213 -> 0.0002814493264 | Q98: =$H98*Multipliers!I213 -> 6.695062619e-05 | R98: =$H98*Multipliers!J213 -> 9.91626095e-05 | S98: =+R98+Q98+P98 -> 0.0004475625621 | T98: =$H98*Multipliers!L213 -> 0.0007025471365 | U98: =$H98*Multipliers!M213 -> 0.0001792956319 | V98: =$H98*Multipliers!N213 -> 0.0002563580583 | W98: =+V98+U98+T98 -> 0.001138200827 | X98: =$H98*Multipliers!P213 -> 0.0002993142959 | Y98: =$H98*Multipliers!Q213 -> 0.0001077516874 | Z98: =$H98*Multipliers!R213 -> 0.0001632995303 | AA98: =+Z98+Y98+X98 -> 0.0005703655136 | AB98: Erection | AC98: =IF(ProjectData!$B$24="y",DefaultData!E111,ProjectData!B117) -> 25.11802192 | AD98: =AC98*40*52 -> 52245.48559 | AE98: =IF(ProjectData!$B$24="y",DefaultData!G111,ProjectData!D117) -> 0.3760611025
C99: Mining | D99: =$D$141*DefaultData!E121+$D$142*DefaultData!E122+$D$143*DefaultData!E123+$D$144*DefaultData!E124+$D$145*DefaultData!E125+$D$146*DefaultData!E126+$D$147*DefaultData!E127+$D$148*DefaultData!E128+$D$149*DefaultData!E129+$D$150*DefaultData!E130+$D$151*DefaultData!E131+$D$152*DefaultData!E132+$D$153*DefaultData!E133+$D$154*DefaultData!E134 -> 0 | E99: =(H$90*Multipliers!U214)*E$94 -> 1.601365852 | F99: =H$87*Multipliers!U214*F$94 -> 0 | G99: =F99+E99+D99 -> 1.601365852 | H99: 1.574302769e-06 | L99: =$H99*Multipliers!D214 -> 9.056908836e-06 | M99: =$H99*Multipliers!E214 -> 2.280234429e-06 | N99: =$H99*Multipliers!F214 -> 7.179171604e-07 | O99: =+N99+M99+L99 -> 1.205506043e-05 | P99: =$H99*Multipliers!H214 -> -2.388533751e-08 | Q99: =$H99*Multipliers!I214 -> 1.707737354e-07 | R99: =$H99*Multipliers!J214 -> 4.626103788e-08 | S99: =+R99+Q99+P99 -> 1.931494357e-07 | T99: =$H99*Multipliers!L214 -> 1.574302769e-06 | U99: =$H99*Multipliers!M214 -> 4.291681606e-07 | V99: =$H99*Multipliers!N214 -> 1.192467476e-07 | W99: =+V99+U99+T99 -> 2.122717677e-06 | X99: =$H99*Multipliers!P214 -> 7.193953961e-07 | Y99: =$H99*Multipliers!Q214 -> 2.539115944e-07 | Z99: =$H99*Multipliers!R214 -> 7.5951575e-08 | AA99: =+Z99+Y99+X99 -> 1.049258565e-06 | AB99: Electrical | AC99: =IF(ProjectData!$B$24="y",DefaultData!E112,ProjectData!B118) -> 33.27683964 | AD99: =AC99*40*52 -> 69215.82645 | AE99: =IF(ProjectData!$B$24="y",DefaultData!G112,ProjectData!D118) -> 0.3760611025
C100: Construction | D100: =$D$141*DefaultData!F121+$D$142*DefaultData!F122+$D$143*DefaultData!F123+$D$144*DefaultData!F124+$D$145*DefaultData!F125+$D$146*DefaultData!F126+$D$147*DefaultData!F127+$D$148*DefaultData!F128+$D$149*DefaultData!F129+$D$150*DefaultData!F130+$D$151*DefaultData!F131+$D$152*DefaultData!F132+$D$153*DefaultData!F133+$D$154*DefaultData!F134 -> 0 | E100: =(H$90*Multipliers!U215)*E$94 -> 0 | F100: =H$87*Multipliers!U215*F$94 -> 0 | G100: 0 | H100: 0 | L100: =$H100*Multipliers!D215 -> 0 | M100: =$H100*Multipliers!E215 -> 0 | N100: =$H100*Multipliers!F215 -> 0 | O100: 0 | P100: =$H100*Multipliers!H215 -> 0 | Q100: =$H100*Multipliers!I215 -> 0 | R100: =$H100*Multipliers!J215 -> 0 | S100: 0 | T100: =$H100*Multipliers!L215 -> 0 | U100: =$H100*Multipliers!M215 -> 0 | V100: =$H100*Multipliers!N215 -> 0 | W100: 0 | X100: =$H100*Multipliers!P215 -> 0 | Y100: =$H100*Multipliers!Q215 -> 0 | Z100: =$H100*Multipliers!R215 -> 0 | AA100: 0 | AB100: Management/Supervision | AC100: =IF(ProjectData!$B$24="y",DefaultData!E113,ProjectData!B119) -> 45.2366496 | AD100: =AC100*40*52 -> 94092.23116 | AE100: =IF(ProjectData!$B$24="y",DefaultData!G113,ProjectData!D119) -> 0.3760611025
C101: Manufacturing | D101: =$D$141*DefaultData!G121+$D$142*DefaultData!G122+$D$143*DefaultData!G123+$D$144*DefaultData!G124+$D$145*DefaultData!G125+$D$146*DefaultData!G126+$D$147*DefaultData!G127+$D$148*DefaultData!G128+$D$149*DefaultData!G129+$D$150*DefaultData!G130+$D$151*DefaultData!G131+$D$152*DefaultData!G132+$D$153*DefaultData!G133+$D$154*DefaultData!G134 -> 54270.97536 | E101: =(H$90*Multipliers!U216)*E$94 -> 24643.53829 | F101: =H$87*Multipliers!U216*F$94 -> 0 | G101: 78914.51364 | H101: 0.07758085836 | L101: =$H101*Multipliers!D216 -> 0.1704353222 | M101: =$H101*Multipliers!E216 -> 0.1056753735 | N101: =$H101*Multipliers!F216 -> 0.1255469008 | O101: 0.4016575965 | P101: =$H101*Multipliers!H216 -> 0.02062917612 | Q101: =$H101*Multipliers!I216 -> 0.008224409236 | R101: =$H101*Multipliers!J216 -> 0.00827000149 | S101: 0.03712358685 | T101: =$H101*Multipliers!L216 -> 0.07758085836 | U101: =$H101*Multipliers!M216 -> 0.02132804633 | V101: =$H101*Multipliers!N216 -> 0.02137629415 | W101: 0.1202851989 | X101: =$H101*Multipliers!P216 -> 0.02855629225 | Y101: =$H101*Multipliers!Q216 -> 0.01283176904 | Z101: =$H101*Multipliers!R216 -> 0.01361657311 | AA101: 0.0550046344 | AB101: O&M Labor | AC101: Base Wage per Hour | AD101: Annual Wage | AE101: Employer Payroll Costs
C102: Fabricated Metals | D102: =$D$141*DefaultData!H121+$D$142*DefaultData!H122+$D$143*DefaultData!H123+$D$144*DefaultData!H124+$D$145*DefaultData!H125+$D$146*DefaultData!H126+$D$147*DefaultData!H127+$D$148*DefaultData!H128+$D$149*DefaultData!H129+$D$150*DefaultData!H130+$D$151*DefaultData!H131+$D$152*DefaultData!H132+$D$153*DefaultData!H133+$D$154*DefaultData!H134 -> 0 | E102: =(H$90*Multipliers!U217)*E$94 -> 0.9659135408 | F102: =H$87*Multipliers!U217*F$94 -> 0 | G102: 0.9659135408 | H102: 9.49589602e-07 | L102: =$H102*Multipliers!D217 -> 3.592717584e-06 | M102: =$H102*Multipliers!E217 -> 1.392250961e-06 | N102: =$H102*Multipliers!F217 -> 1.802863588e-06 | O102: 6.787832133e-06 | P102: =$H102*Multipliers!H217 -> 2.936404152e-07 | Q102: =$H102*Multipliers!I217 -> 1.087959053e-07 | R102: =$H102*Multipliers!J217 -> 1.162988708e-07 | S102: 5.187351912e-07 | T102: =$H102*Multipliers!L217 -> 9.49589602e-07 | U102: =$H102*Multipliers!M217 -> 2.741758737e-07 | V102: =$H102*Multipliers!N217 -> 3.005205577e-07 | W102: 1.524286033e-06 | X102: =$H102*Multipliers!P217 -> 3.722314848e-07 | Y102: =$H102*Multipliers!Q217 -> 1.645349033e-07 | Z102: =$H102*Multipliers!R217 -> 1.914276427e-07 | AA102: 7.281940308e-07 | AB102: Field Salaries (technicians, other) | AC102: =IF(ProjectData!$B$24="y",DefaultData!E115,ProjectData!B121) -> 30.26267701 | AD102: =AC102*40*52 -> 62946.36818 | AE102: =IF(ProjectData!$B$24="y",DefaultData!G115,ProjectData!D121) -> 0.3760611025
C103: Machinery | D103: =$D$141*DefaultData!I121+$D$142*DefaultData!I122+$D$143*DefaultData!I123+$D$144*DefaultData!I124+$D$145*DefaultData!I125+$D$146*DefaultData!I126+$D$147*DefaultData!I127+$D$148*DefaultData!I128+$D$149*DefaultData!I129+$D$150*DefaultData!I130+$D$151*DefaultData!I131+$D$152*DefaultData!I132+$D$153*DefaultData!I133+$D$154*DefaultData!I134 -> 0 | E103: =(H$90*Multipliers!U218)*E$94 -> 1.646300713 | F103: =H$87*Multipliers!U218*F$94 -> 0 | G103: 1.646300713 | H103: 1.618478231e-06 | L103: =$H103*Multipliers!D218 -> 4.484049778e-06 | M103: =$H103*Multipliers!E218 -> 2.261390362e-06 | N103: =$H103*Multipliers!F218 -> 2.969766698e-06 | O103: 9.715206838e-06 | P103: =$H103*Multipliers!H218 -> 4.791878495e-07 | Q103: =$H103*Multipliers!I218 -> 1.815040294e-07 | R103: =$H103*Multipliers!J218 -> 1.911029401e-07 | S103: 8.51794819e-07 | T103: =$H103*Multipliers!L218 -> 1.618478231e-06 | U103: =$H103*Multipliers!M218 -> 4.666081529e-07 | V103: =$H103*Multipliers!N218 -> 4.938071386e-07 | W103: 2.578893522e-06 | X103: =$H103*Multipliers!P218 -> 5.241242951e-07 | Y103: =$H103*Multipliers!Q218 -> 2.856368561e-07 | Z103: =$H103*Multipliers!R218 -> 3.145484418e-07 | AA103: 1.124309593e-06 | AB103: Administrative | AC103: =IF(ProjectData!$B$24="y",DefaultData!E116,ProjectData!B122) -> 19.36811329 | AD103: =AC103*40*52 -> 40285.67564 | AE103: =IF(ProjectData!$B$24="y",DefaultData!G116,ProjectData!D122) -> 0.3760611025
C104: Electrical Equipment | D104: =$D$141*DefaultData!J121+$D$142*DefaultData!J122+$D$143*DefaultData!J123+$D$144*DefaultData!J124+$D$145*DefaultData!J125+$D$146*DefaultData!J126+$D$147*DefaultData!J127+$D$148*DefaultData!J128+$D$149*DefaultData!J129+$D$150*DefaultData!J130+$D$151*DefaultData!J131+$D$152*DefaultData!J132+$D$153*DefaultData!J133+$D$154*DefaultData!J134 -> 16611.83566 | E104: =(H$90*Multipliers!U219)*E$94 -> 1.408225509 | F104: =H$87*Multipliers!U219*F$94 -> 0 | G104: 16613.24388 | H104: 0.01633248006 | L104: =$H104*Multipliers!D219 -> 0.04743719698 | M104: =$H104*Multipliers!E219 -> 0.02655441203 | N104: =$H104*Multipliers!F219 -> 0.02510234556 | O104: 0.09909395457 | P104: =$H104*Multipliers!H219 -> 0.003499907776 | Q104: =$H104*Multipliers!I219 -> 0.002036157265 | R104: =$H104*Multipliers!J219 -> 0.001607701811 | S104: 0.007143766852 | T104: =$H104*Multipliers!L219 -> 0.01633248006 | U104: =$H104*Multipliers!M219 -> 0.005023516867 | V104: =$H104*Multipliers!N219 -> 0.004153945376 | W104: 0.0255099423 | X104: =$H104*Multipliers!P219 -> 0.006390598218 | Y104: =$H104*Multipliers!Q219 -> 0.00310954019 | Z104: =$H104*Multipliers!R219 -> 0.002645999335 | AA104: 0.01214613774 | AB104: Management | AC104: =IF(ProjectData!$B$24="y",DefaultData!E117,ProjectData!B123) -> 48.42028322 | AD104: =AC104*40*52 -> 100714.1891 | AE104: =IF(ProjectData!$B$24="y",DefaultData!G117,ProjectData!D123) -> 0.3760611025
C105: TCPU | D105: =$D$141*DefaultData!K121+$D$142*DefaultData!K122+$D$143*DefaultData!K123+$D$144*DefaultData!K124+$D$145*DefaultData!K125+$D$146*DefaultData!K126+$D$147*DefaultData!K127+$D$148*DefaultData!K128+$D$149*DefaultData!K129+$D$150*DefaultData!K130+$D$151*DefaultData!K131+$D$152*DefaultData!K132+$D$153*DefaultData!K133+$D$154*DefaultData!K134 -> 233984.6706 | E105: =(H$90*Multipliers!U220)*E$94 -> 34731.70195 | F105: =H$87*Multipliers!U220*F$94 -> 0 | G105: 268716.3726 | H105: 0.2641750659 | L105: =$H105*Multipliers!D220 -> 0.8121126751 | M105: =$H105*Multipliers!E220 -> 0.4951402155 | N105: =$H105*Multipliers!F220 -> 0.6235733164 | O105: 1.930826207 | P105: =$H105*Multipliers!H220 -> 0.1027264977 | Q105: =$H105*Multipliers!I220 -> 0.0399889935 | R105: =$H105*Multipliers!J220 -> 0.04002515213 | S105: 0.1827406434 | T105: =$H105*Multipliers!L220 -> 0.2641750659 | U105: =$H105*Multipliers!M220 -> 0.09837187435 | V105: =$H105*Multipliers!N220 -> 0.1035308591 | W105: 0.4660777994 | X105: =$H105*Multipliers!P220 -> 0.1357758633 | Y105: =$H105*Multipliers!Q220 -> 0.05935032976 | Z105: =$H105*Multipliers!R220 -> 0.06595029422 | AA105: 0.2610764873
C106: Wholesale Trade | D106: =$D$141*DefaultData!L121+$D$142*DefaultData!L122+$D$143*DefaultData!L123+$D$144*DefaultData!L124+$D$145*DefaultData!L125+$D$146*DefaultData!L126+$D$147*DefaultData!L127+$D$148*DefaultData!L128+$D$149*DefaultData!L129+$D$150*DefaultData!L130+$D$151*DefaultData!L131+$D$152*DefaultData!L132+$D$153*DefaultData!L133+$D$154*DefaultData!L134 -> 852863.8382 | E106: =(H$90*Multipliers!U221)*E$94 -> 49744.88128 | F106: =H$87*Multipliers!U221*F$94 -> 0 | G106: 902608.7195 | H106: 0.8873546321 | L106: =$H106*Multipliers!D221 -> 2.811683126 | M106: =$H106*Multipliers!E221 -> 1.480052968 | N106: =$H106*Multipliers!F221 -> 1.817994293 | O106: 6.109730387 | P106: =$H106*Multipliers!H221 -> 0.3054685502 | Q106: =$H106*Multipliers!I221 -> 0.1092653808 | R106: =$H106*Multipliers!J221 -> 0.1194751389 | S106: 0.5342090699 | T106: =$H106*Multipliers!L221 -> 0.8873546321 | U106: =$H106*Multipliers!M221 -> 0.2532105935 | V106: =$H106*Multipliers!N221 -> 0.3087557168 | W106: 1.449320942 | X106: =$H106*Multipliers!P221 -> 0.6519774626 | Y106: =$H106*Multipliers!Q221 -> 0.1619703667 | Z106: =$H106*Multipliers!R221 -> 0.1966739971 | AA106: 1.010621826
C107: Retail Trade | D107: =$D$141*DefaultData!M121+$D$142*DefaultData!M122+$D$143*DefaultData!M123+$D$144*DefaultData!M124+$D$145*DefaultData!M125+$D$146*DefaultData!M126+$D$147*DefaultData!M127+$D$148*DefaultData!M128+$D$149*DefaultData!M129+$D$150*DefaultData!M130+$D$151*DefaultData!M131+$D$152*DefaultData!M132+$D$153*DefaultData!M133+$D$154*DefaultData!M134 -> 389207.1479 | E107: =(H$90*Multipliers!U222)*E$94 -> 134058.4997 | F107: =H$87*Multipliers!U222*F$94 -> 0 | G107: 523265.6476 | H107: 0.5144224582 | L107: =$H107*Multipliers!D222 -> 4.809659129 | M107: =$H107*Multipliers!E222 -> 0.9043985204 | N107: =$H107*Multipliers!F222 -> 1.192588985 | O107: 6.906646634 | P107: =$H107*Multipliers!H222 -> 0.2308698208 | Q107: =$H107*Multipliers!I222 -> 0.07548461911 | R107: =$H107*Multipliers!J222 -> 0.08760444214 | S107: 0.393958882 | T107: =$H107*Multipliers!L222 -> 0.5144224582 | U107: =$H107*Multipliers!M222 -> 0.1812653897 | V107: =$H107*Multipliers!N222 -> 0.2264437002 | W107: 0.922131548 | X107: =$H107*Multipliers!P222 -> 0.3471873539 | Y107: =$H107*Multipliers!Q222 -> 0.1143396065 | Z107: =$H107*Multipliers!R222 -> 0.1442433518 | AA107: 0.6057703122
C108: FIRE | D108: =$D$141*DefaultData!N121+$D$142*DefaultData!N122+$D$143*DefaultData!N123+$D$144*DefaultData!N124+$D$145*DefaultData!N125+$D$146*DefaultData!N126+$D$147*DefaultData!N127+$D$148*DefaultData!N128+$D$149*DefaultData!N129+$D$150*DefaultData!N130+$D$151*DefaultData!N131+$D$152*DefaultData!N132+$D$153*DefaultData!N133+$D$154*DefaultData!N134 -> 362946.1177 | E108: =(H$90*Multipliers!U223)*E$94 -> 160867.7784 | F108: =H$87*Multipliers!U223*F$94 -> 0 | G108: 523813.8961 | H108: 0.5149614413 | L108: =($H108-(($H86+$H88)*$G39/10^6))*Multipliers!D223 -> 1.824750582 | M108: =($H108*Multipliers!E223) -> 1.110395788 | N108: =($H108*Multipliers!F223) -> 1.133095043 | O108: 4.068241413 | P108: =($H108-(($H86+$H88)*$G39/10^6))*Multipliers!H223 -> 0.1692225791 | Q108: =$H108*Multipliers!I223 -> 0.0877309085 | R108: =$H108*Multipliers!J223 -> 0.07366025711 | S108: 0.3306137447 | T108: =$H108*Multipliers!L223 -> 0.5149614413 | U108: =$H108*Multipliers!M223 -> 0.2244280965 | V108: =$H108*Multipliers!N223 -> 0.1903881966 | W108: 0.9297777345 | X108: =$H108*Multipliers!P223 -> 0.3230619144 | Y108: =$H108*Multipliers!Q223 -> 0.1397341995 | Z108: =$H108*Multipliers!R223 -> 0.1212759145 | AA108: 0.5840720285
C109: Misc. Services | D109: =$D$141*DefaultData!O121+$D$142*DefaultData!O122+$D$143*DefaultData!O123+$D$144*DefaultData!O124+$D$145*DefaultData!O125+$D$146*DefaultData!O126+$D$147*DefaultData!O127+$D$148*DefaultData!O128+$D$149*DefaultData!O129+$D$150*DefaultData!O130+$D$151*DefaultData!O131+$D$152*DefaultData!O132+$D$153*DefaultData!O133+$D$154*DefaultData!O134 -> 45898.45759 | E109: =(H$90*Multipliers!U224)*E$94 -> 479746.1453 | F109: =H$87*Multipliers!U224*F$94 -> 0 | G109: 525644.6029 | H109: 0.5167612091 | L109: =$H109*Multipliers!D224 -> 3.916830717 | M109: =$H109*Multipliers!E224 -> 1.032955767 | N109: =$H109*Multipliers!F224 -> 1.390881732 | O109: 6.340668217 | P109: =$H109*Multipliers!H224 -> 0.2457191088 | Q109: =$H109*Multipliers!I224 -> 0.07761813865 | R109: =$H109*Multipliers!J224 -> 0.09292339055 | S109: 0.416260638 | T109: =$H109*Multipliers!L224 -> 0.5167612091 | U109: =$H109*Multipliers!M224 -> 0.1824880841 | V109: =$H109*Multipliers!N224 -> 0.2401597237 | W109: 0.9394090169 | X109: =$H109*Multipliers!P224 -> 0.329147372 | Y109: =$H109*Multipliers!Q224 -> 0.1150643563 | Z109: =$H109*Multipliers!R224 -> 0.1529796029 | AA109: 0.5971913311
C110: Professional Services | D110: =$D$141*DefaultData!P121+$D$142*DefaultData!P122+$D$143*DefaultData!P123+$D$144*DefaultData!P124+$D$145*DefaultData!P125+$D$146*DefaultData!P126+$D$147*DefaultData!P127+$D$148*DefaultData!P128+$D$149*DefaultData!P129+$D$150*DefaultData!P130+$D$151*DefaultData!P131+$D$152*DefaultData!P132+$D$153*DefaultData!P133+$D$154*DefaultData!P134 -> 0 | E110: =(H$90*Multipliers!U225)*E$94 -> 9339.839898 | F110: =H$87*Multipliers!U225*F$94 -> 0 | G110: 9339.839898 | H110: 0.009181996604 | L110: =$H110*Multipliers!D225 -> 0.05032335738 | M110: =$H110*Multipliers!E225 -> 0.01991130151 | N110: =$H110*Multipliers!F225 -> 0.02842146167 | O110: 0.09865612056 | P110: =$H110*Multipliers!H225 -> 0.005049083491 | Q110: =$H110*Multipliers!I225 -> 0.001603217018 | R110: =$H110*Multipliers!J225 -> 0.001895896968 | S110: 0.008548197478 | T110: =$H110*Multipliers!L225 -> 0.009181996604 | U110: =$H110*Multipliers!M225 -> 0.003591502111 | V110: =$H110*Multipliers!N225 -> 0.004901086995 | W110: 0.01767458571 | X110: =$H110*Multipliers!P225 -> 0.00593762311 | Y110: =$H110*Multipliers!Q225 -> 0.002275666605 | Z110: =$H110*Multipliers!R225 -> 0.003121976382 | AA110: 0.0113352661
C111: Government | D111: =$D$141*DefaultData!Q121+$D$142*DefaultData!Q122+$D$143*DefaultData!Q123+$D$144*DefaultData!Q124+$D$145*DefaultData!Q125+$D$146*DefaultData!Q126+$D$147*DefaultData!Q127+$D$148*DefaultData!Q128+$D$149*DefaultData!Q129+$D$150*DefaultData!Q130+$D$151*DefaultData!Q131+$D$152*DefaultData!Q132+$D$153*DefaultData!Q133+$D$154*DefaultData!Q134 -> 9535165.424 | E111: =(H$90*Multipliers!U226)*E$94 -> 10047.36903 | F111: =H$87*Multipliers!U226*F$94 -> 0 | G111: 9545212.793 | H111: 9.383898696 | L111: 0 | M111: =$H111*Multipliers!E226 -> 5.387539767 | N111: =$H111*Multipliers!F226 -> 24.38996567 | O111: 29.77750543 | P111: 0 | Q111: =$H111*Multipliers!I226 -> 0.4941236623 | R111: =$H111*Multipliers!J226 -> 1.898641285 | S111: 2.392764947 | T111: =$H111*Multipliers!L226 -> 9.383898696 | U111: =$H111*Multipliers!M226 -> 1.183569138 | V111: =$H111*Multipliers!N226 -> 4.905413859 | W111: 15.47288169 | X111: =$H111*Multipliers!P226 -> 8.220295972 | Y111: =$H111*Multipliers!Q226 -> 0.6983850779 | Z111: =$H111*Multipliers!R226 -> 3.124666401 | AA111: 12.04334745
C112: Total | D112: =SUM(D98:D111) -> 11490948.47 | E112: =SUM(E98:E111) -> 903900 | F112: =SUM(F98:F111) -> 0 | G112: 12394848.47 | H112: =SUM(H98:H111) -> 12.18537553 | K112: Total | L112: =SUM(L98:L111) -> 14.45459916 | M112: =SUM(M98:M111) -> 10.5634499 | N112: 30.72851767 | O112: 55.74656674 | P112: 1.083466922 | Q112: 0.8961428981 | R112: 2.324202782 | S112: 4.303812603 | T112: 12.18537553 | U112: 2.153456707 | V112: 6.005380653 | W112: 20.34421289 | X112: =SUM(X98:X111) -> 10.04863138 | Y112: 1.307169368 | Z112: 3.825337992 | AA112: 15.18113874
C114: Plant Employees | E114: Earnings - Gross | G114: =K69 -> 1190478.463 | H114: =G114*G32/10^6 -> 0
C115: Plant Employees | E115: Employee - (SSI, Medicare, etc.) | F115: =DefaultData!M106 -> 0.07118694551 | G115: =F115*G114 -> 84746.52546 | H115: 0 | O115: Inflate to | P115: =D39 -> 2017 | Q115: Dollars | T115: =P115 -> 2017 | U115: Dollars | X115: =T115 -> 2017 | Y115: Dollars
C116: Field Salaries/Technicians | D116: =IF(ProjectData!$B$24="y",DefaultData!H115,DefaultData!I115) -> 10.8 | E116: Other benefits | F116: =DefaultData!M107 -> 0.304874157 | G116: =F116*G114 -> 362946.1177 | H116: =IF(ProjectData!B1="MyCounty",0,IF(ProjectData!B1="MyRegion",0,1)) -> 1 | J116: Without Plant Employees | L116: =L112 -> 14.45459916 | M116: =M112 -> 10.5634499 | N116: =N112 -> 30.72851767 | O116: =O112 -> 55.74656674 | P116: =P112*$G60 -> 1.102102553 | Q116: =Q112*$G60 -> 0.9115565559 | R116: =R112*$G60 -> 2.36417907 | S116: =+R116+Q116+P116 -> 4.377838179 | T116: =T112*$G60 -> 12.39496399 | U116: =U112*$G60 -> 2.190496162 | V116: =V112*$G60 -> 6.108673201 | W116: =+V116+U116+T116 -> 20.69413335 | X116: =X112*$G60 -> 10.22146784 | Y116: =Y112*$G60 -> 1.329652681 | Z116: =Z112*$G60 -> 3.891133805 | AA116: =+Z116+Y116+X116 -> 15.44225433
C117: Administrative/Secretarial | D117: =IF(ProjectData!$B$24="y",DefaultData!H116,DefaultData!I116) -> 1.6 | E117: Earnings (minus taxes, benefits, etc) | G117: =G114-G115-G116 -> 742785.8195 | J117: With Plant Employees | L117: =L116+L137 -> 28.05459916 | M117: =M116+M137 -> 12.74662642 | N117: =N116+N137 -> 33.32017378 | O117: =O116+O137 -> 74.12139936 | P117: =(P112+P137)*$G60 -> 2.207844796 | Q117: =(Q112+Q137)*$G60 -> 1.084623872 | R117: =(R112+R137)*$G60 -> 2.539982478 | S117: =+R117+Q117+P117 -> 5.832451146 | T117: =(T112+T137)*$G60 -> 13.50070623 | U117: =(U112+U137)*$G60 -> 2.61638169 | V117: =(V112+V137)*$G60 -> 6.563063921 | W117: =+V117+U117+T117 -> 22.68015184 | X117: =(X112+X137)*$G60 -> 11.32721008 | Y117: =(Y112+Y137)*$G60 -> 1.596109451 | Z117: =(Z112+Z137)*$G60 -> 4.180577318 | AA117: =+Z117+Y117+X117 -> 17.10389685
C118: Site Management | D118: =IF(ProjectData!$B$24="y",DefaultData!H117,DefaultData!I117) -> 1.2
C119: Total | D119: =+D118+D117+D116 -> 13.6
L120: Plant Employees Only
C121: Plant Employee Spending | F121: PCE | H121: Adj Demand - Million | L121: Jobs | P121: Earnings | T121: Output | X121: Value Added
F122: Plant Emp | H122: =H97 -> 2016 | I122: Dollars | L122: Direct | M122: Indirect | N122: Induced | O122: Total | P122: Direct | Q122: Indirect | R122: Induced | S122: Total | T122: Direct | U122: Indirect | V122: Induced | W122: Total | X122: Direct | Y122: Indirect | Z122: Induced | AA122: Total
C123: Agriculture | F123: =G$117*Multipliers!U213 -> 587.247247 | H123: =F123*G$39/10^6 -> 0.0005773227686 | M123: =$H123*Multipliers!E213 -> 0.0006737187851 | N123: =$H123*Multipliers!F213 -> 0.001103157706 | O123: =N123+M123 -> 0.001776876491 | Q123: =$H123*Multipliers!I213 -> 5.501712108e-05 | R123: =$H123*Multipliers!J213 -> 8.148753198e-05 | S123: =R123+Q123 -> 0.0001365046531 | T123: =$H123*Multipliers!L213 -> 0.0005773227686 | U123: =$H123*Multipliers!M213 -> 0.0001473373746 | V123: =$H123*Multipliers!N213 -> 0.0002106639346 | W123: =V123+U123 -> 0.0003580013091 | Y123: =$H123*Multipliers!Q213 -> 8.854566372e-05 | Z123: =$H123*Multipliers!R213 -> 0.000134192472 | AA123: =Z123+Y123 -> 0.0002227381357
C124: Mining | F124: =G$117*Multipliers!U214 -> 1.315933009 | H124: =F124*G$39/10^6 -> 1.293693741e-06 | M124: =$H124*Multipliers!E214 -> 1.873797764e-06 | N124: =$H124*Multipliers!F214 -> 5.899531876e-07 | O124: =N124+M124 -> 2.463750952e-06 | Q124: =$H124*Multipliers!I214 -> 1.403344496e-07 | R124: =$H124*Multipliers!J214 -> 3.801531467e-08 | S124: =R124+Q124 -> 1.783497643e-07 | T124: =$H124*Multipliers!L214 -> 1.293693741e-06 | U124: =$H124*Multipliers!M214 -> 3.526717822e-07 | V124: =$H124*Multipliers!N214 -> 9.799180569e-08 | W124: =V124+U124 -> 4.506635878e-07 | Y124: =$H124*Multipliers!Q214 -> 2.086535366e-07 | Z124: =$H124*Multipliers!R214 -> 6.241371046e-08 | AA124: =Z124+Y124 -> 2.710672471e-07
C125: Construction | F125: =G$117*Multipliers!U215 -> 0 | H125: 0 | M125: =$H125*Multipliers!E215 -> 0 | N125: =$H125*Multipliers!F215 -> 0 | O125: 0 | Q125: =$H125*Multipliers!I215 -> 0 | R125: =$H125*Multipliers!J215 -> 0 | S125: 0 | T125: =$H125*Multipliers!L215 -> 0 | U125: =$H125*Multipliers!M215 -> 0 | V125: =$H125*Multipliers!N215 -> 0 | W125: 0 | Y125: =$H125*Multipliers!Q215 -> 0 | Z125: =$H125*Multipliers!R215 -> 0 | AA125: 0
C126: Manufacturing | F126: =G$117*Multipliers!U216 -> 20250.99102 | H126: 0.01990874927 | M126: =$H126*Multipliers!E216 -> 0.02711834542 | N126: =$H126*Multipliers!F216 -> 0.03221776381 | O126: 0.05933610922 | Q126: =$H126*Multipliers!I216 -> 0.002110542534 | R126: =$H126*Multipliers!J216 -> 0.002122242388 | S126: 0.004232784922 | T126: =$H126*Multipliers!L216 -> 0.01990874927 | U126: =$H126*Multipliers!M216 -> 0.00547318934 | V126: =$H126*Multipliers!N216 -> 0.005485570664 | W126: 0.01095876 | Y126: =$H126*Multipliers!Q216 -> 0.003292880201 | Z126: =$H126*Multipliers!R216 -> 0.003494276111 | AA126: 0.006787156312
C127: Fabricated Metals | F127: =G$117*Multipliers!U217 -> 0.793745858 | H127: 7.80331553e-07 | M127: =$H127*Multipliers!E217 -> 1.14409146e-06 | N127: =$H127*Multipliers!F217 -> 1.48151511e-06 | O127: 2.62560657e-06 | Q127: =$H127*Multipliers!I217 -> 8.940375671e-08 | R127: =$H127*Multipliers!J217 -> 9.556936832e-08 | S127: 1.84973125e-07 | T127: =$H127*Multipliers!L217 -> 7.80331553e-07 | U127: =$H127*Multipliers!M217 -> 2.253058425e-07 | V127: =$H127*Multipliers!N217 -> 2.469547613e-07 | W127: 4.722606037e-07 | Y127: =$H127*Multipliers!Q217 -> 1.35207648e-07 | Z127: =$H127*Multipliers!R217 -> 1.573069349e-07 | AA127: 2.925145829e-07
C128: Machinery | F128: =G$117*Multipliers!U218 -> 1.352858529 | H128: 1.329995219e-06 | M128: =$H128*Multipliers!E218 -> 1.858312527e-06 | N128: =$H128*Multipliers!F218 -> 2.440425479e-06 | O128: 4.298738006e-06 | Q128: =$H128*Multipliers!I218 -> 1.491521399e-07 | R128: =$H128*Multipliers!J218 -> 1.570401084e-07 | S128: 3.061922483e-07 | T128: =$H128*Multipliers!L218 -> 1.329995219e-06 | U128: =$H128*Multipliers!M218 -> 3.834383441e-07 | V128: =$H128*Multipliers!N218 -> 4.05789291e-07 | W128: 7.892276351e-07 | Y128: =$H128*Multipliers!Q218 -> 2.347239808e-07 | Z128: =$H128*Multipliers!R218 -> 2.584822681e-07 | AA128: 4.932062488e-07
C129: Electrical Equipment | F129: =G$117*Multipliers!U219 -> 1.157218651 | H129: 1.137661656e-06 | M129: =$H129*Multipliers!E219 -> 1.84968457e-06 | N129: =$H129*Multipliers!F219 -> 1.748538857e-06 | O129: 3.598223427e-06 | Q129: =$H129*Multipliers!I219 -> 1.418313714e-07 | R129: =$H129*Multipliers!J219 -> 1.119867098e-07 | S129: 2.538180812e-07 | T129: =$H129*Multipliers!L219 -> 1.137661656e-06 | U129: =$H129*Multipliers!M219 -> 3.49920067e-07 | V129: =$H129*Multipliers!N219 -> 2.893488532e-07 | W129: 6.392689202e-07 | Y129: =$H129*Multipliers!Q219 -> 2.165993547e-07 | Z129: =$H129*Multipliers!R219 -> 1.843107706e-07 | AA129: 4.009101253e-07
C130: TCPU | F130: =G$117*Multipliers!U220 -> 28541.00641 | H130: 0.0280586634 | M130: =$H130*Multipliers!E220 -> 0.05259002245 | N130: =$H130*Multipliers!F220 -> 0.0662312082 | O130: 0.1188212306 | Q130: =$H130*Multipliers!I220 -> 0.004247326312 | R130: =$H130*Multipliers!J220 -> 0.004251166807 | S130: 0.00849849312 | T130: =$H130*Multipliers!L220 -> 0.0280586634 | U130: =$H130*Multipliers!M220 -> 0.01044831124 | V130: =$H130*Multipliers!N220 -> 0.01099625931 | W130: 0.02144457055 | Y130: =$H130*Multipliers!Q220 -> 0.006303739984 | Z130: =$H130*Multipliers!R220 -> 0.00700473794 | AA130: 0.01330847792
C131: Wholesale Trade | F131: =G$117*Multipliers!U221 -> 40878.18609 | H131: 0.04018734474 | M131: =$H131*Multipliers!E221 -> 0.06703002015 | N131: =$H131*Multipliers!F221 -> 0.08233502226 | O131: 0.1493650424 | Q131: =$H131*Multipliers!I221 -> 0.004948512541 | R131: =$H131*Multipliers!J221 -> 0.005410901598 | S131: 0.01035941414 | T131: =$H131*Multipliers!L221 -> 0.04018734474 | U131: =$H131*Multipliers!M221 -> 0.01146763768 | V131: =$H131*Multipliers!N221 -> 0.01398321706 | W131: 0.02545085474 | Y131: =$H131*Multipliers!Q221 -> 0.007335465134 | Z131: =$H131*Multipliers!R221 -> 0.008907155536 | AA131: 0.01624262067
C132: Retail Trade | F132: =G$117*Multipliers!U222 -> 110163.4612 | H132: 0.1083016987 | M132: =$H132*Multipliers!E222 -> 0.1904036158 | N132: =$H132*Multipliers!F222 -> 0.2510765439 | O132: 0.4414801597 | Q132: =$H132*Multipliers!I222 -> 0.01589182654 | R132: =$H132*Multipliers!J222 -> 0.01844342086 | S132: 0.03433524741 | T132: =$H132*Multipliers!L222 -> 0.1083016987 | U132: =$H132*Multipliers!M222 -> 0.0381619218 | V132: =$H132*Multipliers!N222 -> 0.04767334125 | W132: 0.08583526304 | Y132: =$H132*Multipliers!Q222 -> 0.02407199262 | Z132: =$H132*Multipliers!R222 -> 0.03036764779 | AA132: 0.05443964041
C133: FIRE | F133: =(G$117*Multipliers!U223)+(G116*H116) -> 495140.2815 | H133: 0.4867724107 | M133: =$H133*Multipliers!E223 -> 1.049612634 | N133: =$H133*Multipliers!F223 -> 1.07106933 | O133: 2.120681963 | Q133: =$H133*Multipliers!I223 -> 0.08292851154 | R133: =$H133*Multipliers!J223 -> 0.06962808873 | S133: 0.1525566003 | T133: =$H133*Multipliers!L223 -> 0.4867724107 | U133: =$H133*Multipliers!M223 -> 0.2121428845 | V133: =$H133*Multipliers!N223 -> 0.1799663315 | W133: 0.392109216 | Y133: =$H133*Multipliers!Q223 -> 0.1320851382 | Z133: =$H133*Multipliers!R223 -> 0.1146372612 | AA133: 0.2467223994
C134: Misc. Services | F134: =G$117*Multipliers!U224 -> 394234.5765 | H134: 0.3875720122 | M134: =$H134*Multipliers!E224 -> 0.774719035 | N134: =$H134*Multipliers!F224 -> 1.043164274 | O134: 1.817883309 | Q134: =$H134*Multipliers!I224 -> 0.05821377001 | R134: =$H134*Multipliers!J224 -> 0.06969274167 | S134: 0.1279065117 | T134: =$H134*Multipliers!L224 -> 0.3875720122 | U134: =$H134*Multipliers!M224 -> 0.1368664534 | V134: =$H134*Multipliers!N224 -> 0.1801203064 | W134: 0.3169867598 | Y134: =$H134*Multipliers!Q224 -> 0.08629851335 | Z134: =$H134*Multipliers!R224 -> 0.1147350294 | AA134: 0.2010335427
C135: Professional Services | F135: =G$117*Multipliers!U225 -> 7675.075377 | H135: 0.007545366603 | M135: =$H135*Multipliers!E225 -> 0.01636224406 | N135: =$H135*Multipliers!F225 -> 0.02335552462 | O135: 0.03971776868 | Q135: =$H135*Multipliers!I225 -> 0.001317454217 | R135: =$H135*Multipliers!J225 -> 0.001557965907 | S135: 0.002875420124 | T135: =$H135*Multipliers!L225 -> 0.007545366603 | U135: =$H135*Multipliers!M225 -> 0.002951340678 | V135: =$H135*Multipliers!N225 -> 0.004027500741 | W135: 0.006978841419 | Y135: =$H135*Multipliers!Q225 -> 0.001870044125 | Z135: =$H135*Multipliers!R225 -> 0.002565504797 | AA135: 0.004435548921
C136: Government | F136: =(G$117*Multipliers!U226)+(G115*H115) -> 8256.492133 | H136: 0.008116957416 | M136: =$H136*Multipliers!E226 -> 0.004660155899 | N136: =$H136*Multipliers!F226 -> 0.02109702152 | O136: 0.02575717742 | Q136: =$H136*Multipliers!I226 -> 0.0004274109147 | R136: =$H136*Multipliers!J226 -> 0.001642301452 | S136: 0.002069712367 | T136: =$H136*Multipliers!L226 -> 0.008116957416 | U136: =$H136*Multipliers!M226 -> 0.001023772805 | V136: =$H136*Multipliers!N226 -> 0.004243122895 | W136: 0.0052668957 | Y136: =$H136*Multipliers!Q226 -> 0.0006040945369 | Z136: =$H136*Multipliers!R226 -> 0.002702798158 | AA136: 0.003306892695
C137: Total | F137: =SUM(F123:F136) -> 1105731.937 | H137: =SUM(H123:H136) -> 1.087045067 | L137: =IF(L139=0,0,D119) -> 13.6 | M137: =SUM(M123:M136) -> 2.183176517 | N137: =SUM(N123:N136) -> 2.591656106 | O137: =N137+M137+L137 -> 18.37483262 | P137: =H137 -> 1.087045067 | Q137: =SUM(Q123:Q136) -> 0.1701408925 | R137: =SUM(R123:R136) -> 0.1728307196 | S137: =R137+Q137+P137 -> 1.430016679 | T137: =SUM(T123:T136) -> 1.087045067 | U137: =SUM(U123:U136) -> 0.4186841602 | V137: =SUM(V123:V136) -> 0.4467073539 | W137: =V137+U137+T137 -> 1.952436582 | X137: =P137 -> 1.087045067 | Y137: =SUM(Y123:Y136) -> 0.261951209 | Z137: =SUM(Z123:Z136) -> 0.2845492659 | AA137: =Z137+Y137+X137 -> 1.633545542
O138: Inflate to | P138: =P115 -> 2017 | Q138: Dollars
C139: Annual O&M Costs Local Demand | E139: Construction Costs Local Demand | L139: =SUM(M144:M157) -> 12.74662642 | P139: =P137*$G60 -> 1.105742243 | Q139: 0.1730673158 | R139: 0.1758034079 | S139: 1.454612966 | T139: 1.105742243 | U139: 0.4258855278 | V139: 0.4543907204 | W139: 1.986018491 | X139: =X137*$G60 -> 1.105742243 | Y139: 0.2664567698 | Z139: 0.2894435133 | AA139: 1.661642526
D140: Demand | E140: Demand
C141: Agriculture | D141: 0 | E141: 0 | F141: 0 | L141: With Plant Employees
C142: Mining | D142: 0 | E142: 0 | F142: 0 | L142: Jobs | P142: Earnings | T142: Output | X142: Value Added
C143: Construction | D143: 0 | E143: =+G7+G13+G14+G15+G16+G10+H29 -> 59216829.7 | F143: 50396934.09 | L143: Direct | M143: Indirect | N143: Induced | O143: Total | P143: Direct | Q143: Indirect | R143: Induced | S143: Total | T143: Direct | U143: Indirect | V143: Induced | W143: Total | X143: Direct | Y143: Indirect | Z143: Induced | AA143: Total
C144: Manufacturing | D144: =0.75*G81 -> 97188.05354 | E144: =G9+G22+(I28) -> 8477707.452 | F144: 7638697.609 | J144: Agriculture | L144: =L98+L123 -> 0.01134992599 | M144: =M98+M123 -> 0.001493570745 | N144: 0.002445596163 | O144: =N144+M144+L144 -> 0.0152890929 | P144: 0.0002814493264 | Q144: 0.0001219677473 | R144: 0.0001806501415 | S144: =R144+Q144+P144 -> 0.0005840672151 | T144: 0.001279869905 | U144: 0.0003266330064 | V144: 0.0004670219929 | W144: =V144+U144+T144 -> 0.002073524904 | X144: =X98+X123 -> 0.0002993142959 | Y144: 0.0001962973511 | Z144: 0.0002974920023 | AA144: =Z144+Y144+X144 -> 0.0007931036493
C145: Fabricated Metals | D145: 0 | E145: =G23 -> 0 | F145: 0 | J145: Mining | L145: =L99+L124 -> 9.056908836e-06 | M145: 4.154032194e-06 | N145: 1.307870348e-06 | O145: =N145+M145+L145 -> 1.451881138e-05 | P145: -2.388533751e-08 | Q145: 3.111081849e-07 | R145: 8.427635255e-08 | S145: =R145+Q145+P145 -> 3.714992e-07 | T145: 2.86799651e-06 | U145: 7.818399428e-07 | V145: 2.172385533e-07 | W145: =V145+U145+T145 -> 3.867075006e-06 | X145: =X99+X124 -> 7.193953961e-07 | Y145: 4.62565131e-07 | Z145: 1.383652855e-07 | AA145: =Z145+Y145+X145 -> 1.320325813e-06
C146: Machinery | D146: 0 | E146: =+G21 -> 0 | F146: 0 | J146: Construction | L146: =L100+L125 -> 0 | M146: 0 | N146: 0 | O146: 0 | P146: 0 | Q146: 0 | R146: 0 | S146: 0 | T146: 0 | U146: 0 | V146: 0 | W146: 0 | X146: =X100+X125 -> 0 | Y146: 0 | Z146: 0 | AA146: 0
C147: Electrical Equipment | D147: =0.25*G81 -> 32396.01785 | E147: =+G8 -> 0 | F147: 0 | J147: Manufacturing | L147: =L101+L126 -> 0.1704353222 | M147: 0.1327937189 | N147: 0.1577646647 | O147: 0.4609937057 | P147: 0.02062917612 | Q147: 0.01033495177 | R147: 0.01039224388 | S147: 0.04135637177 | T147: 0.09748960764 | U147: 0.02680123567 | V147: 0.02686186482 | W147: 0.1511527081 | X147: =X101+X126 -> 0.02855629225 | Y147: 0.01612464924 | Z147: 0.01711084922 | AA147: 0.06179179072
C148: TCPU | D148: =G77 -> 227493.9808 | E148: =G24 -> 0 | F148: 0 | J148: Fabricated Metals | L148: =L102+L127 -> 3.592717584e-06 | M148: 2.536342421e-06 | N148: 3.284378698e-06 | O148: 9.413438702e-06 | P148: 2.936404152e-07 | Q148: 1.98199662e-07 | R148: 2.118682391e-07 | S148: 7.037083163e-07 | T148: 1.729921155e-06 | U148: 4.994817161e-07 | V148: 5.474753189e-07 | W148: 2.77687819e-06 | X148: =X102+X127 -> 3.722314848e-07 | Y148: 2.997425513e-07 | Z148: 3.487345777e-07 | AA148: 1.020708614e-06
C149: Wholesale Trade | D149: 0 | E149: 0 | F149: 0 | J149: Machinery | L149: =L103+L128 -> 4.484049778e-06 | M149: 4.11970289e-06 | N149: 5.410192176e-06 | O149: 1.401394484e-05 | P149: 4.791878495e-07 | Q149: 3.306561692e-07 | R149: 3.481430485e-07 | S149: 1.157987067e-06 | T149: 2.94847345e-06 | U149: 8.50046497e-07 | V149: 8.995964296e-07 | W149: 4.698116377e-06 | X149: =X103+X128 -> 5.241242951e-07 | Y149: 5.203608368e-07 | Z149: 5.730307099e-07 | AA149: 1.617515842e-06
C150: Retail Trade | D150: =G79+G80+G74 -> 1144761.378 | E150: =G17*0.5 -> 4141050 | F150: 3686000 | J150: Electrical Equipment | L150: =L104+L129 -> 0.04743719698 | M150: 0.02655626171 | N150: 0.0251040941 | O150: 0.09909755279 | P150: 0.003499907776 | Q150: 0.002036299096 | R150: 0.001607813797 | S150: 0.00714402067 | T150: 0.01633361772 | U150: 0.005023866787 | V150: 0.004154234725 | W150: 0.02551171923 | X150: =X104+X129 -> 0.006390598218 | Y150: 0.003109756789 | Z150: 0.002646183646 | AA150: 0.01214653865
C151: FIRE | D151: =J90+G78+H86+H88+IF(E1="MYCOUNTY",0,(D66*E66*DefaultData!M107)+(D67*E67*DefaultData!M107)+(D68*E68*DefaultData!M107)) -> 362946.1177 | E151: =G32 -> 0 | F151: 0 | J151: TCPU | L151: =L105+L130 -> 0.8121126751 | M151: 0.547730238 | N151: 0.6898045246 | O151: 2.049647438 | P151: 0.1027264977 | Q151: 0.04423631981 | R151: 0.04427631894 | S151: 0.1912391365 | T151: 0.2922337293 | U151: 0.1088201856 | V151: 0.1145271185 | W151: 0.5155810333 | X151: =X105+X130 -> 0.1357758633 | Y151: 0.06565406975 | Z151: 0.07295503216 | AA151: 0.2743849653
C152: Misc. Services | D152: =G75 -> 90997.59233 | E152: =G17*0.5 -> 4141050 | F152: 3686000 | J152: Wholesale Trade | L152: =L106+L131 -> 2.811683126 | M152: 1.547082988 | N152: 1.900329315 | O152: 6.259095429 | P152: 0.3054685502 | Q152: 0.1142138933 | R152: 0.1248860405 | S152: 0.5445684841 | T152: 0.9275419768 | U152: 0.2646782312 | V152: 0.3227389338 | W152: 1.514959142 | X152: =X106+X131 -> 0.6519774626 | Y152: 0.1693058318 | Z152: 0.2055811526 | AA152: 1.026864447
C153: Professional Services | D153: 0 | E153: =G30+G31+J29 -> 2396450.255 | F153: 2159281.732 | J153: Retail Trade | L153: =L107+L132 -> 4.809659129 | M153: 1.094802136 | N153: 1.443665529 | O153: 7.348126794 | P153: 0.2308698208 | Q153: 0.09137644565 | R153: 0.106047863 | S153: 0.4282941294 | T153: 0.6227241569 | U153: 0.2194273115 | V153: 0.2741170414 | W153: 1.11626851 | X153: =X107+X132 -> 0.3471873539 | Y153: 0.1384115991 | Z153: 0.1746109996 | AA153: 0.6602099526
C154: Government | D154: =G76+G83+G84+G89+IF(E1="MYCOUNTY",0,(D66*E66*DefaultData!M106)+(D67*E67*DefaultData!M106)+(D68*E68*DefaultData!M106)) -> 9535165.424 | E154: =+G33+E62+G36 -> 23798678.76 | F154: 1005922.146 | J154: FIRE | L154: =L108+L133 -> 1.824750582 | M154: 2.160008422 | N154: 2.204164373 | O154: 6.188923376 | P154: 0.1692225791 | Q154: 0.17065942 | R154: 0.1432883458 | S154: 0.483170345 | T154: 1.001733852 | U154: 0.4365709811 | V154: 0.3703545281 | W154: 1.808659361 | X154: =X108+X133 -> 0.3230619144 | Y154: 0.2718193377 | Z154: 0.2359131758 | AA154: 0.8307944279
C155: Total | D155: =SUM(D141:D154) -> 11490948.56 | E155: =SUM(E141:E154) -> 102171766.2 | F155: 68572835.57 | J155: Misc. Services | L155: =L109+L134 -> 3.916830717 | M155: 1.807674802 | N155: 2.434046006 | O155: 8.158551526 | P155: 0.2457191088 | Q155: 0.1358319087 | R155: 0.1626161322 | S155: 0.5441671497 | T155: 0.9043332213 | U155: 0.3193545375 | V155: 0.4202800301 | W155: 1.643967789 | X155: =X109+X134 -> 0.329147372 | Y155: 0.2013628697 | Z155: 0.2677146322 | AA155: 0.7982248739
J156: Professional Services | L156: =L110+L135 -> 0.05032335738 | M156: 0.03627354557 | N156: 0.05177698629 | O156: 0.1383738892 | P156: 0.005049083491 | Q156: 0.002920671234 | R156: 0.003453862876 | S156: 0.0114236176 | T156: 0.01672736321 | U156: 0.00654284279 | V156: 0.008928587736 | W156: 0.03219879373 | X156: =X110+X135 -> 0.00593762311 | Y156: 0.00414571073 | Z156: 0.005687481179 | AA156: 0.01577081502
J157: Government | L157: =L111+L136 -> 0 | M157: 5.392199923 | N157: 24.41106269 | O157: 29.80326261 | P157: 0 | Q157: 0.4945510733 | R157: 1.900283586 | S157: 2.39483466 | T157: 9.392015654 | U157: 1.184592911 | V157: 4.909656982 | W157: 15.48626555 | X157: =X111+X136 -> 8.220295972 | Y157: 0.6989891724 | Z157: 3.127369199 | AA157: 12.04665434
J158: Plant Employees | L158: =L137 -> 13.6 | O158: 13.6 | P158: =P137 -> 1.087045067 | S158: 1.087045067 | W158: 0 | X158: =X137 -> 1.087045067 | AA158: 1.087045067
J159: Total | L159: =SUM(L144:L158) -> 28.05459916 | M159: =SUM(M144:M158) -> 12.74662642 | N159: 33.32017378 | O159: 74.12139936 | P159: 2.17051199 | Q159: 1.066283791 | R159: 2.497033502 | S159: 5.733829282 | T159: 13.27242059 | U159: 2.572140867 | V159: 6.452088007 | W159: 22.29664947 | X159: =SUM(X144:X158) -> 11.13567645 | Y159: 1.569120577 | Z159: 4.109887257 | AA159: 16.81468428
J160: Inflate to | K160: =P138 -> 2017 | L160: Dollars | P160: =P159*$G60 -> 2.207844796 | Q160: 1.084623872 | R160: 2.539982478 | S160: 5.832451146 | T160: 13.50070623 | U160: 2.61638169 | V160: 6.563063921 | W160: 22.68015184 | X160: =X159*$G60 -> 11.32721008 | Y160: 1.596109451 | Z160: 4.180577318 | AA160: 17.10389685
C162: Default | H162: Default | M162: Default
C163: From DefaultData | H163: From DefaultData | M163: From DefaultData
C164: Debt - Loan Repayment Schedule | H164: Equity - Individual Investment Repayment Schedule | M164: Equity - Corporate Investment Repayment Schedule
C165: Year | D165: Interest Pmt | E165: Principal Pmt | F165: Total Pmt | H165: Year | I165: Interest Pmt | J165: Principal Pmt | K165: Total Pmt | M165: Year | N165: Interest Pmt | O165: Principal Pmt | P165: Total Pmt
C166: 1 | D166: =IF(C166<=DefaultData!D$85,-IPMT(DefaultData!D$86,C166,DefaultData!D$85,DefaultData!D$48*DefaultData!D$84),0) -> 23117231.83 | E166: =IF(C166<=DefaultData!D$85,-PPMT(DefaultData!D$86,C166,DefaultData!D$85,DefaultData!D$84*DefaultData!D$48),0) -> 27449196.18 | F166: =E166+D166 -> 50566428.01 | H166: 1 | I166: =IF(H166<=DefaultData!$D$93,-IPMT(DefaultData!$D$92,H166,DefaultData!$D$93,DefaultData!$D$48*DefaultData!$D$89*DefaultData!$D$90),0) -> 0 | J166: =IF(H166<=DefaultData!$D$93,-PPMT(DefaultData!$D$92,H166,DefaultData!$D$93,DefaultData!$D$89*DefaultData!$D$48*DefaultData!$D$90),0) -> 0 | K166: =J166+I166 -> 0 | M166: 1 | N166: =IF(M166<=DefaultData!$D$93,-IPMT(DefaultData!$D$92,M166,DefaultData!$D$93,DefaultData!$D$48*DefaultData!$D$89*DefaultData!$D$91),0) -> 11008205.63 | O166: =IF(M166<=DefaultData!$D$93,-PPMT(DefaultData!$D$92,M166,DefaultData!$D$93,DefaultData!$D$89*DefaultData!$D$48*DefaultData!$D$91),0) -> 5227444.974 | P166: =O166+N166 -> 16235650.61
C167: 2 | D167: =IF(C167<=DefaultData!D$85,-IPMT(DefaultData!D$86,C167,DefaultData!D$85,DefaultData!D$48*DefaultData!D$84),0) -> 21387932.47 | E167: =IF(C167<=DefaultData!D$85,-PPMT(DefaultData!D$86,C167,DefaultData!D$85,DefaultData!D$84*DefaultData!D$48),0) -> 29178495.54 | F167: 50566428.01 | H167: 2 | I167: =IF(H167<=DefaultData!$D$93,-IPMT(DefaultData!$D$92,H167,DefaultData!$D$93,DefaultData!$D$48*DefaultData!$D$89*DefaultData!$D$90),0) -> 0 | J167: =IF(H167<=DefaultData!$D$93,-PPMT(DefaultData!$D$92,H167,DefaultData!$D$93,DefaultData!$D$89*DefaultData!$D$48*DefaultData!$D$90),0) -> 0 | K167: 0 | M167: 2 | N167: =IF(M167<=DefaultData!$D$93,-IPMT(DefaultData!$D$92,M167,DefaultData!$D$93,DefaultData!$D$48*DefaultData!$D$89*DefaultData!$D$91),0) -> 10380912.24 | O167: =IF(M167<=DefaultData!$D$93,-PPMT(DefaultData!$D$92,M167,DefaultData!$D$93,DefaultData!$D$89*DefaultData!$D$46*DefaultData!$D$91),0) -> 5565211.615 | P167: 15946123.85
C168: 3 | D168: =IF(C168<=DefaultData!D$85,-IPMT(DefaultData!D$86,C168,DefaultData!D$85,DefaultData!D$48*DefaultData!D$84),0) -> 19549687.25 | E168: =IF(C168<=DefaultData!D$85,-PPMT(DefaultData!D$86,C168,DefaultData!D$85,DefaultData!D$84*DefaultData!D$48),0) -> 31016740.75 | F168: 50566428.01 | H168: 3 | I168: =IF(H168<=DefaultData!$D$93,-IPMT(DefaultData!$D$92,H168,DefaultData!$D$93,DefaultData!$D$48*DefaultData!$D$89*DefaultData!$D$90),0) -> 0 | J168: =IF(H168<=DefaultData!$D$93,-PPMT(DefaultData!$D$92,H168,DefaultData!$D$93,DefaultData!$D$89*DefaultData!$D$48*DefaultData!$D$90),0) -> 0 | K168: 0 | M168: 3 | N168: =IF(M168<=DefaultData!$D$93,-IPMT(DefaultData!$D$92,M168,DefaultData!$D$93,DefaultData!$D$48*DefaultData!$D$89*DefaultData!$D$91),0) -> 9678343.631 | O168: =IF(M168<=DefaultData!$D$93,-PPMT(DefaultData!$D$92,M168,DefaultData!$D$93,DefaultData!$D$89*DefaultData!$D$46*DefaultData!$D$91),0) -> 6233037.009 | P168: 15911380.64
C169: 4 | D169: =IF(C169<=DefaultData!D$85,-IPMT(DefaultData!D$86,C169,DefaultData!D$85,DefaultData!D$48*DefaultData!D$84),0) -> 17595632.58 | E169: =IF(C169<=DefaultData!D$85,-PPMT(DefaultData!D$86,C169,DefaultData!D$85,DefaultData!D$84*DefaultData!D$48),0) -> 32970795.42 | F169: 50566428.01 | H169: 4 | I169: =IF(H169<=DefaultData!$D$93,-IPMT(DefaultData!$D$92,H169,DefaultData!$D$93,DefaultData!$D$48*DefaultData!$D$89*DefaultData!$D$90),0) -> 0 | J169: =IF(H169<=DefaultData!$D$93,-PPMT(DefaultData!$D$92,H169,DefaultData!$D$93,DefaultData!$D$89*DefaultData!$D$48*DefaultData!$D$90),0) -> 0 | K169: 0 | M169: 4 | N169: =IF(M169<=DefaultData!$D$93,-IPMT(DefaultData!$D$92,M169,DefaultData!$D$93,DefaultData!$D$48*DefaultData!$D$89*DefaultData!$D$91),0) -> 8891466.794 | O169: =IF(M169<=DefaultData!$D$93,-PPMT(DefaultData!$D$92,M169,DefaultData!$D$93,DefaultData!$D$89*DefaultData!$D$46*DefaultData!$D$91),0) -> 6981001.45 | P169: 15872468.24
C170: 5 | D170: =IF(C170<=DefaultData!D$85,-IPMT(DefaultData!D$86,C170,DefaultData!D$85,DefaultData!D$48*DefaultData!D$84),0) -> 15518472.47 | E170: =IF(C170<=DefaultData!D$85,-PPMT(DefaultData!D$86,C170,DefaultData!D$85,DefaultData!D$84*DefaultData!D$48),0) -> 35047955.53 | F170: 50566428.01 | H170: 5 | I170: =IF(H170<=DefaultData!$D$93,-IPMT(DefaultData!$D$92,H170,DefaultData!$D$93,DefaultData!$D$48*DefaultData!$D$89*DefaultData!$D$90),0) -> 0 | J170: =IF(H170<=DefaultData!$D$93,-PPMT(DefaultData!$D$92,H170,DefaultData!$D$93,DefaultData!$D$89*DefaultData!$D$48*DefaultData!$D$90),0) -> 0 | K170: 0 | M170: 5 | N170: =IF(M170<=DefaultData!$D$93,-IPMT(DefaultData!$D$92,M170,DefaultData!$D$93,DefaultData!$D$48*DefaultData!$D$89*DefaultData!$D$91),0) -> 8010164.737 | O170: =IF(M170<=DefaultData!$D$93,-PPMT(DefaultData!$D$92,M170,DefaultData!$D$93,DefaultData!$D$89*DefaultData!$D$46*DefaultData!$D$91),0) -> 7818721.623 | P170: 15828886.36
C171: 6 | D171: =IF(C171<=DefaultData!D$85,-IPMT(DefaultData!D$86,C171,DefaultData!D$85,DefaultData!D$48*DefaultData!D$84),0) -> 13310451.27 | E171: =IF(C171<=DefaultData!D$85,-PPMT(DefaultData!D$86,C171,DefaultData!D$85,DefaultData!D$84*DefaultData!D$48),0) -> 37255976.73 | F171: 50566428.01 | H171: 6 | I171: =IF(H171<=DefaultData!$D$93,-IPMT(DefaultData!$D$92,H171,DefaultData!$D$93,DefaultData!$D$48*DefaultData!$D$89*DefaultData!$D$90),0) -> 0 | J171: =IF(H171<=DefaultData!$D$93,-PPMT(DefaultData!$D$92,H171,DefaultData!$D$93,DefaultData!$D$89*DefaultData!$D$48*DefaultData!$D$90),0) -> 0 | K171: 0 | M171: 6 | N171: =IF(M171<=DefaultData!$D$93,-IPMT(DefaultData!$D$92,M171,DefaultData!$D$93,DefaultData!$D$48*DefaultData!$D$89*DefaultData!$D$91),0) -> 7023106.433 | O171: =IF(M171<=DefaultData!$D$93,-PPMT(DefaultData!$D$92,M171,DefaultData!$D$93,DefaultData!$D$89*DefaultData!$D$46*DefaultData!$D$91),0) -> 8756968.218 | P171: 15780074.65
C172: 7 | D172: =IF(C172<=DefaultData!D$85,-IPMT(DefaultData!D$86,C172,DefaultData!D$85,DefaultData!D$48*DefaultData!D$84),0) -> 10963324.74 | E172: =IF(C172<=DefaultData!D$85,-PPMT(DefaultData!D$86,C172,DefaultData!D$85,DefaultData!D$84*DefaultData!D$48),0) -> 39603103.27 | F172: 50566428.01 | H172: 7 | I172: =IF(H172<=DefaultData!$D$93,-IPMT(DefaultData!$D$92,H172,DefaultData!$D$93,DefaultData!$D$48*DefaultData!$D$89*DefaultData!$D$90),0) -> 0 | J172: =IF(H172<=DefaultData!$D$93,-PPMT(DefaultData!$D$92,H172,DefaultData!$D$93,DefaultData!$D$89*DefaultData!$D$48*DefaultData!$D$90),0) -> 0 | K172: 0 | M172: 7 | N172: =IF(M172<=DefaultData!$D$93,-IPMT(DefaultData!$D$92,M172,DefaultData!$D$93,DefaultData!$D$48*DefaultData!$D$89*DefaultData!$D$91),0) -> 5917601.132 | O172: =IF(M172<=DefaultData!$D$93,-PPMT(DefaultData!$D$92,M172,DefaultData!$D$93,DefaultData!$D$89*DefaultData!$D$46*DefaultData!$D$91),0) -> 9807804.404 | P172: 15725405.54
C173: 8 | D173: =IF(C173<=DefaultData!D$85,-IPMT(DefaultData!D$86,C173,DefaultData!D$85,DefaultData!D$48*DefaultData!D$84),0) -> 8468329.233 | E173: =IF(C173<=DefaultData!D$85,-PPMT(DefaultData!D$86,C173,DefaultData!D$85,DefaultData!D$84*DefaultData!D$48),0) -> 42098098.77 | F173: 50566428.01 | H173: 8 | I173: =IF(H173<=DefaultData!$D$93,-IPMT(DefaultData!$D$92,H173,DefaultData!$D$93,DefaultData!$D$48*DefaultData!$D$89*DefaultData!$D$90),0) -> 0 | J173: =IF(H173<=DefaultData!$D$93,-PPMT(DefaultData!$D$92,H173,DefaultData!$D$93,DefaultData!$D$89*DefaultData!$D$48*DefaultData!$D$90),0) -> 0 | K173: 0 | M173: 8 | N173: =IF(M173<=DefaultData!$D$93,-IPMT(DefaultData!$D$92,M173,DefaultData!$D$93,DefaultData!$D$48*DefaultData!$D$89*DefaultData!$D$91),0) -> 4679435.195 | O173: =IF(M173<=DefaultData!$D$93,-PPMT(DefaultData!$D$92,M173,DefaultData!$D$93,DefaultData!$D$89*DefaultData!$D$46*DefaultData!$D$91),0) -> 10984740.93 | P173: 15664176.13
C174: 9 | D174: =IF(C174<=DefaultData!D$85,-IPMT(DefaultData!D$86,C174,DefaultData!D$85,DefaultData!D$48*DefaultData!D$84),0) -> 5816149.011 | E174: =IF(C174<=DefaultData!D$85,-PPMT(DefaultData!D$86,C174,DefaultData!D$85,DefaultData!D$84*DefaultData!D$48),0) -> 44750279 | F174: 50566428.01 | H174: 9 | I174: =IF(H174<=DefaultData!$D$93,-IPMT(DefaultData!$D$92,H174,DefaultData!$D$93,DefaultData!$D$48*DefaultData!$D$89*DefaultData!$D$90),0) -> 0 | J174: =IF(H174<=DefaultData!$D$93,-PPMT(DefaultData!$D$92,H174,DefaultData!$D$93,DefaultData!$D$89*DefaultData!$D$48*DefaultData!$D$90),0) -> 0 | K174: 0 | M174: 9 | N174: =IF(M174<=DefaultData!$D$93,-IPMT(DefaultData!$D$92,M174,DefaultData!$D$93,DefaultData!$D$48*DefaultData!$D$89*DefaultData!$D$91),0) -> 3292689.345 | O174: =IF(M174<=DefaultData!$D$93,-PPMT(DefaultData!$D$92,M174,DefaultData!$D$93,DefaultData!$D$89*DefaultData!$D$46*DefaultData!$D$91),0) -> 12302909.84 | P174: 15595599.19
C175: 10 | D175: =IF(C175<=DefaultData!D$85,-IPMT(DefaultData!D$86,C175,DefaultData!D$85,DefaultData!D$48*DefaultData!D$84),0) -> 2996881.434 | E175: =IF(C175<=DefaultData!D$85,-PPMT(DefaultData!D$86,C175,DefaultData!D$85,DefaultData!D$84*DefaultData!D$48),0) -> 47569546.57 | F175: 50566428.01 | H175: 10 | I175: =IF(H175<=DefaultData!$D$93,-IPMT(DefaultData!$D$92,H175,DefaultData!$D$93,DefaultData!$D$48*DefaultData!$D$89*DefaultData!$D$90),0) -> 0 | J175: =IF(H175<=DefaultData!$D$93,-PPMT(DefaultData!$D$92,H175,DefaultData!$D$93,DefaultData!$D$89*DefaultData!$D$48*DefaultData!$D$90),0) -> 0 | K175: 0 | M175: 10 | N175: =IF(M175<=DefaultData!$D$93,-IPMT(DefaultData!$D$92,M175,DefaultData!$D$93,DefaultData!$D$48*DefaultData!$D$89*DefaultData!$D$91),0) -> 1739533.994 | O175: =IF(M175<=DefaultData!$D$93,-PPMT(DefaultData!$D$92,M175,DefaultData!$D$93,DefaultData!$D$89*DefaultData!$D$46*DefaultData!$D$91),0) -> 13779259.03 | P175: 15518793.02
C176: 11 | D176: =IF(C176<=DefaultData!D$85,-IPMT(DefaultData!D$86,C176,DefaultData!D$85,DefaultData!D$48*DefaultData!D$84),0) -> 0 | E176: =IF(C176<=DefaultData!D$85,-PPMT(DefaultData!D$86,C176,DefaultData!D$85,DefaultData!D$84*DefaultData!D$48),0) -> 0 | F176: 0 | H176: 11 | I176: =IF(H176<=DefaultData!$D$93,-IPMT(DefaultData!$D$92,H176,DefaultData!$D$93,DefaultData!$D$48*DefaultData!$D$89*DefaultData!$D$90),0) -> 0 | J176: =IF(H176<=DefaultData!$D$93,-PPMT(DefaultData!$D$92,H176,DefaultData!$D$93,DefaultData!$D$89*DefaultData!$D$48*DefaultData!$D$90),0) -> 0 | K176: 0 | M176: 11 | N176: =IF(M176<=DefaultData!$D$93,-IPMT(DefaultData!$D$92,M176,DefaultData!$D$93,DefaultData!$D$48*DefaultData!$D$89*DefaultData!$D$91),0) -> 0 | O176: =IF(M176<=DefaultData!$D$93,-PPMT(DefaultData!$D$92,M176,DefaultData!$D$93,DefaultData!$D$89*DefaultData!$D$46*DefaultData!$D$91),0) -> 0 | P176: 0
C177: 12 | D177: =IF(C177<=DefaultData!D$85,-IPMT(DefaultData!D$86,C177,DefaultData!D$85,DefaultData!D$48*DefaultData!D$84),0) -> 0 | E177: =IF(C177<=DefaultData!D$85,-PPMT(DefaultData!D$86,C177,DefaultData!D$85,DefaultData!D$84*DefaultData!D$48),0) -> 0 | F177: 0 | H177: 12 | I177: =IF(H177<=DefaultData!$D$93,-IPMT(DefaultData!$D$92,H177,DefaultData!$D$93,DefaultData!$D$48*DefaultData!$D$89*DefaultData!$D$90),0) -> 0 | J177: =IF(H177<=DefaultData!$D$93,-PPMT(DefaultData!$D$92,H177,DefaultData!$D$93,DefaultData!$D$89*DefaultData!$D$48*DefaultData!$D$90),0) -> 0 | K177: 0 | M177: 12 | N177: =IF(M177<=DefaultData!$D$93,-IPMT(DefaultData!$D$92,M177,DefaultData!$D$93,DefaultData!$D$48*DefaultData!$D$89*DefaultData!$D$91),0) -> 0 | O177: =IF(M177<=DefaultData!$D$93,-PPMT(DefaultData!$D$92,M177,DefaultData!$D$93,DefaultData!$D$89*DefaultData!$D$46*DefaultData!$D$91),0) -> 0 | P177: 0
C178: 13 | D178: =IF(C178<=DefaultData!D$85,-IPMT(DefaultData!D$86,C178,DefaultData!D$85,DefaultData!D$48*DefaultData!D$84),0) -> 0 | E178: =IF(C178<=DefaultData!D$85,-PPMT(DefaultData!D$86,C178,DefaultData!D$85,DefaultData!D$84*DefaultData!D$48),0) -> 0 | F178: 0 | H178: 13 | I178: =IF(H178<=DefaultData!$D$93,-IPMT(DefaultData!$D$92,H178,DefaultData!$D$93,DefaultData!$D$48*DefaultData!$D$89*DefaultData!$D$90),0) -> 0 | J178: =IF(H178<=DefaultData!$D$93,-PPMT(DefaultData!$D$92,H178,DefaultData!$D$93,DefaultData!$D$89*DefaultData!$D$48*DefaultData!$D$90),0) -> 0 | K178: 0 | M178: 13 | N178: =IF(M178<=DefaultData!$D$93,-IPMT(DefaultData!$D$92,M178,DefaultData!$D$93,DefaultData!$D$48*DefaultData!$D$89*DefaultData!$D$91),0) -> 0 | O178: =IF(M178<=DefaultData!$D$93,-PPMT(DefaultData!$D$92,M178,DefaultData!$D$93,DefaultData!$D$89*DefaultData!$D$46*DefaultData!$D$91),0) -> 0 | P178: 0
C179: 14 | D179: =IF(C179<=DefaultData!D$85,-IPMT(DefaultData!D$86,C179,DefaultData!D$85,DefaultData!D$48*DefaultData!D$84),0) -> 0 | E179: =IF(C179<=DefaultData!D$85,-PPMT(DefaultData!D$86,C179,DefaultData!D$85,DefaultData!D$84*DefaultData!D$48),0) -> 0 | F179: 0 | H179: 14 | I179: =IF(H179<=DefaultData!$D$93,-IPMT(DefaultData!$D$92,H179,DefaultData!$D$93,DefaultData!$D$48*DefaultData!$D$89*DefaultData!$D$90),0) -> 0 | J179: =IF(H179<=DefaultData!$D$93,-PPMT(DefaultData!$D$92,H179,DefaultData!$D$93,DefaultData!$D$89*DefaultData!$D$48*DefaultData!$D$90),0) -> 0 | K179: 0 | M179: 14 | N179: =IF(M179<=DefaultData!$D$93,-IPMT(DefaultData!$D$92,M179,DefaultData!$D$93,DefaultData!$D$48*DefaultData!$D$89*DefaultData!$D$91),0) -> 0 | O179: =IF(M179<=DefaultData!$D$93,-PPMT(DefaultData!$D$92,M179,DefaultData!$D$93,DefaultData!$D$89*DefaultData!$D$46*DefaultData!$D$91),0) -> 0 | P179: 0
C180: 15 | D180: =IF(C180<=DefaultData!D$85,-IPMT(DefaultData!D$86,C180,DefaultData!D$85,DefaultData!D$48*DefaultData!D$84),0) -> 0 | E180: =IF(C180<=DefaultData!D$85,-PPMT(DefaultData!D$86,C180,DefaultData!D$85,DefaultData!D$84*DefaultData!D$48),0) -> 0 | F180: 0 | H180: 15 | I180: =IF(H180<=DefaultData!$D$93,-IPMT(DefaultData!$D$92,H180,DefaultData!$D$93,DefaultData!$D$48*DefaultData!$D$89*DefaultData!$D$90),0) -> 0 | J180: =IF(H180<=DefaultData!$D$93,-PPMT(DefaultData!$D$92,H180,DefaultData!$D$93,DefaultData!$D$89*DefaultData!$D$48*DefaultData!$D$90),0) -> 0 | K180: 0 | M180: 15 | N180: =IF(M180<=DefaultData!$D$93,-IPMT(DefaultData!$D$92,M180,DefaultData!$D$93,DefaultData!$D$48*DefaultData!$D$89*DefaultData!$D$91),0) -> 0 | O180: =IF(M180<=DefaultData!$D$93,-PPMT(DefaultData!$D$92,M180,DefaultData!$D$93,DefaultData!$D$89*DefaultData!$D$46*DefaultData!$D$91),0) -> 0 | P180: 0
C181: 16 | D181: =IF(C181<=DefaultData!D$85,-IPMT(DefaultData!D$86,C181,DefaultData!D$85,DefaultData!D$48*DefaultData!D$84),0) -> 0 | E181: =IF(C181<=DefaultData!D$85,-PPMT(DefaultData!D$86,C181,DefaultData!D$85,DefaultData!D$84*DefaultData!D$48),0) -> 0 | F181: 0 | H181: 16 | I181: =IF(H181<=DefaultData!$D$93,-IPMT(DefaultData!$D$92,H181,DefaultData!$D$93,DefaultData!$D$48*DefaultData!$D$89*DefaultData!$D$90),0) -> 0 | J181: =IF(H181<=DefaultData!$D$93,-PPMT(DefaultData!$D$92,H181,DefaultData!$D$93,DefaultData!$D$89*DefaultData!$D$48*DefaultData!$D$90),0) -> 0 | K181: 0 | M181: 16 | N181: =IF(M181<=DefaultData!$D$93,-IPMT(DefaultData!$D$92,M181,DefaultData!$D$93,DefaultData!$D$48*DefaultData!$D$89*DefaultData!$D$91),0) -> 0 | O181: =IF(M181<=DefaultData!$D$93,-PPMT(DefaultData!$D$92,M181,DefaultData!$D$93,DefaultData!$D$89*DefaultData!$D$46*DefaultData!$D$91),0) -> 0 | P181: 0
C182: 17 | D182: =IF(C182<=DefaultData!D$85,-IPMT(DefaultData!D$86,C182,DefaultData!D$85,DefaultData!D$48*DefaultData!D$84),0) -> 0 | E182: =IF(C182<=DefaultData!D$85,-PPMT(DefaultData!D$86,C182,DefaultData!D$85,DefaultData!D$84*DefaultData!D$48),0) -> 0 | F182: 0 | H182: 17 | I182: =IF(H182<=DefaultData!$D$93,-IPMT(DefaultData!$D$92,H182,DefaultData!$D$93,DefaultData!$D$48*DefaultData!$D$89*DefaultData!$D$90),0) -> 0 | J182: =IF(H182<=DefaultData!$D$93,-PPMT(DefaultData!$D$92,H182,DefaultData!$D$93,DefaultData!$D$89*DefaultData!$D$48*DefaultData!$D$90),0) -> 0 | K182: 0 | M182: 17 | N182: =IF(M182<=DefaultData!$D$93,-IPMT(DefaultData!$D$92,M182,DefaultData!$D$93,DefaultData!$D$48*DefaultData!$D$89*DefaultData!$D$91),0) -> 0 | O182: =IF(M182<=DefaultData!$D$93,-PPMT(DefaultData!$D$92,M182,DefaultData!$D$93,DefaultData!$D$89*DefaultData!$D$46*DefaultData!$D$91),0) -> 0 | P182: 0
C183: 18 | D183: =IF(C183<=DefaultData!D$85,-IPMT(DefaultData!D$86,C183,DefaultData!D$85,DefaultData!D$48*DefaultData!D$84),0) -> 0 | E183: =IF(C183<=DefaultData!D$85,-PPMT(DefaultData!D$86,C183,DefaultData!D$85,DefaultData!D$84*DefaultData!D$48),0) -> 0 | F183: 0 | H183: 18 | I183: =IF(H183<=DefaultData!$D$93,-IPMT(DefaultData!$D$92,H183,DefaultData!$D$93,DefaultData!$D$48*DefaultData!$D$89*DefaultData!$D$90),0) -> 0 | J183: =IF(H183<=DefaultData!$D$93,-PPMT(DefaultData!$D$92,H183,DefaultData!$D$93,DefaultData!$D$89*DefaultData!$D$48*DefaultData!$D$90),0) -> 0 | K183: 0 | M183: 18 | N183: =IF(M183<=DefaultData!$D$93,-IPMT(DefaultData!$D$92,M183,DefaultData!$D$93,DefaultData!$D$48*DefaultData!$D$89*DefaultData!$D$91),0) -> 0 | O183: =IF(M183<=DefaultData!$D$93,-PPMT(DefaultData!$D$92,M183,DefaultData!$D$93,DefaultData!$D$89*DefaultData!$D$46*DefaultData!$D$91),0) -> 0 | P183: 0
C184: 19 | D184: =IF(C184<=DefaultData!D$85,-IPMT(DefaultData!D$86,C184,DefaultData!D$85,DefaultData!D$48*DefaultData!D$84),0) -> 0 | E184: =IF(C184<=DefaultData!D$85,-PPMT(DefaultData!D$86,C184,DefaultData!D$85,DefaultData!D$84*DefaultData!D$48),0) -> 0 | F184: 0 | H184: 19 | I184: =IF(H184<=DefaultData!$D$93,-IPMT(DefaultData!$D$92,H184,DefaultData!$D$93,DefaultData!$D$48*DefaultData!$D$89*DefaultData!$D$90),0) -> 0 | J184: =IF(H184<=DefaultData!$D$93,-PPMT(DefaultData!$D$92,H184,DefaultData!$D$93,DefaultData!$D$89*DefaultData!$D$48*DefaultData!$D$90),0) -> 0 | K184: 0 | M184: 19 | N184: =IF(M184<=DefaultData!$D$93,-IPMT(DefaultData!$D$92,M184,DefaultData!$D$93,DefaultData!$D$48*DefaultData!$D$89*DefaultData!$D$91),0) -> 0 | O184: =IF(M184<=DefaultData!$D$93,-PPMT(DefaultData!$D$92,M184,DefaultData!$D$93,DefaultData!$D$89*DefaultData!$D$46*DefaultData!$D$91),0) -> 0 | P184: 0
C185: 20 | D185: =IF(C185<=DefaultData!D$85,-IPMT(DefaultData!D$86,C185,DefaultData!D$85,DefaultData!D$48*DefaultData!D$84),0) -> 0 | E185: =IF(C185<=DefaultData!D$85,-PPMT(DefaultData!D$86,C185,DefaultData!D$85,DefaultData!D$84*DefaultData!D$48),0) -> 0 | F185: 0 | H185: 20 | I185: =IF(H185<=DefaultData!$D$93,-IPMT(DefaultData!$D$92,H185,DefaultData!$D$93,DefaultData!$D$48*DefaultData!$D$89*DefaultData!$D$90),0) -> 0 | J185: =IF(H185<=DefaultData!$D$93,-PPMT(DefaultData!$D$92,H185,DefaultData!$D$93,DefaultData!$D$89*DefaultData!$D$48*DefaultData!$D$90),0) -> 0 | K185: 0 | M185: 20 | N185: =IF(M185<=DefaultData!$D$93,-IPMT(DefaultData!$D$92,M185,DefaultData!$D$93,DefaultData!$D$48*DefaultData!$D$89*DefaultData!$D$91),0) -> 0 | O185: =IF(M185<=DefaultData!$D$93,-PPMT(DefaultData!$D$92,M185,DefaultData!$D$93,DefaultData!$D$89*DefaultData!$D$46*DefaultData!$D$91),0) -> 0 | P185: 0
C186: 21 | D186: =IF(C186<=DefaultData!D$85,-IPMT(DefaultData!D$86,C186,DefaultData!D$85,DefaultData!D$48*DefaultData!D$84),0) -> 0 | E186: =IF(C186<=DefaultData!D$85,-PPMT(DefaultData!D$86,C186,DefaultData!D$85,DefaultData!D$84*DefaultData!D$48),0) -> 0 | F186: 0 | H186: 21 | I186: =IF(H186<=DefaultData!$D$93,-IPMT(DefaultData!$D$92,H186,DefaultData!$D$93,DefaultData!$D$48*DefaultData!$D$89*DefaultData!$D$90),0) -> 0 | J186: =IF(H186<=DefaultData!$D$93,-PPMT(DefaultData!$D$92,H186,DefaultData!$D$93,DefaultData!$D$89*DefaultData!$D$48*DefaultData!$D$90),0) -> 0 | K186: 0 | M186: 21 | N186: =IF(M186<=DefaultData!$D$93,-IPMT(DefaultData!$D$92,M186,DefaultData!$D$93,DefaultData!$D$48*DefaultData!$D$89*DefaultData!$D$91),0) -> 0 | O186: =IF(M186<=DefaultData!$D$93,-PPMT(DefaultData!$D$92,M186,DefaultData!$D$93,DefaultData!$D$89*DefaultData!$D$46*DefaultData!$D$91),0) -> 0 | P186: 0
C187: 22 | D187: =IF(C187<=DefaultData!D$85,-IPMT(DefaultData!D$86,C187,DefaultData!D$85,DefaultData!D$48*DefaultData!D$84),0) -> 0 | E187: =IF(C187<=DefaultData!D$85,-PPMT(DefaultData!D$86,C187,DefaultData!D$85,DefaultData!D$84*DefaultData!D$48),0) -> 0 | F187: 0 | H187: 22 | I187: =IF(H187<=DefaultData!$D$93,-IPMT(DefaultData!$D$92,H187,DefaultData!$D$93,DefaultData!$D$48*DefaultData!$D$89*DefaultData!$D$90),0) -> 0 | J187: =IF(H187<=DefaultData!$D$93,-PPMT(DefaultData!$D$92,H187,DefaultData!$D$93,DefaultData!$D$89*DefaultData!$D$48*DefaultData!$D$90),0) -> 0 | K187: 0 | M187: 22 | N187: =IF(M187<=DefaultData!$D$93,-IPMT(DefaultData!$D$92,M187,DefaultData!$D$93,DefaultData!$D$48*DefaultData!$D$89*DefaultData!$D$91),0) -> 0 | O187: =IF(M187<=DefaultData!$D$93,-PPMT(DefaultData!$D$92,M187,DefaultData!$D$93,DefaultData!$D$89*DefaultData!$D$46*DefaultData!$D$91),0) -> 0 | P187: 0
C188: 23 | D188: =IF(C188<=DefaultData!D$85,-IPMT(DefaultData!D$86,C188,DefaultData!D$85,DefaultData!D$48*DefaultData!D$84),0) -> 0 | E188: =IF(C188<=DefaultData!D$85,-PPMT(DefaultData!D$86,C188,DefaultData!D$85,DefaultData!D$84*DefaultData!D$48),0) -> 0 | F188: 0 | H188: 23 | I188: =IF(H188<=DefaultData!$D$93,-IPMT(DefaultData!$D$92,H188,DefaultData!$D$93,DefaultData!$D$48*DefaultData!$D$89*DefaultData!$D$90),0) -> 0 | J188: =IF(H188<=DefaultData!$D$93,-PPMT(DefaultData!$D$92,H188,DefaultData!$D$93,DefaultData!$D$89*DefaultData!$D$48*DefaultData!$D$90),0) -> 0 | K188: 0 | M188: 23 | N188: =IF(M188<=DefaultData!$D$93,-IPMT(DefaultData!$D$92,M188,DefaultData!$D$93,DefaultData!$D$48*DefaultData!$D$89*DefaultData!$D$91),0) -> 0 | O188: =IF(M188<=DefaultData!$D$93,-PPMT(DefaultData!$D$92,M188,DefaultData!$D$93,DefaultData!$D$89*DefaultData!$D$46*DefaultData!$D$91),0) -> 0 | P188: 0
C189: 24 | D189: =IF(C189<=DefaultData!D$85,-IPMT(DefaultData!D$86,C189,DefaultData!D$85,DefaultData!D$48*DefaultData!D$84),0) -> 0 | E189: =IF(C189<=DefaultData!D$85,-PPMT(DefaultData!D$86,C189,DefaultData!D$85,DefaultData!D$84*DefaultData!D$48),0) -> 0 | F189: 0 | H189: 24 | I189: =IF(H189<=DefaultData!$D$93,-IPMT(DefaultData!$D$92,H189,DefaultData!$D$93,DefaultData!$D$48*DefaultData!$D$89*DefaultData!$D$90),0) -> 0 | J189: =IF(H189<=DefaultData!$D$93,-PPMT(DefaultData!$D$92,H189,DefaultData!$D$93,DefaultData!$D$89*DefaultData!$D$48*DefaultData!$D$90),0) -> 0 | K189: 0 | M189: 24 | N189: =IF(M189<=DefaultData!$D$93,-IPMT(DefaultData!$D$92,M189,DefaultData!$D$93,DefaultData!$D$48*DefaultData!$D$89*DefaultData!$D$91),0) -> 0 | O189: =IF(M189<=DefaultData!$D$93,-PPMT(DefaultData!$D$92,M189,DefaultData!$D$93,DefaultData!$D$89*DefaultData!$D$46*DefaultData!$D$91),0) -> 0 | P189: 0
C190: 25 | D190: =IF(C190<=DefaultData!D$85,-IPMT(DefaultData!D$86,C190,DefaultData!D$85,DefaultData!D$48*DefaultData!D$84),0) -> 0 | E190: =IF(C190<=DefaultData!D$85,-PPMT(DefaultData!D$86,C190,DefaultData!D$85,DefaultData!D$84*DefaultData!D$48),0) -> 0 | F190: 0 | H190: 25 | I190: =IF(H190<=DefaultData!$D$93,-IPMT(DefaultData!$D$92,H190,DefaultData!$D$93,DefaultData!$D$48*DefaultData!$D$89*DefaultData!$D$90),0) -> 0 | J190: =IF(H190<=DefaultData!$D$93,-PPMT(DefaultData!$D$92,H190,DefaultData!$D$93,DefaultData!$D$89*DefaultData!$D$48*DefaultData!$D$90),0) -> 0 | K190: 0 | M190: 25 | N190: =IF(M190<=DefaultData!$D$93,-IPMT(DefaultData!$D$92,M190,DefaultData!$D$93,DefaultData!$D$48*DefaultData!$D$89*DefaultData!$D$91),0) -> 0 | O190: =IF(M190<=DefaultData!$D$93,-PPMT(DefaultData!$D$92,M190,DefaultData!$D$93,DefaultData!$D$89*DefaultData!$D$46*DefaultData!$D$91),0) -> 0 | P190: 0
C191: 26 | D191: =IF(C191<=DefaultData!D$85,-IPMT(DefaultData!D$86,C191,DefaultData!D$85,DefaultData!D$48*DefaultData!D$84),0) -> 0 | E191: =IF(C191<=DefaultData!D$85,-PPMT(DefaultData!D$86,C191,DefaultData!D$85,DefaultData!D$84*DefaultData!D$48),0) -> 0 | F191: 0 | H191: 26 | I191: =IF(H191<=DefaultData!$D$93,-IPMT(DefaultData!$D$92,H191,DefaultData!$D$93,DefaultData!$D$48*DefaultData!$D$89*DefaultData!$D$90),0) -> 0 | J191: =IF(H191<=DefaultData!$D$93,-PPMT(DefaultData!$D$92,H191,DefaultData!$D$93,DefaultData!$D$89*DefaultData!$D$48*DefaultData!$D$90),0) -> 0 | K191: 0 | M191: 26 | N191: =IF(M191<=DefaultData!$D$93,-IPMT(DefaultData!$D$92,M191,DefaultData!$D$93,DefaultData!$D$48*DefaultData!$D$89*DefaultData!$D$91),0) -> 0 | O191: =IF(M191<=DefaultData!$D$93,-PPMT(DefaultData!$D$92,M191,DefaultData!$D$93,DefaultData!$D$89*DefaultData!$D$46*DefaultData!$D$91),0) -> 0 | P191: 0
C192: 27 | D192: =IF(C192<=DefaultData!D$85,-IPMT(DefaultData!D$86,C192,DefaultData!D$85,DefaultData!D$48*DefaultData!D$84),0) -> 0 | E192: =IF(C192<=DefaultData!D$85,-PPMT(DefaultData!D$86,C192,DefaultData!D$85,DefaultData!D$84*DefaultData!D$48),0) -> 0 | F192: 0 | H192: 27 | I192: =IF(H192<=DefaultData!$D$93,-IPMT(DefaultData!$D$92,H192,DefaultData!$D$93,DefaultData!$D$48*DefaultData!$D$89*DefaultData!$D$90),0) -> 0 | J192: =IF(H192<=DefaultData!$D$93,-PPMT(DefaultData!$D$92,H192,DefaultData!$D$93,DefaultData!$D$89*DefaultData!$D$48*DefaultData!$D$90),0) -> 0 | K192: 0 | M192: 27 | N192: =IF(M192<=DefaultData!$D$93,-IPMT(DefaultData!$D$92,M192,DefaultData!$D$93,DefaultData!$D$48*DefaultData!$D$89*DefaultData!$D$91),0) -> 0 | O192: =IF(M192<=DefaultData!$D$93,-PPMT(DefaultData!$D$92,M192,DefaultData!$D$93,DefaultData!$D$89*DefaultData!$D$46*DefaultData!$D$91),0) -> 0 | P192: 0
C193: 28 | D193: =IF(C193<=DefaultData!D$85,-IPMT(DefaultData!D$86,C193,DefaultData!D$85,DefaultData!D$48*DefaultData!D$84),0) -> 0 | E193: =IF(C193<=DefaultData!D$85,-PPMT(DefaultData!D$86,C193,DefaultData!D$85,DefaultData!D$84*DefaultData!D$48),0) -> 0 | F193: 0 | H193: 28 | I193: =IF(H193<=DefaultData!$D$93,-IPMT(DefaultData!$D$92,H193,DefaultData!$D$93,DefaultData!$D$48*DefaultData!$D$89*DefaultData!$D$90),0) -> 0 | J193: =IF(H193<=DefaultData!$D$93,-PPMT(DefaultData!$D$92,H193,DefaultData!$D$93,DefaultData!$D$89*DefaultData!$D$48*DefaultData!$D$90),0) -> 0 | K193: 0 | M193: 28 | N193: =IF(M193<=DefaultData!$D$93,-IPMT(DefaultData!$D$92,M193,DefaultData!$D$93,DefaultData!$D$48*DefaultData!$D$89*DefaultData!$D$91),0) -> 0 | O193: =IF(M193<=DefaultData!$D$93,-PPMT(DefaultData!$D$92,M193,DefaultData!$D$93,DefaultData!$D$89*DefaultData!$D$46*DefaultData!$D$91),0) -> 0 | P193: 0
C194: 29 | D194: =IF(C194<=DefaultData!D$85,-IPMT(DefaultData!D$86,C194,DefaultData!D$85,DefaultData!D$48*DefaultData!D$84),0) -> 0 | E194: =IF(C194<=DefaultData!D$85,-PPMT(DefaultData!D$86,C194,DefaultData!D$85,DefaultData!D$84*DefaultData!D$48),0) -> 0 | F194: 0 | H194: 29 | I194: =IF(H194<=DefaultData!$D$93,-IPMT(DefaultData!$D$92,H194,DefaultData!$D$93,DefaultData!$D$48*DefaultData!$D$89*DefaultData!$D$90),0) -> 0 | J194: =IF(H194<=DefaultData!$D$93,-PPMT(DefaultData!$D$92,H194,DefaultData!$D$93,DefaultData!$D$89*DefaultData!$D$48*DefaultData!$D$90),0) -> 0 | K194: 0 | M194: 29 | N194: =IF(M194<=DefaultData!$D$93,-IPMT(DefaultData!$D$92,M194,DefaultData!$D$93,DefaultData!$D$48*DefaultData!$D$89*DefaultData!$D$91),0) -> 0 | O194: =IF(M194<=DefaultData!$D$93,-PPMT(DefaultData!$D$92,M194,DefaultData!$D$93,DefaultData!$D$89*DefaultData!$D$46*DefaultData!$D$91),0) -> 0 | P194: 0
C195: 30 | D195: =IF(C195<=DefaultData!D$85,-IPMT(DefaultData!D$86,C195,DefaultData!D$85,DefaultData!D$48*DefaultData!D$84),0) -> 0 | E195: =IF(C195<=DefaultData!D$85,-PPMT(DefaultData!D$86,C195,DefaultData!D$85,DefaultData!D$84*DefaultData!D$48),0) -> 0 | F195: 0 | H195: 30 | I195: =IF(H195<=DefaultData!$D$93,-IPMT(DefaultData!$D$92,H195,DefaultData!$D$93,DefaultData!$D$48*DefaultData!$D$89*DefaultData!$D$90),0) -> 0 | J195: =IF(H195<=DefaultData!$D$93,-PPMT(DefaultData!$D$92,H195,DefaultData!$D$93,DefaultData!$D$89*DefaultData!$D$48*DefaultData!$D$90),0) -> 0 | K195: 0 | M195: 30 | N195: =IF(M195<=DefaultData!$D$93,-IPMT(DefaultData!$D$92,M195,DefaultData!$D$93,DefaultData!$D$48*DefaultData!$D$89*DefaultData!$D$91),0) -> 0 | O195: =IF(M195<=DefaultData!$D$93,-PPMT(DefaultData!$D$92,M195,DefaultData!$D$93,DefaultData!$D$89*DefaultData!$D$46*DefaultData!$D$91),0) -> 0 | P195: 0
C196: Total | D196: =SUM(D166:D195) -> 138724092.3 | E196: =SUM(E166:E195) -> 366940187.8 | F196: 505664280.1 | H196: Total | I196: =SUM(I166:I195) -> 0 | J196: =SUM(J166:J195) -> 0 | K196: 0 | M196: Total | N196: =SUM(N166:N195) -> 70621459.13 | O196: =SUM(O166:O195) -> 87457099.1 | P196: 158078558.2
C197: AvgAnn | D197: =D196/DefaultData!$D85 -> 13872409.23 | E197: =E196/DefaultData!$D85 -> 36694018.78 | F197: 50566428.01 | H197: AvgAnn | I197: =I196/DefaultData!$D93 -> 0 | J197: =J196/DefaultData!$D93 -> 0 | K197: 0 | M197: AvgAnn | N197: =N196/DefaultData!$D93 -> 7062145.913 | O197: =O196/DefaultData!$D93 -> 8745709.91 | P197: 15807855.82
C199: User Modified (from Project Data worksheet - based on loan parameters) | H199: User Modified (from Project Data worksheet - based on equity investment parameters) | M199: User Modified (from Project Data worksheet - based on equity investment parameters)
C200: Loan Repayment Schedule | H200: Equity - Individual Investment Repayment Schedule | M200: Equity - Corporate Investment Repayment Schedule
D201: Interest Pmt | E201: Principal Pmt | F201: Total Pmt | I201: Interest Pmt | J201: Principal Pmt | K201: Total Pmt | N201: Interest Pmt | O201: Principal Pmt | P201: Total Pmt
C202: 1 | D202: =IF(C202<=ProjectData!B$93,-IPMT(ProjectData!B$94,C202,ProjectData!B$93,ProjectData!B$92*ProjectData!B$64),0) -> 23117231.83 | E202: =IF(C202<=ProjectData!B$93,-PPMT(ProjectData!B$94,C202,ProjectData!B$93,ProjectData!B$64*ProjectData!B$92),0) -> 27449196.18 | F202: =E202+D202 -> 50566428.01 | H202: 1 | I202: =IF(H202<=ProjectData!B$100,-ISPMT(ProjectData!B$99,H202,ProjectData!B$100,ProjectData!B$64*ProjectData!B$96*ProjectData!B$97),0) -> 0 | J202: =IF(H202<=ProjectData!B$100,-PPMT(ProjectData!B$99,H202,ProjectData!B$100,ProjectData!B$96*ProjectData!B$64*ProjectData!B$97),0) -> 0 | K202: =J202+I202 -> 0 | M202: 1 | N202: =IF(M202<=ProjectData!$B$100,-IPMT(ProjectData!$B$99,M202,ProjectData!$B$100,ProjectData!$B$64*ProjectData!$B$96*ProjectData!$B$98),0) -> 11008205.63 | O202: =IF(M202<=ProjectData!$B$100,-PPMT(ProjectData!$B$99,M202,ProjectData!$B$100,ProjectData!$B$96*ProjectData!$B$64*ProjectData!$B$98),0) -> 5227444.974 | P202: =O202+N202 -> 16235650.61
C203: 2 | D203: =IF(C203<=ProjectData!B$93,-IPMT(ProjectData!B$94,C203,ProjectData!B$93,ProjectData!B$92*ProjectData!B$64),0) -> 21387932.47 | E203: =IF(C203<=ProjectData!B$93,-PPMT(ProjectData!B$94,C203,ProjectData!B$93,ProjectData!B$64*ProjectData!B$92),0) -> 29178495.54 | F203: 50566428.01 | H203: 2 | I203: =IF(H203<=ProjectData!B$100,-ISPMT(ProjectData!B$99,H203,ProjectData!B$100,ProjectData!B$64*ProjectData!B$96*ProjectData!B$97),0) -> 0 | J203: =IF(H203<=ProjectData!B$100,-PPMT(ProjectData!B$99,H203,ProjectData!B$100,ProjectData!B$96*ProjectData!B$64*ProjectData!B$97),0) -> 0 | K203: 0 | M203: 2 | N203: =IF(M203<=ProjectData!$B$100,-IPMT(ProjectData!$B$99,M203,ProjectData!$B$100,ProjectData!$B$64*ProjectData!$B$96*ProjectData!$B$98),0) -> 10380912.24 | O203: =IF(M203<=ProjectData!$B$100,-PPMT(ProjectData!$B$99,M203,ProjectData!$B$100,ProjectData!$B$96*ProjectData!$B$64*ProjectData!$B$98),0) -> 5854738.371 | P203: 16235650.61
C204: 3 | D204: =IF(C204<=ProjectData!B$93,-IPMT(ProjectData!B$94,C204,ProjectData!B$93,ProjectData!B$92*ProjectData!B$64),0) -> 19549687.25 | E204: =IF(C204<=ProjectData!B$93,-PPMT(ProjectData!B$94,C204,ProjectData!B$93,ProjectData!B$64*ProjectData!B$92),0) -> 31016740.75 | F204: 50566428.01 | H204: 3 | I204: =IF(H204<=ProjectData!B$100,-ISPMT(ProjectData!B$99,H204,ProjectData!B$100,ProjectData!B$64*ProjectData!B$96*ProjectData!B$97),0) -> 0 | J204: =IF(H204<=ProjectData!B$100,-PPMT(ProjectData!B$99,H204,ProjectData!B$100,ProjectData!B$96*ProjectData!B$64*ProjectData!B$97),0) -> 0 | K204: 0 | M204: 3 | N204: =IF(M204<=ProjectData!$B$100,-IPMT(ProjectData!$B$99,M204,ProjectData!$B$100,ProjectData!$B$64*ProjectData!$B$96*ProjectData!$B$98),0) -> 9678343.631 | O204: =IF(M204<=ProjectData!$B$100,-PPMT(ProjectData!$B$99,M204,ProjectData!$B$100,ProjectData!$B$96*ProjectData!$B$64*ProjectData!$B$98),0) -> 6557306.975 | P204: 16235650.61
... 29 more rows

Sheet Multipliers (hidden)
C1: Multipliers For Economic Input-Output Analysis
C2: Year of Data | D2: 2016
C3: Jobs Per Million Dollars Change in Final Demand
C4: Jobs Direct Multipliers | D4: Alabama | E4: Alaska | F4: Arizona | G4: Arkansas | H4: California | I4: Colorado | J4: Connecticut | K4: Delaware | L4: District of Columbia | M4: Florida | N4: Georgia | O4: Hawaii | P4: Idaho | Q4: Illinois | R4: Indiana | S4: Iowa | T4: Kansas | U4: Kentucky | V4: Louisiana | W4: Maine | X4: Maryland | Y4: Massachusetts | Z4: Michigan | AA4: Minnesota | AB4: Mississippi | AC4: Missouri | AD4: Montana | AE4: MyCounty | AF4: MyRegion | AG4: Nebraska | AH4: Nevada | AI4: New Hampshire | AJ4: New Jersey | AK4: New Mexico | AL4: New York | AM4: North Carolina | AN4: North Dakota | AO4: Ohio | AP4: Oklahoma | AQ4: Oregon | AR4: Pennsylvania | AS4: Rhode Island | AT4: South Carolina | AU4: South Dakota | AV4: Tennessee | AW4: Texas | AX4: United States | AY4: Utah | AZ4: Vermont | BA4: Virginia | BB4: Washington | BC4: West Virginia | BD4: Wisconsin | BE4: Wyoming
A5: Warning | C5: Agriculture | D5: 7.994973076 | E5: 7.790779539 | F5: 8.366613551 | G5: 5.878526166 | H5: 7.833807591 | I5: 7.299426502 | J5: 16.15539428 | K5: 3.261655771 | L5: 29.6879813 | M5: 11.65774855 | N5: 5.942800557 | O5: 19.57776428 | P5: 5.51455352 | Q5: 4.41812137 | R5: 5.394756841 | S5: 3.319498687 | T5: 4.07306654 | U5: 14.3330955 | V5: 10.38912787 | W5: 15.89484881 | X5: 8.306728364 | Y5: 16.29668494 | Z5: 9.112315108 | AA5: 4.499772826 | AB5: 7.25093551 | AC5: 9.26668229 | AD5: 7.842897922 | AE5: ='User Add-in Location'!B9 -> 0 | AF5: ='User Add-in Location'!C9 -> 0 | AG5: 2.718176536 | AH5: 8.375778007 | AI5: 18.73001639 | AJ5: 14.34767215 | AK5: 10.04359075 | AL5: 10.80588383 | AM5: 6.184010742 | AN5: 3.465485755 | AO5: 9.090417469 | AP5: 10.75981981 | AQ5: 11.20633396 | AR5: 10.34238062 | AS5: 17.01256528 | AT5: 10.78127007 | AU5: 3.317553846 | AV5: 17.3962397 | AW5: 11.63583374 | AX5: 7.454160377 | AY5: 10.9075258 | AZ5: 12.14229827 | BA5: 13.01928634 | BB5: 8.977050942 | BC5: 22.77024001 | BD5: 7.178561461 | BE5: 10.26951329
C6: Mining | D6: 2.7034655 | E6: 1.818225535 | F6: 2.88580449 | G6: 5.17217846 | H6: 3.964841221 | I6: 3.586359424 | J6: 5.752965068 | K6: 16.4128984 | L6: 22.89826927 | M6: 5.836853822 | N6: 4.296040303 | O6: 5.966913534 | P6: 3.074083714 | Q6: 5.388186292 | R6: 3.416790377 | S6: 5.965144425 | T6: 8.11438709 | U6: 3.080751714 | V6: 4.367723162 | W6: 6.929254651 | X6: 3.847960686 | Y6: 3.63423769 | Z6: 4.844865002 | AA6: 2.980641611 | AB6: 5.89121111 | AC6: 4.585995334 | AD6: 3.104279885 | AE6: ='User Add-in Location'!B10 -> 0 | AF6: ='User Add-in Location'!C10 -> 0 | AG6: 6.584781532 | AH6: 2.932733456 | AI6: 6.498165523 | AJ6: 5.120725104 | AK6: 2.993364217 | AL6: 6.427492634 | AM6: 5.5017036 | AN6: 3.288825103 | AO6: 3.873602581 | AP6: 4.616149406 | AQ6: 6.23561461 | AR6: 2.721691462 | AS6: 5.416844737 | AT6: 5.455803275 | AU6: 6.540069416 | AV6: 4.774514612 | AW6: 2.925198559 | AX6: 3.441115171 | AY6: 3.210055003 | AZ6: 2.982779445 | BA6: 3.53068045 | BB6: 4.695867188 | BC6: 2.611039488 | BD6: 3.587428808 | BE6: 2.395535245
A7: This Worksheet contains Data and Formulas that are an integral part of the JEDI model. | C7: Construction | D7: 6.854407939 | E7: 5.801715676 | F7: 6.445848282 | G7: 6.881253405 | H7: 5.580452265 | I7: 6.010767059 | J7: 5.896155025 | K7: 5.8384932 | L7: 5.701168465 | M7: 6.432664507 | N7: 6.208680026 | O7: 5.214505668 | P7: 6.489423802 | Q7: 5.681233799 | R7: 6.468123983 | S7: 6.360017206 | T7: 6.476256583 | U7: 6.423427746 | V7: 6.572058022 | W7: 7.219364365 | X7: 6.055797457 | Y7: 5.811464851 | Z7: 6.006951805 | AA7: 6.009876293 | AB7: 6.827445755 | AC7: 6.794437056 | AD7: 6.53288182 | AE7: ='User Add-in Location'!B11 -> 0 | AF7: ='User Add-in Location'!C11 -> 0 | AG7: 6.969840566 | AH7: 6.27464005 | AI7: 6.862550069 | AJ7: 5.350801053 | AK7: 6.895469905 | AL7: 5.560891229 | AM7: 6.629972463 | AN7: 5.631041523 | AO7: 6.290830914 | AP7: 6.529761136 | AQ7: 6.264170381 | AR7: 5.86717732 | AS7: 5.889213532 | AT7: 6.178718495 | AU7: 6.719750875 | AV7: 6.521987708 | AW7: 5.856862777 | AX7: 6.052315773 | AY7: 6.05083081 | AZ7: 7.426145587 | BA7: 6.12106657 | BB7: 5.700745942 | BC7: 5.729768532 | BD7: 6.151785452 | BE7: 6.016454015
C8: Manufacturing | D8: 1.827220906 | E8: 2.29205899 | F8: 2.420359917 | G8: 2.189178805 | H8: 1.811763039 | I8: 2.203046196 | J8: 2.196873375 | K8: 1.855393467 | L8: 2.721745415 | M8: 2.457243094 | N8: 2.04467166 | O8: 2.197548543 | P8: 2.116506933 | Q8: 1.839512089 | R8: 1.723278966 | S8: 1.765669739 | T8: 1.618658596 | U8: 1.559522573 | V8: 0.8813583612 | W8: 2.607128841 | X8: 2.180903231 | Y8: 2.120901363 | Z8: 1.834133469 | AA8: 2.143695177 | AB8: 1.975273495 | AC8: 1.726822338 | AD8: 1.547065219 | AE8: ='User Add-in Location'!B12 -> 0 | AF8: ='User Add-in Location'!C12 -> 0 | AG8: 1.702056729 | AH8: 2.793606235 | AI8: 2.696107486 | AJ8: 1.846489269 | AK8: 2.01003427 | AL8: 2.236095942 | AM8: 1.869577013 | AN8: 1.737203098 | AO8: 1.876396252 | AP8: 1.94886838 | AQ8: 2.549490879 | AR8: 2.072206148 | AS8: 2.651350328 | AT8: 1.905023514 | AU8: 2.157181405 | AV8: 1.844259857 | AW8: 1.27007468 | AX8: 1.849598722 | AY8: 2.117383664 | AZ8: 2.487870883 | BA8: 2.06950427 | BB8: 1.632717584 | BC8: 1.587988065 | BD8: 2.311751533 | BE8: 1.00777664
A9: Although the data and formulas are available for review they must not be changed. | C9: Fabricated Metals | D9: 3.711175105 | E9: 4.428075619 | F9: 4.331138538 | G9: 3.37821753 | H9: 4.045149725 | I9: 3.744216868 | J9: 3.783442422 | K9: 4.156406949 | L9: 0 | M9: 3.986577742 | N9: 3.938496466 | O9: 4.360808276 | P9: 4.418716797 | Q9: 3.899255038 | R9: 3.875168497 | S9: 3.631320898 | T9: 3.808325801 | U9: 4.00417179 | V9: 3.662854294 | W9: 3.647369438 | X9: 3.796798952 | Y9: 3.716487546 | Z9: 3.997746493 | AA9: 4.184931115 | AB9: 4.068474952 | AC9: 4.052508665 | AD9: 4.000206635 | AE9: ='User Add-in Location'!B13 -> 0 | AF9: ='User Add-in Location'!C13 -> 0 | AG9: 3.57299566 | AH9: 3.740158857 | AI9: 3.742252483 | AJ9: 3.907953417 | AK9: 4.369472995 | AL9: 3.762732692 | AM9: 3.878045969 | AN9: 3.822635645 | AO9: 3.842143084 | AP9: 3.395561069 | AQ9: 3.817219859 | AR9: 3.916442833 | AS9: 4.342993265 | AT9: 3.207232552 | AU9: 3.830636508 | AV9: 3.738439777 | AW9: 3.735174134 | AX9: 3.816813039 | AY9: 3.644104463 | AZ9: 4.281997082 | BA9: 3.429213054 | BB9: 3.88374076 | BC9: 3.858215223 | BD9: 4.037189256 | BE9: 3.478205055
C10: Machinery | D10: 2.145668305 | E10: 2.269846775 | F10: 2.446230658 | G10: 2.564147001 | H10: 2.190633138 | I10: 2.439877654 | J10: 2.770534502 | K10: 3.405726221 | L10: 2.568259112 | M10: 2.336114971 | N10: 1.89487682 | O10: 2.464610263 | P10: 2.526061437 | Q10: 1.847172241 | R10: 1.281935465 | S10: 1.804347773 | T10: 2.341034201 | U10: 2.503689184 | V10: 2.191498672 | W10: 2.746821868 | X10: 1.406221586 | Y10: 2.760490209 | Z10: 2.072575393 | AA10: 2.383585833 | AB10: 1.443564524 | AC10: 1.579834139 | AD10: 2.299650353 | AE10: ='User Add-in Location'!B14 -> 0 | AF10: ='User Add-in Location'!C14 -> 0 | AG10: 1.975271467 | AH10: 2.570036062 | AI10: 3.200185499 | AJ10: 2.967437005 | AK10: 2.373710187 | AL10: 1.973488795 | AM10: 1.886050874 | AN10: 1.658838283 | AO10: 2.431709277 | AP10: 2.12333703 | AQ10: 2.558614585 | AR10: 2.361881893 | AS10: 3.220461056 | AT10: 1.96850527 | AU10: 2.399190392 | AV10: 1.831484741 | AW10: 2.039278742 | AX10: 1.999304507 | AY10: 1.938249876 | AZ10: 3.486884362 | BA10: 2.793281686 | BB10: 2.750141858 | BC10: 3.450845077 | BD10: 1.751760468 | BE10: 2.768832595
A11: Any changes to the data or formulas will impact the analysis and may invalidate the model results. | C11: Electrical Equipment | D11: 3.595958552 | E11: 0 | F11: 1.632500021 | G11: 3.055573937 | H11: 1.643989072 | I11: 2.237810575 | J11: 2.904469915 | K11: 3.853900433 | L11: 1.877746617 | M11: 2.171009734 | N11: 2.903426306 | O11: 2.203683074 | P11: 1.866799221 | Q11: 3.154932443 | R11: 3.043026429 | S11: 2.79971081 | T11: 3.910768086 | U11: 3.77254002 | V11: 3.63782697 | W11: 2.031181784 | X11: 3.038942569 | Y11: 2.029821735 | Z11: 2.953561616 | AA11: 2.724583529 | AB11: 3.230535436 | AC11: 2.336215884 | AD11: 3.149973819 | AE11: ='User Add-in Location'!B15 -> 0 | AF11: ='User Add-in Location'!C15 -> 0 | AG11: 4.140571205 | AH11: 3.248151477 | AI11: 2.980063055 | AJ11: 2.732928919 | AK11: 1.839289037 | AL11: 2.446060316 | AM11: 1.775370786 | AN11: 3.177236517 | AO11: 2.804155828 | AP11: 3.245080467 | AQ11: 0.9006671625 | AR11: 2.620783047 | AS11: 2.781215233 | AT11: 3.038056007 | AU11: 3.62373055 | AV11: 3.045831244 | AW11: 1.65550227 | AX11: 1.821495961 | AY11: 2.096153574 | AZ11: 2.135973903 | BA11: 2.287588885 | BB11: 2.490859736 | BC11: 3.565569341 | BD11: 3.398927837 | BE11: 0
C12: TCPU | D12: 2.461700699 | E12: 1.680218555 | F12: 2.742655267 | G12: 3.505209693 | H12: 3.628267184 | I12: 2.835296743 | J12: 3.074145822 | K12: 2.845046379 | L12: 4.000682232 | M12: 2.850497212 | N12: 2.946400527 | O12: 2.438318107 | P12: 3.643424169 | Q12: 3.543107622 | R12: 3.308088752 | S12: 3.425793045 | T12: 2.930306374 | U12: 3.067156339 | V12: 2.736045792 | W12: 3.433462173 | X12: 3.236778421 | Y12: 3.702151698 | Z12: 2.933099626 | AA12: 3.195921866 | AB12: 2.9460735 | AC12: 3.313688006 | AD12: 2.620699765 | AE12: ='User Add-in Location'!B16 -> 0 | AF12: ='User Add-in Location'!C16 -> 0 | AG12: 2.810808334 | AH12: 3.274399901 | AI12: 3.159077337 | AJ12: 3.558828739 | AK12: 2.913617556 | AL12: 4.174918457 | AM12: 3.226975816 | AN12: 2.622963864 | AO12: 3.287859462 | AP12: 2.226406124 | AQ12: 3.132372016 | AR12: 3.427616649 | AS12: 3.570649635 | AT12: 2.674998354 | AU12: 3.146461636 | AV12: 3.409964034 | AW12: 2.874386218 | AX12: 3.212537818 | AY12: 3.59142378 | AZ12: 2.982069637 | BA12: 3.740145123 | BB12: 3.192807869 | BC12: 2.41801464 | BD12: 3.50342588 | BE12: 1.95051722
C13: Wholesale Trade | D13: 4.520660584 | E13: 4.043425437 | F13: 4.138003496 | G13: 3.940846799 | H13: 3.879675792 | I13: 4.22209877 | J13: 3.168612665 | K13: 3.937227771 | L13: 3.619104461 | M13: 4.121726316 | N13: 3.953590268 | O13: 5.060559239 | P13: 4.739198054 | Q13: 3.670293429 | R13: 4.268690707 | S13: 4.426749782 | T13: 4.152902884 | U13: 4.086004282 | V13: 4.243032976 | W13: 4.410663884 | X13: 3.990264181 | Y13: 3.676314062 | Z13: 3.995102121 | AA13: 4.144063371 | AB13: 4.526373607 | AC13: 4.214062973 | AD13: 4.691304547 | AE13: ='User Add-in Location'!B17 -> 0 | AF13: ='User Add-in Location'!C17 -> 0 | AG13: 3.948790549 | AH13: 4.311998767 | AI13: 4.065300277 | AJ13: 3.605585777 | AK13: 5.164377314 | AL13: 3.791223606 | AM13: 4.290713303 | AN13: 3.995944251 | AO13: 4.299838064 | AP13: 4.176612229 | AQ13: 4.443918146 | AR13: 3.927679613 | AS13: 3.847769291 | AT13: 4.289110389 | AU13: 4.169267506 | AV13: 3.926658672 | AW13: 3.514884674 | AX13: 3.958408883 | AY13: 4.573976094 | AZ13: 4.325929587 | BA13: 4.005151984 | BB13: 3.850695625 | BC13: 4.407622722 | BD13: 4.499807605 | BE13: 4.111277181
C14: Retail Trade | D14: 10.80418627 | E14: 10.97113683 | F14: 9.626123565 | G14: 11.07417226 | H14: 8.817277025 | I14: 10.56069439 | J14: 9.349628991 | K14: 11.27120779 | L14: 9.507293168 | M14: 10.3656723 | N14: 10.71865465 | O14: 9.385724736 | P14: 10.37698689 | Q14: 10.25104096 | R14: 10.70625398 | S14: 11.99544755 | T14: 10.60569967 | U14: 11.60754119 | V14: 10.49242617 | W14: 11.0088556 | X14: 10.11036509 | Y14: 10.5956055 | Z14: 10.23308517 | AA14: 10.58317633 | AB14: 10.83932773 | AC14: 10.95333193 | AD14: 12.3922563 | AE14: ='User Add-in Location'!B18 -> 0 | AF14: ='User Add-in Location'!C18 -> 0 | AG14: 11.32366354 | AH14: 9.300770832 | AI14: 11.11011856 | AJ14: 9.55582081 | AK14: 11.22362847 | AL14: 9.196178283 | AM14: 11.50186942 | AN14: 10.4781906 | AO14: 10.29477157 | AP14: 11.21254782 | AQ14: 11.71737919 | AR14: 11.16259665 | AS14: 10.13769728 | AT14: 11.06966787 | AU14: 10.54366411 | AV14: 10.31389011 | AW14: 9.911681447 | AX14: 10.08260454 | AY14: 9.980639114 | AZ14: 10.84655419 | BA14: 10.59347315 | BB14: 6.75804754 | BC14: 11.2731426 | BD14: 11.07292128 | BE14: 10.39214406
C15: FIRE | D15: 4.992792927 | E15: 4.277026698 | F15: 5.020451981 | G15: 4.95344179 | H15: 3.732769059 | I15: 4.9748425 | J15: 3.543470317 | K15: 2.51723112 | L15: 3.276117255 | M15: 5.18298557 | N15: 4.104633341 | O15: 3.857707539 | P15: 5.431408061 | Q15: 3.712271846 | R15: 4.305558221 | S15: 3.688422689 | T15: 4.379126922 | U15: 4.70966535 | V15: 5.371878467 | W15: 4.405630826 | X15: 4.017393471 | Y15: 3.460440011 | Z15: 4.700672034 | AA15: 4.64191866 | AB15: 5.19606837 | AC15: 4.759242335 | AD15: 5.599241273 | AE15: ='User Add-in Location'!B19 -> 0 | AF15: ='User Add-in Location'!C19 -> 0 | AG15: 4.169045251 | AH15: 5.294018967 | AI15: 3.892538896 | AJ15: 4.323178543 | AK15: 4.490078054 | AL15: 2.846931385 | AM15: 4.118917121 | AN15: 5.03820702 | AO15: 3.913065202 | AP15: 5.274855364 | AQ15: 4.51627491 | AR15: 4.130444275 | AS15: 4.034398207 | AT15: 5.096620871 | AU15: 4.006075772 | AV15: 4.577435001 | AW15: 4.888135586 | AX15: 4.123491371 | AY15: 4.802641505 | AZ15: 4.168180506 | BA15: 4.171103848 | BB15: 4.11280328 | BC15: 4.570419922 | BD15: 4.011990197 | BE15: 5.473495056
C16: Misc. Services | D16: 10.65531744 | E16: 8.078810278 | F16: 9.037367685 | G16: 9.547442183 | H16: 7.352259732 | I16: 8.236536473 | J16: 7.579575727 | K16: 7.985500642 | L16: 6.568728183 | M16: 9.234193735 | N16: 8.457028617 | O16: 8.705504782 | P16: 10.56089436 | Q16: 8.347656468 | R16: 10.05001621 | S16: 10.1671976 | T16: 8.798184263 | U16: 9.791734108 | V16: 9.835904497 | W16: 9.828964767 | X16: 8.275542061 | Y16: 7.606393246 | Z16: 9.409841369 | AA16: 8.690968018 | AB16: 10.63026629 | AC16: 8.647495316 | AD16: 10.50014048 | AE16: ='User Add-in Location'!B20 -> 0 | AF16: ='User Add-in Location'!C20 -> 0 | AG16: 9.230898845 | AH16: 8.020641428 | AI16: 8.608188904 | AJ16: 7.785996126 | AK16: 9.04223895 | AL16: 7.205011229 | AM16: 9.237693463 | AN16: 9.41909718 | AO16: 9.277783807 | AP16: 9.669901632 | AQ16: 8.98121114 | AR16: 8.211421 | AS16: 8.84137017 | AT16: 9.967168176 | AU16: 9.670957181 | AV16: 8.961315611 | AW16: 8.824521998 | AX16: 8.431850622 | AY16: 9.211769912 | AZ16: 9.912013488 | BA16: 8.216391088 | BB16: 6.696414183 | BC16: 10.25282747 | BD16: 9.372374206 | BE16: 10.06589285
C17: Professional Services | D17: 6.194722032 | E17: 6.28070959 | F17: 6.642406685 | G17: 7.691142023 | H17: 5.189147749 | I17: 6.094877955 | J17: 5.480655194 | K17: 4.804015504 | L17: 3.381020886 | M17: 6.520075929 | N17: 6.223522299 | O17: 6.303505492 | P17: 6.538105411 | Q17: 5.172526324 | R17: 5.518991749 | S17: 6.614734116 | T17: 6.709552568 | U17: 6.914286075 | V17: 6.647473799 | W17: 6.862684802 | X17: 5.311292604 | Y17: 4.563783623 | Z17: 5.763261185 | AA17: 5.730523316 | AB17: 7.312052069 | AC17: 5.875894928 | AD17: 7.65252087 | AE17: ='User Add-in Location'!B21 -> 0 | AF17: ='User Add-in Location'!C21 -> 0 | AG17: 6.410520607 | AH17: 6.53952271 | AI17: 5.874534497 | AJ17: 5.169776412 | AK17: 5.153465995 | AL17: 4.79459687 | AM17: 5.662584732 | AN17: 6.6724127 | AO17: 6.28220083 | AP17: 7.160620828 | AQ17: 6.056436828 | AR17: 5.32766754 | AS17: 6.380188897 | AT17: 6.572526453 | AU17: 6.715482291 | AV17: 6.285106429 | AW17: 5.847901057 | AX17: 5.595065772 | AY17: 6.839226865 | AZ17: 6.916454223 | BA17: 5.380922855 | BB17: 5.577252135 | BC17: 6.491201488 | BD17: 6.237867252 | BE17: 7.438155847
A18: To view the data and formulas simply scroll over to the adjacent columns to the right. | C18: Government | D18: 7.863996322 | E18: 7.224547294 | F18: 7.70726539 | G18: 10.60839839 | H18: 6.047454472 | I18: 9.092484251 | J18: 6.150912218 | K18: 8.706328274 | L18: 4.149946456 | M18: 8.01886821 | N18: 9.771117197 | O18: 7.287490339 | P18: 10.64466702 | Q18: 8.720046679 | R18: 10.30049067 | S18: 9.689934511 | T18: 10.00854012 | U18: 9.271430493 | V18: 9.933642189 | W18: 8.929916852 | X18: 5.266424168 | Y18: 5.939745349 | Z18: 9.134473513 | AA18: 8.843558084 | AB18: 10.66334473 | AC18: 9.652429385 | AD18: 10.0353383 | AE18: ='User Add-in Location'!B22 -> 0 | AF18: ='User Add-in Location'!C22 -> 0 | AG18: 9.933294385 | AH18: 6.394769074 | AI18: 7.135393536 | AJ18: 6.897010959 | AK18: 6.017058943 | AL18: 6.199956403 | AM18: 9.664150199 | AN18: 9.411168235 | AO18: 8.38174429 | AP18: 8.006031026 | AQ18: 8.157059058 | AR18: 7.562404465 | AS18: 6.410816264 | AT18: 9.186917459 | AU18: 9.492538911 | AV18: 9.399138092 | AW18: 8.586380973 | AX18: 7.65538942 | AY18: 9.004832705 | AZ18: 9.88794896 | BA18: 6.394635459 | BB18: 6.768177291 | BC18: 9.70627964 | BD18: 9.328234389 | BE18: 8.869077636
C20: Jobs Per Million Dollars Change in Final Demand
C21: Jobs Indirect Multipliers | D21: Alabama | E21: Alaska | F21: Arizona | G21: Arkansas | H21: California | I21: Colorado | J21: Connecticut | K21: Delaware | L21: District of Columbia | M21: Florida | N21: Georgia | O21: Hawaii | P21: Idaho | Q21: Illinois | R21: Indiana | S21: Iowa | T21: Kansas | U21: Kentucky | V21: Louisiana | W21: Maine | X21: Maryland | Y21: Massachusetts | Z21: Michigan | AA21: Minnesota | AB21: Mississippi | AC21: Missouri | AD21: Montana | AE21: MyCounty | AF21: MyRegion | AG21: Nebraska | AH21: Nevada | AI21: New Hampshire | AJ21: New Jersey | AK21: New Mexico | AL21: New York | AM21: North Carolina | AN21: North Dakota | AO21: Ohio | AP21: Oklahoma | AQ21: Oregon | AR21: Pennsylvania | AS21: Rhode Island | AT21: South Carolina | AU21: South Dakota | AV21: Tennessee | AW21: Texas | AX21: United States | AY21: Utah | AZ21: Vermont | BA21: Virginia | BB21: Washington | BC21: West Virginia | BD21: Wisconsin | BE21: Wyoming
C22: Agriculture | D22: 1.864128615 | E22: 1.585489279 | F22: 2.277131343 | G22: 2.740679028 | H22: 1.676426959 | I22: 3.422209735 | J22: 1.166970751 | K22: 1.438823058 | L22: 0.4682175428 | M22: 1.875298566 | N22: 2.090783906 | O22: 2.148330857 | P22: 2.811995168 | Q22: 2.10054185 | R22: 1.583681109 | S22: 2.299285525 | T22: 2.698094099 | U22: 1.966039499 | V22: 1.474783869 | W22: 2.105088411 | X22: 1.551339813 | Y22: 0.7582221671 | Z22: 1.817119864 | AA22: 2.54461927 | AB22: 2.164759871 | AC22: 2.355411966 | AD22: 2.625377071 | AE22: ='User Add-in Location'!B26 -> 0 | AF22: ='User Add-in Location'!C26 -> 0 | AG22: 2.361740884 | AH22: 1.502112204 | AI22: 1.483615366 | AJ22: 1.059097735 | AK22: 2.486984769 | AL22: 1.766911073 | AM22: 2.062209137 | AN22: 2.102102927 | AO22: 1.980196232 | AP22: 2.355697538 | AQ22: 2.369567407 | AR22: 1.831326626 | AS22: 0.7349568314 | AT22: 1.849549241 | AU22: 2.19851861 | AV22: 2.047543296 | AW22: 2.444218871 | AX22: 4.182677456 | AY22: 2.301429903 | AZ22: 3.829729566 | BA22: 2.163315014 | BB22: 1.566516997 | BC22: 2.357046827 | BD22: 2.806505528 | BE22: 1.968610409
C23: Mining | D23: 1.299537849 | E23: 0.4841216482 | F23: 1.801403318 | G23: 1.396815031 | H23: 1.272292194 | I23: 1.275827784 | J23: 1.448409083 | K23: 2.830064134 | L23: 5.400947219 | M23: 2.797333459 | N23: 1.364906897 | O23: 1.421098658 | P23: 1.431394905 | Q23: 2.135683562 | R23: 1.650940987 | S23: 1.59309023 | T23: 3.684059394 | U23: 1.710150433 | V23: 1.444279699 | W23: 2.529056492 | X23: 1.839424789 | Y23: 2.330880288 | Z23: 1.796449775 | AA23: 1.509803988 | AB23: 2.340936916 | AC23: 1.736198405 | AD23: 1.817642826 | AE23: ='User Add-in Location'!B27 -> 0 | AF23: ='User Add-in Location'!C27 -> 0 | AG23: 1.778913148 | AH23: 1.442841149 | AI23: 2.153526468 | AJ23: 2.004173185 | AK23: 1.028229436 | AL23: 2.087697286 | AM23: 1.868599351 | AN23: 1.040287089 | AO23: 1.260298417 | AP23: 1.496039408 | AQ23: 2.24386643 | AR23: 1.107370144 | AS23: 1.644212522 | AT23: 1.441271199 | AU23: 1.896736017 | AV23: 1.862421269 | AW23: 0.9505096827 | AX23: 2.027476797 | AY23: 1.741373737 | AZ23: 0.9743177502 | BA23: 1.635050914 | BB23: 1.919920754 | BC23: 1.413440027 | BD23: 1.209410514 | BE23: 1.161506261
C24: Construction | D24: 2.333955497 | E24: 1.583054888 | F24: 2.322687711 | G24: 2.373386507 | H24: 2.131987565 | I24: 2.349942386 | J24: 1.925877543 | K24: 1.654496737 | L24: 0.8599220874 | M24: 2.631056958 | N24: 2.398081217 | O24: 1.56040297 | P24: 2.336509002 | Q24: 2.082901675 | R24: 2.17970816 | S24: 2.099256318 | T24: 2.23948298 | U24: 2.139092507 | V24: 2.071348689 | W24: 2.858318611 | X24: 1.786798214 | Y24: 1.958514055 | Z24: 2.245561594 | AA24: 2.389357104 | AB24: 2.292298138 | AC24: 2.50071439 | AD24: 2.447827723 | AE24: ='User Add-in Location'!B28 -> 0 | AF24: ='User Add-in Location'!C28 -> 0 | AG24: 2.38507124 | AH24: 1.761271452 | AI24: 2.592743229 | AJ24: 1.823893589 | AK24: 2.065603842 | AL24: 1.69060301 | AM24: 2.573727388 | AN24: 1.707303087 | AO24: 2.442251135 | AP24: 2.381904723 | AQ24: 2.273774996 | AR24: 2.191556731 | AS24: 1.917470858 | AT24: 2.081121598 | AU24: 2.160053621 | AV24: 2.446202028 | AW24: 2.370447256 | AX24: 3.781845327 | AY24: 2.355185996 | AZ24: 2.682049058 | BA24: 1.928765331 | BB24: 1.562207938 | BC24: 1.585436158 | BD24: 2.29397073 | BE24: 1.519854155
C25: Manufacturing | D25: 1.885896237 | E25: 1.740299511 | F25: 2.149270125 | G25: 2.143195104 | H25: 2.14006692 | I25: 2.390217332 | J25: 1.362132048 | K25: 1.423881919 | L25: 0.7014407365 | M25: 2.453107187 | N25: 1.982512168 | O25: 2.349837184 | P25: 2.394067102 | Q25: 1.948184108 | R25: 1.66026861 | S25: 1.845526535 | T25: 2.182439059 | U25: 1.841781688 | V25: 1.789295041 | W25: 2.288905279 | X25: 1.344236925 | Y25: 1.528336821 | Z25: 1.962406919 | AA25: 2.171071808 | AB25: 2.014187316 | AC25: 2.0611268 | AD25: 2.289860545 | AE25: ='User Add-in Location'!B29 -> 0 | AF25: ='User Add-in Location'!C29 -> 0 | AG25: 1.998571354 | AH25: 1.474336688 | AI25: 1.6232214 | AJ25: 1.617730399 | AK25: 2.139157257 | AL25: 1.674829643 | AM25: 1.826556507 | AN25: 1.927750827 | AO25: 2.087791772 | AP25: 2.292759862 | AQ25: 2.314789994 | AR25: 1.981172161 | AS25: 1.595980212 | AT25: 1.710667956 | AU25: 1.932933958 | AV25: 1.932509535 | AW25: 2.448436307 | AX25: 4.287637587 | AY25: 2.405415019 | AZ25: 2.497022995 | BA25: 1.581439455 | BB25: 1.792439031 | BC25: 1.72937704 | BD25: 2.232518597 | BE25: 1.695680959
C26: Fabricated Metals | D26: 1.766294628 | E26: 1.524208798 | F26: 2.181550556 | G26: 1.57541868 | H26: 2.31280164 | I26: 2.200371767 | J26: 1.466160705 | K26: 1.357373459 | L26: 0 | M26: 2.379059143 | N26: 1.932994662 | O26: 1.686855084 | P26: 2.06911352 | Q26: 1.967534724 | R26: 1.733861699 | S26: 1.641150656 | T26: 1.686068586 | U26: 1.618214937 | V26: 1.617433029 | W26: 1.853063635 | X26: 1.552128839 | Y26: 1.563572146 | Z26: 1.96198677 | AA26: 2.116376115 | AB26: 1.732425622 | AC26: 1.868199474 | AD26: 1.959650377 | AE26: ='User Add-in Location'!B30 -> 0 | AF26: ='User Add-in Location'!C30 -> 0 | AG26: 1.702958236 | AH26: 1.448626416 | AI26: 1.625969059 | AJ26: 1.687663131 | AK26: 1.711138519 | AL26: 1.606604577 | AM26: 2.057965468 | AN26: 1.571894812 | AO26: 2.038761959 | AP26: 1.698710927 | AQ26: 2.005869092 | AR26: 1.952146332 | AS26: 1.881886992 | AT26: 1.425925515 | AU26: 1.578038578 | AV26: 1.828285606 | AW26: 2.243693975 | AX26: 4.133421753 | AY26: 2.402882233 | AZ26: 1.765559179 | BA26: 1.425888884 | BB26: 1.622497112 | BC26: 1.471699874 | BD26: 1.972930165 | BE26: 1.285670385
C27: Machinery | D27: 1.845122204 | E27: 1.164994796 | F27: 1.863349401 | G27: 1.763861661 | H27: 1.986755362 | I27: 2.189043575 | J27: 1.397232487 | K27: 1.08851655 | L27: 0.8966616516 | M27: 2.366070778 | N27: 1.798182388 | O27: 2.121400745 | P27: 2.067870672 | Q27: 1.704495903 | R27: 1.835973594 | S27: 1.461054387 | T27: 1.703315031 | U27: 1.667771225 | V27: 1.536041886 | W27: 1.924338654 | X27: 1.719358234 | Y27: 1.564621766 | Z27: 1.777974274 | AA27: 2.056401431 | AB27: 1.767498576 | AC27: 2.074471242 | AD27: 2.105366408 | AE27: ='User Add-in Location'!B31 -> 0 | AF27: ='User Add-in Location'!C31 -> 0 | AG27: 1.603833516 | AH27: 1.471568805 | AI27: 1.435798046 | AJ27: 1.594938738 | AK27: 1.646245482 | AL27: 1.507096766 | AM27: 1.777505585 | AN27: 1.355722031 | AO27: 1.950871093 | AP27: 1.711350589 | AQ27: 1.871575162 | AR27: 1.851504283 | AS27: 1.425464276 | AT27: 1.60947484 | AU27: 1.704648623 | AV27: 1.804755185 | AW27: 1.897002169 | AX27: 4.181348422 | AY27: 2.466956491 | AZ27: 1.525765207 | BA27: 1.491734108 | BB27: 1.610168808 | BC27: 1.247178752 | BD27: 2.042792916 | BE27: 1.409648015
C28: Electrical Equipment | D28: 1.875967153 | E28: 0 | F28: 2.031450787 | G28: 1.798082423 | H28: 1.981760631 | I28: 2.399675513 | J28: 1.625865265 | K28: 1.328001791 | L28: 1.043340227 | M28: 2.406429577 | N28: 2.108558985 | O28: 2.18388251 | P28: 2.150218637 | Q28: 2.007640267 | R28: 1.620740624 | S28: 1.706967741 | T28: 1.895881826 | U28: 1.8138064 | V28: 1.805746585 | W28: 1.817984143 | X28: 1.612151663 | Y28: 1.956962409 | Z28: 2.264046054 | AA28: 2.509682546 | AB28: 2.060149186 | AC28: 1.514813307 | AD28: 2.203491857 | AE28: ='User Add-in Location'!B32 -> 0 | AF28: ='User Add-in Location'!C32 -> 0 | AG28: 1.783374281 | AH28: 1.732095186 | AI28: 1.92965958 | AJ28: 1.82664665 | AK28: 1.590279256 | AL28: 1.901012823 | AM28: 1.958949703 | AN28: 1.841227927 | AO28: 2.323093948 | AP28: 2.03715797 | AQ28: 1.065026157 | AR28: 1.884593357 | AS28: 1.924958934 | AT28: 1.311998074 | AU28: 1.956868134 | AV28: 1.909436758 | AW28: 1.984530406 | AX28: 3.246637143 | AY28: 2.473470108 | AZ28: 2.275595263 | BA28: 1.792322102 | BB28: 1.820450862 | BC28: 1.824292526 | BD28: 2.27619109 | BE28: 0
C29: TCPU | D29: 2.77988408 | E29: 1.335244419 | F29: 2.797708631 | G29: 2.730594802 | H29: 2.376815521 | I29: 2.603137718 | J29: 1.874288226 | K29: 2.038148958 | L29: 1.345995502 | M29: 3.044063034 | N29: 2.611818155 | O29: 2.206821448 | P29: 2.870301937 | Q29: 2.660926752 | R29: 2.601294667 | S29: 2.450668959 | T29: 2.614495533 | U29: 2.584447554 | V29: 2.872858238 | W29: 2.642228642 | X29: 2.203184555 | Y29: 2.308647499 | Z29: 2.751720732 | AA29: 2.949284436 | AB29: 2.842997877 | AC29: 2.635503981 | AD29: 2.814553584 | AE29: ='User Add-in Location'!B33 -> 0 | AF29: ='User Add-in Location'!C33 -> 0 | AG29: 1.81578746 | AH29: 2.01150045 | AI29: 2.249753532 | AJ29: 2.148901476 | AK29: 2.416644212 | AL29: 2.429862921 | AM29: 2.571823522 | AN29: 2.512125222 | AO29: 2.617904871 | AP29: 2.550994788 | AQ29: 2.516178678 | AR29: 2.59124438 | AS29: 2.295782215 | AT29: 2.450114957 | AU29: 2.544598694 | AV29: 2.89786875 | AW29: 2.856846928 | AX29: 3.977998766 | AY29: 3.043463367 | AZ29: 2.705221215 | BA29: 2.329619813 | BB29: 2.14021917 | BC29: 2.284167804 | BD29: 2.566765854 | BE29: 1.883666261
C30: Wholesale Trade | D30: 2.480582595 | E30: 1.759991454 | F30: 2.76750305 | G30: 2.134192637 | H30: 2.294682858 | I30: 2.781466365 | J30: 1.667938516 | K30: 1.755675485 | L30: 1.321671141 | M30: 3.050102053 | N30: 2.410057441 | O30: 2.643451263 | P30: 2.881565257 | Q30: 2.249120247 | R30: 2.376535236 | S30: 2.287959839 | T30: 2.287356414 | U30: 2.193466161 | V30: 2.357752112 | W30: 2.744205567 | X30: 2.163638336 | Y30: 2.077377186 | Z30: 2.414645163 | AA30: 2.596183264 | AB30: 2.392563573 | AC30: 2.573098837 | AD30: 2.780789487 | AE30: ='User Add-in Location'!B34 -> 0 | AF30: ='User Add-in Location'!C34 -> 0 | AG30: 2.236770101 | AH30: 2.334474788 | AI30: 2.266256516 | AJ30: 2.09297639 | AK30: 2.522868558 | AL30: 1.949801987 | AM30: 2.61748408 | AN30: 2.018880247 | AO30: 2.641372568 | AP30: 2.40273781 | AQ30: 2.66425139 | AR30: 2.276633224 | AS30: 2.285889492 | AT30: 2.419316473 | AU30: 2.171793783 | AV30: 2.340185111 | AW30: 2.234528696 | AX30: 3.044716251 | AY30: 3.159350602 | AZ30: 2.514091974 | BA30: 2.121147785 | BB30: 1.891323138 | BC30: 2.087016333 | BD30: 2.633864916 | BE30: 1.843859323
C31: Retail Trade | D31: 2.086219592 | E31: 1.673381494 | F31: 2.417837409 | G31: 2.090740372 | H31: 1.850017038 | I31: 2.544927513 | J31: 1.75808522 | K31: 1.775444736 | L31: 1.246325504 | M31: 2.799129212 | N31: 2.322364146 | O31: 1.743930362 | P31: 2.352553728 | Q31: 2.261888512 | R31: 2.189930028 | S31: 2.228157277 | T31: 2.106093368 | U31: 2.20455082 | V31: 2.052761242 | W31: 2.430730811 | X31: 1.965520931 | Y31: 2.102216184 | Z31: 2.201562785 | AA31: 2.45518067 | AB31: 2.009418476 | AC31: 2.427984093 | AD31: 2.669700301 | AE31: ='User Add-in Location'!B35 -> 0 | AF31: ='User Add-in Location'!C35 -> 0 | AG31: 2.36767824 | AH31: 1.917327791 | AI31: 2.195919362 | AJ31: 2.014258699 | AK31: 1.898369995 | AL31: 1.676239315 | AM31: 2.473411815 | AN31: 2.004531384 | AO31: 2.293103492 | AP31: 2.303802418 | AQ31: 2.503530801 | AR31: 2.344499846 | AS31: 2.156740476 | AT31: 2.17729847 | AU31: 2.002782862 | AV31: 2.182650218 | AW31: 2.2948732 | AX31: 2.802078095 | AY31: 2.732846973 | AZ31: 2.216931116 | BA31: 2.035624307 | BB31: 1.252486409 | BC31: 1.845248065 | BD31: 2.398774055 | BE31: 1.739738499
C32: FIRE | D32: 2.757556469 | E32: 1.711863142 | F32: 3.539066012 | G32: 2.573709454 | H32: 2.066804975 | I32: 3.55684914 | J32: 2.156269769 | K32: 1.078223092 | L32: 1.20250341 | M32: 4.036907209 | N32: 2.497876824 | O32: 1.845632668 | P32: 3.33551033 | Q32: 2.417481417 | R32: 2.328398187 | S32: 2.144335974 | T32: 2.48104169 | U32: 2.597848621 | V32: 2.853855333 | W32: 2.76199801 | X32: 2.126819888 | Y32: 2.143676293 | Z32: 2.810545117 | AA32: 3.162191537 | AB32: 2.638193236 | AC32: 2.865764606 | AD32: 3.052337072 | AE32: ='User Add-in Location'!B36 -> 0 | AF32: ='User Add-in Location'!C36 -> 0 | AG32: 2.632048159 | AH32: 3.235322353 | AI32: 2.280577706 | AJ32: 2.590821149 | AK32: 2.142530309 | AL32: 1.38202311 | AM32: 2.36421369 | AN32: 2.684547242 | AO32: 2.494574847 | AP32: 3.122561707 | AQ32: 2.524324655 | AR32: 2.647644841 | AS32: 2.480694761 | AT32: 2.847391208 | AU32: 2.107229728 | AV32: 2.695411221 | AW32: 3.523373876 | AX32: 3.160053133 | AY32: 3.502998594 | AZ32: 2.315096098 | BA32: 2.216172686 | BB32: 2.017337822 | BC32: 1.927479112 | BD32: 2.528355879 | BE32: 2.706420754
C33: Misc. Services | D33: 2.553083409 | E33: 1.888467037 | F33: 3.029957126 | G33: 2.461687472 | H33: 2.269932798 | I33: 2.865852433 | J33: 1.998903457 | K33: 1.658754365 | L33: 1.233451975 | M33: 3.223193989 | N33: 2.665993468 | O33: 2.166854998 | P33: 2.946723839 | Q33: 2.507550635 | R33: 2.458499979 | S33: 2.344517743 | T33: 2.478339626 | U33: 2.446526908 | V33: 2.45894051 | W33: 2.836061494 | X33: 2.185987498 | Y33: 2.155798386 | Z33: 2.631652647 | AA33: 2.60438284 | AB33: 2.636069681 | AC33: 2.752839 | AD33: 2.86897506 | AE33: ='User Add-in Location'!B37 -> 0 | AF33: ='User Add-in Location'!C37 -> 0 | AG33: 2.600984718 | AH33: 2.092976328 | AI33: 2.223247785 | AJ33: 2.228135064 | AK33: 2.447066724 | AL33: 1.873176489 | AM33: 2.734910806 | AN33: 2.173058236 | AO33: 2.649976594 | AP33: 2.660077036 | AQ33: 2.549474712 | AR33: 2.233108485 | AS33: 2.471016545 | AT33: 2.650896006 | AU33: 2.343771473 | AV33: 2.578238125 | AW33: 2.747849459 | AX33: 3.347833436 | AY33: 3.189505958 | AZ33: 2.631542551 | BA33: 2.120791318 | BB33: 1.948536256 | BC33: 2.179432338 | BD33: 2.557656965 | BE33: 2.097493733
C34: Professional Services | D34: 2.621738919 | E34: 2.057100486 | F34: 3.099927089 | G34: 2.826773582 | H34: 2.228310029 | I34: 3.017853146 | J34: 2.168515451 | K34: 1.605035012 | L34: 0.9366753717 | M34: 3.154951764 | N34: 2.534855856 | O34: 2.338474135 | P34: 3.168580667 | Q34: 2.194685107 | R34: 2.260950708 | S34: 2.49547133 | T34: 2.715212268 | U34: 2.576392275 | V34: 2.468710332 | W34: 3.136944683 | X34: 2.301907088 | Y34: 2.191517535 | Z34: 2.742763537 | AA34: 2.635069688 | AB34: 2.691283851 | AC34: 2.62039797 | AD34: 3.102962721 | AE34: ='User Add-in Location'!B38 -> 0 | AF34: ='User Add-in Location'!C38 -> 0 | AG34: 2.629984578 | AH34: 2.40656555 | AI34: 2.46936913 | AJ34: 2.178557371 | AK34: 2.37873482 | AL34: 1.719625067 | AM34: 2.600794903 | AN34: 2.410588092 | AO34: 2.838213028 | AP34: 2.685581493 | AQ34: 2.510790072 | AR34: 2.412456267 | AS34: 2.858866018 | AT34: 2.661826052 | AU34: 2.628409193 | AV34: 2.580096681 | AW34: 2.541503937 | AX34: 3.131845583 | AY34: 3.654851402 | AZ34: 3.027877528 | BA34: 2.046067007 | BB34: 2.129783118 | BC34: 2.21886986 | BD34: 2.744988842 | BE34: 2.29848254
C35: Government | D35: 0.5185201035 | E35: 0.1491026153 | F35: 0.7485793904 | G35: 0.4422467893 | H35: 0.4356145359 | I35: 0.2809043685 | J35: 0.5741259514 | K35: 0.1284003869 | L35: 0.03121733832 | M35: 0.4618888459 | N35: 0.1670771851 | O35: 0.2640216503 | P35: 0.5779335421 | Q35: 0.1349974764 | R35: 0.31139953 | S35: 0.3052854825 | T35: 0.3995410871 | U35: 0.466089612 | V35: 0.6092366051 | W35: 0.4938027101 | X35: 0.05954847522 | Y35: 0.1315836166 | Z35: 0.3108351437 | AA35: 0.6088836738 | AB35: 0.384717695 | AC35: 0.4163662684 | AD35: 0.5206886706 | AE35: ='User Add-in Location'!B39 -> 0 | AF35: ='User Add-in Location'!C39 -> 0 | AG35: 0.3324332837 | AH35: 1.067108617 | AI35: 0.3883505939 | AJ35: 0.3289781072 | AK35: 0.5603693873 | AL35: 0.2992382444 | AM35: 0.2556846846 | AN35: 0.9285437817 | AO35: 0.3196873297 | AP35: 1.070858513 | AQ35: 0.4920808579 | AR35: 0.5009561868 | AS35: 0.1481099462 | AT35: 0.3481247483 | AU35: 0.9538226483 | AV35: 0.5476001856 | AW35: 0.44142842 | AX35: 0.5320931719 | AY35: 0.2985612292 | AZ35: 0.2971046345 | BA35: 0.3129179982 | BB35: 0.5721674996 | BC35: 0.3736567028 | BD35: 0.4367716919 | BE35: 0.3551211635
C37: Jobs Per Million Dollars Change in Final Demand
C38: Jobs Induced Multipliers | D38: Alabama | E38: Alaska | F38: Arizona | G38: Arkansas | H38: California | I38: Colorado | J38: Connecticut | K38: Delaware | L38: District of Columbia | M38: Florida | N38: Georgia | O38: Hawaii | P38: Idaho | Q38: Illinois | R38: Indiana | S38: Iowa | T38: Kansas | U38: Kentucky | V38: Louisiana | W38: Maine | X38: Maryland | Y38: Massachusetts | Z38: Michigan | AA38: Minnesota | AB38: Mississippi | AC38: Missouri | AD38: Montana | AE38: MyCounty | AF38: MyRegion | AG38: Nebraska | AH38: Nevada | AI38: New Hampshire | AJ38: New Jersey | AK38: New Mexico | AL38: New York | AM38: North Carolina | AN38: North Dakota | AO38: Ohio | AP38: Oklahoma | AQ38: Oregon | AR38: Pennsylvania | AS38: Rhode Island | AT38: South Carolina | AU38: South Dakota | AV38: Tennessee | AW38: Texas | AX38: United States | AY38: Utah | AZ38: Vermont | BA38: Virginia | BB38: Washington | BC38: West Virginia | BD38: Wisconsin | BE38: Wyoming
C39: Agriculture | D39: 2.080916312 | E39: 1.343243052 | F39: 2.92136722 | G39: 1.966648473 | H39: 2.585693384 | I39: 2.473977492 | J39: 1.910816212 | K39: 1.639601867 | L39: 1.007144269 | M39: 3.487951011 | N39: 2.346347281 | O39: 2.246495632 | P39: 2.51568006 | Q39: 1.047122032 | R39: 1.437930792 | S39: 1.879662755 | T39: 1.515844868 | U39: 1.572594628 | V39: 1.676631856 | W39: 3.066343903 | X39: 1.34455738 | Y39: 2.976821584 | Z39: 1.941387046 | AA39: 2.254782672 | AB39: 1.735993093 | AC39: 1.253246468 | AD39: 1.754392166 | AE39: ='User Add-in Location'!B43 -> 0 | AF39: ='User Add-in Location'!C43 -> 0 | AG39: 2.02434274 | AH39: 1.417035399 | AI39: 2.305721124 | AJ39: 2.115327172 | AK39: 1.721383279 | AL39: 1.432063452 | AM39: 2.565226939 | AN39: 0.7185844372 | AO39: 1.787916012 | AP39: 2.036034669 | AQ39: 3.01279819 | AR39: 2.15993538 | AS39: 2.522260257 | AT39: 1.323497293 | AU39: 1.617410142 | AV39: 1.382391014 | AW39: 2.339986072 | AX39: 4.206802577 | AY39: 2.266167658 | AZ39: 1.810242255 | BA39: 1.367171775 | BB39: 2.286281749 | BC39: 0.8681044961 | BD39: 2.163079042 | BE39: 0.9738679173
C40: Mining | D40: 1.077493115 | E40: 1.154342923 | F40: 2.113146825 | G40: 1.280457283 | H40: 2.204517303 | I40: 4.492053534 | J40: 0.4560222942 | K40: -0.4341889546 | L40: -5.391370734 | M40: 1.355193892 | N40: 1.96075252 | O40: 1.373423464 | P40: 2.232714698 | Q40: 2.16974599 | R40: 1.393746484 | S40: 1.54642636 | T40: 3.192831003 | U40: 1.257559325 | V40: 4.015713832 | W40: 1.502492022 | X40: 1.144861941 | Y40: 3.083036602 | Z40: 2.083765323 | AA40: 1.751182728 | AB40: 2.957525962 | AC40: 1.5639093 | AD40: 2.197495833 | AE40: ='User Add-in Location'!B44 -> 0 | AF40: ='User Add-in Location'!C44 -> 0 | AG40: 1.701092444 | AH40: 1.751477617 | AI40: 1.781155641 | AJ40: 1.565274846 | AK40: 1.522750179 | AL40: 2.663409027 | AM40: 1.408959945 | AN40: 1.760125628 | AO40: 1.73437902 | AP40: 3.108482885 | AQ40: 1.57549018 | AR40: 1.741053571 | AS40: 1.300605821 | AT40: 1.210567667 | AU40: 1.307978645 | AV40: 1.660601624 | AW40: 3.433646365 | AX40: 4.549258488 | AY40: 1.879229303 | AZ40: 1.010314713 | BA40: 0.8150049499 | BB40: 1.936277915 | BC40: 1.185884466 | BD40: 1.398819233 | BE40: 1.069152055
C41: Construction | D41: 2.363816051 | E41: 2.212893517 | F41: 2.941454298 | G41: 2.121540753 | H41: 2.551718015 | I41: 3.054087208 | J41: 2.391801944 | K41: 1.864387462 | L41: 0.5560550181 | M41: 3.096504727 | N41: 2.622269981 | O41: 2.156358982 | P41: 2.343964685 | Q41: 2.889444158 | R41: 2.60455675 | S41: 2.426945689 | T41: 2.326806287 | U41: 2.184352507 | V41: 2.578575709 | W41: 2.937603214 | X41: 2.355673978 | Y41: 2.670425617 | Z41: 2.730118712 | AA41: 3.217805634 | AB41: 2.060188629 | AC41: 2.863386884 | AD41: 2.50037068 | AE41: ='User Add-in Location'!B45 -> 0 | AF41: ='User Add-in Location'!C45 -> 0 | AG41: 2.746300238 | AH41: 2.240426169 | AI41: 3.29348585 | AJ41: 2.618482984 | AK41: 1.97856499 | AL41: 1.973798736 | AM41: 2.815111646 | AN41: 2.123391009 | AO41: 2.991056932 | AP41: 2.62210574 | AQ41: 2.850551776 | AR41: 2.822212575 | AS41: 2.52663318 | AT41: 2.218069694 | AU41: 2.287588837 | AV41: 3.024896094 | AW41: 3.101747626 | AX41: 5.060428579 | AY41: 2.977984591 | AZ41: 2.752040597 | BA41: 2.272717569 | BB41: 2.04177662 | BC41: 1.886017472 | BD41: 2.809783436 | BE41: 1.458669419
